Workbook

Sheet Velkomst

Sheet Tabel 1 H
A1: Tabel 1. Forsikrede medlemmer
A3: Hovedstaden
C5: Mænd | E5: Kvinder | G5: I alt
A7: Civ. ing. | C7: 12798 | E7: 5132 | G7: 17930
A8: Diplom ing. | C8: 9964 | E8: 2528 | G8: 12492
A9: Cand. Scient. Tek. | C9: 5678 | E9: 5234 | G9: 10912
A10: MA. Hum. | C10: 6217 | E10: 14036 | G10: 20253
A11: MA. Nat. | C11: 3537 | E11: 3602 | G11: 7139
A12: MA. Ph.d. | C12: 720 | E12: 578 | G12: 1298
A13: MA. Samf. | C13: 978 | E13: 2512 | G13: 3490
A14: Øvrige Mag. | C14: 582 | E14: 1094 | G14: 1676
A15: Agronom | C15: 386 | E15: 456 | G15: 842
A16: Landsk. Arkt. | C16: 133 | E16: 351 | G16: 484
A17: Hortonom | C17: 55 | E17: 93 | G17: 148
A18: Forstkand. | C18: 190 | E18: 70 | G18: 260
A19: Jordbrugsakad. | C19: 764 | E19: 970 | G19: 1734
A20: Mejeriing. | C20: 65 | E20: 85 | G20: 150
A21: Levn.m.kand. | C21: 51 | E21: 279 | G21: 330
A22: Dyrlæge | C22: 168 | E22: 788 | G22: 956
A23: Farmaceut | C23: 1053 | E23: 2736 | G23: 3789
A24: Læge | C24: 1568 | E24: 3795 | G24: 5363
A25: Tandlæge | C25: 127 | E25: 712 | G25: 839
A26: Arkitekt | C26: 1635 | E26: 1998 | G26: 3633
A27: Landinspek. | C27: 142 | E27: 49 | G27: 191
A28: Bibliotekar | C28: 444 | E28: 1215 | G28: 1659
A29: Musikudd. | C29: 133 | E29: 173 | G29: 306
A30: Teolog | C30: 208 | E30: 353 | G30: 561
A31: Psykolog | C31: 689 | E31: 2980 | G31: 3669
A32: Jurist | C32: 3275 | E32: 6572 | G32: 9847
A33: Økonom | C33: 3474 | E33: 2192 | G33: 5666
A34: Samf. Adm. | C34: 6957 | E34: 10364 | G34: 17321
A35: Cand. Merc. | C35: 10409 | E35: 10295 | G35: 20704
A36: HA | C36: 1340 | E36: 1126 | G36: 2466
A37: HD | C37: 1339 | E37: 1222 | G37: 2561
A38: Komm. og Sprog | C38: 628 | E38: 3327 | G38: 3955
A39: Bygningskonst. | C39: 2025 | E39: 479 | G39: 2504
A40: Cand. IT. | C40: 1491 | E40: 1256 | G40: 2747
A41: Bac. Samf. | C41: 372 | E41: 439 | G41: 811
A42: Bac. Hum. | C42: 766 | E42: 1411 | G42: 2177
A43: Bac. Nat. | C43: 925 | E43: 647 | G43: 1572
A44: Andre | C44: 6361 | E44: 7437 | G44: 13798
A46: Total | C46: 86883 | E46: 97616 | G46: 184499
A48: Ingeniører i alt | C48: 22762 | E48: 7660 | G48: 30422
A49: Magistre i alt | C49: 12034 | E49: 21822 | G49: 33856
A50: DJØF'ere i alt | C50: 25455 | E50: 30549 | G50: 56004
A57: København
C59: Mænd | E59: Kvinder | G59: I alt
A61: Civ. ing. | C61: 4396 | E61: 1667 | G61: 6063
A62: Diplom ing. | C62: 2611 | E62: 668 | G62: 3279
A63: Cand. Scient. Tek. | C63: 3084 | E63: 2825 | G63: 5909
A64: MA. Hum. | C64: 4060 | E64: 8458 | G64: 12518
A65: MA. Nat. | C65: 1499 | E65: 1509 | G65: 3008
A66: MA. Ph.d. | C66: 380 | E66: 293 | G66: 673
A67: MA. Samf. | C67: 691 | E67: 1699 | G67: 2390
A68: Øvrige Mag. | C68: 346 | E68: 632 | G68: 978
A69: Agronom | C69: 138 | E69: 165 | G69: 303
A70: Landsk. Arkt. | C70: 76 | E70: 180 | G70: 256
A71: Hortonom | C71: 20 | E71: 27 | G71: 47
A72: Forstkand. | C72: 63 | E72: 28 | G72: 91
A73: Jordbrugsakad. | C73: 297 | E73: 400 | G73: 697
A74: Mejeriing. | C74: 25 | E74: 34 | G74: 59
A75: Levn.m.kand. | C75: 31 | E75: 136 | G75: 167
A76: Dyrlæge | C76: 59 | E76: 265 | G76: 324
A77: Farmaceut | C77: 396 | E77: 851 | G77: 1247
A78: Læge | C78: 734 | E78: 1768 | G78: 2502
A79: Tandlæge | C79: 46 | E79: 259 | G79: 305
A80: Arkitekt | C80: 1033 | E80: 1239 | G80: 2272
A81: Landinspek. | C81: 42 | E81: 14 | G81: 56
A82: Bibliotekar | C82: 250 | E82: 530 | G82: 780
A83: Musikudd. | C83: 67 | E83: 81 | G83: 148
A84: Teolog | C84: 97 | E84: 159 | G84: 256
A85: Psykolog | C85: 440 | E85: 1642 | G85: 2082
A86: Jurist | C86: 1586 | E86: 2895 | G86: 4481
A87: Økonom | C87: 1655 | E87: 1013 | G87: 2668
A88: Samf. Adm. | C88: 4063 | E88: 5976 | G88: 10039
A89: Cand. Merc. | C89: 5040 | E89: 4966 | G89: 10006
A90: HA | C90: 594 | E90: 499 | G90: 1093
A91: HD | C91: 492 | E91: 598 | G91: 1090
A92: Komm. og Sprog | C92: 404 | E92: 1456 | G92: 1860
A93: Bygningskonst. | C93: 872 | E93: 236 | G93: 1108
A94: Cand. IT. | C94: 911 | E94: 799 | G94: 1710
A95: Bac. Samf. | C95: 232 | E95: 250 | G95: 482
A96: Bac. Hum. | C96: 499 | E96: 931 | G96: 1430
A97: Bac. Nat. | C97: 491 | E97: 384 | G97: 875
A98: Andre | C98: 3358 | E98: 3998 | G98: 7356
A100: Total | C100: 40781 | E100: 49130 | G100: 89911
A102: Ingeniører i alt | C102: 7007 | E102: 2335 | G102: 9342
A103: Magistre i alt | C103: 6976 | E103: 12591 | G103: 19567
A104: DJØF'ere i alt | C104: 12938 | E104: 15349 | G104: 28287
A111: Frederiksberg
C113: Mænd | E113: Kvinder | G113: I alt
A115: Civ. ing. | C115: 788 | E115: 324 | G115: 1112
A116: Diplom ing. | C116: 467 | E116: 106 | G116: 573
A117: Cand. Scient. Tek. | C117: 412 | E117: 404 | G117: 816
A118: MA. Hum. | C118: 558 | E118: 1272 | G118: 1830
A119: MA. Nat. | C119: 255 | E119: 237 | G119: 492
A120: MA. Ph.d. | C120: 66 | E120: 63 | G120: 129
A121: MA. Samf. | C121: 99 | E121: 218 | G121: 317
A122: Øvrige Mag. | C122: 42 | E122: 77 | G122: 119
A123: Agronom | C123: 43 | E123: 37 | G123: 80
A124: Landsk. Arkt. | C124: 14 | E124: 19 | G124: 33
A125: Hortonom | C125: 1 | E125: 6 | G125: 7
A126: Forstkand. | C126: 7 | E126: 7 | G126: 14
A127: Jordbrugsakad. | C127: 65 | E127: 69 | G127: 134
A128: Mejeriing. | C128: 5 | E128: 5 | G128: 10
A129: Levn.m.kand. | C129: 6 | E129: 26 | G129: 32
A130: Dyrlæge | C130: 15 | E130: 59 | G130: 74
A131: Farmaceut | C131: 66 | E131: 160 | G131: 226
A132: Læge | C132: 157 | E132: 344 | G132: 501
A133: Tandlæge | C133: 7 | E133: 57 | G133: 64
A134: Arkitekt | C134: 199 | E134: 222 | G134: 421
A135: Landinspek. | C135: 13 | E135: 3 | G135: 16
A136: Bibliotekar | C136: 32 | E136: 99 | G136: 131
A137: Musikudd. | C137: 12 | E137: 8 | G137: 20
A138: Teolog | C138: 8 | E138: 29 | G138: 37
A139: Psykolog | C139: 56 | E139: 274 | G139: 330
A140: Jurist | C140: 409 | E140: 670 | G140: 1079
A141: Økonom | C141: 346 | E141: 237 | G141: 583
A142: Samf. Adm. | C142: 675 | E142: 1048 | G142: 1723
A143: Cand. Merc. | C143: 1162 | E143: 1178 | G143: 2340
A144: HA | C144: 112 | E144: 87 | G144: 199
A145: HD | C145: 121 | E145: 95 | G145: 216
A146: Komm. og Sprog | C146: 57 | E146: 327 | G146: 384
A147: Bygningskonst. | C147: 113 | E147: 38 | G147: 151
A148: Cand. IT. | C148: 119 | E148: 95 | G148: 214
A149: Bac. Samf. | C149: 32 | E149: 48 | G149: 80
A150: Bac. Hum. | C150: 67 | E150: 131 | G150: 198
A151: Bac. Nat. | C151: 49 | E151: 52 | G151: 101
A152: Andre | C152: 567 | E152: 676 | G152: 1243
A154: Total | C154: 7157 | E154: 8738 | G154: 15895
A156: Ingeniører i alt | C156: 1255 | E156: 430 | G156: 1685
A157: Magistre i alt | C157: 1020 | E157: 1867 | G157: 2887
A158: DJØF'ere i alt | C158: 2704 | E158: 3220 | G158: 5924
A165: Ballerup
C167: Mænd | E167: Kvinder | G167: I alt
A169: Civ. ing. | C169: 386 | E169: 161 | G169: 547
A170: Diplom ing. | C170: 397 | E170: 99 | G170: 496
A171: Cand. Scient. Tek. | C171: 115 | E171: 92 | G171: 207
A172: MA. Hum. | C172: 69 | E172: 153 | G172: 222
A173: MA. Nat. | C173: 81 | E173: 86 | G173: 167
A174: MA. Ph.d. | C174: 10 | E174: 9 | G174: 19
A175: MA. Samf. | C175: 18 | E175: 17 | G175: 35
A176: Øvrige Mag. | C176: 9 | E176: 18 | G176: 27
A177: Agronom | C177: 9 | E177: 11 | G177: 20
A178: Landsk. Arkt. | C178: 2 | E178: 8 | G178: 10
A179: Hortonom | C179: 1 | E179: 2 | G179: 3
A180: Forstkand. | C180: 3 | E180: 1 | G180: 4
A181: Jordbrugsakad. | C181: 15 | E181: 22 | G181: 37
A182: Mejeriing. | C182: 1 | E182: 3 | G182: 4
A183: Levn.m.kand. | C183: 0 | E183: 4 | G183: 4
A184: Dyrlæge | C184: 3 | E184: 25 | G184: 28
A185: Farmaceut | C185: 34 | E185: 95 | G185: 129
A186: Læge | C186: 29 | E186: 54 | G186: 83
A187: Tandlæge | C187: 2 | E187: 14 | G187: 16
A188: Arkitekt | C188: 10 | E188: 11 | G188: 21
A189: Landinspek. | C189: 5 | E189: 1 | G189: 6
A190: Bibliotekar | C190: 11 | E190: 30 | G190: 41
A191: Musikudd. | C191: 3 | E191: 5 | G191: 8
A192: Teolog | C192: 3 | E192: 5 | G192: 8
A193: Psykolog | C193: 8 | E193: 39 | G193: 47
A194: Jurist | C194: 29 | E194: 82 | G194: 111
A195: Økonom | C195: 54 | E195: 25 | G195: 79
A196: Samf. Adm. | C196: 84 | E196: 114 | G196: 198
A197: Cand. Merc. | C197: 134 | E197: 142 | G197: 276
A198: HA | C198: 19 | E198: 15 | G198: 34
A199: HD | C199: 20 | E199: 16 | G199: 36
A200: Komm. og Sprog | C200: 10 | E200: 58 | G200: 68
A201: Bygningskonst. | C201: 50 | E201: 12 | G201: 62
A202: Cand. IT. | C202: 17 | E202: 20 | G202: 37
A203: Bac. Samf. | C203: 4 | E203: 5 | G203: 9
A204: Bac. Hum. | C204: 6 | E204: 11 | G204: 17
A205: Bac. Nat. | C205: 29 | E205: 7 | G205: 36
A206: Andre | C206: 101 | E206: 86 | G206: 187
A208: Total | C208: 1766 | E208: 1536 | G208: 3302
A210: Ingeniører i alt | C210: 783 | E210: 260 | G210: 1043
A211: Magistre i alt | C211: 187 | E211: 283 | G211: 470
A212: DJØF'ere i alt | C212: 320 | E212: 378 | G212: 698
A219: Brøndby
C221: Mænd | E221: Kvinder | G221: I alt
A223: Civ. ing. | C223: 90 | E223: 33 | G223: 123
A224: Diplom ing. | C224: 136 | E224: 26 | G224: 162
A225: Cand. Scient. Tek. | C225: 43 | E225: 29 | G225: 72
A226: MA. Hum. | C226: 23 | E226: 63 | G226: 86
A227: MA. Nat. | C227: 30 | E227: 28 | G227: 58
A228: MA. Ph.d. | C228: 4 | E228: 2 | G228: 6
A229: MA. Samf. | C229: 10 | E229: 10 | G229: 20
A230: Øvrige Mag. | C230: 7 | E230: 5 | G230: 12
A231: Agronom | C231: 2 | E231: 4 | G231: 6
A232: Landsk. Arkt. | C232: 0 | E232: 6 | G232: 6
A233: Hortonom | C233: 0 | E233: 2 | G233: 2
A234: Forstkand. | C234: 0 | E234: 1 | G234: 1
A235: Jordbrugsakad. | C235: 2 | E235: 13 | G235: 15
A236: Mejeriing. | C236: 0 | E236: 0 | G236: 0
A237: Levn.m.kand. | C237: 0 | E237: 1 | G237: 1
A238: Dyrlæge | C238: 2 | E238: 4 | G238: 6
A239: Farmaceut | C239: 12 | E239: 27 | G239: 39
A240: Læge | C240: 12 | E240: 28 | G240: 40
A241: Tandlæge | C241: 1 | E241: 10 | G241: 11
A242: Arkitekt | C242: 1 | E242: 3 | G242: 4
A243: Landinspek. | C243: 0 | E243: 0 | G243: 0
... 1077 more rows

Sheet Tabel 2 H
A1: Tabel 2. Antal bruttoledighedsberørte og gennemsnitlig antal ledige brutto
A3: Hovedstaden
C5: Mænd | F5: Kvinder | I5: I alt
C6: Ledigheds- berørte | D6: Gns. brutto- ledighed | F6: Ledigheds- berørte | G6: Gns. brutto- ledighed | I6: Ledigheds- berørte | J6: Gns. brutto- ledighed
A9: Civ. ing. | C9: 411 | D9: 358.2423751 | F9: 202 | G9: 172.295266 | I9: 613 | J9: 530.5376411
A10: Diplom ing. | C10: 328 | D10: 292.4125242 | F10: 82 | G10: 67.35420695 | I10: 410 | J10: 359.7667311
A11: Cand. Scient. Tek. | C11: 407 | D11: 363.1740785 | F11: 389 | G11: 335.0364872 | I11: 796 | J11: 698.2105657
A12: MA. Hum. | C12: 623 | D12: 535.8834903 | F12: 1373 | G12: 1175.285349 | I12: 1996 | J12: 1711.168839
A13: MA. Nat. | C13: 119 | D13: 108.8299133 | F13: 154 | G13: 132.4474521 | I13: 273 | J13: 241.2773654
A14: MA. Ph.d. | C14: 25 | D14: 21.69213497 | F14: 32 | G14: 25.82797979 | I14: 57 | J14: 47.52011476
A15: MA. Samf. | C15: 133 | D15: 119.0363625 | F15: 280 | G15: 242.1511882 | I15: 413 | J15: 361.1875507
A16: Øvrige Mag. | C16: 54 | D16: 49.55217364 | F16: 120 | G16: 100.7453377 | I16: 174 | J16: 150.2975114
A17: Agronom | C17: 25 | D17: 23.48156926 | F17: 20 | G17: 17.0810204 | I17: 45 | J17: 40.56258966
A18: Landsk. Arkt. | C18: 9 | D18: 8.998315973 | F18: 20 | G18: 16.56770411 | I18: 29 | J18: 25.56602008
A19: Hortonom | C19: 0 | D19: 0 | F19: 5 | G19: 4.35289715 | I19: 5 | J19: 4.35289715
A20: Forstkand. | C20: 7 | D20: 6.871452629 | F20: 6 | G20: 5.058940934 | I20: 13 | J20: 11.93039356
A21: Jordbrugsakad. | C21: 41 | D21: 39.35133787 | F21: 51 | G21: 43.06056259 | I21: 92 | J21: 82.41190046
A22: Mejeriing. | C22: 7 | D22: 6.952535396 | F22: 6 | G22: 5.164972245 | I22: 13 | J22: 12.11750764
A23: Levn.m.kand. | C23: 12 | D23: 10.77589971 | F23: 14 | G23: 12.83540198 | I23: 26 | J23: 23.61130169
A24: Dyrlæge | C24: 2 | D24: 1.999625772 | F24: 26 | G24: 20.5919042 | I24: 28 | J24: 22.59152997
A25: Farmaceut | C25: 34 | D25: 30.61123932 | F25: 71 | G25: 62.98446953 | I25: 105 | J25: 93.59570885
A26: Læge | C26: 27 | D26: 22.72438096 | F26: 48 | G26: 37.17395372 | I26: 75 | J26: 59.89833468
A27: Tandlæge | C27: 1 | D27: 0.7690388574 | F27: 16 | G27: 11.90419759 | I27: 17 | J27: 12.67323645
A28: Arkitekt | C28: 104 | D28: 93.91816878 | F28: 119 | G28: 105.6015718 | I28: 223 | J28: 199.5197405
A29: Landinspek. | C29: 5 | D29: 4.814445207 | F29: 0 | G29: 0 | I29: 5 | J29: 4.814445207
A30: Bibliotekar | C30: 29 | D30: 24.40154681 | F30: 74 | G30: 64.63606312 | I30: 103 | J30: 89.03760993
A31: Musikudd. | C31: 12 | D31: 9.191043473 | F31: 14 | G31: 11.89047589 | I31: 26 | J31: 21.08151937
A32: Teolog | C32: 11 | D32: 10.16091811 | F32: 18 | G32: 15.44501965 | I32: 29 | J32: 25.60593775
A33: Psykolog | C33: 37 | D33: 33.45225472 | F33: 113 | G33: 94.93731678 | I33: 150 | J33: 128.3895715
A34: Jurist | C34: 66 | D34: 59.0132851 | F34: 105 | G34: 89.2197343 | I34: 171 | J34: 148.2330194
A35: Økonom | C35: 115 | D35: 100.1029127 | F35: 44 | G35: 37.26439219 | I35: 159 | J35: 137.3673049
A36: Samf. Adm. | C36: 370 | D36: 338.227406 | F36: 571 | G36: 502.7954843 | I36: 941 | J36: 841.0228903
A37: Cand. Merc. | C37: 439 | D37: 386.689952 | F37: 495 | G37: 426.7055448 | I37: 934 | J37: 813.3954968
A38: HA | C38: 89 | D38: 78.9078775 | F38: 87 | G38: 70.16840267 | I38: 176 | J38: 149.0762802
A39: HD | C39: 103 | D39: 93.4878064 | F39: 88 | G39: 80.00873199 | I39: 191 | J39: 173.4965384
A40: Komm. og Sprog | C40: 66 | D40: 56.10740348 | F40: 249 | G40: 225.4394062 | I40: 315 | J40: 281.5468097
A41: Bygningskonst. | C41: 87 | D41: 75.70741595 | F41: 45 | G41: 40.99937629 | I41: 132 | J41: 116.7067922
A42: Cand. IT. | C42: 65 | D42: 55.73816503 | F42: 86 | G42: 76.60263207 | I42: 151 | J42: 132.3407971
A43: Bac. Samf. | C43: 24 | D43: 19.61516871 | F43: 47 | G43: 38.80184619 | I43: 71 | J43: 58.41701491
A44: Bac. Hum. | C44: 118 | D44: 95.62589659 | F44: 218 | G44: 175.8360881 | I44: 336 | J44: 271.4619847
A45: Bac. Nat. | C45: 88 | D45: 75.82610865 | F45: 103 | G45: 90.38296014 | I45: 191 | J45: 166.2090688
A46: Andre | C46: 433 | D46: 383.1784445 | F46: 717 | G46: 623.1734547 | I46: 1150 | J46: 1006.351899
A48: Total | C48: 4485 | D48: 3956.17333 | F48: 6057 | G48: 5214.76723 | I48: 10542 | J48: 9170.94056
A50: Ingeniører i alt | C50: 739 | D50: 650.6548993 | F50: 284 | G50: 239.649473 | I50: 1023 | J50: 890.3043722
A51: Magistre i alt | C51: 954 | D51: 834.9940747 | F51: 1959 | G51: 1676.457307 | I51: 2913 | J51: 2511.451382
A52: DJØF'ere i alt | C52: 1079 | D52: 962.9414333 | F52: 1302 | G52: 1126.153558 | I52: 2381 | J52: 2089.094992
A57: København
C59: Mænd | F59: Kvinder | I59: I alt
C60: Ledigheds- berørte | D60: Gns. brutto- ledighed | F60: Ledigheds- berørte | G60: Gns. brutto- ledighed | I60: Ledigheds- berørte | J60: Gns. brutto- ledighed
A63: Civ. ing. | C63: 192 | D63: 167.5768727 | F63: 94 | G63: 81.74764548 | I63: 286 | J63: 249.3245182
A64: Diplom ing. | C64: 126 | D64: 111.422067 | F64: 37 | G64: 30.9592715 | I64: 163 | J64: 142.3813385
A65: Cand. Scient. Tek. | C65: 273 | D65: 246.239007 | F65: 259 | G65: 217.9330132 | I65: 532 | J65: 464.1720202
A66: MA. Hum. | C66: 475 | D66: 411.0384831 | F66: 923 | G66: 787.2506705 | I66: 1398 | J66: 1198.289154
A67: MA. Nat. | C67: 71 | D67: 64.11339113 | F67: 95 | G67: 83.73167841 | I67: 166 | J67: 147.8450695
A68: MA. Ph.d. | C68: 12 | D68: 10.63431672 | F68: 23 | G68: 17.33736668 | I68: 35 | J68: 27.9716834
A69: MA. Samf. | C69: 103 | D69: 90.88941558 | F69: 212 | G69: 181.5337117 | I69: 315 | J69: 272.4231273
A70: Øvrige Mag. | C70: 38 | D70: 35.17370424 | F70: 77 | G70: 63.4235639 | I70: 115 | J70: 98.59726813
A71: Agronom | C71: 13 | D71: 12.71752011 | F71: 8 | G71: 6.721137654 | I71: 21 | J71: 19.43865777
A72: Landsk. Arkt. | C72: 7 | D72: 6.998690201 | F72: 13 | G72: 11.67841327 | I72: 20 | J72: 18.67710347
A73: Hortonom | C73: 0 | D73: 0 | F73: 1 | G73: 0.3536456059 | I73: 1 | J73: 0.3536456059
A74: Forstkand. | C74: 3 | D74: 2.999438658 | F74: 5 | G74: 4.059128048 | I74: 8 | J74: 7.058566706
A75: Jordbrugsakad. | C75: 23 | D75: 22.71564897 | F75: 27 | G75: 22.81232458 | I75: 50 | J75: 45.52797355
A76: Mejeriing. | C76: 6 | D76: 5.95272251 | F76: 4 | G76: 3.165346473 | I76: 10 | J76: 9.118068983
A77: Levn.m.kand. | C77: 8 | D77: 6.795359571 | F77: 10 | G77: 9.353209006 | I77: 18 | J77: 16.14856858
A78: Dyrlæge | C78: 1 | D78: 0.9998128859 | F78: 17 | G78: 13.52522921 | I78: 18 | J78: 14.5250421
A79: Farmaceut | C79: 20 | D79: 18.17688517 | F79: 38 | G79: 34.93232708 | I79: 58 | J79: 53.10921225
A80: Læge | C80: 18 | D80: 14.50321212 | F80: 32 | G80: 24.34915487 | I80: 50 | J80: 38.85236699
A81: Tandlæge | C81: 0 | D81: 0 | F81: 7 | G81: 4.799476081 | I81: 7 | J81: 4.799476081
A82: Arkitekt | C82: 76 | D82: 69.81101478 | F82: 91 | G82: 79.75176199 | I82: 167 | J82: 149.5627768
A83: Landinspek. | C83: 3 | D83: 2.999438658 | F83: 0 | G83: 0 | I83: 3 | J83: 2.999438658
A84: Bibliotekar | C84: 17 | D84: 13.99239069 | F84: 39 | G84: 34.50695441 | I84: 56 | J84: 48.4993451
A85: Musikudd. | C85: 7 | D85: 5.232333313 | F85: 8 | G85: 6.698060251 | I85: 15 | J85: 11.93039356
A86: Teolog | C86: 9 | D86: 8.161292335 | F86: 9 | G86: 8.485623402 | I86: 18 | J86: 16.64691574
A87: Psykolog | C87: 26 | D87: 23.48905383 | F87: 62 | G87: 51.75388262 | I87: 88 | J87: 75.24293644
A88: Jurist | C88: 40 | D88: 36.32757438 | F88: 46 | G88: 39.21786316 | I88: 86 | J88: 75.54543754
A89: Økonom | C89: 66 | D89: 56.65939001 | F89: 31 | G89: 26.84650409 | I89: 97 | J89: 83.50589409
A90: Samf. Adm. | C90: 251 | D90: 224.0061124 | F90: 373 | G90: 327.3111707 | I90: 624 | J90: 551.3172831
A91: Cand. Merc. | C91: 253 | D91: 222.3395497 | F91: 260 | G91: 220.0230774 | I91: 513 | J91: 442.3626271
A92: HA | C92: 45 | D92: 37.83259527 | F92: 54 | G92: 40.42350153 | I92: 99 | J92: 78.2560968
A93: HD | C93: 51 | D93: 46.49597705 | F93: 61 | G93: 55.20738477 | I93: 112 | J93: 101.7033618
A94: Komm. og Sprog | C94: 46 | D94: 39.84531903 | F94: 128 | G94: 114.08969 | I94: 174 | J94: 153.935009
A95: Bygningskonst. | C95: 49 | D95: 42.63724818 | F95: 31 | G95: 28.74714651 | I95: 80 | J95: 71.38439469
A96: Cand. IT. | C96: 42 | D96: 36.33256409 | F96: 61 | G96: 53.15973305 | I96: 103 | J96: 89.49229714
A97: Bac. Samf. | C97: 16 | D97: 12.37135907 | F97: 33 | G97: 25.86103661 | I97: 49 | J97: 38.23239568
A98: Bac. Hum. | C98: 91 | D98: 73.16160419 | F98: 159 | G98: 130.1921038 | I98: 250 | J98: 203.353708
A99: Bac. Nat. | C99: 54 | D99: 46.1448263 | F99: 75 | G99: 65.40510198 | I99: 129 | J99: 111.5499283
A100: Andre | C100: 270 | D100: 237.3074284 | F100: 424 | G100: 363.7160856 | I100: 694 | J100: 601.023514
A102: Total | C102: 2778 | D102: 2441.37797 | F102: 3800 | G102: 3248.25067 | I102: 6578 | J102: 5689.628641
A104: Ingeniører i alt | C104: 318 | D104: 278.9989397 | F104: 131 | G104: 112.706917 | I104: 449 | J104: 391.7058567
A105: Magistre i alt | C105: 699 | D105: 611.8493108 | F105: 1330 | G105: 1133.276991 | I105: 2029 | J105: 1745.126302
A106: DJØF'ere i alt | C106: 655 | D106: 577.1652217 | F106: 764 | G106: 653.8221169 | I106: 1419 | J106: 1230.987339
A111: Frederiksberg
C113: Mænd | F113: Kvinder | I113: I alt
C114: Ledigheds- berørte | D114: Gns. brutto- ledighed | F114: Ledigheds- berørte | G114: Gns. brutto- ledighed | I114: Ledigheds- berørte | J114: Gns. brutto- ledighed
A117: Civ. ing. | C117: 19 | D117: 17.67167717 | F117: 11 | G117: 10.4864966 | I117: 30 | J117: 28.15817377
A118: Diplom ing. | C118: 18 | D118: 16.67934884 | F118: 2 | G118: 1.999625772 | I118: 20 | J118: 18.67897461
A119: Cand. Scient. Tek. | C119: 28 | D119: 24.91611052 | F119: 21 | G119: 19.03511508 | I119: 49 | J119: 43.9512256
A120: MA. Hum. | C120: 52 | D120: 44.04415892 | F120: 142 | G120: 125.5504272 | I120: 194 | J120: 169.5945862
A121: MA. Nat. | C121: 11 | D121: 9.988773155 | F121: 9 | G121: 8.664629202 | I121: 20 | J121: 18.65340236
A122: MA. Ph.d. | C122: 8 | D122: 6.909499158 | F122: 2 | G122: 1.999625772 | I122: 10 | J122: 8.90912493
A123: MA. Samf. | C123: 10 | D123: 8.833031872 | F123: 21 | G123: 18.52928335 | I123: 31 | J123: 27.36231522
A124: Øvrige Mag. | C124: 4 | D124: 3.796544627 | F124: 12 | G124: 10.69855922 | I124: 16 | J124: 14.49510385
A125: Agronom | C125: 3 | D125: 2.513565771 | F125: 5 | G125: 4.247489553 | I125: 8 | J125: 6.761055323
A126: Landsk. Arkt. | C126: 1 | D126: 0.9998128859 | F126: 0 | G126: 0 | I126: 1 | J126: 0.9998128859
A127: Hortonom | C127: 0 | D127: 0 | F127: 0 | G127: 0 | I127: 0 | J127: 0
A128: Forstkand. | C128: 1 | D128: 0.8725753134 | F128: 0 | G128: 0 | I128: 1 | J128: 0.8725753134
A129: Jordbrugsakad. | C129: 5 | D129: 4.38595397 | F129: 5 | G129: 4.247489553 | I129: 10 | J129: 8.633443523
A130: Mejeriing. | C130: 0 | D130: 0 | F130: 0 | G130: 0 | I130: 0 | J130: 0
A131: Levn.m.kand. | C131: 3 | D131: 2.999438658 | F131: 0 | G131: 0 | I131: 3 | J131: 2.999438658
A132: Dyrlæge | C132: 0 | D132: 0 | F132: 0 | G132: 0 | I132: 0 | J132: 0
A133: Farmaceut | C133: 0 | D133: 0 | F133: 3 | G133: 2.473648101 | I133: 3 | J133: 2.473648101
A134: Læge | C134: 4 | D134: 3.814632321 | F134: 4 | G134: 3.353084264 | I134: 8 | J134: 7.167716585
A135: Tandlæge | C135: 0 | D135: 0 | F135: 2 | G135: 1.627892472 | I135: 2 | J135: 1.627892472
A136: Arkitekt | C136: 15 | D136: 12.59215368 | F136: 9 | G136: 8.465040853 | I136: 24 | J136: 21.05719454
A137: Landinspek. | C137: 2 | D137: 1.815006549 | F137: 0 | G137: 0 | I137: 2 | J137: 1.815006549
A138: Bibliotekar | C138: 2 | D138: 1.999625772 | F138: 10 | G138: 7.863157238 | I138: 12 | J138: 9.86278301
A139: Musikudd. | C139: 1 | D139: 0.7079149255 | F139: 0 | G139: 0 | I139: 1 | J139: 0.7079149255
A140: Teolog | C140: 0 | D140: 0 | F140: 3 | G140: 2.40753446 | I140: 3 | J140: 2.40753446
A141: Psykolog | C141: 3 | D141: 2.289028878 | F141: 18 | G141: 16.1448263 | I141: 21 | J141: 18.43385517
A142: Jurist | C142: 6 | D142: 5.280359259 | F142: 13 | G142: 11.45574752 | I142: 19 | J142: 16.73610678
A143: Økonom | C143: 8 | D143: 5.953346223 | F143: 3 | G143: 1.799413709 | I143: 11 | J143: 7.752759933
A144: Samf. Adm. | C144: 29 | D144: 28.04341047 | F144: 52 | G144: 45.2778644 | I144: 81 | J144: 73.32127487
A145: Cand. Merc. | C145: 41 | D145: 36.16416142 | F145: 52 | G145: 45.15624025 | I145: 93 | J145: 81.32040167
A146: HA | C146: 9 | D146: 8.919104347 | F146: 7 | G146: 5.298446953 | I146: 16 | J146: 14.2175513
A147: HD | C147: 10 | D147: 8.367741533 | F147: 6 | G147: 5.721948481 | I147: 16 | J147: 14.08969001
A148: Komm. og Sprog | C148: 5 | D148: 3.015655211 | F148: 37 | G148: 33.76161667 | I148: 42 | J148: 36.77727188
A149: Bygningskonst. | C149: 2 | D149: 1.723071166 | F149: 1 | G149: 1 | I149: 3 | J149: 2.723071166
A150: Cand. IT. | C150: 6 | D150: 5.69575251 | F150: 6 | G150: 5.860412898 | I150: 12 | J150: 11.55616541
A151: Bac. Samf. | C151: 1 | D151: 0.9998128859 | F151: 9 | G151: 8.899769226 | I151: 10 | J151: 9.899582112
A152: Bac. Hum. | C152: 8 | D152: 6.775400736 | F152: 19 | G152: 14.04104035 | I152: 27 | J152: 20.81644109
A153: Bac. Nat. | C153: 5 | D153: 4.99906443 | F153: 9 | G153: 8.914114639 | I153: 14 | J153: 13.91317907
A154: Andre | C154: 41 | D154: 36.67997256 | F154: 56 | G154: 48.50433481 | I154: 97 | J154: 85.18430737
A156: Total | C156: 356 | D156: 316.0597518 | F156: 544 | G156: 479.2373854 | I156: 900 | J156: 795.2971372
A158: Ingeniører i alt | C158: 37 | D158: 34.35102601 | F158: 13 | G158: 12.48612237 | I158: 50 | J158: 46.83714838
A159: Magistre i alt | C159: 85 | D159: 73.57200773 | F159: 186 | G159: 165.4425248 | I159: 271 | J159: 239.0145325
A160: DJØF'ere i alt | C160: 93 | D160: 84.36038171 | F160: 127 | G160: 108.9877128 | I160: 220 | J160: 193.3480946
A165: Ballerup
C167: Mænd | F167: Kvinder | I167: I alt
C168: Ledigheds- berørte | D168: Gns. brutto- ledighed | F168: Ledigheds- berørte | G168: Gns. brutto- ledighed | I168: Ledigheds- berørte | J168: Gns. brutto- ledighed
A171: Civ. ing. | C171: 4 | D171: 3.306929458 | F171: 4 | G171: 2.792365746 | I171: 8 | J171: 6.099295204
A172: Diplom ing. | C172: 11 | D172: 9.753009418 | F172: 4 | G172: 2.783010042 | I172: 15 | J172: 12.53601946
A173: Cand. Scient. Tek. | C173: 4 | D173: 3.165970186 | F173: 6 | G173: 5.842948918 | I173: 10 | J173: 9.008919104
A174: MA. Hum. | C174: 1 | D174: 0.9998128859 | F174: 12 | G174: 9.449260899 | I174: 13 | J174: 10.44907379
A175: MA. Nat. | C175: 0 | D175: 0 | F175: 3 | G175: 2.437472713 | I175: 3 | J175: 2.437472713
A176: MA. Ph.d. | C176: 0 | D176: 0 | F176: 0 | G176: 0 | I176: 0 | J176: 0
A177: MA. Samf. | C177: 3 | D177: 2.999438658 | F177: 1 | G177: 0.9998128859 | I177: 4 | J177: 3.999251544
A178: Øvrige Mag. | C178: 0 | D178: 0 | F178: 0 | G178: 0 | I178: 0 | J178: 0
A179: Agronom | C179: 0 | D179: 0 | F179: 0 | G179: 0 | I179: 0 | J179: 0
A180: Landsk. Arkt. | C180: 0 | D180: 0 | F180: 2 | G180: 1.999625772 | I180: 2 | J180: 1.999625772
A181: Hortonom | C181: 0 | D181: 0 | F181: 0 | G181: 0 | I181: 0 | J181: 0
A182: Forstkand. | C182: 0 | D182: 0 | F182: 0 | G182: 0 | I182: 0 | J182: 0
A183: Jordbrugsakad. | C183: 0 | D183: 0 | F183: 2 | G183: 1.999625772 | I183: 2 | J183: 1.999625772
A184: Mejeriing. | C184: 0 | D184: 0 | F184: 1 | G184: 0.9998128859 | I184: 1 | J184: 0.9998128859
A185: Levn.m.kand. | C185: 0 | D185: 0 | F185: 0 | G185: 0 | I185: 0 | J185: 0
A186: Dyrlæge | C186: 0 | D186: 0 | F186: 0 | G186: 0 | I186: 0 | J186: 0
A187: Farmaceut | C187: 1 | D187: 0.9998128859 | F187: 2 | G187: 1.999625772 | I187: 3 | J187: 2.999438658
A188: Læge | C188: 1 | D188: 0.793987401 | F188: 0 | G188: 0 | I188: 1 | J188: 0.793987401
A189: Tandlæge | C189: 0 | D189: 0 | F189: 0 | G189: 0 | I189: 0 | J189: 0
A190: Arkitekt | C190: 1 | D190: 0.9998128859 | F190: 1 | G190: 0.9717457743 | I190: 2 | J190: 1.97155866
A191: Landinspek. | C191: 0 | D191: 0 | F191: 0 | G191: 0 | I191: 0 | J191: 0
A192: Bibliotekar | C192: 0 | D192: 0 | F192: 2 | G192: 1.81001684 | I192: 2 | J192: 1.81001684
A193: Musikudd. | C193: 1 | D193: 0.8445082018 | F193: 0 | G193: 0 | I193: 1 | J193: 0.8445082018
A194: Teolog | C194: 0 | D194: 0 | F194: 0 | G194: 0 | I194: 0 | J194: 0
A195: Psykolog | C195: 0 | D195: 0 | F195: 1 | G195: 0.7690388574 | I195: 1 | J195: 0.7690388574
A196: Jurist | C196: 1 | D196: 0.7690388574 | F196: 1 | G196: 0.9998128859 | I196: 2 | J196: 1.768851743
A197: Økonom | C197: 0 | D197: 0 | F197: 1 | G197: 0.4509449261 | I197: 1 | J197: 0.4509449261
A198: Samf. Adm. | C198: 2 | D198: 1.922909 | F198: 5 | G198: 4.394062247 | I198: 7 | J198: 6.316971247
A199: Cand. Merc. | C199: 4 | D199: 3.768477515 | F199: 7 | G199: 6.126738602 | I199: 11 | J199: 9.895216117
A200: HA | C200: 2 | D200: 1.296700555 | F200: 0 | G200: 0 | I200: 2 | J200: 1.296700555
A201: HD | C201: 4 | D201: 3.525229215 | F201: 1 | G201: 0.6767292459 | I201: 5 | J201: 4.201958461
A202: Komm. og Sprog | C202: 0 | D202: 0 | F202: 4 | G202: 3.679286472 | I202: 4 | J202: 3.679286472
A203: Bygningskonst. | C203: 1 | D203: 1 | F203: 0 | G203: 0 | I203: 1 | J203: 1
A204: Cand. IT. | C204: 2 | D204: 1.949728685 | F204: 0 | G204: 0 | I204: 2 | J204: 1.949728685
A205: Bac. Samf. | C205: 0 | D205: 0 | F205: 0 | G205: 0 | I205: 0 | J205: 0
A206: Bac. Hum. | C206: 0 | D206: 0 | F206: 0 | G206: 0 | I206: 0 | J206: 0
A207: Bac. Nat. | C207: 2 | D207: 1.999625772 | F207: 1 | G207: 0.9998128859 | I207: 3 | J207: 2.999438658
A208: Andre | C208: 5 | D208: 3.562028317 | F208: 5 | G208: 4.911744527 | I208: 10 | J208: 8.473772844
A210: Total | C210: 50 | D210: 43.6570199 | F210: 64 | G210: 55.0938689 | I210: 114 | J210: 98.75088879
A212: Ingeniører i alt | C212: 15 | D212: 13.05993888 | F212: 8 | G212: 5.575375787 | I212: 23 | J212: 18.63531466
A213: Magistre i alt | C213: 4 | D213: 3.999251544 | F213: 16 | G213: 12.8865465 | I213: 20 | J213: 16.88579804
A214: DJØF'ere i alt | C214: 9 | D214: 7.757125928 | F214: 14 | G214: 11.97155866 | I214: 23 | J214: 19.72868459
A219: Brøndby
C221: Mænd | F221: Kvinder | I221: I alt
C222: Ledigheds- berørte | D222: Gns. brutto- ledighed | F222: Ledigheds- berørte | G222: Gns. brutto- ledighed | I222: Ledigheds- berørte | J222: Gns. brutto- ledighed
A225: Civ. ing. | C225: 6 | D225: 4.778893532 | F225: 1 | G225: 0.9998128859 | I225: 7 | J225: 5.778706418
A226: Diplom ing. | C226: 6 | D226: 5.814258093 | F226: 2 | G226: 1.214994075 | I226: 8 | J226: 7.029252167
A227: Cand. Scient. Tek. | C227: 4 | D227: 3.028129483 | F227: 2 | G227: 1.676542132 | I227: 6 | J227: 4.704671615
A228: MA. Hum. | C228: 3 | D228: 2.860974241 | F228: 14 | G228: 12.27967317 | I228: 17 | J228: 15.14064741
A229: MA. Nat. | C229: 1 | D229: 0.9187301191 | F229: 1 | G229: 0.4041664068 | I229: 2 | J229: 1.322896526
A230: MA. Ph.d. | C230: 0 | D230: 0 | F230: 0 | G230: 0 | I230: 0 | J230: 0
A231: MA. Samf. | C231: 1 | D231: 0.9998128859 | F231: 2 | G231: 1.672176137 | I231: 3 | J231: 2.671989023
A232: Øvrige Mag. | C232: 1 | D232: 0.9998128859 | F232: 1 | G232: 0.4921100231 | I232: 2 | J232: 1.491922909
A233: Agronom | C233: 0 | D233: 0 | F233: 1 | G233: 0.862595896 | I233: 1 | J233: 0.862595896
A234: Landsk. Arkt. | C234: 0 | D234: 0 | F234: 1 | G234: 0.6767292459 | I234: 1 | J234: 0.6767292459
A235: Hortonom | C235: 0 | D235: 0 | F235: 0 | G235: 0 | I235: 0 | J235: 0
A236: Forstkand. | C236: 0 | D236: 0 | F236: 0 | G236: 0 | I236: 0 | J236: 0
A237: Jordbrugsakad. | C237: 0 | D237: 0 | F237: 2 | G237: 1.539325142 | I237: 2 | J237: 1.539325142
A238: Mejeriing. | C238: 0 | D238: 0 | F238: 0 | G238: 0 | I238: 0 | J238: 0
A239: Levn.m.kand. | C239: 0 | D239: 0 | F239: 0 | G239: 0 | I239: 0 | J239: 0
A240: Dyrlæge | C240: 0 | D240: 0 | F240: 0 | G240: 0 | I240: 0 | J240: 0
... 1108 more rows

Sheet Tabel 3 H
A1: Tabel 3. Ledige i procent af forsikrede
A3: Hovedstaden
C5: Mænd | F5: Kvinder | I5: I alt
C6: Ledigheds- berørte | D6: Gns. brutto- ledighed | F6: Ledigheds- berørte | G6: Gns. brutto- ledighed | I6: Ledigheds- berørte | J6: Gns. brutto- ledighed
A9: Civ. ing. | C9: =IF(OR('Tabel 1 H'!C7<5,'Tabel 2 H'!C9<0.5),"-",IFERROR('Tabel 2 H'!C9/'Tabel 1 H'!C7*100,"-")) -> 3.211439287 | D9: =IF(OR('Tabel 1 H'!C7<5,'Tabel 2 H'!D9<0.5),"-",IFERROR('Tabel 2 H'!D9/'Tabel 1 H'!C7*100,"-")) -> 2.799205931 | F9: =IF(OR('Tabel 1 H'!E7<5,'Tabel 2 H'!F9<0.5),"-",IFERROR('Tabel 2 H'!F9/'Tabel 1 H'!E7*100,"-")) -> 3.936087295 | G9: =IF(OR('Tabel 1 H'!E7<5,'Tabel 2 H'!G9<0.5),"-",IFERROR('Tabel 2 H'!G9/'Tabel 1 H'!E7*100,"-")) -> 3.357273305 | I9: =IF(OR('Tabel 1 H'!G7<5,'Tabel 2 H'!I9<0.5),"-",IFERROR('Tabel 2 H'!I9/'Tabel 1 H'!G7*100,"-")) -> 3.418851088 | J9: =IF(OR('Tabel 1 H'!G7<5,'Tabel 2 H'!J9<0.5),"-",IFERROR('Tabel 2 H'!J9/'Tabel 1 H'!G7*100,"-")) -> 2.958938322
A10: Diplom ing. | C10: =IF(OR('Tabel 1 H'!C8<5,'Tabel 2 H'!C10<0.5),"-",IFERROR('Tabel 2 H'!C10/'Tabel 1 H'!C8*100,"-")) -> 3.291850662 | D10: =IF(OR('Tabel 1 H'!C8<5,'Tabel 2 H'!D10<0.5),"-",IFERROR('Tabel 2 H'!D10/'Tabel 1 H'!C8*100,"-")) -> 2.934690126 | F10: =IF(OR('Tabel 1 H'!E8<5,'Tabel 2 H'!F10<0.5),"-",IFERROR('Tabel 2 H'!F10/'Tabel 1 H'!E8*100,"-")) -> 3.243670886 | G10: =IF(OR('Tabel 1 H'!E8<5,'Tabel 2 H'!G10<0.5),"-",IFERROR('Tabel 2 H'!G10/'Tabel 1 H'!E8*100,"-")) -> 2.664327806 | I10: =IF(OR('Tabel 1 H'!G8<5,'Tabel 2 H'!I10<0.5),"-",IFERROR('Tabel 2 H'!I10/'Tabel 1 H'!G8*100,"-")) -> 3.282100544 | J10: =IF(OR('Tabel 1 H'!G8<5,'Tabel 2 H'!J10<0.5),"-",IFERROR('Tabel 2 H'!J10/'Tabel 1 H'!G8*100,"-")) -> 2.879977034
A11: Cand. Scient. Tek. | C11: =IF(OR('Tabel 1 H'!C9<5,'Tabel 2 H'!C11<0.5),"-",IFERROR('Tabel 2 H'!C11/'Tabel 1 H'!C9*100,"-")) -> 7.168016907 | D11: =IF(OR('Tabel 1 H'!C9<5,'Tabel 2 H'!D11<0.5),"-",IFERROR('Tabel 2 H'!D11/'Tabel 1 H'!C9*100,"-")) -> 6.396162002 | F11: =IF(OR('Tabel 1 H'!E9<5,'Tabel 2 H'!F11<0.5),"-",IFERROR('Tabel 2 H'!F11/'Tabel 1 H'!E9*100,"-")) -> 7.432174245 | G11: =IF(OR('Tabel 1 H'!E9<5,'Tabel 2 H'!G11<0.5),"-",IFERROR('Tabel 2 H'!G11/'Tabel 1 H'!E9*100,"-")) -> 6.40115566 | I11: =IF(OR('Tabel 1 H'!G9<5,'Tabel 2 H'!I11<0.5),"-",IFERROR('Tabel 2 H'!I11/'Tabel 1 H'!G9*100,"-")) -> 7.294721408 | J11: =IF(OR('Tabel 1 H'!G9<5,'Tabel 2 H'!J11<0.5),"-",IFERROR('Tabel 2 H'!J11/'Tabel 1 H'!G9*100,"-")) -> 6.398557237
A12: MA. Hum. | C12: =IF(OR('Tabel 1 H'!C10<5,'Tabel 2 H'!C12<0.5),"-",IFERROR('Tabel 2 H'!C12/'Tabel 1 H'!C10*100,"-")) -> 10.02091041 | D12: =IF(OR('Tabel 1 H'!C10<5,'Tabel 2 H'!D12<0.5),"-",IFERROR('Tabel 2 H'!D12/'Tabel 1 H'!C10*100,"-")) -> 8.619647584 | F12: =IF(OR('Tabel 1 H'!E10<5,'Tabel 2 H'!F12<0.5),"-",IFERROR('Tabel 2 H'!F12/'Tabel 1 H'!E10*100,"-")) -> 9.781989171 | G12: =IF(OR('Tabel 1 H'!E10<5,'Tabel 2 H'!G12<0.5),"-",IFERROR('Tabel 2 H'!G12/'Tabel 1 H'!E10*100,"-")) -> 8.373363843 | I12: =IF(OR('Tabel 1 H'!G10<5,'Tabel 2 H'!I12<0.5),"-",IFERROR('Tabel 2 H'!I12/'Tabel 1 H'!G10*100,"-")) -> 9.855330075 | J12: =IF(OR('Tabel 1 H'!G10<5,'Tabel 2 H'!J12<0.5),"-",IFERROR('Tabel 2 H'!J12/'Tabel 1 H'!G10*100,"-")) -> 8.448964792
A13: MA. Nat. | C13: =IF(OR('Tabel 1 H'!C11<5,'Tabel 2 H'!C13<0.5),"-",IFERROR('Tabel 2 H'!C13/'Tabel 1 H'!C11*100,"-")) -> 3.364433135 | D13: =IF(OR('Tabel 1 H'!C11<5,'Tabel 2 H'!D13<0.5),"-",IFERROR('Tabel 2 H'!D13/'Tabel 1 H'!C11*100,"-")) -> 3.076898878 | F13: =IF(OR('Tabel 1 H'!E11<5,'Tabel 2 H'!F13<0.5),"-",IFERROR('Tabel 2 H'!F13/'Tabel 1 H'!E11*100,"-")) -> 4.275402554 | G13: =IF(OR('Tabel 1 H'!E11<5,'Tabel 2 H'!G13<0.5),"-",IFERROR('Tabel 2 H'!G13/'Tabel 1 H'!E11*100,"-")) -> 3.677053085 | I13: =IF(OR('Tabel 1 H'!G11<5,'Tabel 2 H'!I13<0.5),"-",IFERROR('Tabel 2 H'!I13/'Tabel 1 H'!G11*100,"-")) -> 3.824064995 | J13: =IF(OR('Tabel 1 H'!G11<5,'Tabel 2 H'!J13<0.5),"-",IFERROR('Tabel 2 H'!J13/'Tabel 1 H'!G11*100,"-")) -> 3.379708158
A14: MA. Ph.d. | C14: =IF(OR('Tabel 1 H'!C12<5,'Tabel 2 H'!C14<0.5),"-",IFERROR('Tabel 2 H'!C14/'Tabel 1 H'!C12*100,"-")) -> 3.472222222 | D14: =IF(OR('Tabel 1 H'!C12<5,'Tabel 2 H'!D14<0.5),"-",IFERROR('Tabel 2 H'!D14/'Tabel 1 H'!C12*100,"-")) -> 3.012796524 | F14: =IF(OR('Tabel 1 H'!E12<5,'Tabel 2 H'!F14<0.5),"-",IFERROR('Tabel 2 H'!F14/'Tabel 1 H'!E12*100,"-")) -> 5.53633218 | G14: =IF(OR('Tabel 1 H'!E12<5,'Tabel 2 H'!G14<0.5),"-",IFERROR('Tabel 2 H'!G14/'Tabel 1 H'!E12*100,"-")) -> 4.468508614 | I14: =IF(OR('Tabel 1 H'!G12<5,'Tabel 2 H'!I14<0.5),"-",IFERROR('Tabel 2 H'!I14/'Tabel 1 H'!G12*100,"-")) -> 4.391371341 | J14: =IF(OR('Tabel 1 H'!G12<5,'Tabel 2 H'!J14<0.5),"-",IFERROR('Tabel 2 H'!J14/'Tabel 1 H'!G12*100,"-")) -> 3.661025791
A15: MA. Samf. | C15: =IF(OR('Tabel 1 H'!C13<5,'Tabel 2 H'!C15<0.5),"-",IFERROR('Tabel 2 H'!C15/'Tabel 1 H'!C13*100,"-")) -> 13.599182 | D15: =IF(OR('Tabel 1 H'!C13<5,'Tabel 2 H'!D15<0.5),"-",IFERROR('Tabel 2 H'!D15/'Tabel 1 H'!C13*100,"-")) -> 12.17140721 | F15: =IF(OR('Tabel 1 H'!E13<5,'Tabel 2 H'!F15<0.5),"-",IFERROR('Tabel 2 H'!F15/'Tabel 1 H'!E13*100,"-")) -> 11.14649682 | G15: =IF(OR('Tabel 1 H'!E13<5,'Tabel 2 H'!G15<0.5),"-",IFERROR('Tabel 2 H'!G15/'Tabel 1 H'!E13*100,"-")) -> 9.639776599 | I15: =IF(OR('Tabel 1 H'!G13<5,'Tabel 2 H'!I15<0.5),"-",IFERROR('Tabel 2 H'!I15/'Tabel 1 H'!G13*100,"-")) -> 11.83381089 | J15: =IF(OR('Tabel 1 H'!G13<5,'Tabel 2 H'!J15<0.5),"-",IFERROR('Tabel 2 H'!J15/'Tabel 1 H'!G13*100,"-")) -> 10.34921349
A16: Øvrige Mag. | C16: =IF(OR('Tabel 1 H'!C14<5,'Tabel 2 H'!C16<0.5),"-",IFERROR('Tabel 2 H'!C16/'Tabel 1 H'!C14*100,"-")) -> 9.278350515 | D16: =IF(OR('Tabel 1 H'!C14<5,'Tabel 2 H'!D16<0.5),"-",IFERROR('Tabel 2 H'!D16/'Tabel 1 H'!C14*100,"-")) -> 8.514119182 | F16: =IF(OR('Tabel 1 H'!E14<5,'Tabel 2 H'!F16<0.5),"-",IFERROR('Tabel 2 H'!F16/'Tabel 1 H'!E14*100,"-")) -> 10.96892139 | G16: =IF(OR('Tabel 1 H'!E14<5,'Tabel 2 H'!G16<0.5),"-",IFERROR('Tabel 2 H'!G16/'Tabel 1 H'!E14*100,"-")) -> 9.208897417 | I16: =IF(OR('Tabel 1 H'!G14<5,'Tabel 2 H'!I16<0.5),"-",IFERROR('Tabel 2 H'!I16/'Tabel 1 H'!G14*100,"-")) -> 10.38186158 | J16: =IF(OR('Tabel 1 H'!G14<5,'Tabel 2 H'!J16<0.5),"-",IFERROR('Tabel 2 H'!J16/'Tabel 1 H'!G14*100,"-")) -> 8.967631944
A17: Agronom | C17: =IF(OR('Tabel 1 H'!C15<5,'Tabel 2 H'!C17<0.5),"-",IFERROR('Tabel 2 H'!C17/'Tabel 1 H'!C15*100,"-")) -> 6.476683938 | D17: =IF(OR('Tabel 1 H'!C15<5,'Tabel 2 H'!D17<0.5),"-",IFERROR('Tabel 2 H'!D17/'Tabel 1 H'!C15*100,"-")) -> 6.083308099 | F17: =IF(OR('Tabel 1 H'!E15<5,'Tabel 2 H'!F17<0.5),"-",IFERROR('Tabel 2 H'!F17/'Tabel 1 H'!E15*100,"-")) -> 4.385964912 | G17: =IF(OR('Tabel 1 H'!E15<5,'Tabel 2 H'!G17<0.5),"-",IFERROR('Tabel 2 H'!G17/'Tabel 1 H'!E15*100,"-")) -> 3.745837806 | I17: =IF(OR('Tabel 1 H'!G15<5,'Tabel 2 H'!I17<0.5),"-",IFERROR('Tabel 2 H'!I17/'Tabel 1 H'!G15*100,"-")) -> 5.344418052 | J17: =IF(OR('Tabel 1 H'!G15<5,'Tabel 2 H'!J17<0.5),"-",IFERROR('Tabel 2 H'!J17/'Tabel 1 H'!G15*100,"-")) -> 4.817409698
A18: Landsk. Arkt. | C18: =IF(OR('Tabel 1 H'!C16<5,'Tabel 2 H'!C18<0.5),"-",IFERROR('Tabel 2 H'!C18/'Tabel 1 H'!C16*100,"-")) -> 6.766917293 | D18: =IF(OR('Tabel 1 H'!C16<5,'Tabel 2 H'!D18<0.5),"-",IFERROR('Tabel 2 H'!D18/'Tabel 1 H'!C16*100,"-")) -> 6.765651108 | F18: =IF(OR('Tabel 1 H'!E16<5,'Tabel 2 H'!F18<0.5),"-",IFERROR('Tabel 2 H'!F18/'Tabel 1 H'!E16*100,"-")) -> 5.698005698 | G18: =IF(OR('Tabel 1 H'!E16<5,'Tabel 2 H'!G18<0.5),"-",IFERROR('Tabel 2 H'!G18/'Tabel 1 H'!E16*100,"-")) -> 4.720143621 | I18: =IF(OR('Tabel 1 H'!G16<5,'Tabel 2 H'!I18<0.5),"-",IFERROR('Tabel 2 H'!I18/'Tabel 1 H'!G16*100,"-")) -> 5.991735537 | J18: =IF(OR('Tabel 1 H'!G16<5,'Tabel 2 H'!J18<0.5),"-",IFERROR('Tabel 2 H'!J18/'Tabel 1 H'!G16*100,"-")) -> 5.282235554
A19: Hortonom | C19: =IF(OR('Tabel 1 H'!C17<5,'Tabel 2 H'!C19<0.5),"-",IFERROR('Tabel 2 H'!C19/'Tabel 1 H'!C17*100,"-")) -> - | D19: =IF(OR('Tabel 1 H'!C17<5,'Tabel 2 H'!D19<0.5),"-",IFERROR('Tabel 2 H'!D19/'Tabel 1 H'!C17*100,"-")) -> - | F19: =IF(OR('Tabel 1 H'!E17<5,'Tabel 2 H'!F19<0.5),"-",IFERROR('Tabel 2 H'!F19/'Tabel 1 H'!E17*100,"-")) -> 5.376344086 | G19: =IF(OR('Tabel 1 H'!E17<5,'Tabel 2 H'!G19<0.5),"-",IFERROR('Tabel 2 H'!G19/'Tabel 1 H'!E17*100,"-")) -> 4.680534569 | I19: =IF(OR('Tabel 1 H'!G17<5,'Tabel 2 H'!I19<0.5),"-",IFERROR('Tabel 2 H'!I19/'Tabel 1 H'!G17*100,"-")) -> 3.378378378 | J19: =IF(OR('Tabel 1 H'!G17<5,'Tabel 2 H'!J19<0.5),"-",IFERROR('Tabel 2 H'!J19/'Tabel 1 H'!G17*100,"-")) -> 2.941146723
A20: Forstkand. | C20: =IF(OR('Tabel 1 H'!C18<5,'Tabel 2 H'!C20<0.5),"-",IFERROR('Tabel 2 H'!C20/'Tabel 1 H'!C18*100,"-")) -> 3.684210526 | D20: =IF(OR('Tabel 1 H'!C18<5,'Tabel 2 H'!D20<0.5),"-",IFERROR('Tabel 2 H'!D20/'Tabel 1 H'!C18*100,"-")) -> 3.616554015 | F20: =IF(OR('Tabel 1 H'!E18<5,'Tabel 2 H'!F20<0.5),"-",IFERROR('Tabel 2 H'!F20/'Tabel 1 H'!E18*100,"-")) -> 8.571428571 | G20: =IF(OR('Tabel 1 H'!E18<5,'Tabel 2 H'!G20<0.5),"-",IFERROR('Tabel 2 H'!G20/'Tabel 1 H'!E18*100,"-")) -> 7.227058478 | I20: =IF(OR('Tabel 1 H'!G18<5,'Tabel 2 H'!I20<0.5),"-",IFERROR('Tabel 2 H'!I20/'Tabel 1 H'!G18*100,"-")) -> 5 | J20: =IF(OR('Tabel 1 H'!G18<5,'Tabel 2 H'!J20<0.5),"-",IFERROR('Tabel 2 H'!J20/'Tabel 1 H'!G18*100,"-")) -> 4.588612909
A21: Jordbrugsakad. | C21: =IF(OR('Tabel 1 H'!C19<5,'Tabel 2 H'!C21<0.5),"-",IFERROR('Tabel 2 H'!C21/'Tabel 1 H'!C19*100,"-")) -> 5.366492147 | D21: =IF(OR('Tabel 1 H'!C19<5,'Tabel 2 H'!D21<0.5),"-",IFERROR('Tabel 2 H'!D21/'Tabel 1 H'!C19*100,"-")) -> 5.150698674 | F21: =IF(OR('Tabel 1 H'!E19<5,'Tabel 2 H'!F21<0.5),"-",IFERROR('Tabel 2 H'!F21/'Tabel 1 H'!E19*100,"-")) -> 5.257731959 | G21: =IF(OR('Tabel 1 H'!E19<5,'Tabel 2 H'!G21<0.5),"-",IFERROR('Tabel 2 H'!G21/'Tabel 1 H'!E19*100,"-")) -> 4.439233257 | I21: =IF(OR('Tabel 1 H'!G19<5,'Tabel 2 H'!I21<0.5),"-",IFERROR('Tabel 2 H'!I21/'Tabel 1 H'!G19*100,"-")) -> 5.305651672 | J21: =IF(OR('Tabel 1 H'!G19<5,'Tabel 2 H'!J21<0.5),"-",IFERROR('Tabel 2 H'!J21/'Tabel 1 H'!G19*100,"-")) -> 4.752704755
A22: Mejeriing. | C22: =IF(OR('Tabel 1 H'!C20<5,'Tabel 2 H'!C22<0.5),"-",IFERROR('Tabel 2 H'!C22/'Tabel 1 H'!C20*100,"-")) -> 10.76923077 | D22: =IF(OR('Tabel 1 H'!C20<5,'Tabel 2 H'!D22<0.5),"-",IFERROR('Tabel 2 H'!D22/'Tabel 1 H'!C20*100,"-")) -> 10.6962083 | F22: =IF(OR('Tabel 1 H'!E20<5,'Tabel 2 H'!F22<0.5),"-",IFERROR('Tabel 2 H'!F22/'Tabel 1 H'!E20*100,"-")) -> 7.058823529 | G22: =IF(OR('Tabel 1 H'!E20<5,'Tabel 2 H'!G22<0.5),"-",IFERROR('Tabel 2 H'!G22/'Tabel 1 H'!E20*100,"-")) -> 6.076437935 | I22: =IF(OR('Tabel 1 H'!G20<5,'Tabel 2 H'!I22<0.5),"-",IFERROR('Tabel 2 H'!I22/'Tabel 1 H'!G20*100,"-")) -> 8.666666667 | J22: =IF(OR('Tabel 1 H'!G20<5,'Tabel 2 H'!J22<0.5),"-",IFERROR('Tabel 2 H'!J22/'Tabel 1 H'!G20*100,"-")) -> 8.078338427
A23: Levn.m.kand. | C23: =IF(OR('Tabel 1 H'!C21<5,'Tabel 2 H'!C23<0.5),"-",IFERROR('Tabel 2 H'!C23/'Tabel 1 H'!C21*100,"-")) -> 23.52941176 | D23: =IF(OR('Tabel 1 H'!C21<5,'Tabel 2 H'!D23<0.5),"-",IFERROR('Tabel 2 H'!D23/'Tabel 1 H'!C21*100,"-")) -> 21.12921511 | F23: =IF(OR('Tabel 1 H'!E21<5,'Tabel 2 H'!F23<0.5),"-",IFERROR('Tabel 2 H'!F23/'Tabel 1 H'!E21*100,"-")) -> 5.017921147 | G23: =IF(OR('Tabel 1 H'!E21<5,'Tabel 2 H'!G23<0.5),"-",IFERROR('Tabel 2 H'!G23/'Tabel 1 H'!E21*100,"-")) -> 4.600502503 | I23: =IF(OR('Tabel 1 H'!G21<5,'Tabel 2 H'!I23<0.5),"-",IFERROR('Tabel 2 H'!I23/'Tabel 1 H'!G21*100,"-")) -> 7.878787879 | J23: =IF(OR('Tabel 1 H'!G21<5,'Tabel 2 H'!J23<0.5),"-",IFERROR('Tabel 2 H'!J23/'Tabel 1 H'!G21*100,"-")) -> 7.154939906
A24: Dyrlæge | C24: =IF(OR('Tabel 1 H'!C22<5,'Tabel 2 H'!C24<0.5),"-",IFERROR('Tabel 2 H'!C24/'Tabel 1 H'!C22*100,"-")) -> 1.19047619 | D24: =IF(OR('Tabel 1 H'!C22<5,'Tabel 2 H'!D24<0.5),"-",IFERROR('Tabel 2 H'!D24/'Tabel 1 H'!C22*100,"-")) -> 1.190253436 | F24: =IF(OR('Tabel 1 H'!E22<5,'Tabel 2 H'!F24<0.5),"-",IFERROR('Tabel 2 H'!F24/'Tabel 1 H'!E22*100,"-")) -> 3.299492386 | G24: =IF(OR('Tabel 1 H'!E22<5,'Tabel 2 H'!G24<0.5),"-",IFERROR('Tabel 2 H'!G24/'Tabel 1 H'!E22*100,"-")) -> 2.613185812 | I24: =IF(OR('Tabel 1 H'!G22<5,'Tabel 2 H'!I24<0.5),"-",IFERROR('Tabel 2 H'!I24/'Tabel 1 H'!G22*100,"-")) -> 2.928870293 | J24: =IF(OR('Tabel 1 H'!G22<5,'Tabel 2 H'!J24<0.5),"-",IFERROR('Tabel 2 H'!J24/'Tabel 1 H'!G22*100,"-")) -> 2.36313075
A25: Farmaceut | C25: =IF(OR('Tabel 1 H'!C23<5,'Tabel 2 H'!C25<0.5),"-",IFERROR('Tabel 2 H'!C25/'Tabel 1 H'!C23*100,"-")) -> 3.228869896 | D25: =IF(OR('Tabel 1 H'!C23<5,'Tabel 2 H'!D25<0.5),"-",IFERROR('Tabel 2 H'!D25/'Tabel 1 H'!C23*100,"-")) -> 2.907050268 | F25: =IF(OR('Tabel 1 H'!E23<5,'Tabel 2 H'!F25<0.5),"-",IFERROR('Tabel 2 H'!F25/'Tabel 1 H'!E23*100,"-")) -> 2.59502924 | G25: =IF(OR('Tabel 1 H'!E23<5,'Tabel 2 H'!G25<0.5),"-",IFERROR('Tabel 2 H'!G25/'Tabel 1 H'!E23*100,"-")) -> 2.302063945 | I25: =IF(OR('Tabel 1 H'!G23<5,'Tabel 2 H'!I25<0.5),"-",IFERROR('Tabel 2 H'!I25/'Tabel 1 H'!G23*100,"-")) -> 2.771179731 | J25: =IF(OR('Tabel 1 H'!G23<5,'Tabel 2 H'!J25<0.5),"-",IFERROR('Tabel 2 H'!J25/'Tabel 1 H'!G23*100,"-")) -> 2.470195536
A26: Læge | C26: =IF(OR('Tabel 1 H'!C24<5,'Tabel 2 H'!C26<0.5),"-",IFERROR('Tabel 2 H'!C26/'Tabel 1 H'!C24*100,"-")) -> 1.721938776 | D26: =IF(OR('Tabel 1 H'!C24<5,'Tabel 2 H'!D26<0.5),"-",IFERROR('Tabel 2 H'!D26/'Tabel 1 H'!C24*100,"-")) -> 1.44925899 | F26: =IF(OR('Tabel 1 H'!E24<5,'Tabel 2 H'!F26<0.5),"-",IFERROR('Tabel 2 H'!F26/'Tabel 1 H'!E24*100,"-")) -> 1.264822134 | G26: =IF(OR('Tabel 1 H'!E24<5,'Tabel 2 H'!G26<0.5),"-",IFERROR('Tabel 2 H'!G26/'Tabel 1 H'!E24*100,"-")) -> 0.9795508227 | I26: =IF(OR('Tabel 1 H'!G24<5,'Tabel 2 H'!I26<0.5),"-",IFERROR('Tabel 2 H'!I26/'Tabel 1 H'!G24*100,"-")) -> 1.398471005 | J26: =IF(OR('Tabel 1 H'!G24<5,'Tabel 2 H'!J26<0.5),"-",IFERROR('Tabel 2 H'!J26/'Tabel 1 H'!G24*100,"-")) -> 1.116881124
A27: Tandlæge | C27: =IF(OR('Tabel 1 H'!C25<5,'Tabel 2 H'!C27<0.5),"-",IFERROR('Tabel 2 H'!C27/'Tabel 1 H'!C25*100,"-")) -> 0.7874015748 | D27: =IF(OR('Tabel 1 H'!C25<5,'Tabel 2 H'!D27<0.5),"-",IFERROR('Tabel 2 H'!D27/'Tabel 1 H'!C25*100,"-")) -> 0.6055424074 | F27: =IF(OR('Tabel 1 H'!E25<5,'Tabel 2 H'!F27<0.5),"-",IFERROR('Tabel 2 H'!F27/'Tabel 1 H'!E25*100,"-")) -> 2.247191011 | G27: =IF(OR('Tabel 1 H'!E25<5,'Tabel 2 H'!G27<0.5),"-",IFERROR('Tabel 2 H'!G27/'Tabel 1 H'!E25*100,"-")) -> 1.671937864 | I27: =IF(OR('Tabel 1 H'!G25<5,'Tabel 2 H'!I27<0.5),"-",IFERROR('Tabel 2 H'!I27/'Tabel 1 H'!G25*100,"-")) -> 2.026221692 | J27: =IF(OR('Tabel 1 H'!G25<5,'Tabel 2 H'!J27<0.5),"-",IFERROR('Tabel 2 H'!J27/'Tabel 1 H'!G25*100,"-")) -> 1.510516859
A28: Arkitekt | C28: =IF(OR('Tabel 1 H'!C26<5,'Tabel 2 H'!C28<0.5),"-",IFERROR('Tabel 2 H'!C28/'Tabel 1 H'!C26*100,"-")) -> 6.360856269 | D28: =IF(OR('Tabel 1 H'!C26<5,'Tabel 2 H'!D28<0.5),"-",IFERROR('Tabel 2 H'!D28/'Tabel 1 H'!C26*100,"-")) -> 5.744230506 | F28: =IF(OR('Tabel 1 H'!E26<5,'Tabel 2 H'!F28<0.5),"-",IFERROR('Tabel 2 H'!F28/'Tabel 1 H'!E26*100,"-")) -> 5.955955956 | G28: =IF(OR('Tabel 1 H'!E26<5,'Tabel 2 H'!G28<0.5),"-",IFERROR('Tabel 2 H'!G28/'Tabel 1 H'!E26*100,"-")) -> 5.285363952 | I28: =IF(OR('Tabel 1 H'!G26<5,'Tabel 2 H'!I28<0.5),"-",IFERROR('Tabel 2 H'!I28/'Tabel 1 H'!G26*100,"-")) -> 6.138177814 | J28: =IF(OR('Tabel 1 H'!G26<5,'Tabel 2 H'!J28<0.5),"-",IFERROR('Tabel 2 H'!J28/'Tabel 1 H'!G26*100,"-")) -> 5.491872847
A29: Landinspek. | C29: =IF(OR('Tabel 1 H'!C27<5,'Tabel 2 H'!C29<0.5),"-",IFERROR('Tabel 2 H'!C29/'Tabel 1 H'!C27*100,"-")) -> 3.521126761 | D29: =IF(OR('Tabel 1 H'!C27<5,'Tabel 2 H'!D29<0.5),"-",IFERROR('Tabel 2 H'!D29/'Tabel 1 H'!C27*100,"-")) -> 3.390454371 | F29: =IF(OR('Tabel 1 H'!E27<5,'Tabel 2 H'!F29<0.5),"-",IFERROR('Tabel 2 H'!F29/'Tabel 1 H'!E27*100,"-")) -> - | G29: =IF(OR('Tabel 1 H'!E27<5,'Tabel 2 H'!G29<0.5),"-",IFERROR('Tabel 2 H'!G29/'Tabel 1 H'!E27*100,"-")) -> - | I29: =IF(OR('Tabel 1 H'!G27<5,'Tabel 2 H'!I29<0.5),"-",IFERROR('Tabel 2 H'!I29/'Tabel 1 H'!G27*100,"-")) -> 2.617801047 | J29: =IF(OR('Tabel 1 H'!G27<5,'Tabel 2 H'!J29<0.5),"-",IFERROR('Tabel 2 H'!J29/'Tabel 1 H'!G27*100,"-")) -> 2.520651941
A30: Bibliotekar | C30: =IF(OR('Tabel 1 H'!C28<5,'Tabel 2 H'!C30<0.5),"-",IFERROR('Tabel 2 H'!C30/'Tabel 1 H'!C28*100,"-")) -> 6.531531532 | D30: =IF(OR('Tabel 1 H'!C28<5,'Tabel 2 H'!D30<0.5),"-",IFERROR('Tabel 2 H'!D30/'Tabel 1 H'!C28*100,"-")) -> 5.495843876 | F30: =IF(OR('Tabel 1 H'!E28<5,'Tabel 2 H'!F30<0.5),"-",IFERROR('Tabel 2 H'!F30/'Tabel 1 H'!E28*100,"-")) -> 6.090534979 | G30: =IF(OR('Tabel 1 H'!E28<5,'Tabel 2 H'!G30<0.5),"-",IFERROR('Tabel 2 H'!G30/'Tabel 1 H'!E28*100,"-")) -> 5.319840586 | I30: =IF(OR('Tabel 1 H'!G28<5,'Tabel 2 H'!I30<0.5),"-",IFERROR('Tabel 2 H'!I30/'Tabel 1 H'!G28*100,"-")) -> 6.208559373 | J30: =IF(OR('Tabel 1 H'!G28<5,'Tabel 2 H'!J30<0.5),"-",IFERROR('Tabel 2 H'!J30/'Tabel 1 H'!G28*100,"-")) -> 5.366944541
A31: Musikudd. | C31: =IF(OR('Tabel 1 H'!C29<5,'Tabel 2 H'!C31<0.5),"-",IFERROR('Tabel 2 H'!C31/'Tabel 1 H'!C29*100,"-")) -> 9.022556391 | D31: =IF(OR('Tabel 1 H'!C29<5,'Tabel 2 H'!D31<0.5),"-",IFERROR('Tabel 2 H'!D31/'Tabel 1 H'!C29*100,"-")) -> 6.910559002 | F31: =IF(OR('Tabel 1 H'!E29<5,'Tabel 2 H'!F31<0.5),"-",IFERROR('Tabel 2 H'!F31/'Tabel 1 H'!E29*100,"-")) -> 8.092485549 | G31: =IF(OR('Tabel 1 H'!E29<5,'Tabel 2 H'!G31<0.5),"-",IFERROR('Tabel 2 H'!G31/'Tabel 1 H'!E29*100,"-")) -> 6.873107453 | I31: =IF(OR('Tabel 1 H'!G29<5,'Tabel 2 H'!I31<0.5),"-",IFERROR('Tabel 2 H'!I31/'Tabel 1 H'!G29*100,"-")) -> 8.496732026 | J31: =IF(OR('Tabel 1 H'!G29<5,'Tabel 2 H'!J31<0.5),"-",IFERROR('Tabel 2 H'!J31/'Tabel 1 H'!G29*100,"-")) -> 6.889385414
A32: Teolog | C32: =IF(OR('Tabel 1 H'!C30<5,'Tabel 2 H'!C32<0.5),"-",IFERROR('Tabel 2 H'!C32/'Tabel 1 H'!C30*100,"-")) -> 5.288461538 | D32: =IF(OR('Tabel 1 H'!C30<5,'Tabel 2 H'!D32<0.5),"-",IFERROR('Tabel 2 H'!D32/'Tabel 1 H'!C30*100,"-")) -> 4.885056782 | F32: =IF(OR('Tabel 1 H'!E30<5,'Tabel 2 H'!F32<0.5),"-",IFERROR('Tabel 2 H'!F32/'Tabel 1 H'!E30*100,"-")) -> 5.099150142 | G32: =IF(OR('Tabel 1 H'!E30<5,'Tabel 2 H'!G32<0.5),"-",IFERROR('Tabel 2 H'!G32/'Tabel 1 H'!E30*100,"-")) -> 4.375359673 | I32: =IF(OR('Tabel 1 H'!G30<5,'Tabel 2 H'!I32<0.5),"-",IFERROR('Tabel 2 H'!I32/'Tabel 1 H'!G30*100,"-")) -> 5.169340463 | J32: =IF(OR('Tabel 1 H'!G30<5,'Tabel 2 H'!J32<0.5),"-",IFERROR('Tabel 2 H'!J32/'Tabel 1 H'!G30*100,"-")) -> 4.56433828
A33: Psykolog | C33: =IF(OR('Tabel 1 H'!C31<5,'Tabel 2 H'!C33<0.5),"-",IFERROR('Tabel 2 H'!C33/'Tabel 1 H'!C31*100,"-")) -> 5.370101597 | D33: =IF(OR('Tabel 1 H'!C31<5,'Tabel 2 H'!D33<0.5),"-",IFERROR('Tabel 2 H'!D33/'Tabel 1 H'!C31*100,"-")) -> 4.855189365 | F33: =IF(OR('Tabel 1 H'!E31<5,'Tabel 2 H'!F33<0.5),"-",IFERROR('Tabel 2 H'!F33/'Tabel 1 H'!E31*100,"-")) -> 3.791946309 | G33: =IF(OR('Tabel 1 H'!E31<5,'Tabel 2 H'!G33<0.5),"-",IFERROR('Tabel 2 H'!G33/'Tabel 1 H'!E31*100,"-")) -> 3.185815999 | I33: =IF(OR('Tabel 1 H'!G31<5,'Tabel 2 H'!I33<0.5),"-",IFERROR('Tabel 2 H'!I33/'Tabel 1 H'!G31*100,"-")) -> 4.088307441 | J33: =IF(OR('Tabel 1 H'!G31<5,'Tabel 2 H'!J33<0.5),"-",IFERROR('Tabel 2 H'!J33/'Tabel 1 H'!G31*100,"-")) -> 3.499306937
A34: Jurist | C34: =IF(OR('Tabel 1 H'!C32<5,'Tabel 2 H'!C34<0.5),"-",IFERROR('Tabel 2 H'!C34/'Tabel 1 H'!C32*100,"-")) -> 2.015267176 | D34: =IF(OR('Tabel 1 H'!C32<5,'Tabel 2 H'!D34<0.5),"-",IFERROR('Tabel 2 H'!D34/'Tabel 1 H'!C32*100,"-")) -> 1.801932369 | F34: =IF(OR('Tabel 1 H'!E32<5,'Tabel 2 H'!F34<0.5),"-",IFERROR('Tabel 2 H'!F34/'Tabel 1 H'!E32*100,"-")) -> 1.597687158 | G34: =IF(OR('Tabel 1 H'!E32<5,'Tabel 2 H'!G34<0.5),"-",IFERROR('Tabel 2 H'!G34/'Tabel 1 H'!E32*100,"-")) -> 1.357573559 | I34: =IF(OR('Tabel 1 H'!G32<5,'Tabel 2 H'!I34<0.5),"-",IFERROR('Tabel 2 H'!I34/'Tabel 1 H'!G32*100,"-")) -> 1.736569514 | J34: =IF(OR('Tabel 1 H'!G32<5,'Tabel 2 H'!J34<0.5),"-",IFERROR('Tabel 2 H'!J34/'Tabel 1 H'!G32*100,"-")) -> 1.505362236
A35: Økonom | C35: =IF(OR('Tabel 1 H'!C33<5,'Tabel 2 H'!C35<0.5),"-",IFERROR('Tabel 2 H'!C35/'Tabel 1 H'!C33*100,"-")) -> 3.310305124 | D35: =IF(OR('Tabel 1 H'!C33<5,'Tabel 2 H'!D35<0.5),"-",IFERROR('Tabel 2 H'!D35/'Tabel 1 H'!C33*100,"-")) -> 2.881488565 | F35: =IF(OR('Tabel 1 H'!E33<5,'Tabel 2 H'!F35<0.5),"-",IFERROR('Tabel 2 H'!F35/'Tabel 1 H'!E33*100,"-")) -> 2.00729927 | G35: =IF(OR('Tabel 1 H'!E33<5,'Tabel 2 H'!G35<0.5),"-",IFERROR('Tabel 2 H'!G35/'Tabel 1 H'!E33*100,"-")) -> 1.700017892 | I35: =IF(OR('Tabel 1 H'!G33<5,'Tabel 2 H'!I35<0.5),"-",IFERROR('Tabel 2 H'!I35/'Tabel 1 H'!G33*100,"-")) -> 2.806212496 | J35: =IF(OR('Tabel 1 H'!G33<5,'Tabel 2 H'!J35<0.5),"-",IFERROR('Tabel 2 H'!J35/'Tabel 1 H'!G33*100,"-")) -> 2.424414136
A36: Samf. Adm. | C36: =IF(OR('Tabel 1 H'!C34<5,'Tabel 2 H'!C36<0.5),"-",IFERROR('Tabel 2 H'!C36/'Tabel 1 H'!C34*100,"-")) -> 5.318384361 | D36: =IF(OR('Tabel 1 H'!C34<5,'Tabel 2 H'!D36<0.5),"-",IFERROR('Tabel 2 H'!D36/'Tabel 1 H'!C34*100,"-")) -> 4.86168472 | F36: =IF(OR('Tabel 1 H'!E34<5,'Tabel 2 H'!F36<0.5),"-",IFERROR('Tabel 2 H'!F36/'Tabel 1 H'!E34*100,"-")) -> 5.509455809 | G36: =IF(OR('Tabel 1 H'!E34<5,'Tabel 2 H'!G36<0.5),"-",IFERROR('Tabel 2 H'!G36/'Tabel 1 H'!E34*100,"-")) -> 4.851365152 | I36: =IF(OR('Tabel 1 H'!G34<5,'Tabel 2 H'!I36<0.5),"-",IFERROR('Tabel 2 H'!I36/'Tabel 1 H'!G34*100,"-")) -> 5.432711737 | J36: =IF(OR('Tabel 1 H'!G34<5,'Tabel 2 H'!J36<0.5),"-",IFERROR('Tabel 2 H'!J36/'Tabel 1 H'!G34*100,"-")) -> 4.855510018
A37: Cand. Merc. | C37: =IF(OR('Tabel 1 H'!C35<5,'Tabel 2 H'!C37<0.5),"-",IFERROR('Tabel 2 H'!C37/'Tabel 1 H'!C35*100,"-")) -> 4.217504083 | D37: =IF(OR('Tabel 1 H'!C35<5,'Tabel 2 H'!D37<0.5),"-",IFERROR('Tabel 2 H'!D37/'Tabel 1 H'!C35*100,"-")) -> 3.714957748 | F37: =IF(OR('Tabel 1 H'!E35<5,'Tabel 2 H'!F37<0.5),"-",IFERROR('Tabel 2 H'!F37/'Tabel 1 H'!E35*100,"-")) -> 4.808159301 | G37: =IF(OR('Tabel 1 H'!E35<5,'Tabel 2 H'!G37<0.5),"-",IFERROR('Tabel 2 H'!G37/'Tabel 1 H'!E35*100,"-")) -> 4.144784311 | I37: =IF(OR('Tabel 1 H'!G35<5,'Tabel 2 H'!I37<0.5),"-",IFERROR('Tabel 2 H'!I37/'Tabel 1 H'!G35*100,"-")) -> 4.511205564 | J37: =IF(OR('Tabel 1 H'!G35<5,'Tabel 2 H'!J37<0.5),"-",IFERROR('Tabel 2 H'!J37/'Tabel 1 H'!G35*100,"-")) -> 3.928687678
A38: HA | C38: =IF(OR('Tabel 1 H'!C36<5,'Tabel 2 H'!C38<0.5),"-",IFERROR('Tabel 2 H'!C38/'Tabel 1 H'!C36*100,"-")) -> 6.641791045 | D38: =IF(OR('Tabel 1 H'!C36<5,'Tabel 2 H'!D38<0.5),"-",IFERROR('Tabel 2 H'!D38/'Tabel 1 H'!C36*100,"-")) -> 5.888647575 | F38: =IF(OR('Tabel 1 H'!E36<5,'Tabel 2 H'!F38<0.5),"-",IFERROR('Tabel 2 H'!F38/'Tabel 1 H'!E36*100,"-")) -> 7.726465364 | G38: =IF(OR('Tabel 1 H'!E36<5,'Tabel 2 H'!G38<0.5),"-",IFERROR('Tabel 2 H'!G38/'Tabel 1 H'!E36*100,"-")) -> 6.231652102 | I38: =IF(OR('Tabel 1 H'!G36<5,'Tabel 2 H'!I38<0.5),"-",IFERROR('Tabel 2 H'!I38/'Tabel 1 H'!G36*100,"-")) -> 7.137064071 | J38: =IF(OR('Tabel 1 H'!G36<5,'Tabel 2 H'!J38<0.5),"-",IFERROR('Tabel 2 H'!J38/'Tabel 1 H'!G36*100,"-")) -> 6.045266836
A39: HD | C39: =IF(OR('Tabel 1 H'!C37<5,'Tabel 2 H'!C39<0.5),"-",IFERROR('Tabel 2 H'!C39/'Tabel 1 H'!C37*100,"-")) -> 7.692307692 | D39: =IF(OR('Tabel 1 H'!C37<5,'Tabel 2 H'!D39<0.5),"-",IFERROR('Tabel 2 H'!D39/'Tabel 1 H'!C37*100,"-")) -> 6.981912352 | F39: =IF(OR('Tabel 1 H'!E37<5,'Tabel 2 H'!F39<0.5),"-",IFERROR('Tabel 2 H'!F39/'Tabel 1 H'!E37*100,"-")) -> 7.201309329 | G39: =IF(OR('Tabel 1 H'!E37<5,'Tabel 2 H'!G39<0.5),"-",IFERROR('Tabel 2 H'!G39/'Tabel 1 H'!E37*100,"-")) -> 6.54735941 | I39: =IF(OR('Tabel 1 H'!G37<5,'Tabel 2 H'!I39<0.5),"-",IFERROR('Tabel 2 H'!I39/'Tabel 1 H'!G37*100,"-")) -> 7.458024209 | J39: =IF(OR('Tabel 1 H'!G37<5,'Tabel 2 H'!J39<0.5),"-",IFERROR('Tabel 2 H'!J39/'Tabel 1 H'!G37*100,"-")) -> 6.774562217
A40: Komm. og Sprog | C40: =IF(OR('Tabel 1 H'!C38<5,'Tabel 2 H'!C40<0.5),"-",IFERROR('Tabel 2 H'!C40/'Tabel 1 H'!C38*100,"-")) -> 10.50955414 | D40: =IF(OR('Tabel 1 H'!C38<5,'Tabel 2 H'!D40<0.5),"-",IFERROR('Tabel 2 H'!D40/'Tabel 1 H'!C38*100,"-")) -> 8.934299917 | F40: =IF(OR('Tabel 1 H'!E38<5,'Tabel 2 H'!F40<0.5),"-",IFERROR('Tabel 2 H'!F40/'Tabel 1 H'!E38*100,"-")) -> 7.484220018 | G40: =IF(OR('Tabel 1 H'!E38<5,'Tabel 2 H'!G40<0.5),"-",IFERROR('Tabel 2 H'!G40/'Tabel 1 H'!E38*100,"-")) -> 6.776056694 | I40: =IF(OR('Tabel 1 H'!G38<5,'Tabel 2 H'!I40<0.5),"-",IFERROR('Tabel 2 H'!I40/'Tabel 1 H'!G38*100,"-")) -> 7.96460177 | J40: =IF(OR('Tabel 1 H'!G38<5,'Tabel 2 H'!J40<0.5),"-",IFERROR('Tabel 2 H'!J40/'Tabel 1 H'!G38*100,"-")) -> 7.11875625
A41: Komm. og Sprog | C41: =IF(OR('Tabel 1 H'!C39<5,'Tabel 2 H'!C41<0.5),"-",IFERROR('Tabel 2 H'!C41/'Tabel 1 H'!C39*100,"-")) -> 4.296296296 | D41: =IF(OR('Tabel 1 H'!C39<5,'Tabel 2 H'!D41<0.5),"-",IFERROR('Tabel 2 H'!D41/'Tabel 1 H'!C39*100,"-")) -> 3.738637825 | F41: =IF(OR('Tabel 1 H'!E39<5,'Tabel 2 H'!F41<0.5),"-",IFERROR('Tabel 2 H'!F41/'Tabel 1 H'!E39*100,"-")) -> 9.394572025 | G41: =IF(OR('Tabel 1 H'!E39<5,'Tabel 2 H'!G41<0.5),"-",IFERROR('Tabel 2 H'!G41/'Tabel 1 H'!E39*100,"-")) -> 8.559368745 | I41: =IF(OR('Tabel 1 H'!G39<5,'Tabel 2 H'!I41<0.5),"-",IFERROR('Tabel 2 H'!I41/'Tabel 1 H'!G39*100,"-")) -> 5.271565495 | J41: =IF(OR('Tabel 1 H'!G39<5,'Tabel 2 H'!J41<0.5),"-",IFERROR('Tabel 2 H'!J41/'Tabel 1 H'!G39*100,"-")) -> 4.660814387
A42: Cand. IT. | C42: =IF(OR('Tabel 1 H'!C40<5,'Tabel 2 H'!C42<0.5),"-",IFERROR('Tabel 2 H'!C42/'Tabel 1 H'!C40*100,"-")) -> 4.359490275 | D42: =IF(OR('Tabel 1 H'!C40<5,'Tabel 2 H'!D42<0.5),"-",IFERROR('Tabel 2 H'!D42/'Tabel 1 H'!C40*100,"-")) -> 3.738307514 | F42: =IF(OR('Tabel 1 H'!E40<5,'Tabel 2 H'!F42<0.5),"-",IFERROR('Tabel 2 H'!F42/'Tabel 1 H'!E40*100,"-")) -> 6.847133758 | G42: =IF(OR('Tabel 1 H'!E40<5,'Tabel 2 H'!G42<0.5),"-",IFERROR('Tabel 2 H'!G42/'Tabel 1 H'!E40*100,"-")) -> 6.098935674 | I42: =IF(OR('Tabel 1 H'!G40<5,'Tabel 2 H'!I42<0.5),"-",IFERROR('Tabel 2 H'!I42/'Tabel 1 H'!G40*100,"-")) -> 5.496905715 | J42: =IF(OR('Tabel 1 H'!G40<5,'Tabel 2 H'!J42<0.5),"-",IFERROR('Tabel 2 H'!J42/'Tabel 1 H'!G40*100,"-")) -> 4.817648238
A43: Bac. Samf. | C43: =IF(OR('Tabel 1 H'!C41<5,'Tabel 2 H'!C43<0.5),"-",IFERROR('Tabel 2 H'!C43/'Tabel 1 H'!C41*100,"-")) -> 6.451612903 | D43: =IF(OR('Tabel 1 H'!C41<5,'Tabel 2 H'!D43<0.5),"-",IFERROR('Tabel 2 H'!D43/'Tabel 1 H'!C41*100,"-")) -> 5.272894816 | F43: =IF(OR('Tabel 1 H'!E41<5,'Tabel 2 H'!F43<0.5),"-",IFERROR('Tabel 2 H'!F43/'Tabel 1 H'!E41*100,"-")) -> 10.70615034 | G43: =IF(OR('Tabel 1 H'!E41<5,'Tabel 2 H'!G43<0.5),"-",IFERROR('Tabel 2 H'!G43/'Tabel 1 H'!E41*100,"-")) -> 8.838689338 | I43: =IF(OR('Tabel 1 H'!G41<5,'Tabel 2 H'!I43<0.5),"-",IFERROR('Tabel 2 H'!I43/'Tabel 1 H'!G41*100,"-")) -> 8.754623921 | J43: =IF(OR('Tabel 1 H'!G41<5,'Tabel 2 H'!J43<0.5),"-",IFERROR('Tabel 2 H'!J43/'Tabel 1 H'!G41*100,"-")) -> 7.203084452
A44: Bac. Hum. | C44: =IF(OR('Tabel 1 H'!C42<5,'Tabel 2 H'!C44<0.5),"-",IFERROR('Tabel 2 H'!C44/'Tabel 1 H'!C42*100,"-")) -> 15.40469974 | D44: =IF(OR('Tabel 1 H'!C42<5,'Tabel 2 H'!D44<0.5),"-",IFERROR('Tabel 2 H'!D44/'Tabel 1 H'!C42*100,"-")) -> 12.48379851 | F44: =IF(OR('Tabel 1 H'!E42<5,'Tabel 2 H'!F44<0.5),"-",IFERROR('Tabel 2 H'!F44/'Tabel 1 H'!E42*100,"-")) -> 15.45003544 | G44: =IF(OR('Tabel 1 H'!E42<5,'Tabel 2 H'!G44<0.5),"-",IFERROR('Tabel 2 H'!G44/'Tabel 1 H'!E42*100,"-")) -> 12.46180638 | I44: =IF(OR('Tabel 1 H'!G42<5,'Tabel 2 H'!I44<0.5),"-",IFERROR('Tabel 2 H'!I44/'Tabel 1 H'!G42*100,"-")) -> 15.4340836 | J44: =IF(OR('Tabel 1 H'!G42<5,'Tabel 2 H'!J44<0.5),"-",IFERROR('Tabel 2 H'!J44/'Tabel 1 H'!G42*100,"-")) -> 12.46954454
A45: Bac. Nat. | C45: =IF(OR('Tabel 1 H'!C43<5,'Tabel 2 H'!C45<0.5),"-",IFERROR('Tabel 2 H'!C45/'Tabel 1 H'!C43*100,"-")) -> 9.513513514 | D45: =IF(OR('Tabel 1 H'!C43<5,'Tabel 2 H'!D45<0.5),"-",IFERROR('Tabel 2 H'!D45/'Tabel 1 H'!C43*100,"-")) -> 8.197417151 | F45: =IF(OR('Tabel 1 H'!E43<5,'Tabel 2 H'!F45<0.5),"-",IFERROR('Tabel 2 H'!F45/'Tabel 1 H'!E43*100,"-")) -> 15.91962906 | G45: =IF(OR('Tabel 1 H'!E43<5,'Tabel 2 H'!G45<0.5),"-",IFERROR('Tabel 2 H'!G45/'Tabel 1 H'!E43*100,"-")) -> 13.96954562 | I45: =IF(OR('Tabel 1 H'!G43<5,'Tabel 2 H'!I45<0.5),"-",IFERROR('Tabel 2 H'!I45/'Tabel 1 H'!G43*100,"-")) -> 12.15012723 | J45: =IF(OR('Tabel 1 H'!G43<5,'Tabel 2 H'!J45<0.5),"-",IFERROR('Tabel 2 H'!J45/'Tabel 1 H'!G43*100,"-")) -> 10.57309598
A46: Andre | C46: =IF(OR('Tabel 1 H'!C44<5,'Tabel 2 H'!C46<0.5),"-",IFERROR('Tabel 2 H'!C46/'Tabel 1 H'!C44*100,"-")) -> 6.807105801 | D46: =IF(OR('Tabel 1 H'!C44<5,'Tabel 2 H'!D46<0.5),"-",IFERROR('Tabel 2 H'!D46/'Tabel 1 H'!C44*100,"-")) -> 6.02387116 | F46: =IF(OR('Tabel 1 H'!E44<5,'Tabel 2 H'!F46<0.5),"-",IFERROR('Tabel 2 H'!F46/'Tabel 1 H'!E44*100,"-")) -> 9.640984268 | G46: =IF(OR('Tabel 1 H'!E44<5,'Tabel 2 H'!G46<0.5),"-",IFERROR('Tabel 2 H'!G46/'Tabel 1 H'!E44*100,"-")) -> 8.379366072 | I46: =IF(OR('Tabel 1 H'!G44<5,'Tabel 2 H'!I46<0.5),"-",IFERROR('Tabel 2 H'!I46/'Tabel 1 H'!G44*100,"-")) -> 8.334541238 | J46: =IF(OR('Tabel 1 H'!G44<5,'Tabel 2 H'!J46<0.5),"-",IFERROR('Tabel 2 H'!J46/'Tabel 1 H'!G44*100,"-")) -> 7.29346209
A48: Total | C48: =IF(OR('Tabel 1 H'!C46<5,'Tabel 2 H'!C48<0.5),"-",IFERROR('Tabel 2 H'!C48/'Tabel 1 H'!C46*100,"-")) -> 5.162114568 | D48: =IF(OR('Tabel 1 H'!C46<5,'Tabel 2 H'!D48<0.5),"-",IFERROR('Tabel 2 H'!D48/'Tabel 1 H'!C46*100,"-")) -> 4.553449271 | F48: =IF(OR('Tabel 1 H'!E46<5,'Tabel 2 H'!F48<0.5),"-",IFERROR('Tabel 2 H'!F48/'Tabel 1 H'!E46*100,"-")) -> 6.204925422 | G48: =IF(OR('Tabel 1 H'!E46<5,'Tabel 2 H'!G48<0.5),"-",IFERROR('Tabel 2 H'!G48/'Tabel 1 H'!E46*100,"-")) -> 5.342123453 | I48: =IF(OR('Tabel 1 H'!G46<5,'Tabel 2 H'!I48<0.5),"-",IFERROR('Tabel 2 H'!I48/'Tabel 1 H'!G46*100,"-")) -> 5.713852108 | J48: =IF(OR('Tabel 1 H'!G46<5,'Tabel 2 H'!J48<0.5),"-",IFERROR('Tabel 2 H'!J48/'Tabel 1 H'!G46*100,"-")) -> 4.970726432
A50: Ingeniører i alt | C50: =IF(OR('Tabel 1 H'!C48<5,'Tabel 2 H'!C50<0.5),"-",IFERROR('Tabel 2 H'!C50/'Tabel 1 H'!C48*100,"-")) -> 3.246639135 | D50: =IF(OR('Tabel 1 H'!C48<5,'Tabel 2 H'!D50<0.5),"-",IFERROR('Tabel 2 H'!D50/'Tabel 1 H'!C48*100,"-")) -> 2.858513748 | F50: =IF(OR('Tabel 1 H'!E48<5,'Tabel 2 H'!F50<0.5),"-",IFERROR('Tabel 2 H'!F50/'Tabel 1 H'!E48*100,"-")) -> 3.707571802 | G50: =IF(OR('Tabel 1 H'!E48<5,'Tabel 2 H'!G50<0.5),"-",IFERROR('Tabel 2 H'!G50/'Tabel 1 H'!E48*100,"-")) -> 3.128583198 | I50: =IF(OR('Tabel 1 H'!G48<5,'Tabel 2 H'!I50<0.5),"-",IFERROR('Tabel 2 H'!I50/'Tabel 1 H'!G48*100,"-")) -> 3.362698047 | J50: =IF(OR('Tabel 1 H'!G48<5,'Tabel 2 H'!J50<0.5),"-",IFERROR('Tabel 2 H'!J50/'Tabel 1 H'!G48*100,"-")) -> 2.926514931
A51: Magistre i alt | C51: =IF(OR('Tabel 1 H'!C49<5,'Tabel 2 H'!C51<0.5),"-",IFERROR('Tabel 2 H'!C51/'Tabel 1 H'!C49*100,"-")) -> 7.927538641 | D51: =IF(OR('Tabel 1 H'!C49<5,'Tabel 2 H'!D51<0.5),"-",IFERROR('Tabel 2 H'!D51/'Tabel 1 H'!C49*100,"-")) -> 6.93862452 | F51: =IF(OR('Tabel 1 H'!E49<5,'Tabel 2 H'!F51<0.5),"-",IFERROR('Tabel 2 H'!F51/'Tabel 1 H'!E49*100,"-")) -> 8.977178994 | G51: =IF(OR('Tabel 1 H'!E49<5,'Tabel 2 H'!G51<0.5),"-",IFERROR('Tabel 2 H'!G51/'Tabel 1 H'!E49*100,"-")) -> 7.682418233 | I51: =IF(OR('Tabel 1 H'!G49<5,'Tabel 2 H'!I51<0.5),"-",IFERROR('Tabel 2 H'!I51/'Tabel 1 H'!G49*100,"-")) -> 8.604087902 | J51: =IF(OR('Tabel 1 H'!G49<5,'Tabel 2 H'!J51<0.5),"-",IFERROR('Tabel 2 H'!J51/'Tabel 1 H'!G49*100,"-")) -> 7.418039289
A52: DJØF'ere i alt | C52: =IF(OR('Tabel 1 H'!C50<5,'Tabel 2 H'!C52<0.5),"-",IFERROR('Tabel 2 H'!C52/'Tabel 1 H'!C50*100,"-")) -> 4.238852878 | D52: =IF(OR('Tabel 1 H'!C50<5,'Tabel 2 H'!D52<0.5),"-",IFERROR('Tabel 2 H'!D52/'Tabel 1 H'!C50*100,"-")) -> 3.78291665 | F52: =IF(OR('Tabel 1 H'!E50<5,'Tabel 2 H'!F52<0.5),"-",IFERROR('Tabel 2 H'!F52/'Tabel 1 H'!E50*100,"-")) -> 4.262005303 | G52: =IF(OR('Tabel 1 H'!E50<5,'Tabel 2 H'!G52<0.5),"-",IFERROR('Tabel 2 H'!G52/'Tabel 1 H'!E50*100,"-")) -> 3.68638436 | I52: =IF(OR('Tabel 1 H'!G50<5,'Tabel 2 H'!I52<0.5),"-",IFERROR('Tabel 2 H'!I52/'Tabel 1 H'!G50*100,"-")) -> 4.251482037 | J52: =IF(OR('Tabel 1 H'!G50<5,'Tabel 2 H'!J52<0.5),"-",IFERROR('Tabel 2 H'!J52/'Tabel 1 H'!G50*100,"-")) -> 3.730260324
A57: København
C59: Mænd | F59: Kvinder | I59: I alt
C60: Ledigheds- berørte | D60: Gns. brutto- ledighed | F60: Ledigheds- berørte | G60: Gns. brutto- ledighed | I60: Ledigheds- berørte | J60: Gns. brutto- ledighed
A63: Civ. ing. | C63: =IF(OR('Tabel 1 H'!C61<5,'Tabel 2 H'!C63<0.5),"-",IFERROR('Tabel 2 H'!C63/'Tabel 1 H'!C61*100,"-")) -> 4.367606915 | D63: =IF(OR('Tabel 1 H'!C61<5,'Tabel 2 H'!D63<0.5),"-",IFERROR('Tabel 2 H'!D63/'Tabel 1 H'!C61*100,"-")) -> 3.812030771 | F63: =IF(OR('Tabel 1 H'!E61<5,'Tabel 2 H'!F63<0.5),"-",IFERROR('Tabel 2 H'!F63/'Tabel 1 H'!E61*100,"-")) -> 5.638872226 | G63: =IF(OR('Tabel 1 H'!E61<5,'Tabel 2 H'!G63<0.5),"-",IFERROR('Tabel 2 H'!G63/'Tabel 1 H'!E61*100,"-")) -> 4.903877953 | I63: =IF(OR('Tabel 1 H'!G61<5,'Tabel 2 H'!I63<0.5),"-",IFERROR('Tabel 2 H'!I63/'Tabel 1 H'!G61*100,"-")) -> 4.717136731 | J63: =IF(OR('Tabel 1 H'!G61<5,'Tabel 2 H'!J63<0.5),"-",IFERROR('Tabel 2 H'!J63/'Tabel 1 H'!G61*100,"-")) -> 4.112230219
A64: Diplom ing. | C64: =IF(OR('Tabel 1 H'!C62<5,'Tabel 2 H'!C64<0.5),"-",IFERROR('Tabel 2 H'!C64/'Tabel 1 H'!C62*100,"-")) -> 4.825737265 | D64: =IF(OR('Tabel 1 H'!C62<5,'Tabel 2 H'!D64<0.5),"-",IFERROR('Tabel 2 H'!D64/'Tabel 1 H'!C62*100,"-")) -> 4.267409689 | F64: =IF(OR('Tabel 1 H'!E62<5,'Tabel 2 H'!F64<0.5),"-",IFERROR('Tabel 2 H'!F64/'Tabel 1 H'!E62*100,"-")) -> 5.538922156 | G64: =IF(OR('Tabel 1 H'!E62<5,'Tabel 2 H'!G64<0.5),"-",IFERROR('Tabel 2 H'!G64/'Tabel 1 H'!E62*100,"-")) -> 4.634621482 | I64: =IF(OR('Tabel 1 H'!G62<5,'Tabel 2 H'!I64<0.5),"-",IFERROR('Tabel 2 H'!I64/'Tabel 1 H'!G62*100,"-")) -> 4.971027752 | J64: =IF(OR('Tabel 1 H'!G62<5,'Tabel 2 H'!J64<0.5),"-",IFERROR('Tabel 2 H'!J64/'Tabel 1 H'!G62*100,"-")) -> 4.342218313
A65: Cand. Scient. Tek. | C65: =IF(OR('Tabel 1 H'!C63<5,'Tabel 2 H'!C65<0.5),"-",IFERROR('Tabel 2 H'!C65/'Tabel 1 H'!C63*100,"-")) -> 8.852140078 | D65: =IF(OR('Tabel 1 H'!C63<5,'Tabel 2 H'!D65<0.5),"-",IFERROR('Tabel 2 H'!D65/'Tabel 1 H'!C63*100,"-")) -> 7.984403601 | F65: =IF(OR('Tabel 1 H'!E63<5,'Tabel 2 H'!F65<0.5),"-",IFERROR('Tabel 2 H'!F65/'Tabel 1 H'!E63*100,"-")) -> 9.168141593 | G65: =IF(OR('Tabel 1 H'!E63<5,'Tabel 2 H'!G65<0.5),"-",IFERROR('Tabel 2 H'!G65/'Tabel 1 H'!E63*100,"-")) -> 7.714442944 | I65: =IF(OR('Tabel 1 H'!G63<5,'Tabel 2 H'!I65<0.5),"-",IFERROR('Tabel 2 H'!I65/'Tabel 1 H'!G63*100,"-")) -> 9.003215434 | J65: =IF(OR('Tabel 1 H'!G63<5,'Tabel 2 H'!J65<0.5),"-",IFERROR('Tabel 2 H'!J65/'Tabel 1 H'!G63*100,"-")) -> 7.855339655
A66: MA. Hum. | C66: =IF(OR('Tabel 1 H'!C64<5,'Tabel 2 H'!C66<0.5),"-",IFERROR('Tabel 2 H'!C66/'Tabel 1 H'!C64*100,"-")) -> 11.69950739 | D66: =IF(OR('Tabel 1 H'!C64<5,'Tabel 2 H'!D66<0.5),"-",IFERROR('Tabel 2 H'!D66/'Tabel 1 H'!C64*100,"-")) -> 10.12410057 | F66: =IF(OR('Tabel 1 H'!E64<5,'Tabel 2 H'!F66<0.5),"-",IFERROR('Tabel 2 H'!F66/'Tabel 1 H'!E64*100,"-")) -> 10.91274533 | G66: =IF(OR('Tabel 1 H'!E64<5,'Tabel 2 H'!G66<0.5),"-",IFERROR('Tabel 2 H'!G66/'Tabel 1 H'!E64*100,"-")) -> 9.307763898 | I66: =IF(OR('Tabel 1 H'!G64<5,'Tabel 2 H'!I66<0.5),"-",IFERROR('Tabel 2 H'!I66/'Tabel 1 H'!G64*100,"-")) -> 11.1679182 | J66: =IF(OR('Tabel 1 H'!G64<5,'Tabel 2 H'!J66<0.5),"-",IFERROR('Tabel 2 H'!J66/'Tabel 1 H'!G64*100,"-")) -> 9.572528788
A67: MA. Nat. | C67: =IF(OR('Tabel 1 H'!C65<5,'Tabel 2 H'!C67<0.5),"-",IFERROR('Tabel 2 H'!C67/'Tabel 1 H'!C65*100,"-")) -> 4.736490994 | D67: =IF(OR('Tabel 1 H'!C65<5,'Tabel 2 H'!D67<0.5),"-",IFERROR('Tabel 2 H'!D67/'Tabel 1 H'!C65*100,"-")) -> 4.27707746 | F67: =IF(OR('Tabel 1 H'!E65<5,'Tabel 2 H'!F67<0.5),"-",IFERROR('Tabel 2 H'!F67/'Tabel 1 H'!E65*100,"-")) -> 6.295559973 | G67: =IF(OR('Tabel 1 H'!E65<5,'Tabel 2 H'!G67<0.5),"-",IFERROR('Tabel 2 H'!G67/'Tabel 1 H'!E65*100,"-")) -> 5.54881898 | I67: =IF(OR('Tabel 1 H'!G65<5,'Tabel 2 H'!I67<0.5),"-",IFERROR('Tabel 2 H'!I67/'Tabel 1 H'!G65*100,"-")) -> 5.518617021 | J67: =IF(OR('Tabel 1 H'!G65<5,'Tabel 2 H'!J67<0.5),"-",IFERROR('Tabel 2 H'!J67/'Tabel 1 H'!G65*100,"-")) -> 4.915062152
A68: MA. Ph.d. | C68: =IF(OR('Tabel 1 H'!C66<5,'Tabel 2 H'!C68<0.5),"-",IFERROR('Tabel 2 H'!C68/'Tabel 1 H'!C66*100,"-")) -> 3.157894737 | D68: =IF(OR('Tabel 1 H'!C66<5,'Tabel 2 H'!D68<0.5),"-",IFERROR('Tabel 2 H'!D68/'Tabel 1 H'!C66*100,"-")) -> 2.7985044 | F68: =IF(OR('Tabel 1 H'!E66<5,'Tabel 2 H'!F68<0.5),"-",IFERROR('Tabel 2 H'!F68/'Tabel 1 H'!E66*100,"-")) -> 7.849829352 | G68: =IF(OR('Tabel 1 H'!E66<5,'Tabel 2 H'!G68<0.5),"-",IFERROR('Tabel 2 H'!G68/'Tabel 1 H'!E66*100,"-")) -> 5.917189994 | I68: =IF(OR('Tabel 1 H'!G66<5,'Tabel 2 H'!I68<0.5),"-",IFERROR('Tabel 2 H'!I68/'Tabel 1 H'!G66*100,"-")) -> 5.200594354 | J68: =IF(OR('Tabel 1 H'!G66<5,'Tabel 2 H'!J68<0.5),"-",IFERROR('Tabel 2 H'!J68/'Tabel 1 H'!G66*100,"-")) -> 4.156267965
A69: MA. Samf. | C69: =IF(OR('Tabel 1 H'!C67<5,'Tabel 2 H'!C69<0.5),"-",IFERROR('Tabel 2 H'!C69/'Tabel 1 H'!C67*100,"-")) -> 14.90593343 | D69: =IF(OR('Tabel 1 H'!C67<5,'Tabel 2 H'!D69<0.5),"-",IFERROR('Tabel 2 H'!D69/'Tabel 1 H'!C67*100,"-")) -> 13.15331629 | F69: =IF(OR('Tabel 1 H'!E67<5,'Tabel 2 H'!F69<0.5),"-",IFERROR('Tabel 2 H'!F69/'Tabel 1 H'!E67*100,"-")) -> 12.47792819 | G69: =IF(OR('Tabel 1 H'!E67<5,'Tabel 2 H'!G69<0.5),"-",IFERROR('Tabel 2 H'!G69/'Tabel 1 H'!E67*100,"-")) -> 10.68473877 | I69: =IF(OR('Tabel 1 H'!G67<5,'Tabel 2 H'!I69<0.5),"-",IFERROR('Tabel 2 H'!I69/'Tabel 1 H'!G67*100,"-")) -> 13.17991632 | J69: =IF(OR('Tabel 1 H'!G67<5,'Tabel 2 H'!J69<0.5),"-",IFERROR('Tabel 2 H'!J69/'Tabel 1 H'!G67*100,"-")) -> 11.39845721
A70: Øvrige Mag. | C70: =IF(OR('Tabel 1 H'!C68<5,'Tabel 2 H'!C70<0.5),"-",IFERROR('Tabel 2 H'!C70/'Tabel 1 H'!C68*100,"-")) -> 10.98265896 | D70: =IF(OR('Tabel 1 H'!C68<5,'Tabel 2 H'!D70<0.5),"-",IFERROR('Tabel 2 H'!D70/'Tabel 1 H'!C68*100,"-")) -> 10.16581047 | F70: =IF(OR('Tabel 1 H'!E68<5,'Tabel 2 H'!F70<0.5),"-",IFERROR('Tabel 2 H'!F70/'Tabel 1 H'!E68*100,"-")) -> 12.1835443 | G70: =IF(OR('Tabel 1 H'!E68<5,'Tabel 2 H'!G70<0.5),"-",IFERROR('Tabel 2 H'!G70/'Tabel 1 H'!E68*100,"-")) -> 10.03537403 | I70: =IF(OR('Tabel 1 H'!G68<5,'Tabel 2 H'!I70<0.5),"-",IFERROR('Tabel 2 H'!I70/'Tabel 1 H'!G68*100,"-")) -> 11.75869121 | J70: =IF(OR('Tabel 1 H'!G68<5,'Tabel 2 H'!J70<0.5),"-",IFERROR('Tabel 2 H'!J70/'Tabel 1 H'!G68*100,"-")) -> 10.08152026
A71: Agronom | C71: =IF(OR('Tabel 1 H'!C69<5,'Tabel 2 H'!C71<0.5),"-",IFERROR('Tabel 2 H'!C71/'Tabel 1 H'!C69*100,"-")) -> 9.420289855 | D71: =IF(OR('Tabel 1 H'!C69<5,'Tabel 2 H'!D71<0.5),"-",IFERROR('Tabel 2 H'!D71/'Tabel 1 H'!C69*100,"-")) -> 9.215594286 | F71: =IF(OR('Tabel 1 H'!E69<5,'Tabel 2 H'!F71<0.5),"-",IFERROR('Tabel 2 H'!F71/'Tabel 1 H'!E69*100,"-")) -> 4.848484848 | G71: =IF(OR('Tabel 1 H'!E69<5,'Tabel 2 H'!G71<0.5),"-",IFERROR('Tabel 2 H'!G71/'Tabel 1 H'!E69*100,"-")) -> 4.07341676 | I71: =IF(OR('Tabel 1 H'!G69<5,'Tabel 2 H'!I71<0.5),"-",IFERROR('Tabel 2 H'!I71/'Tabel 1 H'!G69*100,"-")) -> 6.930693069 | J71: =IF(OR('Tabel 1 H'!G69<5,'Tabel 2 H'!J71<0.5),"-",IFERROR('Tabel 2 H'!J71/'Tabel 1 H'!G69*100,"-")) -> 6.415398603
A72: Landsk. Arkt. | C72: =IF(OR('Tabel 1 H'!C70<5,'Tabel 2 H'!C72<0.5),"-",IFERROR('Tabel 2 H'!C72/'Tabel 1 H'!C70*100,"-")) -> 9.210526316 | D72: =IF(OR('Tabel 1 H'!C70<5,'Tabel 2 H'!D72<0.5),"-",IFERROR('Tabel 2 H'!D72/'Tabel 1 H'!C70*100,"-")) -> 9.208802897 | F72: =IF(OR('Tabel 1 H'!E70<5,'Tabel 2 H'!F72<0.5),"-",IFERROR('Tabel 2 H'!F72/'Tabel 1 H'!E70*100,"-")) -> 7.222222222 | G72: =IF(OR('Tabel 1 H'!E70<5,'Tabel 2 H'!G72<0.5),"-",IFERROR('Tabel 2 H'!G72/'Tabel 1 H'!E70*100,"-")) -> 6.488007374 | I72: =IF(OR('Tabel 1 H'!G70<5,'Tabel 2 H'!I72<0.5),"-",IFERROR('Tabel 2 H'!I72/'Tabel 1 H'!G70*100,"-")) -> 7.8125 | J72: =IF(OR('Tabel 1 H'!G70<5,'Tabel 2 H'!J72<0.5),"-",IFERROR('Tabel 2 H'!J72/'Tabel 1 H'!G70*100,"-")) -> 7.295743545
A73: Hortonom | C73: =IF(OR('Tabel 1 H'!C71<5,'Tabel 2 H'!C73<0.5),"-",IFERROR('Tabel 2 H'!C73/'Tabel 1 H'!C71*100,"-")) -> - | D73: =IF(OR('Tabel 1 H'!C71<5,'Tabel 2 H'!D73<0.5),"-",IFERROR('Tabel 2 H'!D73/'Tabel 1 H'!C71*100,"-")) -> - | F73: =IF(OR('Tabel 1 H'!E71<5,'Tabel 2 H'!F73<0.5),"-",IFERROR('Tabel 2 H'!F73/'Tabel 1 H'!E71*100,"-")) -> 3.703703704 | G73: =IF(OR('Tabel 1 H'!E71<5,'Tabel 2 H'!G73<0.5),"-",IFERROR('Tabel 2 H'!G73/'Tabel 1 H'!E71*100,"-")) -> - | I73: =IF(OR('Tabel 1 H'!G71<5,'Tabel 2 H'!I73<0.5),"-",IFERROR('Tabel 2 H'!I73/'Tabel 1 H'!G71*100,"-")) -> 2.127659574 | J73: =IF(OR('Tabel 1 H'!G71<5,'Tabel 2 H'!J73<0.5),"-",IFERROR('Tabel 2 H'!J73/'Tabel 1 H'!G71*100,"-")) -> -
A74: Forstkand. | C74: =IF(OR('Tabel 1 H'!C72<5,'Tabel 2 H'!C74<0.5),"-",IFERROR('Tabel 2 H'!C74/'Tabel 1 H'!C72*100,"-")) -> 4.761904762 | D74: =IF(OR('Tabel 1 H'!C72<5,'Tabel 2 H'!D74<0.5),"-",IFERROR('Tabel 2 H'!D74/'Tabel 1 H'!C72*100,"-")) -> 4.761013742 | F74: =IF(OR('Tabel 1 H'!E72<5,'Tabel 2 H'!F74<0.5),"-",IFERROR('Tabel 2 H'!F74/'Tabel 1 H'!E72*100,"-")) -> 17.85714286 | G74: =IF(OR('Tabel 1 H'!E72<5,'Tabel 2 H'!G74<0.5),"-",IFERROR('Tabel 2 H'!G74/'Tabel 1 H'!E72*100,"-")) -> 14.49688589 | I74: =IF(OR('Tabel 1 H'!G72<5,'Tabel 2 H'!I74<0.5),"-",IFERROR('Tabel 2 H'!I74/'Tabel 1 H'!G72*100,"-")) -> 8.791208791 | J74: =IF(OR('Tabel 1 H'!G72<5,'Tabel 2 H'!J74<0.5),"-",IFERROR('Tabel 2 H'!J74/'Tabel 1 H'!G72*100,"-")) -> 7.75666671
A75: Jordbrugsakad. | C75: =IF(OR('Tabel 1 H'!C73<5,'Tabel 2 H'!C75<0.5),"-",IFERROR('Tabel 2 H'!C75/'Tabel 1 H'!C73*100,"-")) -> 7.744107744 | D75: =IF(OR('Tabel 1 H'!C73<5,'Tabel 2 H'!D75<0.5),"-",IFERROR('Tabel 2 H'!D75/'Tabel 1 H'!C73*100,"-")) -> 7.648366658 | F75: =IF(OR('Tabel 1 H'!E73<5,'Tabel 2 H'!F75<0.5),"-",IFERROR('Tabel 2 H'!F75/'Tabel 1 H'!E73*100,"-")) -> 6.75 | G75: =IF(OR('Tabel 1 H'!E73<5,'Tabel 2 H'!G75<0.5),"-",IFERROR('Tabel 2 H'!G75/'Tabel 1 H'!E73*100,"-")) -> 5.703081145 | I75: =IF(OR('Tabel 1 H'!G73<5,'Tabel 2 H'!I75<0.5),"-",IFERROR('Tabel 2 H'!I75/'Tabel 1 H'!G73*100,"-")) -> 7.173601148 | J75: =IF(OR('Tabel 1 H'!G73<5,'Tabel 2 H'!J75<0.5),"-",IFERROR('Tabel 2 H'!J75/'Tabel 1 H'!G73*100,"-")) -> 6.531990467
A76: Mejeriing. | C76: =IF(OR('Tabel 1 H'!C74<5,'Tabel 2 H'!C76<0.5),"-",IFERROR('Tabel 2 H'!C76/'Tabel 1 H'!C74*100,"-")) -> 24 | D76: =IF(OR('Tabel 1 H'!C74<5,'Tabel 2 H'!D76<0.5),"-",IFERROR('Tabel 2 H'!D76/'Tabel 1 H'!C74*100,"-")) -> 23.81089004 | F76: =IF(OR('Tabel 1 H'!E74<5,'Tabel 2 H'!F76<0.5),"-",IFERROR('Tabel 2 H'!F76/'Tabel 1 H'!E74*100,"-")) -> 11.76470588 | G76: =IF(OR('Tabel 1 H'!E74<5,'Tabel 2 H'!G76<0.5),"-",IFERROR('Tabel 2 H'!G76/'Tabel 1 H'!E74*100,"-")) -> 9.309842567 | I76: =IF(OR('Tabel 1 H'!G74<5,'Tabel 2 H'!I76<0.5),"-",IFERROR('Tabel 2 H'!I76/'Tabel 1 H'!G74*100,"-")) -> 16.94915254 | J76: =IF(OR('Tabel 1 H'!G74<5,'Tabel 2 H'!J76<0.5),"-",IFERROR('Tabel 2 H'!J76/'Tabel 1 H'!G74*100,"-")) -> 15.45435421
A77: Levn.m.kand. | C77: =IF(OR('Tabel 1 H'!C75<5,'Tabel 2 H'!C77<0.5),"-",IFERROR('Tabel 2 H'!C77/'Tabel 1 H'!C75*100,"-")) -> 25.80645161 | D77: =IF(OR('Tabel 1 H'!C75<5,'Tabel 2 H'!D77<0.5),"-",IFERROR('Tabel 2 H'!D77/'Tabel 1 H'!C75*100,"-")) -> 21.92051474 | F77: =IF(OR('Tabel 1 H'!E75<5,'Tabel 2 H'!F77<0.5),"-",IFERROR('Tabel 2 H'!F77/'Tabel 1 H'!E75*100,"-")) -> 7.352941176 | G77: =IF(OR('Tabel 1 H'!E75<5,'Tabel 2 H'!G77<0.5),"-",IFERROR('Tabel 2 H'!G77/'Tabel 1 H'!E75*100,"-")) -> 6.877359564 | I77: =IF(OR('Tabel 1 H'!G75<5,'Tabel 2 H'!I77<0.5),"-",IFERROR('Tabel 2 H'!I77/'Tabel 1 H'!G75*100,"-")) -> 10.77844311 | J77: =IF(OR('Tabel 1 H'!G75<5,'Tabel 2 H'!J77<0.5),"-",IFERROR('Tabel 2 H'!J77/'Tabel 1 H'!G75*100,"-")) -> 9.669801543
A78: Dyrlæge | C78: =IF(OR('Tabel 1 H'!C76<5,'Tabel 2 H'!C78<0.5),"-",IFERROR('Tabel 2 H'!C78/'Tabel 1 H'!C76*100,"-")) -> 1.694915254 | D78: =IF(OR('Tabel 1 H'!C76<5,'Tabel 2 H'!D78<0.5),"-",IFERROR('Tabel 2 H'!D78/'Tabel 1 H'!C76*100,"-")) -> 1.694598112 | F78: =IF(OR('Tabel 1 H'!E76<5,'Tabel 2 H'!F78<0.5),"-",IFERROR('Tabel 2 H'!F78/'Tabel 1 H'!E76*100,"-")) -> 6.41509434 | G78: =IF(OR('Tabel 1 H'!E76<5,'Tabel 2 H'!G78<0.5),"-",IFERROR('Tabel 2 H'!G78/'Tabel 1 H'!E76*100,"-")) -> 5.103860081 | I78: =IF(OR('Tabel 1 H'!G76<5,'Tabel 2 H'!I78<0.5),"-",IFERROR('Tabel 2 H'!I78/'Tabel 1 H'!G76*100,"-")) -> 5.555555556 | J78: =IF(OR('Tabel 1 H'!G76<5,'Tabel 2 H'!J78<0.5),"-",IFERROR('Tabel 2 H'!J78/'Tabel 1 H'!G76*100,"-")) -> 4.483037685
A79: Farmaceut | C79: =IF(OR('Tabel 1 H'!C77<5,'Tabel 2 H'!C79<0.5),"-",IFERROR('Tabel 2 H'!C79/'Tabel 1 H'!C77*100,"-")) -> 5.050505051 | D79: =IF(OR('Tabel 1 H'!C77<5,'Tabel 2 H'!D79<0.5),"-",IFERROR('Tabel 2 H'!D79/'Tabel 1 H'!C77*100,"-")) -> 4.590122519 | F79: =IF(OR('Tabel 1 H'!E77<5,'Tabel 2 H'!F79<0.5),"-",IFERROR('Tabel 2 H'!F79/'Tabel 1 H'!E77*100,"-")) -> 4.4653349 | G79: =IF(OR('Tabel 1 H'!E77<5,'Tabel 2 H'!G79<0.5),"-",IFERROR('Tabel 2 H'!G79/'Tabel 1 H'!E77*100,"-")) -> 4.104856296 | I79: =IF(OR('Tabel 1 H'!G77<5,'Tabel 2 H'!I79<0.5),"-",IFERROR('Tabel 2 H'!I79/'Tabel 1 H'!G77*100,"-")) -> 4.651162791 | J79: =IF(OR('Tabel 1 H'!G77<5,'Tabel 2 H'!J79<0.5),"-",IFERROR('Tabel 2 H'!J79/'Tabel 1 H'!G77*100,"-")) -> 4.25895848
A80: Læge | C80: =IF(OR('Tabel 1 H'!C78<5,'Tabel 2 H'!C80<0.5),"-",IFERROR('Tabel 2 H'!C80/'Tabel 1 H'!C78*100,"-")) -> 2.452316076 | D80: =IF(OR('Tabel 1 H'!C78<5,'Tabel 2 H'!D80<0.5),"-",IFERROR('Tabel 2 H'!D80/'Tabel 1 H'!C78*100,"-")) -> 1.975914458 | F80: =IF(OR('Tabel 1 H'!E78<5,'Tabel 2 H'!F80<0.5),"-",IFERROR('Tabel 2 H'!F80/'Tabel 1 H'!E78*100,"-")) -> 1.809954751 | G80: =IF(OR('Tabel 1 H'!E78<5,'Tabel 2 H'!G80<0.5),"-",IFERROR('Tabel 2 H'!G80/'Tabel 1 H'!E78*100,"-")) -> 1.377214642 | I80: =IF(OR('Tabel 1 H'!G78<5,'Tabel 2 H'!I80<0.5),"-",IFERROR('Tabel 2 H'!I80/'Tabel 1 H'!G78*100,"-")) -> 1.998401279 | J80: =IF(OR('Tabel 1 H'!G78<5,'Tabel 2 H'!J80<0.5),"-",IFERROR('Tabel 2 H'!J80/'Tabel 1 H'!G78*100,"-")) -> 1.552852398
A81: Tandlæge | C81: =IF(OR('Tabel 1 H'!C79<5,'Tabel 2 H'!C81<0.5),"-",IFERROR('Tabel 2 H'!C81/'Tabel 1 H'!C79*100,"-")) -> - | D81: =IF(OR('Tabel 1 H'!C79<5,'Tabel 2 H'!D81<0.5),"-",IFERROR('Tabel 2 H'!D81/'Tabel 1 H'!C79*100,"-")) -> - | F81: =IF(OR('Tabel 1 H'!E79<5,'Tabel 2 H'!F81<0.5),"-",IFERROR('Tabel 2 H'!F81/'Tabel 1 H'!E79*100,"-")) -> 2.702702703 | G81: =IF(OR('Tabel 1 H'!E79<5,'Tabel 2 H'!G81<0.5),"-",IFERROR('Tabel 2 H'!G81/'Tabel 1 H'!E79*100,"-")) -> 1.853079568 | I81: =IF(OR('Tabel 1 H'!G79<5,'Tabel 2 H'!I81<0.5),"-",IFERROR('Tabel 2 H'!I81/'Tabel 1 H'!G79*100,"-")) -> 2.295081967 | J81: =IF(OR('Tabel 1 H'!G79<5,'Tabel 2 H'!J81<0.5),"-",IFERROR('Tabel 2 H'!J81/'Tabel 1 H'!G79*100,"-")) -> 1.573598715
A82: Arkitekt | C82: =IF(OR('Tabel 1 H'!C80<5,'Tabel 2 H'!C82<0.5),"-",IFERROR('Tabel 2 H'!C82/'Tabel 1 H'!C80*100,"-")) -> 7.357212004 | D82: =IF(OR('Tabel 1 H'!C80<5,'Tabel 2 H'!D82<0.5),"-",IFERROR('Tabel 2 H'!D82/'Tabel 1 H'!C80*100,"-")) -> 6.758084684 | F82: =IF(OR('Tabel 1 H'!E80<5,'Tabel 2 H'!F82<0.5),"-",IFERROR('Tabel 2 H'!F82/'Tabel 1 H'!E80*100,"-")) -> 7.344632768 | G82: =IF(OR('Tabel 1 H'!E80<5,'Tabel 2 H'!G82<0.5),"-",IFERROR('Tabel 2 H'!G82/'Tabel 1 H'!E80*100,"-")) -> 6.436784664 | I82: =IF(OR('Tabel 1 H'!G80<5,'Tabel 2 H'!I82<0.5),"-",IFERROR('Tabel 2 H'!I82/'Tabel 1 H'!G80*100,"-")) -> 7.350352113 | J82: =IF(OR('Tabel 1 H'!G80<5,'Tabel 2 H'!J82<0.5),"-",IFERROR('Tabel 2 H'!J82/'Tabel 1 H'!G80*100,"-")) -> 6.582868696
A83: Landinspek. | C83: =IF(OR('Tabel 1 H'!C81<5,'Tabel 2 H'!C83<0.5),"-",IFERROR('Tabel 2 H'!C83/'Tabel 1 H'!C81*100,"-")) -> 7.142857143 | D83: =IF(OR('Tabel 1 H'!C81<5,'Tabel 2 H'!D83<0.5),"-",IFERROR('Tabel 2 H'!D83/'Tabel 1 H'!C81*100,"-")) -> 7.141520614 | F83: =IF(OR('Tabel 1 H'!E81<5,'Tabel 2 H'!F83<0.5),"-",IFERROR('Tabel 2 H'!F83/'Tabel 1 H'!E81*100,"-")) -> - | G83: =IF(OR('Tabel 1 H'!E81<5,'Tabel 2 H'!G83<0.5),"-",IFERROR('Tabel 2 H'!G83/'Tabel 1 H'!E81*100,"-")) -> - | I83: =IF(OR('Tabel 1 H'!G81<5,'Tabel 2 H'!I83<0.5),"-",IFERROR('Tabel 2 H'!I83/'Tabel 1 H'!G81*100,"-")) -> 5.357142857 | J83: =IF(OR('Tabel 1 H'!G81<5,'Tabel 2 H'!J83<0.5),"-",IFERROR('Tabel 2 H'!J83/'Tabel 1 H'!G81*100,"-")) -> 5.35614046
A84: Bibliotekar | C84: =IF(OR('Tabel 1 H'!C82<5,'Tabel 2 H'!C84<0.5),"-",IFERROR('Tabel 2 H'!C84/'Tabel 1 H'!C82*100,"-")) -> 6.8 | D84: =IF(OR('Tabel 1 H'!C82<5,'Tabel 2 H'!D84<0.5),"-",IFERROR('Tabel 2 H'!D84/'Tabel 1 H'!C82*100,"-")) -> 5.596956278 | F84: =IF(OR('Tabel 1 H'!E82<5,'Tabel 2 H'!F84<0.5),"-",IFERROR('Tabel 2 H'!F84/'Tabel 1 H'!E82*100,"-")) -> 7.358490566 | G84: =IF(OR('Tabel 1 H'!E82<5,'Tabel 2 H'!G84<0.5),"-",IFERROR('Tabel 2 H'!G84/'Tabel 1 H'!E82*100,"-")) -> 6.510746114 | I84: =IF(OR('Tabel 1 H'!G82<5,'Tabel 2 H'!I84<0.5),"-",IFERROR('Tabel 2 H'!I84/'Tabel 1 H'!G82*100,"-")) -> 7.179487179 | J84: =IF(OR('Tabel 1 H'!G82<5,'Tabel 2 H'!J84<0.5),"-",IFERROR('Tabel 2 H'!J84/'Tabel 1 H'!G82*100,"-")) -> 6.217864757
A85: Musikudd. | C85: =IF(OR('Tabel 1 H'!C83<5,'Tabel 2 H'!C85<0.5),"-",IFERROR('Tabel 2 H'!C85/'Tabel 1 H'!C83*100,"-")) -> 10.44776119 | D85: =IF(OR('Tabel 1 H'!C83<5,'Tabel 2 H'!D85<0.5),"-",IFERROR('Tabel 2 H'!D85/'Tabel 1 H'!C83*100,"-")) -> 7.809452705 | F85: =IF(OR('Tabel 1 H'!E83<5,'Tabel 2 H'!F85<0.5),"-",IFERROR('Tabel 2 H'!F85/'Tabel 1 H'!E83*100,"-")) -> 9.87654321 | G85: =IF(OR('Tabel 1 H'!E83<5,'Tabel 2 H'!G85<0.5),"-",IFERROR('Tabel 2 H'!G85/'Tabel 1 H'!E83*100,"-")) -> 8.269210186 | I85: =IF(OR('Tabel 1 H'!G83<5,'Tabel 2 H'!I85<0.5),"-",IFERROR('Tabel 2 H'!I85/'Tabel 1 H'!G83*100,"-")) -> 10.13513514 | J85: =IF(OR('Tabel 1 H'!G83<5,'Tabel 2 H'!J85<0.5),"-",IFERROR('Tabel 2 H'!J85/'Tabel 1 H'!G83*100,"-")) -> 8.061076732
A86: Teolog | C86: =IF(OR('Tabel 1 H'!C84<5,'Tabel 2 H'!C86<0.5),"-",IFERROR('Tabel 2 H'!C86/'Tabel 1 H'!C84*100,"-")) -> 9.278350515 | D86: =IF(OR('Tabel 1 H'!C84<5,'Tabel 2 H'!D86<0.5),"-",IFERROR('Tabel 2 H'!D86/'Tabel 1 H'!C84*100,"-")) -> 8.413703438 | F86: =IF(OR('Tabel 1 H'!E84<5,'Tabel 2 H'!F86<0.5),"-",IFERROR('Tabel 2 H'!F86/'Tabel 1 H'!E84*100,"-")) -> 5.660377358 | G86: =IF(OR('Tabel 1 H'!E84<5,'Tabel 2 H'!G86<0.5),"-",IFERROR('Tabel 2 H'!G86/'Tabel 1 H'!E84*100,"-")) -> 5.336870064 | I86: =IF(OR('Tabel 1 H'!G84<5,'Tabel 2 H'!I86<0.5),"-",IFERROR('Tabel 2 H'!I86/'Tabel 1 H'!G84*100,"-")) -> 7.03125 | J86: =IF(OR('Tabel 1 H'!G84<5,'Tabel 2 H'!J86<0.5),"-",IFERROR('Tabel 2 H'!J86/'Tabel 1 H'!G84*100,"-")) -> 6.502701459
A87: Psykolog | C87: =IF(OR('Tabel 1 H'!C85<5,'Tabel 2 H'!C87<0.5),"-",IFERROR('Tabel 2 H'!C87/'Tabel 1 H'!C85*100,"-")) -> 5.909090909 | D87: =IF(OR('Tabel 1 H'!C85<5,'Tabel 2 H'!D87<0.5),"-",IFERROR('Tabel 2 H'!D87/'Tabel 1 H'!C85*100,"-")) -> 5.338421324 | F87: =IF(OR('Tabel 1 H'!E85<5,'Tabel 2 H'!F87<0.5),"-",IFERROR('Tabel 2 H'!F87/'Tabel 1 H'!E85*100,"-")) -> 3.775883069 | G87: =IF(OR('Tabel 1 H'!E85<5,'Tabel 2 H'!G87<0.5),"-",IFERROR('Tabel 2 H'!G87/'Tabel 1 H'!E85*100,"-")) -> 3.151880793 | I87: =IF(OR('Tabel 1 H'!G85<5,'Tabel 2 H'!I87<0.5),"-",IFERROR('Tabel 2 H'!I87/'Tabel 1 H'!G85*100,"-")) -> 4.226705091 | J87: =IF(OR('Tabel 1 H'!G85<5,'Tabel 2 H'!J87<0.5),"-",IFERROR('Tabel 2 H'!J87/'Tabel 1 H'!G85*100,"-")) -> 3.613973893
A88: Jurist | C88: =IF(OR('Tabel 1 H'!C86<5,'Tabel 2 H'!C88<0.5),"-",IFERROR('Tabel 2 H'!C88/'Tabel 1 H'!C86*100,"-")) -> 2.522068096 | D88: =IF(OR('Tabel 1 H'!C86<5,'Tabel 2 H'!D88<0.5),"-",IFERROR('Tabel 2 H'!D88/'Tabel 1 H'!C86*100,"-")) -> 2.290515408 | F88: =IF(OR('Tabel 1 H'!E86<5,'Tabel 2 H'!F88<0.5),"-",IFERROR('Tabel 2 H'!F88/'Tabel 1 H'!E86*100,"-")) -> 1.588946459 | G88: =IF(OR('Tabel 1 H'!E86<5,'Tabel 2 H'!G88<0.5),"-",IFERROR('Tabel 2 H'!G88/'Tabel 1 H'!E86*100,"-")) -> 1.354675757 | I88: =IF(OR('Tabel 1 H'!G86<5,'Tabel 2 H'!I88<0.5),"-",IFERROR('Tabel 2 H'!I88/'Tabel 1 H'!G86*100,"-")) -> 1.919214461 | J88: =IF(OR('Tabel 1 H'!G86<5,'Tabel 2 H'!J88<0.5),"-",IFERROR('Tabel 2 H'!J88/'Tabel 1 H'!G86*100,"-")) -> 1.68590577
A89: Økonom | C89: =IF(OR('Tabel 1 H'!C87<5,'Tabel 2 H'!C89<0.5),"-",IFERROR('Tabel 2 H'!C89/'Tabel 1 H'!C87*100,"-")) -> 3.987915408 | D89: =IF(OR('Tabel 1 H'!C87<5,'Tabel 2 H'!D89<0.5),"-",IFERROR('Tabel 2 H'!D89/'Tabel 1 H'!C87*100,"-")) -> 3.423528097 | F89: =IF(OR('Tabel 1 H'!E87<5,'Tabel 2 H'!F89<0.5),"-",IFERROR('Tabel 2 H'!F89/'Tabel 1 H'!E87*100,"-")) -> 3.060217177 | G89: =IF(OR('Tabel 1 H'!E87<5,'Tabel 2 H'!G89<0.5),"-",IFERROR('Tabel 2 H'!G89/'Tabel 1 H'!E87*100,"-")) -> 2.650197837 | I89: =IF(OR('Tabel 1 H'!G87<5,'Tabel 2 H'!I89<0.5),"-",IFERROR('Tabel 2 H'!I89/'Tabel 1 H'!G87*100,"-")) -> 3.635682159 | J89: =IF(OR('Tabel 1 H'!G87<5,'Tabel 2 H'!J89<0.5),"-",IFERROR('Tabel 2 H'!J89/'Tabel 1 H'!G87*100,"-")) -> 3.129906075
A90: Samf. Adm. | C90: =IF(OR('Tabel 1 H'!C88<5,'Tabel 2 H'!C90<0.5),"-",IFERROR('Tabel 2 H'!C90/'Tabel 1 H'!C88*100,"-")) -> 6.177701206 | D90: =IF(OR('Tabel 1 H'!C88<5,'Tabel 2 H'!D90<0.5),"-",IFERROR('Tabel 2 H'!D90/'Tabel 1 H'!C88*100,"-")) -> 5.513318051 | F90: =IF(OR('Tabel 1 H'!E88<5,'Tabel 2 H'!F90<0.5),"-",IFERROR('Tabel 2 H'!F90/'Tabel 1 H'!E88*100,"-")) -> 6.241633199 | G90: =IF(OR('Tabel 1 H'!E88<5,'Tabel 2 H'!G90<0.5),"-",IFERROR('Tabel 2 H'!G90/'Tabel 1 H'!E88*100,"-")) -> 5.477094557 | I90: =IF(OR('Tabel 1 H'!G88<5,'Tabel 2 H'!I90<0.5),"-",IFERROR('Tabel 2 H'!I90/'Tabel 1 H'!G88*100,"-")) -> 6.215758542 | J90: =IF(OR('Tabel 1 H'!G88<5,'Tabel 2 H'!J90<0.5),"-",IFERROR('Tabel 2 H'!J90/'Tabel 1 H'!G88*100,"-")) -> 5.491754987
A91: Cand. Merc. | C91: =IF(OR('Tabel 1 H'!C89<5,'Tabel 2 H'!C91<0.5),"-",IFERROR('Tabel 2 H'!C91/'Tabel 1 H'!C89*100,"-")) -> 5.01984127 | D91: =IF(OR('Tabel 1 H'!C89<5,'Tabel 2 H'!D91<0.5),"-",IFERROR('Tabel 2 H'!D91/'Tabel 1 H'!C89*100,"-")) -> 4.411499002 | F91: =IF(OR('Tabel 1 H'!E89<5,'Tabel 2 H'!F91<0.5),"-",IFERROR('Tabel 2 H'!F91/'Tabel 1 H'!E89*100,"-")) -> 5.235602094 | G91: =IF(OR('Tabel 1 H'!E89<5,'Tabel 2 H'!G91<0.5),"-",IFERROR('Tabel 2 H'!G91/'Tabel 1 H'!E89*100,"-")) -> 4.430589557 | I91: =IF(OR('Tabel 1 H'!G89<5,'Tabel 2 H'!I91<0.5),"-",IFERROR('Tabel 2 H'!I91/'Tabel 1 H'!G89*100,"-")) -> 5.126923846 | J91: =IF(OR('Tabel 1 H'!G89<5,'Tabel 2 H'!J91<0.5),"-",IFERROR('Tabel 2 H'!J91/'Tabel 1 H'!G89*100,"-")) -> 4.420973687
A92: HA | C92: =IF(OR('Tabel 1 H'!C90<5,'Tabel 2 H'!C92<0.5),"-",IFERROR('Tabel 2 H'!C92/'Tabel 1 H'!C90*100,"-")) -> 7.575757576 | D92: =IF(OR('Tabel 1 H'!C90<5,'Tabel 2 H'!D92<0.5),"-",IFERROR('Tabel 2 H'!D92/'Tabel 1 H'!C90*100,"-")) -> 6.369123783 | F92: =IF(OR('Tabel 1 H'!E90<5,'Tabel 2 H'!F92<0.5),"-",IFERROR('Tabel 2 H'!F92/'Tabel 1 H'!E90*100,"-")) -> 10.82164329 | G92: =IF(OR('Tabel 1 H'!E90<5,'Tabel 2 H'!G92<0.5),"-",IFERROR('Tabel 2 H'!G92/'Tabel 1 H'!E90*100,"-")) -> 8.10090211 | I92: =IF(OR('Tabel 1 H'!G90<5,'Tabel 2 H'!I92<0.5),"-",IFERROR('Tabel 2 H'!I92/'Tabel 1 H'!G90*100,"-")) -> 9.057639524 | J92: =IF(OR('Tabel 1 H'!G90<5,'Tabel 2 H'!J92<0.5),"-",IFERROR('Tabel 2 H'!J92/'Tabel 1 H'!G90*100,"-")) -> 7.159752681
A93: HD | C93: =IF(OR('Tabel 1 H'!C91<5,'Tabel 2 H'!C93<0.5),"-",IFERROR('Tabel 2 H'!C93/'Tabel 1 H'!C91*100,"-")) -> 10.36585366 | D93: =IF(OR('Tabel 1 H'!C91<5,'Tabel 2 H'!D93<0.5),"-",IFERROR('Tabel 2 H'!D93/'Tabel 1 H'!C91*100,"-")) -> 9.450401839 | F93: =IF(OR('Tabel 1 H'!E91<5,'Tabel 2 H'!F93<0.5),"-",IFERROR('Tabel 2 H'!F93/'Tabel 1 H'!E91*100,"-")) -> 10.2006689 | G93: =IF(OR('Tabel 1 H'!E91<5,'Tabel 2 H'!G93<0.5),"-",IFERROR('Tabel 2 H'!G93/'Tabel 1 H'!E91*100,"-")) -> 9.232004142 | I93: =IF(OR('Tabel 1 H'!G91<5,'Tabel 2 H'!I93<0.5),"-",IFERROR('Tabel 2 H'!I93/'Tabel 1 H'!G91*100,"-")) -> 10.27522936 | J93: =IF(OR('Tabel 1 H'!G91<5,'Tabel 2 H'!J93<0.5),"-",IFERROR('Tabel 2 H'!J93/'Tabel 1 H'!G91*100,"-")) -> 9.330583653
A94: Komm. og Sprog | C94: =IF(OR('Tabel 1 H'!C92<5,'Tabel 2 H'!C94<0.5),"-",IFERROR('Tabel 2 H'!C94/'Tabel 1 H'!C92*100,"-")) -> 11.38613861 | D94: =IF(OR('Tabel 1 H'!C92<5,'Tabel 2 H'!D94<0.5),"-",IFERROR('Tabel 2 H'!D94/'Tabel 1 H'!C92*100,"-")) -> 9.86270273 | F94: =IF(OR('Tabel 1 H'!E92<5,'Tabel 2 H'!F94<0.5),"-",IFERROR('Tabel 2 H'!F94/'Tabel 1 H'!E92*100,"-")) -> 8.791208791 | G94: =IF(OR('Tabel 1 H'!E92<5,'Tabel 2 H'!G94<0.5),"-",IFERROR('Tabel 2 H'!G94/'Tabel 1 H'!E92*100,"-")) -> 7.835830358 | I94: =IF(OR('Tabel 1 H'!G92<5,'Tabel 2 H'!I94<0.5),"-",IFERROR('Tabel 2 H'!I94/'Tabel 1 H'!G92*100,"-")) -> 9.35483871 | J94: =IF(OR('Tabel 1 H'!G92<5,'Tabel 2 H'!J94<0.5),"-",IFERROR('Tabel 2 H'!J94/'Tabel 1 H'!G92*100,"-")) -> 8.276075755
A95: Bygningskonst. | C95: =IF(OR('Tabel 1 H'!C93<5,'Tabel 2 H'!C95<0.5),"-",IFERROR('Tabel 2 H'!C95/'Tabel 1 H'!C93*100,"-")) -> 5.619266055 | D95: =IF(OR('Tabel 1 H'!C93<5,'Tabel 2 H'!D95<0.5),"-",IFERROR('Tabel 2 H'!D95/'Tabel 1 H'!C93*100,"-")) -> 4.889592681 | F95: =IF(OR('Tabel 1 H'!E93<5,'Tabel 2 H'!F95<0.5),"-",IFERROR('Tabel 2 H'!F95/'Tabel 1 H'!E93*100,"-")) -> 13.13559322 | G95: =IF(OR('Tabel 1 H'!E93<5,'Tabel 2 H'!G95<0.5),"-",IFERROR('Tabel 2 H'!G95/'Tabel 1 H'!E93*100,"-")) -> 12.18099428 | I95: =IF(OR('Tabel 1 H'!G93<5,'Tabel 2 H'!I95<0.5),"-",IFERROR('Tabel 2 H'!I95/'Tabel 1 H'!G93*100,"-")) -> 7.220216606 | J95: =IF(OR('Tabel 1 H'!G93<5,'Tabel 2 H'!J95<0.5),"-",IFERROR('Tabel 2 H'!J95/'Tabel 1 H'!G93*100,"-")) -> 6.442634899
A96: Cand. IT. | C96: =IF(OR('Tabel 1 H'!C94<5,'Tabel 2 H'!C96<0.5),"-",IFERROR('Tabel 2 H'!C96/'Tabel 1 H'!C94*100,"-")) -> 4.610318332 | D96: =IF(OR('Tabel 1 H'!C94<5,'Tabel 2 H'!D96<0.5),"-",IFERROR('Tabel 2 H'!D96/'Tabel 1 H'!C94*100,"-")) -> 3.988206815 | F96: =IF(OR('Tabel 1 H'!E94<5,'Tabel 2 H'!F96<0.5),"-",IFERROR('Tabel 2 H'!F96/'Tabel 1 H'!E94*100,"-")) -> 7.634543179 | G96: =IF(OR('Tabel 1 H'!E94<5,'Tabel 2 H'!G96<0.5),"-",IFERROR('Tabel 2 H'!G96/'Tabel 1 H'!E94*100,"-")) -> 6.653283235 | I96: =IF(OR('Tabel 1 H'!G94<5,'Tabel 2 H'!I96<0.5),"-",IFERROR('Tabel 2 H'!I96/'Tabel 1 H'!G94*100,"-")) -> 6.023391813 | J96: =IF(OR('Tabel 1 H'!G94<5,'Tabel 2 H'!J96<0.5),"-",IFERROR('Tabel 2 H'!J96/'Tabel 1 H'!G94*100,"-")) -> 5.233467669
A97: Bac. Samf. | C97: =IF(OR('Tabel 1 H'!C95<5,'Tabel 2 H'!C97<0.5),"-",IFERROR('Tabel 2 H'!C97/'Tabel 1 H'!C95*100,"-")) -> 6.896551724 | D97: =IF(OR('Tabel 1 H'!C95<5,'Tabel 2 H'!D97<0.5),"-",IFERROR('Tabel 2 H'!D97/'Tabel 1 H'!C95*100,"-")) -> 5.332482359 | F97: =IF(OR('Tabel 1 H'!E95<5,'Tabel 2 H'!F97<0.5),"-",IFERROR('Tabel 2 H'!F97/'Tabel 1 H'!E95*100,"-")) -> 13.2 | G97: =IF(OR('Tabel 1 H'!E95<5,'Tabel 2 H'!G97<0.5),"-",IFERROR('Tabel 2 H'!G97/'Tabel 1 H'!E95*100,"-")) -> 10.34441464 | I97: =IF(OR('Tabel 1 H'!G95<5,'Tabel 2 H'!I97<0.5),"-",IFERROR('Tabel 2 H'!I97/'Tabel 1 H'!G95*100,"-")) -> 10.1659751 | J97: =IF(OR('Tabel 1 H'!G95<5,'Tabel 2 H'!J97<0.5),"-",IFERROR('Tabel 2 H'!J97/'Tabel 1 H'!G95*100,"-")) -> 7.9320323
A98: Bac. Hum. | C98: =IF(OR('Tabel 1 H'!C96<5,'Tabel 2 H'!C98<0.5),"-",IFERROR('Tabel 2 H'!C98/'Tabel 1 H'!C96*100,"-")) -> 18.23647295 | D98: =IF(OR('Tabel 1 H'!C96<5,'Tabel 2 H'!D98<0.5),"-",IFERROR('Tabel 2 H'!D98/'Tabel 1 H'!C96*100,"-")) -> 14.66164413 | F98: =IF(OR('Tabel 1 H'!E96<5,'Tabel 2 H'!F98<0.5),"-",IFERROR('Tabel 2 H'!F98/'Tabel 1 H'!E96*100,"-")) -> 17.07841031 | G98: =IF(OR('Tabel 1 H'!E96<5,'Tabel 2 H'!G98<0.5),"-",IFERROR('Tabel 2 H'!G98/'Tabel 1 H'!E96*100,"-")) -> 13.98411426 | I98: =IF(OR('Tabel 1 H'!G96<5,'Tabel 2 H'!I98<0.5),"-",IFERROR('Tabel 2 H'!I98/'Tabel 1 H'!G96*100,"-")) -> 17.48251748 | J98: =IF(OR('Tabel 1 H'!G96<5,'Tabel 2 H'!J98<0.5),"-",IFERROR('Tabel 2 H'!J98/'Tabel 1 H'!G96*100,"-")) -> 14.22053902
A99: Bac. Nat. | C99: =IF(OR('Tabel 1 H'!C97<5,'Tabel 2 H'!C99<0.5),"-",IFERROR('Tabel 2 H'!C99/'Tabel 1 H'!C97*100,"-")) -> 10.99796334 | D99: =IF(OR('Tabel 1 H'!C97<5,'Tabel 2 H'!D99<0.5),"-",IFERROR('Tabel 2 H'!D99/'Tabel 1 H'!C97*100,"-")) -> 9.398131628 | F99: =IF(OR('Tabel 1 H'!E97<5,'Tabel 2 H'!F99<0.5),"-",IFERROR('Tabel 2 H'!F99/'Tabel 1 H'!E97*100,"-")) -> 19.53125 | G99: =IF(OR('Tabel 1 H'!E97<5,'Tabel 2 H'!G99<0.5),"-",IFERROR('Tabel 2 H'!G99/'Tabel 1 H'!E97*100,"-")) -> 17.03257864 | I99: =IF(OR('Tabel 1 H'!G97<5,'Tabel 2 H'!I99<0.5),"-",IFERROR('Tabel 2 H'!I99/'Tabel 1 H'!G97*100,"-")) -> 14.74285714 | J99: =IF(OR('Tabel 1 H'!G97<5,'Tabel 2 H'!J99<0.5),"-",IFERROR('Tabel 2 H'!J99/'Tabel 1 H'!G97*100,"-")) -> 12.74856323
A100: Andre | C100: =IF(OR('Tabel 1 H'!C98<5,'Tabel 2 H'!C100<0.5),"-",IFERROR('Tabel 2 H'!C100/'Tabel 1 H'!C98*100,"-")) -> 8.040500298 | D100: =IF(OR('Tabel 1 H'!C98<5,'Tabel 2 H'!D100<0.5),"-",IFERROR('Tabel 2 H'!D100/'Tabel 1 H'!C98*100,"-")) -> 7.066927589 | F100: =IF(OR('Tabel 1 H'!E98<5,'Tabel 2 H'!F100<0.5),"-",IFERROR('Tabel 2 H'!F100/'Tabel 1 H'!E98*100,"-")) -> 10.60530265 | G100: =IF(OR('Tabel 1 H'!E98<5,'Tabel 2 H'!G100<0.5),"-",IFERROR('Tabel 2 H'!G100/'Tabel 1 H'!E98*100,"-")) -> 9.097450865 | I100: =IF(OR('Tabel 1 H'!G98<5,'Tabel 2 H'!I100<0.5),"-",IFERROR('Tabel 2 H'!I100/'Tabel 1 H'!G98*100,"-")) -> 9.434475258 | J100: =IF(OR('Tabel 1 H'!G98<5,'Tabel 2 H'!J100<0.5),"-",IFERROR('Tabel 2 H'!J100/'Tabel 1 H'!G98*100,"-")) -> 8.170520854
A102: Total | C102: =IF(OR('Tabel 1 H'!C100<5,'Tabel 2 H'!C102<0.5),"-",IFERROR('Tabel 2 H'!C102/'Tabel 1 H'!C100*100,"-")) -> 6.811995782 | D102: =IF(OR('Tabel 1 H'!C100<5,'Tabel 2 H'!D102<0.5),"-",IFERROR('Tabel 2 H'!D102/'Tabel 1 H'!C100*100,"-")) -> 5.986557393 | F102: =IF(OR('Tabel 1 H'!E100<5,'Tabel 2 H'!F102<0.5),"-",IFERROR('Tabel 2 H'!F102/'Tabel 1 H'!E100*100,"-")) -> 7.734581722 | G102: =IF(OR('Tabel 1 H'!E100<5,'Tabel 2 H'!G102<0.5),"-",IFERROR('Tabel 2 H'!G102/'Tabel 1 H'!E100*100,"-")) -> 6.611542175 | I102: =IF(OR('Tabel 1 H'!G100<5,'Tabel 2 H'!I102<0.5),"-",IFERROR('Tabel 2 H'!I102/'Tabel 1 H'!G100*100,"-")) -> 7.316123722 | J102: =IF(OR('Tabel 1 H'!G100<5,'Tabel 2 H'!J102<0.5),"-",IFERROR('Tabel 2 H'!J102/'Tabel 1 H'!G100*100,"-")) -> 6.328067357
A104: Ingeniører i alt | C104: =IF(OR('Tabel 1 H'!C102<5,'Tabel 2 H'!C104<0.5),"-",IFERROR('Tabel 2 H'!C104/'Tabel 1 H'!C102*100,"-")) -> 4.538318824 | D104: =IF(OR('Tabel 1 H'!C102<5,'Tabel 2 H'!D104<0.5),"-",IFERROR('Tabel 2 H'!D104/'Tabel 1 H'!C102*100,"-")) -> 3.981717421 | F104: =IF(OR('Tabel 1 H'!E102<5,'Tabel 2 H'!F104<0.5),"-",IFERROR('Tabel 2 H'!F104/'Tabel 1 H'!E102*100,"-")) -> 5.610278373 | G104: =IF(OR('Tabel 1 H'!E102<5,'Tabel 2 H'!G104<0.5),"-",IFERROR('Tabel 2 H'!G104/'Tabel 1 H'!E102*100,"-")) -> 4.826848693 | I104: =IF(OR('Tabel 1 H'!G102<5,'Tabel 2 H'!I104<0.5),"-",IFERROR('Tabel 2 H'!I104/'Tabel 1 H'!G102*100,"-")) -> 4.806251338 | J104: =IF(OR('Tabel 1 H'!G102<5,'Tabel 2 H'!J104<0.5),"-",IFERROR('Tabel 2 H'!J104/'Tabel 1 H'!G102*100,"-")) -> 4.192955006
A105: Magistre i alt | C105: =IF(OR('Tabel 1 H'!C103<5,'Tabel 2 H'!C105<0.5),"-",IFERROR('Tabel 2 H'!C105/'Tabel 1 H'!C103*100,"-")) -> 10.02006881 | D105: =IF(OR('Tabel 1 H'!C103<5,'Tabel 2 H'!D105<0.5),"-",IFERROR('Tabel 2 H'!D105/'Tabel 1 H'!C103*100,"-")) -> 8.770775671 | F105: =IF(OR('Tabel 1 H'!E103<5,'Tabel 2 H'!F105<0.5),"-",IFERROR('Tabel 2 H'!F105/'Tabel 1 H'!E103*100,"-")) -> 10.56310063 | G105: =IF(OR('Tabel 1 H'!E103<5,'Tabel 2 H'!G105<0.5),"-",IFERROR('Tabel 2 H'!G105/'Tabel 1 H'!E103*100,"-")) -> 9.0006909 | I105: =IF(OR('Tabel 1 H'!G103<5,'Tabel 2 H'!I105<0.5),"-",IFERROR('Tabel 2 H'!I105/'Tabel 1 H'!G103*100,"-")) -> 10.36949967 | J105: =IF(OR('Tabel 1 H'!G103<5,'Tabel 2 H'!J105<0.5),"-",IFERROR('Tabel 2 H'!J105/'Tabel 1 H'!G103*100,"-")) -> 8.918721838
A106: DJØF'ere i alt | C106: =IF(OR('Tabel 1 H'!C104<5,'Tabel 2 H'!C106<0.5),"-",IFERROR('Tabel 2 H'!C106/'Tabel 1 H'!C104*100,"-")) -> 5.062606276 | D106: =IF(OR('Tabel 1 H'!C104<5,'Tabel 2 H'!D106<0.5),"-",IFERROR('Tabel 2 H'!D106/'Tabel 1 H'!C104*100,"-")) -> 4.461008052 | F106: =IF(OR('Tabel 1 H'!E104<5,'Tabel 2 H'!F106<0.5),"-",IFERROR('Tabel 2 H'!F106/'Tabel 1 H'!E104*100,"-")) -> 4.977522966 | G106: =IF(OR('Tabel 1 H'!E104<5,'Tabel 2 H'!G106<0.5),"-",IFERROR('Tabel 2 H'!G106/'Tabel 1 H'!E104*100,"-")) -> 4.259704977 | I106: =IF(OR('Tabel 1 H'!G104<5,'Tabel 2 H'!I106<0.5),"-",IFERROR('Tabel 2 H'!I106/'Tabel 1 H'!G104*100,"-")) -> 5.016438647 | J106: =IF(OR('Tabel 1 H'!G104<5,'Tabel 2 H'!J106<0.5),"-",IFERROR('Tabel 2 H'!J106/'Tabel 1 H'!G104*100,"-")) -> 4.351777631
A111: Frederiksberg
C113: Mænd | F113: Kvinder | I113: I alt
C114: Ledigheds- berørte | D114: Gns. brutto- ledighed | F114: Ledigheds- berørte | G114: Gns. brutto- ledighed | I114: Ledigheds- berørte | J114: Gns. brutto- ledighed
A117: Civ. ing. | C117: =IF(OR('Tabel 1 H'!C115<5,'Tabel 2 H'!C117<0.5),"-",IFERROR('Tabel 2 H'!C117/'Tabel 1 H'!C115*100,"-")) -> 2.411167513 | D117: =IF(OR('Tabel 1 H'!C115<5,'Tabel 2 H'!D117<0.5),"-",IFERROR('Tabel 2 H'!D117/'Tabel 1 H'!C115*100,"-")) -> 2.242598625 | F117: =IF(OR('Tabel 1 H'!E115<5,'Tabel 2 H'!F117<0.5),"-",IFERROR('Tabel 2 H'!F117/'Tabel 1 H'!E115*100,"-")) -> 3.395061728 | G117: =IF(OR('Tabel 1 H'!E115<5,'Tabel 2 H'!G117<0.5),"-",IFERROR('Tabel 2 H'!G117/'Tabel 1 H'!E115*100,"-")) -> 3.236573025 | I117: =IF(OR('Tabel 1 H'!G115<5,'Tabel 2 H'!I117<0.5),"-",IFERROR('Tabel 2 H'!I117/'Tabel 1 H'!G115*100,"-")) -> 2.697841727 | J117: =IF(OR('Tabel 1 H'!G115<5,'Tabel 2 H'!J117<0.5),"-",IFERROR('Tabel 2 H'!J117/'Tabel 1 H'!G115*100,"-")) -> 2.532209871
A118: Diplom ing. | C118: =IF(OR('Tabel 1 H'!C116<5,'Tabel 2 H'!C118<0.5),"-",IFERROR('Tabel 2 H'!C118/'Tabel 1 H'!C116*100,"-")) -> 3.854389722 | D118: =IF(OR('Tabel 1 H'!C116<5,'Tabel 2 H'!D118<0.5),"-",IFERROR('Tabel 2 H'!D118/'Tabel 1 H'!C116*100,"-")) -> 3.571595041 | F118: =IF(OR('Tabel 1 H'!E116<5,'Tabel 2 H'!F118<0.5),"-",IFERROR('Tabel 2 H'!F118/'Tabel 1 H'!E116*100,"-")) -> 1.886792453 | G118: =IF(OR('Tabel 1 H'!E116<5,'Tabel 2 H'!G118<0.5),"-",IFERROR('Tabel 2 H'!G118/'Tabel 1 H'!E116*100,"-")) -> 1.886439407 | I118: =IF(OR('Tabel 1 H'!G116<5,'Tabel 2 H'!I118<0.5),"-",IFERROR('Tabel 2 H'!I118/'Tabel 1 H'!G116*100,"-")) -> 3.490401396 | J118: =IF(OR('Tabel 1 H'!G116<5,'Tabel 2 H'!J118<0.5),"-",IFERROR('Tabel 2 H'!J118/'Tabel 1 H'!G116*100,"-")) -> 3.259855954
A119: Cand. Scient. Tek. | C119: =IF(OR('Tabel 1 H'!C117<5,'Tabel 2 H'!C119<0.5),"-",IFERROR('Tabel 2 H'!C119/'Tabel 1 H'!C117*100,"-")) -> 6.796116505 | D119: =IF(OR('Tabel 1 H'!C117<5,'Tabel 2 H'!D119<0.5),"-",IFERROR('Tabel 2 H'!D119/'Tabel 1 H'!C117*100,"-")) -> 6.047599641 | F119: =IF(OR('Tabel 1 H'!E117<5,'Tabel 2 H'!F119<0.5),"-",IFERROR('Tabel 2 H'!F119/'Tabel 1 H'!E117*100,"-")) -> 5.198019802 | G119: =IF(OR('Tabel 1 H'!E117<5,'Tabel 2 H'!G119<0.5),"-",IFERROR('Tabel 2 H'!G119/'Tabel 1 H'!E117*100,"-")) -> 4.711662147 | I119: =IF(OR('Tabel 1 H'!G117<5,'Tabel 2 H'!I119<0.5),"-",IFERROR('Tabel 2 H'!I119/'Tabel 1 H'!G117*100,"-")) -> 6.004901961 | J119: =IF(OR('Tabel 1 H'!G117<5,'Tabel 2 H'!J119<0.5),"-",IFERROR('Tabel 2 H'!J119/'Tabel 1 H'!G117*100,"-")) -> 5.386179608
A120: MA. Hum. | C120: =IF(OR('Tabel 1 H'!C118<5,'Tabel 2 H'!C120<0.5),"-",IFERROR('Tabel 2 H'!C120/'Tabel 1 H'!C118*100,"-")) -> 9.318996416 | D120: =IF(OR('Tabel 1 H'!C118<5,'Tabel 2 H'!D120<0.5),"-",IFERROR('Tabel 2 H'!D120/'Tabel 1 H'!C118*100,"-")) -> 7.893218445 | F120: =IF(OR('Tabel 1 H'!E118<5,'Tabel 2 H'!F120<0.5),"-",IFERROR('Tabel 2 H'!F120/'Tabel 1 H'!E118*100,"-")) -> 11.16352201 | G120: =IF(OR('Tabel 1 H'!E118<5,'Tabel 2 H'!G120<0.5),"-",IFERROR('Tabel 2 H'!G120/'Tabel 1 H'!E118*100,"-")) -> 9.870316607 | I120: =IF(OR('Tabel 1 H'!G118<5,'Tabel 2 H'!I120<0.5),"-",IFERROR('Tabel 2 H'!I120/'Tabel 1 H'!G118*100,"-")) -> 10.6010929 | J120: =IF(OR('Tabel 1 H'!G118<5,'Tabel 2 H'!J120<0.5),"-",IFERROR('Tabel 2 H'!J120/'Tabel 1 H'!G118*100,"-")) -> 9.267463725
A121: MA. Nat. | C121: =IF(OR('Tabel 1 H'!C119<5,'Tabel 2 H'!C121<0.5),"-",IFERROR('Tabel 2 H'!C121/'Tabel 1 H'!C119*100,"-")) -> 4.31372549 | D121: =IF(OR('Tabel 1 H'!C119<5,'Tabel 2 H'!D121<0.5),"-",IFERROR('Tabel 2 H'!D121/'Tabel 1 H'!C119*100,"-")) -> 3.917165943 | F121: =IF(OR('Tabel 1 H'!E119<5,'Tabel 2 H'!F121<0.5),"-",IFERROR('Tabel 2 H'!F121/'Tabel 1 H'!E119*100,"-")) -> 3.797468354 | G121: =IF(OR('Tabel 1 H'!E119<5,'Tabel 2 H'!G121<0.5),"-",IFERROR('Tabel 2 H'!G121/'Tabel 1 H'!E119*100,"-")) -> 3.655961689 | I121: =IF(OR('Tabel 1 H'!G119<5,'Tabel 2 H'!I121<0.5),"-",IFERROR('Tabel 2 H'!I121/'Tabel 1 H'!G119*100,"-")) -> 4.06504065 | J121: =IF(OR('Tabel 1 H'!G119<5,'Tabel 2 H'!J121<0.5),"-",IFERROR('Tabel 2 H'!J121/'Tabel 1 H'!G119*100,"-")) -> 3.791341943
A122: MA. Ph.d. | C122: =IF(OR('Tabel 1 H'!C120<5,'Tabel 2 H'!C122<0.5),"-",IFERROR('Tabel 2 H'!C122/'Tabel 1 H'!C120*100,"-")) -> 12.12121212 | D122: =IF(OR('Tabel 1 H'!C120<5,'Tabel 2 H'!D122<0.5),"-",IFERROR('Tabel 2 H'!D122/'Tabel 1 H'!C120*100,"-")) -> 10.46893812 | F122: =IF(OR('Tabel 1 H'!E120<5,'Tabel 2 H'!F122<0.5),"-",IFERROR('Tabel 2 H'!F122/'Tabel 1 H'!E120*100,"-")) -> 3.174603175 | G122: =IF(OR('Tabel 1 H'!E120<5,'Tabel 2 H'!G122<0.5),"-",IFERROR('Tabel 2 H'!G122/'Tabel 1 H'!E120*100,"-")) -> 3.174009162 | I122: =IF(OR('Tabel 1 H'!G120<5,'Tabel 2 H'!I122<0.5),"-",IFERROR('Tabel 2 H'!I122/'Tabel 1 H'!G120*100,"-")) -> 7.751937984 | J122: =IF(OR('Tabel 1 H'!G120<5,'Tabel 2 H'!J122<0.5),"-",IFERROR('Tabel 2 H'!J122/'Tabel 1 H'!G120*100,"-")) -> 6.906298395
A123: MA. Samf. | C123: =IF(OR('Tabel 1 H'!C121<5,'Tabel 2 H'!C123<0.5),"-",IFERROR('Tabel 2 H'!C123/'Tabel 1 H'!C121*100,"-")) -> 10.1010101 | D123: =IF(OR('Tabel 1 H'!C121<5,'Tabel 2 H'!D123<0.5),"-",IFERROR('Tabel 2 H'!D123/'Tabel 1 H'!C121*100,"-")) -> 8.922254416 | F123: =IF(OR('Tabel 1 H'!E121<5,'Tabel 2 H'!F123<0.5),"-",IFERROR('Tabel 2 H'!F123/'Tabel 1 H'!E121*100,"-")) -> 9.633027523 | G123: =IF(OR('Tabel 1 H'!E121<5,'Tabel 2 H'!G123<0.5),"-",IFERROR('Tabel 2 H'!G123/'Tabel 1 H'!E121*100,"-")) -> 8.499671263 | I123: =IF(OR('Tabel 1 H'!G121<5,'Tabel 2 H'!I123<0.5),"-",IFERROR('Tabel 2 H'!I123/'Tabel 1 H'!G121*100,"-")) -> 9.779179811 | J123: =IF(OR('Tabel 1 H'!G121<5,'Tabel 2 H'!J123<0.5),"-",IFERROR('Tabel 2 H'!J123/'Tabel 1 H'!G121*100,"-")) -> 8.631645181
A124: Øvrige Mag. | C124: =IF(OR('Tabel 1 H'!C122<5,'Tabel 2 H'!C124<0.5),"-",IFERROR('Tabel 2 H'!C124/'Tabel 1 H'!C122*100,"-")) -> 9.523809524 | D124: =IF(OR('Tabel 1 H'!C122<5,'Tabel 2 H'!D124<0.5),"-",IFERROR('Tabel 2 H'!D124/'Tabel 1 H'!C122*100,"-")) -> 9.039391968 | F124: =IF(OR('Tabel 1 H'!E122<5,'Tabel 2 H'!F124<0.5),"-",IFERROR('Tabel 2 H'!F124/'Tabel 1 H'!E122*100,"-")) -> 15.58441558 | G124: =IF(OR('Tabel 1 H'!E122<5,'Tabel 2 H'!G124<0.5),"-",IFERROR('Tabel 2 H'!G124/'Tabel 1 H'!E122*100,"-")) -> 13.89423276 | I124: =IF(OR('Tabel 1 H'!G122<5,'Tabel 2 H'!I124<0.5),"-",IFERROR('Tabel 2 H'!I124/'Tabel 1 H'!G122*100,"-")) -> 13.44537815 | J124: =IF(OR('Tabel 1 H'!G122<5,'Tabel 2 H'!J124<0.5),"-",IFERROR('Tabel 2 H'!J124/'Tabel 1 H'!G122*100,"-")) -> 12.18075954
A125: Agronom | C125: =IF(OR('Tabel 1 H'!C123<5,'Tabel 2 H'!C125<0.5),"-",IFERROR('Tabel 2 H'!C125/'Tabel 1 H'!C123*100,"-")) -> 6.976744186 | D125: =IF(OR('Tabel 1 H'!C123<5,'Tabel 2 H'!D125<0.5),"-",IFERROR('Tabel 2 H'!D125/'Tabel 1 H'!C123*100,"-")) -> 5.845501792 | F125: =IF(OR('Tabel 1 H'!E123<5,'Tabel 2 H'!F125<0.5),"-",IFERROR('Tabel 2 H'!F125/'Tabel 1 H'!E123*100,"-")) -> 13.51351351 | G125: =IF(OR('Tabel 1 H'!E123<5,'Tabel 2 H'!G125<0.5),"-",IFERROR('Tabel 2 H'!G125/'Tabel 1 H'!E123*100,"-")) -> 11.47970149 | I125: =IF(OR('Tabel 1 H'!G123<5,'Tabel 2 H'!I125<0.5),"-",IFERROR('Tabel 2 H'!I125/'Tabel 1 H'!G123*100,"-")) -> 10 | J125: =IF(OR('Tabel 1 H'!G123<5,'Tabel 2 H'!J125<0.5),"-",IFERROR('Tabel 2 H'!J125/'Tabel 1 H'!G123*100,"-")) -> 8.451319154
A126: Landsk. Arkt. | C126: =IF(OR('Tabel 1 H'!C124<5,'Tabel 2 H'!C126<0.5),"-",IFERROR('Tabel 2 H'!C126/'Tabel 1 H'!C124*100,"-")) -> 7.142857143 | D126: =IF(OR('Tabel 1 H'!C124<5,'Tabel 2 H'!D126<0.5),"-",IFERROR('Tabel 2 H'!D126/'Tabel 1 H'!C124*100,"-")) -> 7.141520614 | F126: =IF(OR('Tabel 1 H'!E124<5,'Tabel 2 H'!F126<0.5),"-",IFERROR('Tabel 2 H'!F126/'Tabel 1 H'!E124*100,"-")) -> - | G126: =IF(OR('Tabel 1 H'!E124<5,'Tabel 2 H'!G126<0.5),"-",IFERROR('Tabel 2 H'!G126/'Tabel 1 H'!E124*100,"-")) -> - | I126: =IF(OR('Tabel 1 H'!G124<5,'Tabel 2 H'!I126<0.5),"-",IFERROR('Tabel 2 H'!I126/'Tabel 1 H'!G124*100,"-")) -> 3.03030303 | J126: =IF(OR('Tabel 1 H'!G124<5,'Tabel 2 H'!J126<0.5),"-",IFERROR('Tabel 2 H'!J126/'Tabel 1 H'!G124*100,"-")) -> 3.029736018
A127: Hortonom | C127: =IF(OR('Tabel 1 H'!C125<5,'Tabel 2 H'!C127<0.5),"-",IFERROR('Tabel 2 H'!C127/'Tabel 1 H'!C125*100,"-")) -> - | D127: =IF(OR('Tabel 1 H'!C125<5,'Tabel 2 H'!D127<0.5),"-",IFERROR('Tabel 2 H'!D127/'Tabel 1 H'!C125*100,"-")) -> - | F127: =IF(OR('Tabel 1 H'!E125<5,'Tabel 2 H'!F127<0.5),"-",IFERROR('Tabel 2 H'!F127/'Tabel 1 H'!E125*100,"-")) -> - | G127: =IF(OR('Tabel 1 H'!E125<5,'Tabel 2 H'!G127<0.5),"-",IFERROR('Tabel 2 H'!G127/'Tabel 1 H'!E125*100,"-")) -> - | I127: =IF(OR('Tabel 1 H'!G125<5,'Tabel 2 H'!I127<0.5),"-",IFERROR('Tabel 2 H'!I127/'Tabel 1 H'!G125*100,"-")) -> - | J127: =IF(OR('Tabel 1 H'!G125<5,'Tabel 2 H'!J127<0.5),"-",IFERROR('Tabel 2 H'!J127/'Tabel 1 H'!G125*100,"-")) -> -
A128: Forstkand. | C128: =IF(OR('Tabel 1 H'!C126<5,'Tabel 2 H'!C128<0.5),"-",IFERROR('Tabel 2 H'!C128/'Tabel 1 H'!C126*100,"-")) -> 14.28571429 | D128: =IF(OR('Tabel 1 H'!C126<5,'Tabel 2 H'!D128<0.5),"-",IFERROR('Tabel 2 H'!D128/'Tabel 1 H'!C126*100,"-")) -> 12.46536162 | F128: =IF(OR('Tabel 1 H'!E126<5,'Tabel 2 H'!F128<0.5),"-",IFERROR('Tabel 2 H'!F128/'Tabel 1 H'!E126*100,"-")) -> - | G128: =IF(OR('Tabel 1 H'!E126<5,'Tabel 2 H'!G128<0.5),"-",IFERROR('Tabel 2 H'!G128/'Tabel 1 H'!E126*100,"-")) -> - | I128: =IF(OR('Tabel 1 H'!G126<5,'Tabel 2 H'!I128<0.5),"-",IFERROR('Tabel 2 H'!I128/'Tabel 1 H'!G126*100,"-")) -> 7.142857143 | J128: =IF(OR('Tabel 1 H'!G126<5,'Tabel 2 H'!J128<0.5),"-",IFERROR('Tabel 2 H'!J128/'Tabel 1 H'!G126*100,"-")) -> 6.23268081
A129: Jordbrugsakad. | C129: =IF(OR('Tabel 1 H'!C127<5,'Tabel 2 H'!C129<0.5),"-",IFERROR('Tabel 2 H'!C129/'Tabel 1 H'!C127*100,"-")) -> 7.692307692 | D129: =IF(OR('Tabel 1 H'!C127<5,'Tabel 2 H'!D129<0.5),"-",IFERROR('Tabel 2 H'!D129/'Tabel 1 H'!C127*100,"-")) -> 6.747621492 | F129: =IF(OR('Tabel 1 H'!E127<5,'Tabel 2 H'!F129<0.5),"-",IFERROR('Tabel 2 H'!F129/'Tabel 1 H'!E127*100,"-")) -> 7.246376812 | G129: =IF(OR('Tabel 1 H'!E127<5,'Tabel 2 H'!G129<0.5),"-",IFERROR('Tabel 2 H'!G129/'Tabel 1 H'!E127*100,"-")) -> 6.155781961 | I129: =IF(OR('Tabel 1 H'!G127<5,'Tabel 2 H'!I129<0.5),"-",IFERROR('Tabel 2 H'!I129/'Tabel 1 H'!G127*100,"-")) -> 7.462686567 | J129: =IF(OR('Tabel 1 H'!G127<5,'Tabel 2 H'!J129<0.5),"-",IFERROR('Tabel 2 H'!J129/'Tabel 1 H'!G127*100,"-")) -> 6.442868301
A130: Mejeriing. | C130: =IF(OR('Tabel 1 H'!C128<5,'Tabel 2 H'!C130<0.5),"-",IFERROR('Tabel 2 H'!C130/'Tabel 1 H'!C128*100,"-")) -> - | D130: =IF(OR('Tabel 1 H'!C128<5,'Tabel 2 H'!D130<0.5),"-",IFERROR('Tabel 2 H'!D130/'Tabel 1 H'!C128*100,"-")) -> - | F130: =IF(OR('Tabel 1 H'!E128<5,'Tabel 2 H'!F130<0.5),"-",IFERROR('Tabel 2 H'!F130/'Tabel 1 H'!E128*100,"-")) -> - | G130: =IF(OR('Tabel 1 H'!E128<5,'Tabel 2 H'!G130<0.5),"-",IFERROR('Tabel 2 H'!G130/'Tabel 1 H'!E128*100,"-")) -> - | I130: =IF(OR('Tabel 1 H'!G128<5,'Tabel 2 H'!I130<0.5),"-",IFERROR('Tabel 2 H'!I130/'Tabel 1 H'!G128*100,"-")) -> - | J130: =IF(OR('Tabel 1 H'!G128<5,'Tabel 2 H'!J130<0.5),"-",IFERROR('Tabel 2 H'!J130/'Tabel 1 H'!G128*100,"-")) -> -
A131: Levn.m.kand. | C131: =IF(OR('Tabel 1 H'!C129<5,'Tabel 2 H'!C131<0.5),"-",IFERROR('Tabel 2 H'!C131/'Tabel 1 H'!C129*100,"-")) -> 50 | D131: =IF(OR('Tabel 1 H'!C129<5,'Tabel 2 H'!D131<0.5),"-",IFERROR('Tabel 2 H'!D131/'Tabel 1 H'!C129*100,"-")) -> 49.9906443 | F131: =IF(OR('Tabel 1 H'!E129<5,'Tabel 2 H'!F131<0.5),"-",IFERROR('Tabel 2 H'!F131/'Tabel 1 H'!E129*100,"-")) -> - | G131: =IF(OR('Tabel 1 H'!E129<5,'Tabel 2 H'!G131<0.5),"-",IFERROR('Tabel 2 H'!G131/'Tabel 1 H'!E129*100,"-")) -> - | I131: =IF(OR('Tabel 1 H'!G129<5,'Tabel 2 H'!I131<0.5),"-",IFERROR('Tabel 2 H'!I131/'Tabel 1 H'!G129*100,"-")) -> 9.375 | J131: =IF(OR('Tabel 1 H'!G129<5,'Tabel 2 H'!J131<0.5),"-",IFERROR('Tabel 2 H'!J131/'Tabel 1 H'!G129*100,"-")) -> 9.373245806
A132: Dyrlæge | C132: =IF(OR('Tabel 1 H'!C130<5,'Tabel 2 H'!C132<0.5),"-",IFERROR('Tabel 2 H'!C132/'Tabel 1 H'!C130*100,"-")) -> - | D132: =IF(OR('Tabel 1 H'!C130<5,'Tabel 2 H'!D132<0.5),"-",IFERROR('Tabel 2 H'!D132/'Tabel 1 H'!C130*100,"-")) -> - | F132: =IF(OR('Tabel 1 H'!E130<5,'Tabel 2 H'!F132<0.5),"-",IFERROR('Tabel 2 H'!F132/'Tabel 1 H'!E130*100,"-")) -> - | G132: =IF(OR('Tabel 1 H'!E130<5,'Tabel 2 H'!G132<0.5),"-",IFERROR('Tabel 2 H'!G132/'Tabel 1 H'!E130*100,"-")) -> - | I132: =IF(OR('Tabel 1 H'!G130<5,'Tabel 2 H'!I132<0.5),"-",IFERROR('Tabel 2 H'!I132/'Tabel 1 H'!G130*100,"-")) -> - | J132: =IF(OR('Tabel 1 H'!G130<5,'Tabel 2 H'!J132<0.5),"-",IFERROR('Tabel 2 H'!J132/'Tabel 1 H'!G130*100,"-")) -> -
A133: Farmaceut | C133: =IF(OR('Tabel 1 H'!C131<5,'Tabel 2 H'!C133<0.5),"-",IFERROR('Tabel 2 H'!C133/'Tabel 1 H'!C131*100,"-")) -> - | D133: =IF(OR('Tabel 1 H'!C131<5,'Tabel 2 H'!D133<0.5),"-",IFERROR('Tabel 2 H'!D133/'Tabel 1 H'!C131*100,"-")) -> - | F133: =IF(OR('Tabel 1 H'!E131<5,'Tabel 2 H'!F133<0.5),"-",IFERROR('Tabel 2 H'!F133/'Tabel 1 H'!E131*100,"-")) -> 1.875 | G133: =IF(OR('Tabel 1 H'!E131<5,'Tabel 2 H'!G133<0.5),"-",IFERROR('Tabel 2 H'!G133/'Tabel 1 H'!E131*100,"-")) -> 1.546030063 | I133: =IF(OR('Tabel 1 H'!G131<5,'Tabel 2 H'!I133<0.5),"-",IFERROR('Tabel 2 H'!I133/'Tabel 1 H'!G131*100,"-")) -> 1.327433628 | J133: =IF(OR('Tabel 1 H'!G131<5,'Tabel 2 H'!J133<0.5),"-",IFERROR('Tabel 2 H'!J133/'Tabel 1 H'!G131*100,"-")) -> 1.094534558
A134: Læge | C134: =IF(OR('Tabel 1 H'!C132<5,'Tabel 2 H'!C134<0.5),"-",IFERROR('Tabel 2 H'!C134/'Tabel 1 H'!C132*100,"-")) -> 2.547770701 | D134: =IF(OR('Tabel 1 H'!C132<5,'Tabel 2 H'!D134<0.5),"-",IFERROR('Tabel 2 H'!D134/'Tabel 1 H'!C132*100,"-")) -> 2.429702115 | F134: =IF(OR('Tabel 1 H'!E132<5,'Tabel 2 H'!F134<0.5),"-",IFERROR('Tabel 2 H'!F134/'Tabel 1 H'!E132*100,"-")) -> 1.162790698 | G134: =IF(OR('Tabel 1 H'!E132<5,'Tabel 2 H'!G134<0.5),"-",IFERROR('Tabel 2 H'!G134/'Tabel 1 H'!E132*100,"-")) -> 0.9747337976 | I134: =IF(OR('Tabel 1 H'!G132<5,'Tabel 2 H'!I134<0.5),"-",IFERROR('Tabel 2 H'!I134/'Tabel 1 H'!G132*100,"-")) -> 1.596806387 | J134: =IF(OR('Tabel 1 H'!G132<5,'Tabel 2 H'!J134<0.5),"-",IFERROR('Tabel 2 H'!J134/'Tabel 1 H'!G132*100,"-")) -> 1.430681953
A135: Tandlæge | C135: =IF(OR('Tabel 1 H'!C133<5,'Tabel 2 H'!C135<0.5),"-",IFERROR('Tabel 2 H'!C135/'Tabel 1 H'!C133*100,"-")) -> - | D135: =IF(OR('Tabel 1 H'!C133<5,'Tabel 2 H'!D135<0.5),"-",IFERROR('Tabel 2 H'!D135/'Tabel 1 H'!C133*100,"-")) -> - | F135: =IF(OR('Tabel 1 H'!E133<5,'Tabel 2 H'!F135<0.5),"-",IFERROR('Tabel 2 H'!F135/'Tabel 1 H'!E133*100,"-")) -> 3.50877193 | G135: =IF(OR('Tabel 1 H'!E133<5,'Tabel 2 H'!G135<0.5),"-",IFERROR('Tabel 2 H'!G135/'Tabel 1 H'!E133*100,"-")) -> 2.855951705 | I135: =IF(OR('Tabel 1 H'!G133<5,'Tabel 2 H'!I135<0.5),"-",IFERROR('Tabel 2 H'!I135/'Tabel 1 H'!G133*100,"-")) -> 3.125 | J135: =IF(OR('Tabel 1 H'!G133<5,'Tabel 2 H'!J135<0.5),"-",IFERROR('Tabel 2 H'!J135/'Tabel 1 H'!G133*100,"-")) -> 2.543581987
A136: Arkitekt | C136: =IF(OR('Tabel 1 H'!C134<5,'Tabel 2 H'!C136<0.5),"-",IFERROR('Tabel 2 H'!C136/'Tabel 1 H'!C134*100,"-")) -> 7.537688442 | D136: =IF(OR('Tabel 1 H'!C134<5,'Tabel 2 H'!D136<0.5),"-",IFERROR('Tabel 2 H'!D136/'Tabel 1 H'!C134*100,"-")) -> 6.327715419 | F136: =IF(OR('Tabel 1 H'!E134<5,'Tabel 2 H'!F136<0.5),"-",IFERROR('Tabel 2 H'!F136/'Tabel 1 H'!E134*100,"-")) -> 4.054054054 | G136: =IF(OR('Tabel 1 H'!E134<5,'Tabel 2 H'!G136<0.5),"-",IFERROR('Tabel 2 H'!G136/'Tabel 1 H'!E134*100,"-")) -> 3.813081465 | I136: =IF(OR('Tabel 1 H'!G134<5,'Tabel 2 H'!I136<0.5),"-",IFERROR('Tabel 2 H'!I136/'Tabel 1 H'!G134*100,"-")) -> 5.700712589 | J136: =IF(OR('Tabel 1 H'!G134<5,'Tabel 2 H'!J136<0.5),"-",IFERROR('Tabel 2 H'!J136/'Tabel 1 H'!G134*100,"-")) -> 5.001708916
A137: Landinspek. | C137: =IF(OR('Tabel 1 H'!C135<5,'Tabel 2 H'!C137<0.5),"-",IFERROR('Tabel 2 H'!C137/'Tabel 1 H'!C135*100,"-")) -> 15.38461538 | D137: =IF(OR('Tabel 1 H'!C135<5,'Tabel 2 H'!D137<0.5),"-",IFERROR('Tabel 2 H'!D137/'Tabel 1 H'!C135*100,"-")) -> 13.96158884 | F137: =IF(OR('Tabel 1 H'!E135<5,'Tabel 2 H'!F137<0.5),"-",IFERROR('Tabel 2 H'!F137/'Tabel 1 H'!E135*100,"-")) -> - | G137: =IF(OR('Tabel 1 H'!E135<5,'Tabel 2 H'!G137<0.5),"-",IFERROR('Tabel 2 H'!G137/'Tabel 1 H'!E135*100,"-")) -> - | I137: =IF(OR('Tabel 1 H'!G135<5,'Tabel 2 H'!I137<0.5),"-",IFERROR('Tabel 2 H'!I137/'Tabel 1 H'!G135*100,"-")) -> 12.5 | J137: =IF(OR('Tabel 1 H'!G135<5,'Tabel 2 H'!J137<0.5),"-",IFERROR('Tabel 2 H'!J137/'Tabel 1 H'!G135*100,"-")) -> 11.34379093
A138: Bibliotekar | C138: =IF(OR('Tabel 1 H'!C136<5,'Tabel 2 H'!C138<0.5),"-",IFERROR('Tabel 2 H'!C138/'Tabel 1 H'!C136*100,"-")) -> 6.25 | D138: =IF(OR('Tabel 1 H'!C136<5,'Tabel 2 H'!D138<0.5),"-",IFERROR('Tabel 2 H'!D138/'Tabel 1 H'!C136*100,"-")) -> 6.248830537 | F138: =IF(OR('Tabel 1 H'!E136<5,'Tabel 2 H'!F138<0.5),"-",IFERROR('Tabel 2 H'!F138/'Tabel 1 H'!E136*100,"-")) -> 10.1010101 | G138: =IF(OR('Tabel 1 H'!E136<5,'Tabel 2 H'!G138<0.5),"-",IFERROR('Tabel 2 H'!G138/'Tabel 1 H'!E136*100,"-")) -> 7.942583069 | I138: =IF(OR('Tabel 1 H'!G136<5,'Tabel 2 H'!I138<0.5),"-",IFERROR('Tabel 2 H'!I138/'Tabel 1 H'!G136*100,"-")) -> 9.160305344 | J138: =IF(OR('Tabel 1 H'!G136<5,'Tabel 2 H'!J138<0.5),"-",IFERROR('Tabel 2 H'!J138/'Tabel 1 H'!G136*100,"-")) -> 7.528841992
A139: Musikudd. | C139: =IF(OR('Tabel 1 H'!C137<5,'Tabel 2 H'!C139<0.5),"-",IFERROR('Tabel 2 H'!C139/'Tabel 1 H'!C137*100,"-")) -> 8.333333333 | D139: =IF(OR('Tabel 1 H'!C137<5,'Tabel 2 H'!D139<0.5),"-",IFERROR('Tabel 2 H'!D139/'Tabel 1 H'!C137*100,"-")) -> 5.899291046 | F139: =IF(OR('Tabel 1 H'!E137<5,'Tabel 2 H'!F139<0.5),"-",IFERROR('Tabel 2 H'!F139/'Tabel 1 H'!E137*100,"-")) -> - | G139: =IF(OR('Tabel 1 H'!E137<5,'Tabel 2 H'!G139<0.5),"-",IFERROR('Tabel 2 H'!G139/'Tabel 1 H'!E137*100,"-")) -> - | I139: =IF(OR('Tabel 1 H'!G137<5,'Tabel 2 H'!I139<0.5),"-",IFERROR('Tabel 2 H'!I139/'Tabel 1 H'!G137*100,"-")) -> 5 | J139: =IF(OR('Tabel 1 H'!G137<5,'Tabel 2 H'!J139<0.5),"-",IFERROR('Tabel 2 H'!J139/'Tabel 1 H'!G137*100,"-")) -> 3.539574627
A140: Teolog | C140: =IF(OR('Tabel 1 H'!C138<5,'Tabel 2 H'!C140<0.5),"-",IFERROR('Tabel 2 H'!C140/'Tabel 1 H'!C138*100,"-")) -> - | D140: =IF(OR('Tabel 1 H'!C138<5,'Tabel 2 H'!D140<0.5),"-",IFERROR('Tabel 2 H'!D140/'Tabel 1 H'!C138*100,"-")) -> - | F140: =IF(OR('Tabel 1 H'!E138<5,'Tabel 2 H'!F140<0.5),"-",IFERROR('Tabel 2 H'!F140/'Tabel 1 H'!E138*100,"-")) -> 10.34482759 | G140: =IF(OR('Tabel 1 H'!E138<5,'Tabel 2 H'!G140<0.5),"-",IFERROR('Tabel 2 H'!G140/'Tabel 1 H'!E138*100,"-")) -> 8.301842966 | I140: =IF(OR('Tabel 1 H'!G138<5,'Tabel 2 H'!I140<0.5),"-",IFERROR('Tabel 2 H'!I140/'Tabel 1 H'!G138*100,"-")) -> 8.108108108 | J140: =IF(OR('Tabel 1 H'!G138<5,'Tabel 2 H'!J140<0.5),"-",IFERROR('Tabel 2 H'!J140/'Tabel 1 H'!G138*100,"-")) -> 6.506849892
A141: Psykolog | C141: =IF(OR('Tabel 1 H'!C139<5,'Tabel 2 H'!C141<0.5),"-",IFERROR('Tabel 2 H'!C141/'Tabel 1 H'!C139*100,"-")) -> 5.357142857 | D141: =IF(OR('Tabel 1 H'!C139<5,'Tabel 2 H'!D141<0.5),"-",IFERROR('Tabel 2 H'!D141/'Tabel 1 H'!C139*100,"-")) -> 4.087551568 | F141: =IF(OR('Tabel 1 H'!E139<5,'Tabel 2 H'!F141<0.5),"-",IFERROR('Tabel 2 H'!F141/'Tabel 1 H'!E139*100,"-")) -> 6.569343066 | G141: =IF(OR('Tabel 1 H'!E139<5,'Tabel 2 H'!G141<0.5),"-",IFERROR('Tabel 2 H'!G141/'Tabel 1 H'!E139*100,"-")) -> 5.892272371 | I141: =IF(OR('Tabel 1 H'!G139<5,'Tabel 2 H'!I141<0.5),"-",IFERROR('Tabel 2 H'!I141/'Tabel 1 H'!G139*100,"-")) -> 6.363636364 | J141: =IF(OR('Tabel 1 H'!G139<5,'Tabel 2 H'!J141<0.5),"-",IFERROR('Tabel 2 H'!J141/'Tabel 1 H'!G139*100,"-")) -> 5.586016719
A142: Jurist | C142: =IF(OR('Tabel 1 H'!C140<5,'Tabel 2 H'!C142<0.5),"-",IFERROR('Tabel 2 H'!C142/'Tabel 1 H'!C140*100,"-")) -> 1.466992665 | D142: =IF(OR('Tabel 1 H'!C140<5,'Tabel 2 H'!D142<0.5),"-",IFERROR('Tabel 2 H'!D142/'Tabel 1 H'!C140*100,"-")) -> 1.291041384 | F142: =IF(OR('Tabel 1 H'!E140<5,'Tabel 2 H'!F142<0.5),"-",IFERROR('Tabel 2 H'!F142/'Tabel 1 H'!E140*100,"-")) -> 1.940298507 | G142: =IF(OR('Tabel 1 H'!E140<5,'Tabel 2 H'!G142<0.5),"-",IFERROR('Tabel 2 H'!G142/'Tabel 1 H'!E140*100,"-")) -> 1.709813063 | I142: =IF(OR('Tabel 1 H'!G140<5,'Tabel 2 H'!I142<0.5),"-",IFERROR('Tabel 2 H'!I142/'Tabel 1 H'!G140*100,"-")) -> 1.760889713 | J142: =IF(OR('Tabel 1 H'!G140<5,'Tabel 2 H'!J142<0.5),"-",IFERROR('Tabel 2 H'!J142/'Tabel 1 H'!G140*100,"-")) -> 1.551075698
A143: Økonom | C143: =IF(OR('Tabel 1 H'!C141<5,'Tabel 2 H'!C143<0.5),"-",IFERROR('Tabel 2 H'!C143/'Tabel 1 H'!C141*100,"-")) -> 2.312138728 | D143: =IF(OR('Tabel 1 H'!C141<5,'Tabel 2 H'!D143<0.5),"-",IFERROR('Tabel 2 H'!D143/'Tabel 1 H'!C141*100,"-")) -> 1.720620296 | F143: =IF(OR('Tabel 1 H'!E141<5,'Tabel 2 H'!F143<0.5),"-",IFERROR('Tabel 2 H'!F143/'Tabel 1 H'!E141*100,"-")) -> 1.265822785 | G143: =IF(OR('Tabel 1 H'!E141<5,'Tabel 2 H'!G143<0.5),"-",IFERROR('Tabel 2 H'!G143/'Tabel 1 H'!E141*100,"-")) -> 0.7592462908 | I143: =IF(OR('Tabel 1 H'!G141<5,'Tabel 2 H'!I143<0.5),"-",IFERROR('Tabel 2 H'!I143/'Tabel 1 H'!G141*100,"-")) -> 1.886792453 | J143: =IF(OR('Tabel 1 H'!G141<5,'Tabel 2 H'!J143<0.5),"-",IFERROR('Tabel 2 H'!J143/'Tabel 1 H'!G141*100,"-")) -> 1.329804448
A144: Samf. Adm. | C144: =IF(OR('Tabel 1 H'!C142<5,'Tabel 2 H'!C144<0.5),"-",IFERROR('Tabel 2 H'!C144/'Tabel 1 H'!C142*100,"-")) -> 4.296296296 | D144: =IF(OR('Tabel 1 H'!C142<5,'Tabel 2 H'!D144<0.5),"-",IFERROR('Tabel 2 H'!D144/'Tabel 1 H'!C142*100,"-")) -> 4.154579328 | F144: =IF(OR('Tabel 1 H'!E142<5,'Tabel 2 H'!F144<0.5),"-",IFERROR('Tabel 2 H'!F144/'Tabel 1 H'!E142*100,"-")) -> 4.961832061 | G144: =IF(OR('Tabel 1 H'!E142<5,'Tabel 2 H'!G144<0.5),"-",IFERROR('Tabel 2 H'!G144/'Tabel 1 H'!E142*100,"-")) -> 4.320406909 | I144: =IF(OR('Tabel 1 H'!G142<5,'Tabel 2 H'!I144<0.5),"-",IFERROR('Tabel 2 H'!I144/'Tabel 1 H'!G142*100,"-")) -> 4.701102728 | J144: =IF(OR('Tabel 1 H'!G142<5,'Tabel 2 H'!J144<0.5),"-",IFERROR('Tabel 2 H'!J144/'Tabel 1 H'!G142*100,"-")) -> 4.255442535
A145: Cand. Merc. | C145: =IF(OR('Tabel 1 H'!C143<5,'Tabel 2 H'!C145<0.5),"-",IFERROR('Tabel 2 H'!C145/'Tabel 1 H'!C143*100,"-")) -> 3.528399312 | D145: =IF(OR('Tabel 1 H'!C143<5,'Tabel 2 H'!D145<0.5),"-",IFERROR('Tabel 2 H'!D145/'Tabel 1 H'!C143*100,"-")) -> 3.112234201 | F145: =IF(OR('Tabel 1 H'!E143<5,'Tabel 2 H'!F145<0.5),"-",IFERROR('Tabel 2 H'!F145/'Tabel 1 H'!E143*100,"-")) -> 4.41426146 | G145: =IF(OR('Tabel 1 H'!E143<5,'Tabel 2 H'!G145<0.5),"-",IFERROR('Tabel 2 H'!G145/'Tabel 1 H'!E143*100,"-")) -> 3.833297135 | I145: =IF(OR('Tabel 1 H'!G143<5,'Tabel 2 H'!I145<0.5),"-",IFERROR('Tabel 2 H'!I145/'Tabel 1 H'!G143*100,"-")) -> 3.974358974 | J145: =IF(OR('Tabel 1 H'!G143<5,'Tabel 2 H'!J145<0.5),"-",IFERROR('Tabel 2 H'!J145/'Tabel 1 H'!G143*100,"-")) -> 3.475230841
A146: HA | C146: =IF(OR('Tabel 1 H'!C144<5,'Tabel 2 H'!C146<0.5),"-",IFERROR('Tabel 2 H'!C146/'Tabel 1 H'!C144*100,"-")) -> 8.035714286 | D146: =IF(OR('Tabel 1 H'!C144<5,'Tabel 2 H'!D146<0.5),"-",IFERROR('Tabel 2 H'!D146/'Tabel 1 H'!C144*100,"-")) -> 7.963486024 | F146: =IF(OR('Tabel 1 H'!E144<5,'Tabel 2 H'!F146<0.5),"-",IFERROR('Tabel 2 H'!F146/'Tabel 1 H'!E144*100,"-")) -> 8.045977011 | G146: =IF(OR('Tabel 1 H'!E144<5,'Tabel 2 H'!G146<0.5),"-",IFERROR('Tabel 2 H'!G146/'Tabel 1 H'!E144*100,"-")) -> 6.090168912 | I146: =IF(OR('Tabel 1 H'!G144<5,'Tabel 2 H'!I146<0.5),"-",IFERROR('Tabel 2 H'!I146/'Tabel 1 H'!G144*100,"-")) -> 8.040201005 | J146: =IF(OR('Tabel 1 H'!G144<5,'Tabel 2 H'!J146<0.5),"-",IFERROR('Tabel 2 H'!J146/'Tabel 1 H'!G144*100,"-")) -> 7.144498141
A147: HD | C147: =IF(OR('Tabel 1 H'!C145<5,'Tabel 2 H'!C147<0.5),"-",IFERROR('Tabel 2 H'!C147/'Tabel 1 H'!C145*100,"-")) -> 8.26446281 | D147: =IF(OR('Tabel 1 H'!C145<5,'Tabel 2 H'!D147<0.5),"-",IFERROR('Tabel 2 H'!D147/'Tabel 1 H'!C145*100,"-")) -> 6.91548887 | F147: =IF(OR('Tabel 1 H'!E145<5,'Tabel 2 H'!F147<0.5),"-",IFERROR('Tabel 2 H'!F147/'Tabel 1 H'!E145*100,"-")) -> 6.315789474 | G147: =IF(OR('Tabel 1 H'!E145<5,'Tabel 2 H'!G147<0.5),"-",IFERROR('Tabel 2 H'!G147/'Tabel 1 H'!E145*100,"-")) -> 6.023103664 | I147: =IF(OR('Tabel 1 H'!G145<5,'Tabel 2 H'!I147<0.5),"-",IFERROR('Tabel 2 H'!I147/'Tabel 1 H'!G145*100,"-")) -> 7.407407407 | J147: =IF(OR('Tabel 1 H'!G145<5,'Tabel 2 H'!J147<0.5),"-",IFERROR('Tabel 2 H'!J147/'Tabel 1 H'!G145*100,"-")) -> 6.523004636
A148: Komm. og Sprog | C148: =IF(OR('Tabel 1 H'!C146<5,'Tabel 2 H'!C148<0.5),"-",IFERROR('Tabel 2 H'!C148/'Tabel 1 H'!C146*100,"-")) -> 8.771929825 | D148: =IF(OR('Tabel 1 H'!C146<5,'Tabel 2 H'!D148<0.5),"-",IFERROR('Tabel 2 H'!D148/'Tabel 1 H'!C146*100,"-")) -> 5.290623177 | F148: =IF(OR('Tabel 1 H'!E146<5,'Tabel 2 H'!F148<0.5),"-",IFERROR('Tabel 2 H'!F148/'Tabel 1 H'!E146*100,"-")) -> 11.31498471 | G148: =IF(OR('Tabel 1 H'!E146<5,'Tabel 2 H'!G148<0.5),"-",IFERROR('Tabel 2 H'!G148/'Tabel 1 H'!E146*100,"-")) -> 10.32465341 | I148: =IF(OR('Tabel 1 H'!G146<5,'Tabel 2 H'!I148<0.5),"-",IFERROR('Tabel 2 H'!I148/'Tabel 1 H'!G146*100,"-")) -> 10.9375 | J148: =IF(OR('Tabel 1 H'!G146<5,'Tabel 2 H'!J148<0.5),"-",IFERROR('Tabel 2 H'!J148/'Tabel 1 H'!G146*100,"-")) -> 9.577414551
A149: Bygningskonst. | C149: =IF(OR('Tabel 1 H'!C147<5,'Tabel 2 H'!C149<0.5),"-",IFERROR('Tabel 2 H'!C149/'Tabel 1 H'!C147*100,"-")) -> 1.769911504 | D149: =IF(OR('Tabel 1 H'!C147<5,'Tabel 2 H'!D149<0.5),"-",IFERROR('Tabel 2 H'!D149/'Tabel 1 H'!C147*100,"-")) -> 1.52484174 | F149: =IF(OR('Tabel 1 H'!E147<5,'Tabel 2 H'!F149<0.5),"-",IFERROR('Tabel 2 H'!F149/'Tabel 1 H'!E147*100,"-")) -> 2.631578947 | G149: =IF(OR('Tabel 1 H'!E147<5,'Tabel 2 H'!G149<0.5),"-",IFERROR('Tabel 2 H'!G149/'Tabel 1 H'!E147*100,"-")) -> 2.631578947 | I149: =IF(OR('Tabel 1 H'!G147<5,'Tabel 2 H'!I149<0.5),"-",IFERROR('Tabel 2 H'!I149/'Tabel 1 H'!G147*100,"-")) -> 1.986754967 | J149: =IF(OR('Tabel 1 H'!G147<5,'Tabel 2 H'!J149<0.5),"-",IFERROR('Tabel 2 H'!J149/'Tabel 1 H'!G147*100,"-")) -> 1.803358388
A150: Cand. IT. | C150: =IF(OR('Tabel 1 H'!C148<5,'Tabel 2 H'!C150<0.5),"-",IFERROR('Tabel 2 H'!C150/'Tabel 1 H'!C148*100,"-")) -> 5.042016807 | D150: =IF(OR('Tabel 1 H'!C148<5,'Tabel 2 H'!D150<0.5),"-",IFERROR('Tabel 2 H'!D150/'Tabel 1 H'!C148*100,"-")) -> 4.786346647 | F150: =IF(OR('Tabel 1 H'!E148<5,'Tabel 2 H'!F150<0.5),"-",IFERROR('Tabel 2 H'!F150/'Tabel 1 H'!E148*100,"-")) -> 6.315789474 | G150: =IF(OR('Tabel 1 H'!E148<5,'Tabel 2 H'!G150<0.5),"-",IFERROR('Tabel 2 H'!G150/'Tabel 1 H'!E148*100,"-")) -> 6.168855683 | I150: =IF(OR('Tabel 1 H'!G148<5,'Tabel 2 H'!I150<0.5),"-",IFERROR('Tabel 2 H'!I150/'Tabel 1 H'!G148*100,"-")) -> 5.607476636 | J150: =IF(OR('Tabel 1 H'!G148<5,'Tabel 2 H'!J150<0.5),"-",IFERROR('Tabel 2 H'!J150/'Tabel 1 H'!G148*100,"-")) -> 5.400077294
A151: Bac. Samf. | C151: =IF(OR('Tabel 1 H'!C149<5,'Tabel 2 H'!C151<0.5),"-",IFERROR('Tabel 2 H'!C151/'Tabel 1 H'!C149*100,"-")) -> 3.125 | D151: =IF(OR('Tabel 1 H'!C149<5,'Tabel 2 H'!D151<0.5),"-",IFERROR('Tabel 2 H'!D151/'Tabel 1 H'!C149*100,"-")) -> 3.124415269 | F151: =IF(OR('Tabel 1 H'!E149<5,'Tabel 2 H'!F151<0.5),"-",IFERROR('Tabel 2 H'!F151/'Tabel 1 H'!E149*100,"-")) -> 18.75 | G151: =IF(OR('Tabel 1 H'!E149<5,'Tabel 2 H'!G151<0.5),"-",IFERROR('Tabel 2 H'!G151/'Tabel 1 H'!E149*100,"-")) -> 18.54118589 | I151: =IF(OR('Tabel 1 H'!G149<5,'Tabel 2 H'!I151<0.5),"-",IFERROR('Tabel 2 H'!I151/'Tabel 1 H'!G149*100,"-")) -> 12.5 | J151: =IF(OR('Tabel 1 H'!G149<5,'Tabel 2 H'!J151<0.5),"-",IFERROR('Tabel 2 H'!J151/'Tabel 1 H'!G149*100,"-")) -> 12.37447764
A152: Bac. Hum. | C152: =IF(OR('Tabel 1 H'!C150<5,'Tabel 2 H'!C152<0.5),"-",IFERROR('Tabel 2 H'!C152/'Tabel 1 H'!C150*100,"-")) -> 11.94029851 | D152: =IF(OR('Tabel 1 H'!C150<5,'Tabel 2 H'!D152<0.5),"-",IFERROR('Tabel 2 H'!D152/'Tabel 1 H'!C150*100,"-")) -> 10.11253841 | F152: =IF(OR('Tabel 1 H'!E150<5,'Tabel 2 H'!F152<0.5),"-",IFERROR('Tabel 2 H'!F152/'Tabel 1 H'!E150*100,"-")) -> 14.50381679 | G152: =IF(OR('Tabel 1 H'!E150<5,'Tabel 2 H'!G152<0.5),"-",IFERROR('Tabel 2 H'!G152/'Tabel 1 H'!E150*100,"-")) -> 10.71835142 | I152: =IF(OR('Tabel 1 H'!G150<5,'Tabel 2 H'!I152<0.5),"-",IFERROR('Tabel 2 H'!I152/'Tabel 1 H'!G150*100,"-")) -> 13.63636364 | J152: =IF(OR('Tabel 1 H'!G150<5,'Tabel 2 H'!J152<0.5),"-",IFERROR('Tabel 2 H'!J152/'Tabel 1 H'!G150*100,"-")) -> 10.51335409
A153: Bac. Nat. | C153: =IF(OR('Tabel 1 H'!C151<5,'Tabel 2 H'!C153<0.5),"-",IFERROR('Tabel 2 H'!C153/'Tabel 1 H'!C151*100,"-")) -> 10.20408163 | D153: =IF(OR('Tabel 1 H'!C151<5,'Tabel 2 H'!D153<0.5),"-",IFERROR('Tabel 2 H'!D153/'Tabel 1 H'!C151*100,"-")) -> 10.20217231 | F153: =IF(OR('Tabel 1 H'!E151<5,'Tabel 2 H'!F153<0.5),"-",IFERROR('Tabel 2 H'!F153/'Tabel 1 H'!E151*100,"-")) -> 17.30769231 | G153: =IF(OR('Tabel 1 H'!E151<5,'Tabel 2 H'!G153<0.5),"-",IFERROR('Tabel 2 H'!G153/'Tabel 1 H'!E151*100,"-")) -> 17.14252815 | I153: =IF(OR('Tabel 1 H'!G151<5,'Tabel 2 H'!I153<0.5),"-",IFERROR('Tabel 2 H'!I153/'Tabel 1 H'!G151*100,"-")) -> 13.86138614 | J153: =IF(OR('Tabel 1 H'!G151<5,'Tabel 2 H'!J153<0.5),"-",IFERROR('Tabel 2 H'!J153/'Tabel 1 H'!G151*100,"-")) -> 13.77542482
A154: Andre | C154: =IF(OR('Tabel 1 H'!C152<5,'Tabel 2 H'!C154<0.5),"-",IFERROR('Tabel 2 H'!C154/'Tabel 1 H'!C152*100,"-")) -> 7.231040564 | D154: =IF(OR('Tabel 1 H'!C152<5,'Tabel 2 H'!D154<0.5),"-",IFERROR('Tabel 2 H'!D154/'Tabel 1 H'!C152*100,"-")) -> 6.469130962 | F154: =IF(OR('Tabel 1 H'!E152<5,'Tabel 2 H'!F154<0.5),"-",IFERROR('Tabel 2 H'!F154/'Tabel 1 H'!E152*100,"-")) -> 8.284023669 | G154: =IF(OR('Tabel 1 H'!E152<5,'Tabel 2 H'!G154<0.5),"-",IFERROR('Tabel 2 H'!G154/'Tabel 1 H'!E152*100,"-")) -> 7.175197457 | I154: =IF(OR('Tabel 1 H'!G152<5,'Tabel 2 H'!I154<0.5),"-",IFERROR('Tabel 2 H'!I154/'Tabel 1 H'!G152*100,"-")) -> 7.803700724 | J154: =IF(OR('Tabel 1 H'!G152<5,'Tabel 2 H'!J154<0.5),"-",IFERROR('Tabel 2 H'!J154/'Tabel 1 H'!G152*100,"-")) -> 6.853122073
A156: Total | C156: =IF(OR('Tabel 1 H'!C154<5,'Tabel 2 H'!C156<0.5),"-",IFERROR('Tabel 2 H'!C156/'Tabel 1 H'!C154*100,"-")) -> 4.974151181 | D156: =IF(OR('Tabel 1 H'!C154<5,'Tabel 2 H'!D156<0.5),"-",IFERROR('Tabel 2 H'!D156/'Tabel 1 H'!C154*100,"-")) -> 4.416092661 | F156: =IF(OR('Tabel 1 H'!E154<5,'Tabel 2 H'!F156<0.5),"-",IFERROR('Tabel 2 H'!F156/'Tabel 1 H'!E154*100,"-")) -> 6.225680934 | G156: =IF(OR('Tabel 1 H'!E154<5,'Tabel 2 H'!G156<0.5),"-",IFERROR('Tabel 2 H'!G156/'Tabel 1 H'!E154*100,"-")) -> 5.484520318 | I156: =IF(OR('Tabel 1 H'!G154<5,'Tabel 2 H'!I156<0.5),"-",IFERROR('Tabel 2 H'!I156/'Tabel 1 H'!G154*100,"-")) -> 5.662157911 | J156: =IF(OR('Tabel 1 H'!G154<5,'Tabel 2 H'!J156<0.5),"-",IFERROR('Tabel 2 H'!J156/'Tabel 1 H'!G154*100,"-")) -> 5.003442197
A158: Ingeniører i alt | C158: =IF(OR('Tabel 1 H'!C156<5,'Tabel 2 H'!C158<0.5),"-",IFERROR('Tabel 2 H'!C158/'Tabel 1 H'!C156*100,"-")) -> 2.948207171 | D158: =IF(OR('Tabel 1 H'!C156<5,'Tabel 2 H'!D158<0.5),"-",IFERROR('Tabel 2 H'!D158/'Tabel 1 H'!C156*100,"-")) -> 2.737133547 | F158: =IF(OR('Tabel 1 H'!E156<5,'Tabel 2 H'!F158<0.5),"-",IFERROR('Tabel 2 H'!F158/'Tabel 1 H'!E156*100,"-")) -> 3.023255814 | G158: =IF(OR('Tabel 1 H'!E156<5,'Tabel 2 H'!G158<0.5),"-",IFERROR('Tabel 2 H'!G158/'Tabel 1 H'!E156*100,"-")) -> 2.903749389 | I158: =IF(OR('Tabel 1 H'!G156<5,'Tabel 2 H'!I158<0.5),"-",IFERROR('Tabel 2 H'!I158/'Tabel 1 H'!G156*100,"-")) -> 2.96735905 | J158: =IF(OR('Tabel 1 H'!G156<5,'Tabel 2 H'!J158<0.5),"-",IFERROR('Tabel 2 H'!J158/'Tabel 1 H'!G156*100,"-")) -> 2.779652723
A159: Magistre i alt | C159: =IF(OR('Tabel 1 H'!C157<5,'Tabel 2 H'!C159<0.5),"-",IFERROR('Tabel 2 H'!C159/'Tabel 1 H'!C157*100,"-")) -> 8.333333333 | D159: =IF(OR('Tabel 1 H'!C157<5,'Tabel 2 H'!D159<0.5),"-",IFERROR('Tabel 2 H'!D159/'Tabel 1 H'!C157*100,"-")) -> 7.212941935 | F159: =IF(OR('Tabel 1 H'!E157<5,'Tabel 2 H'!F159<0.5),"-",IFERROR('Tabel 2 H'!F159/'Tabel 1 H'!E157*100,"-")) -> 9.962506695 | G159: =IF(OR('Tabel 1 H'!E157<5,'Tabel 2 H'!G159<0.5),"-",IFERROR('Tabel 2 H'!G159/'Tabel 1 H'!E157*100,"-")) -> 8.861410005 | I159: =IF(OR('Tabel 1 H'!G157<5,'Tabel 2 H'!I159<0.5),"-",IFERROR('Tabel 2 H'!I159/'Tabel 1 H'!G157*100,"-")) -> 9.386906824 | J159: =IF(OR('Tabel 1 H'!G157<5,'Tabel 2 H'!J159<0.5),"-",IFERROR('Tabel 2 H'!J159/'Tabel 1 H'!G157*100,"-")) -> 8.27899316
A160: DJØF'ere i alt | C160: =IF(OR('Tabel 1 H'!C158<5,'Tabel 2 H'!C160<0.5),"-",IFERROR('Tabel 2 H'!C160/'Tabel 1 H'!C158*100,"-")) -> 3.439349112 | D160: =IF(OR('Tabel 1 H'!C158<5,'Tabel 2 H'!D160<0.5),"-",IFERROR('Tabel 2 H'!D160/'Tabel 1 H'!C158*100,"-")) -> 3.119836602 | F160: =IF(OR('Tabel 1 H'!E158<5,'Tabel 2 H'!F160<0.5),"-",IFERROR('Tabel 2 H'!F160/'Tabel 1 H'!E158*100,"-")) -> 3.944099379 | G160: =IF(OR('Tabel 1 H'!E158<5,'Tabel 2 H'!G160<0.5),"-",IFERROR('Tabel 2 H'!G160/'Tabel 1 H'!E158*100,"-")) -> 3.384711579 | I160: =IF(OR('Tabel 1 H'!G158<5,'Tabel 2 H'!I160<0.5),"-",IFERROR('Tabel 2 H'!I160/'Tabel 1 H'!G158*100,"-")) -> 3.713706955 | J160: =IF(OR('Tabel 1 H'!G158<5,'Tabel 2 H'!J160<0.5),"-",IFERROR('Tabel 2 H'!J160/'Tabel 1 H'!G158*100,"-")) -> 3.263809834
A165: Ballerup
C167: Mænd | F167: Kvinder | I167: I alt
C168: Ledigheds- berørte | D168: Gns. brutto- ledighed | F168: Ledigheds- berørte | G168: Gns. brutto- ledighed | I168: Ledigheds- berørte | J168: Gns. brutto- ledighed
A171: Civ. ing. | C171: =IF(OR('Tabel 1 H'!C169<5,'Tabel 2 H'!C171<0.5),"-",IFERROR('Tabel 2 H'!C171/'Tabel 1 H'!C169*100,"-")) -> 1.03626943 | D171: =IF(OR('Tabel 1 H'!C169<5,'Tabel 2 H'!D171<0.5),"-",IFERROR('Tabel 2 H'!D171/'Tabel 1 H'!C169*100,"-")) -> 0.8567174762 | F171: =IF(OR('Tabel 1 H'!E169<5,'Tabel 2 H'!F171<0.5),"-",IFERROR('Tabel 2 H'!F171/'Tabel 1 H'!E169*100,"-")) -> 2.48447205 | G171: =IF(OR('Tabel 1 H'!E169<5,'Tabel 2 H'!G171<0.5),"-",IFERROR('Tabel 2 H'!G171/'Tabel 1 H'!E169*100,"-")) -> 1.734388662 | I171: =IF(OR('Tabel 1 H'!G169<5,'Tabel 2 H'!I171<0.5),"-",IFERROR('Tabel 2 H'!I171/'Tabel 1 H'!G169*100,"-")) -> 1.462522852 | J171: =IF(OR('Tabel 1 H'!G169<5,'Tabel 2 H'!J171<0.5),"-",IFERROR('Tabel 2 H'!J171/'Tabel 1 H'!G169*100,"-")) -> 1.115044827
A172: Diplom ing. | C172: =IF(OR('Tabel 1 H'!C170<5,'Tabel 2 H'!C172<0.5),"-",IFERROR('Tabel 2 H'!C172/'Tabel 1 H'!C170*100,"-")) -> 2.770780856 | D172: =IF(OR('Tabel 1 H'!C170<5,'Tabel 2 H'!D172<0.5),"-",IFERROR('Tabel 2 H'!D172/'Tabel 1 H'!C170*100,"-")) -> 2.456677435 | F172: =IF(OR('Tabel 1 H'!E170<5,'Tabel 2 H'!F172<0.5),"-",IFERROR('Tabel 2 H'!F172/'Tabel 1 H'!E170*100,"-")) -> 4.04040404 | G172: =IF(OR('Tabel 1 H'!E170<5,'Tabel 2 H'!G172<0.5),"-",IFERROR('Tabel 2 H'!G172/'Tabel 1 H'!E170*100,"-")) -> 2.811121254 | I172: =IF(OR('Tabel 1 H'!G170<5,'Tabel 2 H'!I172<0.5),"-",IFERROR('Tabel 2 H'!I172/'Tabel 1 H'!G170*100,"-")) -> 3.024193548 | J172: =IF(OR('Tabel 1 H'!G170<5,'Tabel 2 H'!J172<0.5),"-",IFERROR('Tabel 2 H'!J172/'Tabel 1 H'!G170*100,"-")) -> 2.527423278
A173: Cand. Scient. Tek. | C173: =IF(OR('Tabel 1 H'!C171<5,'Tabel 2 H'!C173<0.5),"-",IFERROR('Tabel 2 H'!C173/'Tabel 1 H'!C171*100,"-")) -> 3.47826087 | D173: =IF(OR('Tabel 1 H'!C171<5,'Tabel 2 H'!D173<0.5),"-",IFERROR('Tabel 2 H'!D173/'Tabel 1 H'!C171*100,"-")) -> 2.753017553 | F173: =IF(OR('Tabel 1 H'!E171<5,'Tabel 2 H'!F173<0.5),"-",IFERROR('Tabel 2 H'!F173/'Tabel 1 H'!E171*100,"-")) -> 6.52173913 | G173: =IF(OR('Tabel 1 H'!E171<5,'Tabel 2 H'!G173<0.5),"-",IFERROR('Tabel 2 H'!G173/'Tabel 1 H'!E171*100,"-")) -> 6.351031432 | I173: =IF(OR('Tabel 1 H'!G171<5,'Tabel 2 H'!I173<0.5),"-",IFERROR('Tabel 2 H'!I173/'Tabel 1 H'!G171*100,"-")) -> 4.830917874 | J173: =IF(OR('Tabel 1 H'!G171<5,'Tabel 2 H'!J173<0.5),"-",IFERROR('Tabel 2 H'!J173/'Tabel 1 H'!G171*100,"-")) -> 4.352134833
A174: MA. Hum. | C174: =IF(OR('Tabel 1 H'!C172<5,'Tabel 2 H'!C174<0.5),"-",IFERROR('Tabel 2 H'!C174/'Tabel 1 H'!C172*100,"-")) -> 1.449275362 | D174: =IF(OR('Tabel 1 H'!C172<5,'Tabel 2 H'!D174<0.5),"-",IFERROR('Tabel 2 H'!D174/'Tabel 1 H'!C172*100,"-")) -> 1.449004182 | F174: =IF(OR('Tabel 1 H'!E172<5,'Tabel 2 H'!F174<0.5),"-",IFERROR('Tabel 2 H'!F174/'Tabel 1 H'!E172*100,"-")) -> 7.843137255 | G174: =IF(OR('Tabel 1 H'!E172<5,'Tabel 2 H'!G174<0.5),"-",IFERROR('Tabel 2 H'!G174/'Tabel 1 H'!E172*100,"-")) -> 6.175987516 | I174: =IF(OR('Tabel 1 H'!G172<5,'Tabel 2 H'!I174<0.5),"-",IFERROR('Tabel 2 H'!I174/'Tabel 1 H'!G172*100,"-")) -> 5.855855856 | J174: =IF(OR('Tabel 1 H'!G172<5,'Tabel 2 H'!J174<0.5),"-",IFERROR('Tabel 2 H'!J174/'Tabel 1 H'!G172*100,"-")) -> 4.706789993
A175: MA. Nat. | C175: =IF(OR('Tabel 1 H'!C173<5,'Tabel 2 H'!C175<0.5),"-",IFERROR('Tabel 2 H'!C175/'Tabel 1 H'!C173*100,"-")) -> - | D175: =IF(OR('Tabel 1 H'!C173<5,'Tabel 2 H'!D175<0.5),"-",IFERROR('Tabel 2 H'!D175/'Tabel 1 H'!C173*100,"-")) -> - | F175: =IF(OR('Tabel 1 H'!E173<5,'Tabel 2 H'!F175<0.5),"-",IFERROR('Tabel 2 H'!F175/'Tabel 1 H'!E173*100,"-")) -> 3.488372093 | G175: =IF(OR('Tabel 1 H'!E173<5,'Tabel 2 H'!G175<0.5),"-",IFERROR('Tabel 2 H'!G175/'Tabel 1 H'!E173*100,"-")) -> 2.834270596 | I175: =IF(OR('Tabel 1 H'!G173<5,'Tabel 2 H'!I175<0.5),"-",IFERROR('Tabel 2 H'!I175/'Tabel 1 H'!G173*100,"-")) -> 1.796407186 | J175: =IF(OR('Tabel 1 H'!G173<5,'Tabel 2 H'!J175<0.5),"-",IFERROR('Tabel 2 H'!J175/'Tabel 1 H'!G173*100,"-")) -> 1.459564499
A176: MA. Ph.d. | C176: =IF(OR('Tabel 1 H'!C174<5,'Tabel 2 H'!C176<0.5),"-",IFERROR('Tabel 2 H'!C176/'Tabel 1 H'!C174*100,"-")) -> - | D176: =IF(OR('Tabel 1 H'!C174<5,'Tabel 2 H'!D176<0.5),"-",IFERROR('Tabel 2 H'!D176/'Tabel 1 H'!C174*100,"-")) -> - | F176: =IF(OR('Tabel 1 H'!E174<5,'Tabel 2 H'!F176<0.5),"-",IFERROR('Tabel 2 H'!F176/'Tabel 1 H'!E174*100,"-")) -> - | G176: =IF(OR('Tabel 1 H'!E174<5,'Tabel 2 H'!G176<0.5),"-",IFERROR('Tabel 2 H'!G176/'Tabel 1 H'!E174*100,"-")) -> - | I176: =IF(OR('Tabel 1 H'!G174<5,'Tabel 2 H'!I176<0.5),"-",IFERROR('Tabel 2 H'!I176/'Tabel 1 H'!G174*100,"-")) -> - | J176: =IF(OR('Tabel 1 H'!G174<5,'Tabel 2 H'!J176<0.5),"-",IFERROR('Tabel 2 H'!J176/'Tabel 1 H'!G174*100,"-")) -> -
A177: MA. Samf. | C177: =IF(OR('Tabel 1 H'!C175<5,'Tabel 2 H'!C177<0.5),"-",IFERROR('Tabel 2 H'!C177/'Tabel 1 H'!C175*100,"-")) -> 16.66666667 | D177: =IF(OR('Tabel 1 H'!C175<5,'Tabel 2 H'!D177<0.5),"-",IFERROR('Tabel 2 H'!D177/'Tabel 1 H'!C175*100,"-")) -> 16.6635481 | F177: =IF(OR('Tabel 1 H'!E175<5,'Tabel 2 H'!F177<0.5),"-",IFERROR('Tabel 2 H'!F177/'Tabel 1 H'!E175*100,"-")) -> 5.882352941 | G177: =IF(OR('Tabel 1 H'!E175<5,'Tabel 2 H'!G177<0.5),"-",IFERROR('Tabel 2 H'!G177/'Tabel 1 H'!E175*100,"-")) -> 5.88125227 | I177: =IF(OR('Tabel 1 H'!G175<5,'Tabel 2 H'!I177<0.5),"-",IFERROR('Tabel 2 H'!I177/'Tabel 1 H'!G175*100,"-")) -> 11.42857143 | J177: =IF(OR('Tabel 1 H'!G175<5,'Tabel 2 H'!J177<0.5),"-",IFERROR('Tabel 2 H'!J177/'Tabel 1 H'!G175*100,"-")) -> 11.42643298
A178: Øvrige Mag. | C178: =IF(OR('Tabel 1 H'!C176<5,'Tabel 2 H'!C178<0.5),"-",IFERROR('Tabel 2 H'!C178/'Tabel 1 H'!C176*100,"-")) -> - | D178: =IF(OR('Tabel 1 H'!C176<5,'Tabel 2 H'!D178<0.5),"-",IFERROR('Tabel 2 H'!D178/'Tabel 1 H'!C176*100,"-")) -> - | F178: =IF(OR('Tabel 1 H'!E176<5,'Tabel 2 H'!F178<0.5),"-",IFERROR('Tabel 2 H'!F178/'Tabel 1 H'!E176*100,"-")) -> - | G178: =IF(OR('Tabel 1 H'!E176<5,'Tabel 2 H'!G178<0.5),"-",IFERROR('Tabel 2 H'!G178/'Tabel 1 H'!E176*100,"-")) -> - | I178: =IF(OR('Tabel 1 H'!G176<5,'Tabel 2 H'!I178<0.5),"-",IFERROR('Tabel 2 H'!I178/'Tabel 1 H'!G176*100,"-")) -> - | J178: =IF(OR('Tabel 1 H'!G176<5,'Tabel 2 H'!J178<0.5),"-",IFERROR('Tabel 2 H'!J178/'Tabel 1 H'!G176*100,"-")) -> -
A179: Agronom | C179: =IF(OR('Tabel 1 H'!C177<5,'Tabel 2 H'!C179<0.5),"-",IFERROR('Tabel 2 H'!C179/'Tabel 1 H'!C177*100,"-")) -> - | D179: =IF(OR('Tabel 1 H'!C177<5,'Tabel 2 H'!D179<0.5),"-",IFERROR('Tabel 2 H'!D179/'Tabel 1 H'!C177*100,"-")) -> - | F179: =IF(OR('Tabel 1 H'!E177<5,'Tabel 2 H'!F179<0.5),"-",IFERROR('Tabel 2 H'!F179/'Tabel 1 H'!E177*100,"-")) -> - | G179: =IF(OR('Tabel 1 H'!E177<5,'Tabel 2 H'!G179<0.5),"-",IFERROR('Tabel 2 H'!G179/'Tabel 1 H'!E177*100,"-")) -> - | I179: =IF(OR('Tabel 1 H'!G177<5,'Tabel 2 H'!I179<0.5),"-",IFERROR('Tabel 2 H'!I179/'Tabel 1 H'!G177*100,"-")) -> - | J179: =IF(OR('Tabel 1 H'!G177<5,'Tabel 2 H'!J179<0.5),"-",IFERROR('Tabel 2 H'!J179/'Tabel 1 H'!G177*100,"-")) -> -
A180: Landsk. Arkt. | C180: =IF(OR('Tabel 1 H'!C178<5,'Tabel 2 H'!C180<0.5),"-",IFERROR('Tabel 2 H'!C180/'Tabel 1 H'!C178*100,"-")) -> - | D180: =IF(OR('Tabel 1 H'!C178<5,'Tabel 2 H'!D180<0.5),"-",IFERROR('Tabel 2 H'!D180/'Tabel 1 H'!C178*100,"-")) -> - | F180: =IF(OR('Tabel 1 H'!E178<5,'Tabel 2 H'!F180<0.5),"-",IFERROR('Tabel 2 H'!F180/'Tabel 1 H'!E178*100,"-")) -> 25 | G180: =IF(OR('Tabel 1 H'!E178<5,'Tabel 2 H'!G180<0.5),"-",IFERROR('Tabel 2 H'!G180/'Tabel 1 H'!E178*100,"-")) -> 24.99532215 | I180: =IF(OR('Tabel 1 H'!G178<5,'Tabel 2 H'!I180<0.5),"-",IFERROR('Tabel 2 H'!I180/'Tabel 1 H'!G178*100,"-")) -> 20 | J180: =IF(OR('Tabel 1 H'!G178<5,'Tabel 2 H'!J180<0.5),"-",IFERROR('Tabel 2 H'!J180/'Tabel 1 H'!G178*100,"-")) -> 19.99625772
A181: Hortonom | C181: =IF(OR('Tabel 1 H'!C179<5,'Tabel 2 H'!C181<0.5),"-",IFERROR('Tabel 2 H'!C181/'Tabel 1 H'!C179*100,"-")) -> - | D181: =IF(OR('Tabel 1 H'!C179<5,'Tabel 2 H'!D181<0.5),"-",IFERROR('Tabel 2 H'!D181/'Tabel 1 H'!C179*100,"-")) -> - | F181: =IF(OR('Tabel 1 H'!E179<5,'Tabel 2 H'!F181<0.5),"-",IFERROR('Tabel 2 H'!F181/'Tabel 1 H'!E179*100,"-")) -> - | G181: =IF(OR('Tabel 1 H'!E179<5,'Tabel 2 H'!G181<0.5),"-",IFERROR('Tabel 2 H'!G181/'Tabel 1 H'!E179*100,"-")) -> - | I181: =IF(OR('Tabel 1 H'!G179<5,'Tabel 2 H'!I181<0.5),"-",IFERROR('Tabel 2 H'!I181/'Tabel 1 H'!G179*100,"-")) -> - | J181: =IF(OR('Tabel 1 H'!G179<5,'Tabel 2 H'!J181<0.5),"-",IFERROR('Tabel 2 H'!J181/'Tabel 1 H'!G179*100,"-")) -> -
A182: Forstkand. | C182: =IF(OR('Tabel 1 H'!C180<5,'Tabel 2 H'!C182<0.5),"-",IFERROR('Tabel 2 H'!C182/'Tabel 1 H'!C180*100,"-")) -> - | D182: =IF(OR('Tabel 1 H'!C180<5,'Tabel 2 H'!D182<0.5),"-",IFERROR('Tabel 2 H'!D182/'Tabel 1 H'!C180*100,"-")) -> - | F182: =IF(OR('Tabel 1 H'!E180<5,'Tabel 2 H'!F182<0.5),"-",IFERROR('Tabel 2 H'!F182/'Tabel 1 H'!E180*100,"-")) -> - | G182: =IF(OR('Tabel 1 H'!E180<5,'Tabel 2 H'!G182<0.5),"-",IFERROR('Tabel 2 H'!G182/'Tabel 1 H'!E180*100,"-")) -> - | I182: =IF(OR('Tabel 1 H'!G180<5,'Tabel 2 H'!I182<0.5),"-",IFERROR('Tabel 2 H'!I182/'Tabel 1 H'!G180*100,"-")) -> - | J182: =IF(OR('Tabel 1 H'!G180<5,'Tabel 2 H'!J182<0.5),"-",IFERROR('Tabel 2 H'!J182/'Tabel 1 H'!G180*100,"-")) -> -
A183: Jordbrugsakad. | C183: =IF(OR('Tabel 1 H'!C181<5,'Tabel 2 H'!C183<0.5),"-",IFERROR('Tabel 2 H'!C183/'Tabel 1 H'!C181*100,"-")) -> - | D183: =IF(OR('Tabel 1 H'!C181<5,'Tabel 2 H'!D183<0.5),"-",IFERROR('Tabel 2 H'!D183/'Tabel 1 H'!C181*100,"-")) -> - | F183: =IF(OR('Tabel 1 H'!E181<5,'Tabel 2 H'!F183<0.5),"-",IFERROR('Tabel 2 H'!F183/'Tabel 1 H'!E181*100,"-")) -> 9.090909091 | G183: =IF(OR('Tabel 1 H'!E181<5,'Tabel 2 H'!G183<0.5),"-",IFERROR('Tabel 2 H'!G183/'Tabel 1 H'!E181*100,"-")) -> 9.089208054 | I183: =IF(OR('Tabel 1 H'!G181<5,'Tabel 2 H'!I183<0.5),"-",IFERROR('Tabel 2 H'!I183/'Tabel 1 H'!G181*100,"-")) -> 5.405405405 | J183: =IF(OR('Tabel 1 H'!G181<5,'Tabel 2 H'!J183<0.5),"-",IFERROR('Tabel 2 H'!J183/'Tabel 1 H'!G181*100,"-")) -> 5.404393978
A184: Mejeriing. | C184: =IF(OR('Tabel 1 H'!C182<5,'Tabel 2 H'!C184<0.5),"-",IFERROR('Tabel 2 H'!C184/'Tabel 1 H'!C182*100,"-")) -> - | D184: =IF(OR('Tabel 1 H'!C182<5,'Tabel 2 H'!D184<0.5),"-",IFERROR('Tabel 2 H'!D184/'Tabel 1 H'!C182*100,"-")) -> - | F184: =IF(OR('Tabel 1 H'!E182<5,'Tabel 2 H'!F184<0.5),"-",IFERROR('Tabel 2 H'!F184/'Tabel 1 H'!E182*100,"-")) -> - | G184: =IF(OR('Tabel 1 H'!E182<5,'Tabel 2 H'!G184<0.5),"-",IFERROR('Tabel 2 H'!G184/'Tabel 1 H'!E182*100,"-")) -> - | I184: =IF(OR('Tabel 1 H'!G182<5,'Tabel 2 H'!I184<0.5),"-",IFERROR('Tabel 2 H'!I184/'Tabel 1 H'!G182*100,"-")) -> - | J184: =IF(OR('Tabel 1 H'!G182<5,'Tabel 2 H'!J184<0.5),"-",IFERROR('Tabel 2 H'!J184/'Tabel 1 H'!G182*100,"-")) -> -
A185: Levn.m.kand. | C185: =IF(OR('Tabel 1 H'!C183<5,'Tabel 2 H'!C185<0.5),"-",IFERROR('Tabel 2 H'!C185/'Tabel 1 H'!C183*100,"-")) -> - | D185: =IF(OR('Tabel 1 H'!C183<5,'Tabel 2 H'!D185<0.5),"-",IFERROR('Tabel 2 H'!D185/'Tabel 1 H'!C183*100,"-")) -> - | F185: =IF(OR('Tabel 1 H'!E183<5,'Tabel 2 H'!F185<0.5),"-",IFERROR('Tabel 2 H'!F185/'Tabel 1 H'!E183*100,"-")) -> - | G185: =IF(OR('Tabel 1 H'!E183<5,'Tabel 2 H'!G185<0.5),"-",IFERROR('Tabel 2 H'!G185/'Tabel 1 H'!E183*100,"-")) -> - | I185: =IF(OR('Tabel 1 H'!G183<5,'Tabel 2 H'!I185<0.5),"-",IFERROR('Tabel 2 H'!I185/'Tabel 1 H'!G183*100,"-")) -> - | J185: =IF(OR('Tabel 1 H'!G183<5,'Tabel 2 H'!J185<0.5),"-",IFERROR('Tabel 2 H'!J185/'Tabel 1 H'!G183*100,"-")) -> -
A186: Dyrlæge | C186: =IF(OR('Tabel 1 H'!C184<5,'Tabel 2 H'!C186<0.5),"-",IFERROR('Tabel 2 H'!C186/'Tabel 1 H'!C184*100,"-")) -> - | D186: =IF(OR('Tabel 1 H'!C184<5,'Tabel 2 H'!D186<0.5),"-",IFERROR('Tabel 2 H'!D186/'Tabel 1 H'!C184*100,"-")) -> - | F186: =IF(OR('Tabel 1 H'!E184<5,'Tabel 2 H'!F186<0.5),"-",IFERROR('Tabel 2 H'!F186/'Tabel 1 H'!E184*100,"-")) -> - | G186: =IF(OR('Tabel 1 H'!E184<5,'Tabel 2 H'!G186<0.5),"-",IFERROR('Tabel 2 H'!G186/'Tabel 1 H'!E184*100,"-")) -> - | I186: =IF(OR('Tabel 1 H'!G184<5,'Tabel 2 H'!I186<0.5),"-",IFERROR('Tabel 2 H'!I186/'Tabel 1 H'!G184*100,"-")) -> - | J186: =IF(OR('Tabel 1 H'!G184<5,'Tabel 2 H'!J186<0.5),"-",IFERROR('Tabel 2 H'!J186/'Tabel 1 H'!G184*100,"-")) -> -
A187: Farmaceut | C187: =IF(OR('Tabel 1 H'!C185<5,'Tabel 2 H'!C187<0.5),"-",IFERROR('Tabel 2 H'!C187/'Tabel 1 H'!C185*100,"-")) -> 2.941176471 | D187: =IF(OR('Tabel 1 H'!C185<5,'Tabel 2 H'!D187<0.5),"-",IFERROR('Tabel 2 H'!D187/'Tabel 1 H'!C185*100,"-")) -> 2.940626135 | F187: =IF(OR('Tabel 1 H'!E185<5,'Tabel 2 H'!F187<0.5),"-",IFERROR('Tabel 2 H'!F187/'Tabel 1 H'!E185*100,"-")) -> 2.105263158 | G187: =IF(OR('Tabel 1 H'!E185<5,'Tabel 2 H'!G187<0.5),"-",IFERROR('Tabel 2 H'!G187/'Tabel 1 H'!E185*100,"-")) -> 2.104869234 | I187: =IF(OR('Tabel 1 H'!G185<5,'Tabel 2 H'!I187<0.5),"-",IFERROR('Tabel 2 H'!I187/'Tabel 1 H'!G185*100,"-")) -> 2.325581395 | J187: =IF(OR('Tabel 1 H'!G185<5,'Tabel 2 H'!J187<0.5),"-",IFERROR('Tabel 2 H'!J187/'Tabel 1 H'!G185*100,"-")) -> 2.325146246
A188: Læge | C188: =IF(OR('Tabel 1 H'!C186<5,'Tabel 2 H'!C188<0.5),"-",IFERROR('Tabel 2 H'!C188/'Tabel 1 H'!C186*100,"-")) -> 3.448275862 | D188: =IF(OR('Tabel 1 H'!C186<5,'Tabel 2 H'!D188<0.5),"-",IFERROR('Tabel 2 H'!D188/'Tabel 1 H'!C186*100,"-")) -> 2.73788759 | F188: =IF(OR('Tabel 1 H'!E186<5,'Tabel 2 H'!F188<0.5),"-",IFERROR('Tabel 2 H'!F188/'Tabel 1 H'!E186*100,"-")) -> - | G188: =IF(OR('Tabel 1 H'!E186<5,'Tabel 2 H'!G188<0.5),"-",IFERROR('Tabel 2 H'!G188/'Tabel 1 H'!E186*100,"-")) -> - | I188: =IF(OR('Tabel 1 H'!G186<5,'Tabel 2 H'!I188<0.5),"-",IFERROR('Tabel 2 H'!I188/'Tabel 1 H'!G186*100,"-")) -> 1.204819277 | J188: =IF(OR('Tabel 1 H'!G186<5,'Tabel 2 H'!J188<0.5),"-",IFERROR('Tabel 2 H'!J188/'Tabel 1 H'!G186*100,"-")) -> 0.9566113265
A189: Tandlæge | C189: =IF(OR('Tabel 1 H'!C187<5,'Tabel 2 H'!C189<0.5),"-",IFERROR('Tabel 2 H'!C189/'Tabel 1 H'!C187*100,"-")) -> - | D189: =IF(OR('Tabel 1 H'!C187<5,'Tabel 2 H'!D189<0.5),"-",IFERROR('Tabel 2 H'!D189/'Tabel 1 H'!C187*100,"-")) -> - | F189: =IF(OR('Tabel 1 H'!E187<5,'Tabel 2 H'!F189<0.5),"-",IFERROR('Tabel 2 H'!F189/'Tabel 1 H'!E187*100,"-")) -> - | G189: =IF(OR('Tabel 1 H'!E187<5,'Tabel 2 H'!G189<0.5),"-",IFERROR('Tabel 2 H'!G189/'Tabel 1 H'!E187*100,"-")) -> - | I189: =IF(OR('Tabel 1 H'!G187<5,'Tabel 2 H'!I189<0.5),"-",IFERROR('Tabel 2 H'!I189/'Tabel 1 H'!G187*100,"-")) -> - | J189: =IF(OR('Tabel 1 H'!G187<5,'Tabel 2 H'!J189<0.5),"-",IFERROR('Tabel 2 H'!J189/'Tabel 1 H'!G187*100,"-")) -> -
A190: Arkitekt | C190: =IF(OR('Tabel 1 H'!C188<5,'Tabel 2 H'!C190<0.5),"-",IFERROR('Tabel 2 H'!C190/'Tabel 1 H'!C188*100,"-")) -> 10 | D190: =IF(OR('Tabel 1 H'!C188<5,'Tabel 2 H'!D190<0.5),"-",IFERROR('Tabel 2 H'!D190/'Tabel 1 H'!C188*100,"-")) -> 9.998128859 | F190: =IF(OR('Tabel 1 H'!E188<5,'Tabel 2 H'!F190<0.5),"-",IFERROR('Tabel 2 H'!F190/'Tabel 1 H'!E188*100,"-")) -> 9.090909091 | G190: =IF(OR('Tabel 1 H'!E188<5,'Tabel 2 H'!G190<0.5),"-",IFERROR('Tabel 2 H'!G190/'Tabel 1 H'!E188*100,"-")) -> 8.834052494 | I190: =IF(OR('Tabel 1 H'!G188<5,'Tabel 2 H'!I190<0.5),"-",IFERROR('Tabel 2 H'!I190/'Tabel 1 H'!G188*100,"-")) -> 9.523809524 | J190: =IF(OR('Tabel 1 H'!G188<5,'Tabel 2 H'!J190<0.5),"-",IFERROR('Tabel 2 H'!J190/'Tabel 1 H'!G188*100,"-")) -> 9.388374573
A191: Landinspek. | C191: =IF(OR('Tabel 1 H'!C189<5,'Tabel 2 H'!C191<0.5),"-",IFERROR('Tabel 2 H'!C191/'Tabel 1 H'!C189*100,"-")) -> - | D191: =IF(OR('Tabel 1 H'!C189<5,'Tabel 2 H'!D191<0.5),"-",IFERROR('Tabel 2 H'!D191/'Tabel 1 H'!C189*100,"-")) -> - | F191: =IF(OR('Tabel 1 H'!E189<5,'Tabel 2 H'!F191<0.5),"-",IFERROR('Tabel 2 H'!F191/'Tabel 1 H'!E189*100,"-")) -> - | G191: =IF(OR('Tabel 1 H'!E189<5,'Tabel 2 H'!G191<0.5),"-",IFERROR('Tabel 2 H'!G191/'Tabel 1 H'!E189*100,"-")) -> - | I191: =IF(OR('Tabel 1 H'!G189<5,'Tabel 2 H'!I191<0.5),"-",IFERROR('Tabel 2 H'!I191/'Tabel 1 H'!G189*100,"-")) -> - | J191: =IF(OR('Tabel 1 H'!G189<5,'Tabel 2 H'!J191<0.5),"-",IFERROR('Tabel 2 H'!J191/'Tabel 1 H'!G189*100,"-")) -> -
A192: Bibliotekar | C192: =IF(OR('Tabel 1 H'!C190<5,'Tabel 2 H'!C192<0.5),"-",IFERROR('Tabel 2 H'!C192/'Tabel 1 H'!C190*100,"-")) -> - | D192: =IF(OR('Tabel 1 H'!C190<5,'Tabel 2 H'!D192<0.5),"-",IFERROR('Tabel 2 H'!D192/'Tabel 1 H'!C190*100,"-")) -> - | F192: =IF(OR('Tabel 1 H'!E190<5,'Tabel 2 H'!F192<0.5),"-",IFERROR('Tabel 2 H'!F192/'Tabel 1 H'!E190*100,"-")) -> 6.666666667 | G192: =IF(OR('Tabel 1 H'!E190<5,'Tabel 2 H'!G192<0.5),"-",IFERROR('Tabel 2 H'!G192/'Tabel 1 H'!E190*100,"-")) -> 6.033389468 | I192: =IF(OR('Tabel 1 H'!G190<5,'Tabel 2 H'!I192<0.5),"-",IFERROR('Tabel 2 H'!I192/'Tabel 1 H'!G190*100,"-")) -> 4.87804878 | J192: =IF(OR('Tabel 1 H'!G190<5,'Tabel 2 H'!J192<0.5),"-",IFERROR('Tabel 2 H'!J192/'Tabel 1 H'!G190*100,"-")) -> 4.41467522
A193: Musikudd. | C193: =IF(OR('Tabel 1 H'!C191<5,'Tabel 2 H'!C193<0.5),"-",IFERROR('Tabel 2 H'!C193/'Tabel 1 H'!C191*100,"-")) -> - | D193: =IF(OR('Tabel 1 H'!C191<5,'Tabel 2 H'!D193<0.5),"-",IFERROR('Tabel 2 H'!D193/'Tabel 1 H'!C191*100,"-")) -> - | F193: =IF(OR('Tabel 1 H'!E191<5,'Tabel 2 H'!F193<0.5),"-",IFERROR('Tabel 2 H'!F193/'Tabel 1 H'!E191*100,"-")) -> - | G193: =IF(OR('Tabel 1 H'!E191<5,'Tabel 2 H'!G193<0.5),"-",IFERROR('Tabel 2 H'!G193/'Tabel 1 H'!E191*100,"-")) -> - | I193: =IF(OR('Tabel 1 H'!G191<5,'Tabel 2 H'!I193<0.5),"-",IFERROR('Tabel 2 H'!I193/'Tabel 1 H'!G191*100,"-")) -> 12.5 | J193: =IF(OR('Tabel 1 H'!G191<5,'Tabel 2 H'!J193<0.5),"-",IFERROR('Tabel 2 H'!J193/'Tabel 1 H'!G191*100,"-")) -> 10.55635252
A194: Teolog | C194: =IF(OR('Tabel 1 H'!C192<5,'Tabel 2 H'!C194<0.5),"-",IFERROR('Tabel 2 H'!C194/'Tabel 1 H'!C192*100,"-")) -> - | D194: =IF(OR('Tabel 1 H'!C192<5,'Tabel 2 H'!D194<0.5),"-",IFERROR('Tabel 2 H'!D194/'Tabel 1 H'!C192*100,"-")) -> - | F194: =IF(OR('Tabel 1 H'!E192<5,'Tabel 2 H'!F194<0.5),"-",IFERROR('Tabel 2 H'!F194/'Tabel 1 H'!E192*100,"-")) -> - | G194: =IF(OR('Tabel 1 H'!E192<5,'Tabel 2 H'!G194<0.5),"-",IFERROR('Tabel 2 H'!G194/'Tabel 1 H'!E192*100,"-")) -> - | I194: =IF(OR('Tabel 1 H'!G192<5,'Tabel 2 H'!I194<0.5),"-",IFERROR('Tabel 2 H'!I194/'Tabel 1 H'!G192*100,"-")) -> - | J194: =IF(OR('Tabel 1 H'!G192<5,'Tabel 2 H'!J194<0.5),"-",IFERROR('Tabel 2 H'!J194/'Tabel 1 H'!G192*100,"-")) -> -
A195: Psykolog | C195: =IF(OR('Tabel 1 H'!C193<5,'Tabel 2 H'!C195<0.5),"-",IFERROR('Tabel 2 H'!C195/'Tabel 1 H'!C193*100,"-")) -> - | D195: =IF(OR('Tabel 1 H'!C193<5,'Tabel 2 H'!D195<0.5),"-",IFERROR('Tabel 2 H'!D195/'Tabel 1 H'!C193*100,"-")) -> - | F195: =IF(OR('Tabel 1 H'!E193<5,'Tabel 2 H'!F195<0.5),"-",IFERROR('Tabel 2 H'!F195/'Tabel 1 H'!E193*100,"-")) -> 2.564102564 | G195: =IF(OR('Tabel 1 H'!E193<5,'Tabel 2 H'!G195<0.5),"-",IFERROR('Tabel 2 H'!G195/'Tabel 1 H'!E193*100,"-")) -> 1.971894506 | I195: =IF(OR('Tabel 1 H'!G193<5,'Tabel 2 H'!I195<0.5),"-",IFERROR('Tabel 2 H'!I195/'Tabel 1 H'!G193*100,"-")) -> 2.127659574 | J195: =IF(OR('Tabel 1 H'!G193<5,'Tabel 2 H'!J195<0.5),"-",IFERROR('Tabel 2 H'!J195/'Tabel 1 H'!G193*100,"-")) -> 1.636252888
A196: Jurist | C196: =IF(OR('Tabel 1 H'!C194<5,'Tabel 2 H'!C196<0.5),"-",IFERROR('Tabel 2 H'!C196/'Tabel 1 H'!C194*100,"-")) -> 3.448275862 | D196: =IF(OR('Tabel 1 H'!C194<5,'Tabel 2 H'!D196<0.5),"-",IFERROR('Tabel 2 H'!D196/'Tabel 1 H'!C194*100,"-")) -> 2.651858129 | F196: =IF(OR('Tabel 1 H'!E194<5,'Tabel 2 H'!F196<0.5),"-",IFERROR('Tabel 2 H'!F196/'Tabel 1 H'!E194*100,"-")) -> 1.219512195 | G196: =IF(OR('Tabel 1 H'!E194<5,'Tabel 2 H'!G196<0.5),"-",IFERROR('Tabel 2 H'!G196/'Tabel 1 H'!E194*100,"-")) -> 1.219284007 | I196: =IF(OR('Tabel 1 H'!G194<5,'Tabel 2 H'!I196<0.5),"-",IFERROR('Tabel 2 H'!I196/'Tabel 1 H'!G194*100,"-")) -> 1.801801802 | J196: =IF(OR('Tabel 1 H'!G194<5,'Tabel 2 H'!J196<0.5),"-",IFERROR('Tabel 2 H'!J196/'Tabel 1 H'!G194*100,"-")) -> 1.593560129
A197: Økonom | C197: =IF(OR('Tabel 1 H'!C195<5,'Tabel 2 H'!C197<0.5),"-",IFERROR('Tabel 2 H'!C197/'Tabel 1 H'!C195*100,"-")) -> - | D197: =IF(OR('Tabel 1 H'!C195<5,'Tabel 2 H'!D197<0.5),"-",IFERROR('Tabel 2 H'!D197/'Tabel 1 H'!C195*100,"-")) -> - | F197: =IF(OR('Tabel 1 H'!E195<5,'Tabel 2 H'!F197<0.5),"-",IFERROR('Tabel 2 H'!F197/'Tabel 1 H'!E195*100,"-")) -> 4 | G197: =IF(OR('Tabel 1 H'!E195<5,'Tabel 2 H'!G197<0.5),"-",IFERROR('Tabel 2 H'!G197/'Tabel 1 H'!E195*100,"-")) -> - | I197: =IF(OR('Tabel 1 H'!G195<5,'Tabel 2 H'!I197<0.5),"-",IFERROR('Tabel 2 H'!I197/'Tabel 1 H'!G195*100,"-")) -> 1.265822785 | J197: =IF(OR('Tabel 1 H'!G195<5,'Tabel 2 H'!J197<0.5),"-",IFERROR('Tabel 2 H'!J197/'Tabel 1 H'!G195*100,"-")) -> -
A198: Samf. Adm. | C198: =IF(OR('Tabel 1 H'!C196<5,'Tabel 2 H'!C198<0.5),"-",IFERROR('Tabel 2 H'!C198/'Tabel 1 H'!C196*100,"-")) -> 2.380952381 | D198: =IF(OR('Tabel 1 H'!C196<5,'Tabel 2 H'!D198<0.5),"-",IFERROR('Tabel 2 H'!D198/'Tabel 1 H'!C196*100,"-")) -> 2.289177381 | F198: =IF(OR('Tabel 1 H'!E196<5,'Tabel 2 H'!F198<0.5),"-",IFERROR('Tabel 2 H'!F198/'Tabel 1 H'!E196*100,"-")) -> 4.385964912 | G198: =IF(OR('Tabel 1 H'!E196<5,'Tabel 2 H'!G198<0.5),"-",IFERROR('Tabel 2 H'!G198/'Tabel 1 H'!E196*100,"-")) -> 3.854440567 | I198: =IF(OR('Tabel 1 H'!G196<5,'Tabel 2 H'!I198<0.5),"-",IFERROR('Tabel 2 H'!I198/'Tabel 1 H'!G196*100,"-")) -> 3.535353535 | J198: =IF(OR('Tabel 1 H'!G196<5,'Tabel 2 H'!J198<0.5),"-",IFERROR('Tabel 2 H'!J198/'Tabel 1 H'!G196*100,"-")) -> 3.190389519
A199: Cand. Merc. | C199: =IF(OR('Tabel 1 H'!C197<5,'Tabel 2 H'!C199<0.5),"-",IFERROR('Tabel 2 H'!C199/'Tabel 1 H'!C197*100,"-")) -> 2.985074627 | D199: =IF(OR('Tabel 1 H'!C197<5,'Tabel 2 H'!D199<0.5),"-",IFERROR('Tabel 2 H'!D199/'Tabel 1 H'!C197*100,"-")) -> 2.812296653 | F199: =IF(OR('Tabel 1 H'!E197<5,'Tabel 2 H'!F199<0.5),"-",IFERROR('Tabel 2 H'!F199/'Tabel 1 H'!E197*100,"-")) -> 4.929577465 | G199: =IF(OR('Tabel 1 H'!E197<5,'Tabel 2 H'!G199<0.5),"-",IFERROR('Tabel 2 H'!G199/'Tabel 1 H'!E197*100,"-")) -> 4.314604649 | I199: =IF(OR('Tabel 1 H'!G197<5,'Tabel 2 H'!I199<0.5),"-",IFERROR('Tabel 2 H'!I199/'Tabel 1 H'!G197*100,"-")) -> 3.985507246 | J199: =IF(OR('Tabel 1 H'!G197<5,'Tabel 2 H'!J199<0.5),"-",IFERROR('Tabel 2 H'!J199/'Tabel 1 H'!G197*100,"-")) -> 3.585223231
A200: HA | C200: =IF(OR('Tabel 1 H'!C198<5,'Tabel 2 H'!C200<0.5),"-",IFERROR('Tabel 2 H'!C200/'Tabel 1 H'!C198*100,"-")) -> 10.52631579 | D200: =IF(OR('Tabel 1 H'!C198<5,'Tabel 2 H'!D200<0.5),"-",IFERROR('Tabel 2 H'!D200/'Tabel 1 H'!C198*100,"-")) -> 6.824739764 | F200: =IF(OR('Tabel 1 H'!E198<5,'Tabel 2 H'!F200<0.5),"-",IFERROR('Tabel 2 H'!F200/'Tabel 1 H'!E198*100,"-")) -> - | G200: =IF(OR('Tabel 1 H'!E198<5,'Tabel 2 H'!G200<0.5),"-",IFERROR('Tabel 2 H'!G200/'Tabel 1 H'!E198*100,"-")) -> - | I200: =IF(OR('Tabel 1 H'!G198<5,'Tabel 2 H'!I200<0.5),"-",IFERROR('Tabel 2 H'!I200/'Tabel 1 H'!G198*100,"-")) -> 5.882352941 | J200: =IF(OR('Tabel 1 H'!G198<5,'Tabel 2 H'!J200<0.5),"-",IFERROR('Tabel 2 H'!J200/'Tabel 1 H'!G198*100,"-")) -> 3.813825162
A201: HD | C201: =IF(OR('Tabel 1 H'!C199<5,'Tabel 2 H'!C201<0.5),"-",IFERROR('Tabel 2 H'!C201/'Tabel 1 H'!C199*100,"-")) -> 20 | D201: =IF(OR('Tabel 1 H'!C199<5,'Tabel 2 H'!D201<0.5),"-",IFERROR('Tabel 2 H'!D201/'Tabel 1 H'!C199*100,"-")) -> 17.62614607 | F201: =IF(OR('Tabel 1 H'!E199<5,'Tabel 2 H'!F201<0.5),"-",IFERROR('Tabel 2 H'!F201/'Tabel 1 H'!E199*100,"-")) -> 6.25 | G201: =IF(OR('Tabel 1 H'!E199<5,'Tabel 2 H'!G201<0.5),"-",IFERROR('Tabel 2 H'!G201/'Tabel 1 H'!E199*100,"-")) -> 4.229557787 | I201: =IF(OR('Tabel 1 H'!G199<5,'Tabel 2 H'!I201<0.5),"-",IFERROR('Tabel 2 H'!I201/'Tabel 1 H'!G199*100,"-")) -> 13.88888889 | J201: =IF(OR('Tabel 1 H'!G199<5,'Tabel 2 H'!J201<0.5),"-",IFERROR('Tabel 2 H'!J201/'Tabel 1 H'!G199*100,"-")) -> 11.67210684
A202: Komm. og Sprog | C202: =IF(OR('Tabel 1 H'!C200<5,'Tabel 2 H'!C202<0.5),"-",IFERROR('Tabel 2 H'!C202/'Tabel 1 H'!C200*100,"-")) -> - | D202: =IF(OR('Tabel 1 H'!C200<5,'Tabel 2 H'!D202<0.5),"-",IFERROR('Tabel 2 H'!D202/'Tabel 1 H'!C200*100,"-")) -> - | F202: =IF(OR('Tabel 1 H'!E200<5,'Tabel 2 H'!F202<0.5),"-",IFERROR('Tabel 2 H'!F202/'Tabel 1 H'!E200*100,"-")) -> 6.896551724 | G202: =IF(OR('Tabel 1 H'!E200<5,'Tabel 2 H'!G202<0.5),"-",IFERROR('Tabel 2 H'!G202/'Tabel 1 H'!E200*100,"-")) -> 6.343597365 | I202: =IF(OR('Tabel 1 H'!G200<5,'Tabel 2 H'!I202<0.5),"-",IFERROR('Tabel 2 H'!I202/'Tabel 1 H'!G200*100,"-")) -> 5.882352941 | J202: =IF(OR('Tabel 1 H'!G200<5,'Tabel 2 H'!J202<0.5),"-",IFERROR('Tabel 2 H'!J202/'Tabel 1 H'!G200*100,"-")) -> 5.410715399
A203: Bygningskonst. | C203: =IF(OR('Tabel 1 H'!C201<5,'Tabel 2 H'!C203<0.5),"-",IFERROR('Tabel 2 H'!C203/'Tabel 1 H'!C201*100,"-")) -> 2 | D203: =IF(OR('Tabel 1 H'!C201<5,'Tabel 2 H'!D203<0.5),"-",IFERROR('Tabel 2 H'!D203/'Tabel 1 H'!C201*100,"-")) -> 2 | F203: =IF(OR('Tabel 1 H'!E201<5,'Tabel 2 H'!F203<0.5),"-",IFERROR('Tabel 2 H'!F203/'Tabel 1 H'!E201*100,"-")) -> - | G203: =IF(OR('Tabel 1 H'!E201<5,'Tabel 2 H'!G203<0.5),"-",IFERROR('Tabel 2 H'!G203/'Tabel 1 H'!E201*100,"-")) -> - | I203: =IF(OR('Tabel 1 H'!G201<5,'Tabel 2 H'!I203<0.5),"-",IFERROR('Tabel 2 H'!I203/'Tabel 1 H'!G201*100,"-")) -> 1.612903226 | J203: =IF(OR('Tabel 1 H'!G201<5,'Tabel 2 H'!J203<0.5),"-",IFERROR('Tabel 2 H'!J203/'Tabel 1 H'!G201*100,"-")) -> 1.612903226
A204: Cand. IT. | C204: =IF(OR('Tabel 1 H'!C202<5,'Tabel 2 H'!C204<0.5),"-",IFERROR('Tabel 2 H'!C204/'Tabel 1 H'!C202*100,"-")) -> 11.76470588 | D204: =IF(OR('Tabel 1 H'!C202<5,'Tabel 2 H'!D204<0.5),"-",IFERROR('Tabel 2 H'!D204/'Tabel 1 H'!C202*100,"-")) -> 11.46899226 | F204: =IF(OR('Tabel 1 H'!E202<5,'Tabel 2 H'!F204<0.5),"-",IFERROR('Tabel 2 H'!F204/'Tabel 1 H'!E202*100,"-")) -> - | G204: =IF(OR('Tabel 1 H'!E202<5,'Tabel 2 H'!G204<0.5),"-",IFERROR('Tabel 2 H'!G204/'Tabel 1 H'!E202*100,"-")) -> - | I204: =IF(OR('Tabel 1 H'!G202<5,'Tabel 2 H'!I204<0.5),"-",IFERROR('Tabel 2 H'!I204/'Tabel 1 H'!G202*100,"-")) -> 5.405405405 | J204: =IF(OR('Tabel 1 H'!G202<5,'Tabel 2 H'!J204<0.5),"-",IFERROR('Tabel 2 H'!J204/'Tabel 1 H'!G202*100,"-")) -> 5.269536985
A205: Bac. Samf. | C205: =IF(OR('Tabel 1 H'!C203<5,'Tabel 2 H'!C205<0.5),"-",IFERROR('Tabel 2 H'!C205/'Tabel 1 H'!C203*100,"-")) -> - | D205: =IF(OR('Tabel 1 H'!C203<5,'Tabel 2 H'!D205<0.5),"-",IFERROR('Tabel 2 H'!D205/'Tabel 1 H'!C203*100,"-")) -> - | F205: =IF(OR('Tabel 1 H'!E203<5,'Tabel 2 H'!F205<0.5),"-",IFERROR('Tabel 2 H'!F205/'Tabel 1 H'!E203*100,"-")) -> - | G205: =IF(OR('Tabel 1 H'!E203<5,'Tabel 2 H'!G205<0.5),"-",IFERROR('Tabel 2 H'!G205/'Tabel 1 H'!E203*100,"-")) -> - | I205: =IF(OR('Tabel 1 H'!G203<5,'Tabel 2 H'!I205<0.5),"-",IFERROR('Tabel 2 H'!I205/'Tabel 1 H'!G203*100,"-")) -> - | J205: =IF(OR('Tabel 1 H'!G203<5,'Tabel 2 H'!J205<0.5),"-",IFERROR('Tabel 2 H'!J205/'Tabel 1 H'!G203*100,"-")) -> -
A206: Bac. Hum. | C206: =IF(OR('Tabel 1 H'!C204<5,'Tabel 2 H'!C206<0.5),"-",IFERROR('Tabel 2 H'!C206/'Tabel 1 H'!C204*100,"-")) -> - | D206: =IF(OR('Tabel 1 H'!C204<5,'Tabel 2 H'!D206<0.5),"-",IFERROR('Tabel 2 H'!D206/'Tabel 1 H'!C204*100,"-")) -> - | F206: =IF(OR('Tabel 1 H'!E204<5,'Tabel 2 H'!F206<0.5),"-",IFERROR('Tabel 2 H'!F206/'Tabel 1 H'!E204*100,"-")) -> - | G206: =IF(OR('Tabel 1 H'!E204<5,'Tabel 2 H'!G206<0.5),"-",IFERROR('Tabel 2 H'!G206/'Tabel 1 H'!E204*100,"-")) -> - | I206: =IF(OR('Tabel 1 H'!G204<5,'Tabel 2 H'!I206<0.5),"-",IFERROR('Tabel 2 H'!I206/'Tabel 1 H'!G204*100,"-")) -> - | J206: =IF(OR('Tabel 1 H'!G204<5,'Tabel 2 H'!J206<0.5),"-",IFERROR('Tabel 2 H'!J206/'Tabel 1 H'!G204*100,"-")) -> -
A207: Bac. Nat. | C207: =IF(OR('Tabel 1 H'!C205<5,'Tabel 2 H'!C207<0.5),"-",IFERROR('Tabel 2 H'!C207/'Tabel 1 H'!C205*100,"-")) -> 6.896551724 | D207: =IF(OR('Tabel 1 H'!C205<5,'Tabel 2 H'!D207<0.5),"-",IFERROR('Tabel 2 H'!D207/'Tabel 1 H'!C205*100,"-")) -> 6.895261282 | F207: =IF(OR('Tabel 1 H'!E205<5,'Tabel 2 H'!F207<0.5),"-",IFERROR('Tabel 2 H'!F207/'Tabel 1 H'!E205*100,"-")) -> 14.28571429 | G207: =IF(OR('Tabel 1 H'!E205<5,'Tabel 2 H'!G207<0.5),"-",IFERROR('Tabel 2 H'!G207/'Tabel 1 H'!E205*100,"-")) -> 14.28304123 | I207: =IF(OR('Tabel 1 H'!G205<5,'Tabel 2 H'!I207<0.5),"-",IFERROR('Tabel 2 H'!I207/'Tabel 1 H'!G205*100,"-")) -> 8.333333333 | J207: =IF(OR('Tabel 1 H'!G205<5,'Tabel 2 H'!J207<0.5),"-",IFERROR('Tabel 2 H'!J207/'Tabel 1 H'!G205*100,"-")) -> 8.331774049
A208: Andre | C208: =IF(OR('Tabel 1 H'!C206<5,'Tabel 2 H'!C208<0.5),"-",IFERROR('Tabel 2 H'!C208/'Tabel 1 H'!C206*100,"-")) -> 4.95049505 | D208: =IF(OR('Tabel 1 H'!C206<5,'Tabel 2 H'!D208<0.5),"-",IFERROR('Tabel 2 H'!D208/'Tabel 1 H'!C206*100,"-")) -> 3.52676071 | F208: =IF(OR('Tabel 1 H'!E206<5,'Tabel 2 H'!F208<0.5),"-",IFERROR('Tabel 2 H'!F208/'Tabel 1 H'!E206*100,"-")) -> 5.813953488 | G208: =IF(OR('Tabel 1 H'!E206<5,'Tabel 2 H'!G208<0.5),"-",IFERROR('Tabel 2 H'!G208/'Tabel 1 H'!E206*100,"-")) -> 5.711330845 | I208: =IF(OR('Tabel 1 H'!G206<5,'Tabel 2 H'!I208<0.5),"-",IFERROR('Tabel 2 H'!I208/'Tabel 1 H'!G206*100,"-")) -> 5.347593583 | J208: =IF(OR('Tabel 1 H'!G206<5,'Tabel 2 H'!J208<0.5),"-",IFERROR('Tabel 2 H'!J208/'Tabel 1 H'!G206*100,"-")) -> 4.531429328
A210: Total | C210: =IF(OR('Tabel 1 H'!C208<5,'Tabel 2 H'!C210<0.5),"-",IFERROR('Tabel 2 H'!C210/'Tabel 1 H'!C208*100,"-")) -> 2.831257078 | D210: =IF(OR('Tabel 1 H'!C208<5,'Tabel 2 H'!D210<0.5),"-",IFERROR('Tabel 2 H'!D210/'Tabel 1 H'!C208*100,"-")) -> 2.472084932 | F210: =IF(OR('Tabel 1 H'!E208<5,'Tabel 2 H'!F210<0.5),"-",IFERROR('Tabel 2 H'!F210/'Tabel 1 H'!E208*100,"-")) -> 4.166666667 | G210: =IF(OR('Tabel 1 H'!E208<5,'Tabel 2 H'!G210<0.5),"-",IFERROR('Tabel 2 H'!G210/'Tabel 1 H'!E208*100,"-")) -> 3.586840423 | I210: =IF(OR('Tabel 1 H'!G208<5,'Tabel 2 H'!I210<0.5),"-",IFERROR('Tabel 2 H'!I210/'Tabel 1 H'!G208*100,"-")) -> 3.452453059 | J210: =IF(OR('Tabel 1 H'!G208<5,'Tabel 2 H'!J210<0.5),"-",IFERROR('Tabel 2 H'!J210/'Tabel 1 H'!G208*100,"-")) -> 2.990638667
A212: Ingeniører i alt | C212: =IF(OR('Tabel 1 H'!C210<5,'Tabel 2 H'!C212<0.5),"-",IFERROR('Tabel 2 H'!C212/'Tabel 1 H'!C210*100,"-")) -> 1.915708812 | D212: =IF(OR('Tabel 1 H'!C210<5,'Tabel 2 H'!D212<0.5),"-",IFERROR('Tabel 2 H'!D212/'Tabel 1 H'!C210*100,"-")) -> 1.667935999 | F212: =IF(OR('Tabel 1 H'!E210<5,'Tabel 2 H'!F212<0.5),"-",IFERROR('Tabel 2 H'!F212/'Tabel 1 H'!E210*100,"-")) -> 3.076923077 | G212: =IF(OR('Tabel 1 H'!E210<5,'Tabel 2 H'!G212<0.5),"-",IFERROR('Tabel 2 H'!G212/'Tabel 1 H'!E210*100,"-")) -> 2.144375303 | I212: =IF(OR('Tabel 1 H'!G210<5,'Tabel 2 H'!I212<0.5),"-",IFERROR('Tabel 2 H'!I212/'Tabel 1 H'!G210*100,"-")) -> 2.205177373 | J212: =IF(OR('Tabel 1 H'!G210<5,'Tabel 2 H'!J212<0.5),"-",IFERROR('Tabel 2 H'!J212/'Tabel 1 H'!G210*100,"-")) -> 1.786703228
A213: Magistre i alt | C213: =IF(OR('Tabel 1 H'!C211<5,'Tabel 2 H'!C213<0.5),"-",IFERROR('Tabel 2 H'!C213/'Tabel 1 H'!C211*100,"-")) -> 2.139037433 | D213: =IF(OR('Tabel 1 H'!C211<5,'Tabel 2 H'!D213<0.5),"-",IFERROR('Tabel 2 H'!D213/'Tabel 1 H'!C211*100,"-")) -> 2.138637189 | F213: =IF(OR('Tabel 1 H'!E211<5,'Tabel 2 H'!F213<0.5),"-",IFERROR('Tabel 2 H'!F213/'Tabel 1 H'!E211*100,"-")) -> 5.653710247 | G213: =IF(OR('Tabel 1 H'!E211<5,'Tabel 2 H'!G213<0.5),"-",IFERROR('Tabel 2 H'!G213/'Tabel 1 H'!E211*100,"-")) -> 4.553549999 | I213: =IF(OR('Tabel 1 H'!G211<5,'Tabel 2 H'!I213<0.5),"-",IFERROR('Tabel 2 H'!I213/'Tabel 1 H'!G211*100,"-")) -> 4.255319149 | J213: =IF(OR('Tabel 1 H'!G211<5,'Tabel 2 H'!J213<0.5),"-",IFERROR('Tabel 2 H'!J213/'Tabel 1 H'!G211*100,"-")) -> 3.592722988
A214: DJØF'ere i alt | C214: =IF(OR('Tabel 1 H'!C212<5,'Tabel 2 H'!C214<0.5),"-",IFERROR('Tabel 2 H'!C214/'Tabel 1 H'!C212*100,"-")) -> 2.8125 | D214: =IF(OR('Tabel 1 H'!C212<5,'Tabel 2 H'!D214<0.5),"-",IFERROR('Tabel 2 H'!D214/'Tabel 1 H'!C212*100,"-")) -> 2.424101852 | F214: =IF(OR('Tabel 1 H'!E212<5,'Tabel 2 H'!F214<0.5),"-",IFERROR('Tabel 2 H'!F214/'Tabel 1 H'!E212*100,"-")) -> 3.703703704 | G214: =IF(OR('Tabel 1 H'!E212<5,'Tabel 2 H'!G214<0.5),"-",IFERROR('Tabel 2 H'!G214/'Tabel 1 H'!E212*100,"-")) -> 3.167079011 | I214: =IF(OR('Tabel 1 H'!G212<5,'Tabel 2 H'!I214<0.5),"-",IFERROR('Tabel 2 H'!I214/'Tabel 1 H'!G212*100,"-")) -> 3.29512894 | J214: =IF(OR('Tabel 1 H'!G212<5,'Tabel 2 H'!J214<0.5),"-",IFERROR('Tabel 2 H'!J214/'Tabel 1 H'!G212*100,"-")) -> 2.82645911
A219: Brøndby
C221: Mænd | F221: Kvinder | I221: I alt
C222: Ledigheds- berørte | D222: Gns. brutto- ledighed | F222: Ledigheds- berørte | G222: Gns. brutto- ledighed | I222: Ledigheds- berørte | J222: Gns. brutto- ledighed
A225: Civ. ing. | C225: =IF(OR('Tabel 1 H'!C223<5,'Tabel 2 H'!C225<0.5),"-",IFERROR('Tabel 2 H'!C225/'Tabel 1 H'!C223*100,"-")) -> 6.666666667 | D225: =IF(OR('Tabel 1 H'!C223<5,'Tabel 2 H'!D225<0.5),"-",IFERROR('Tabel 2 H'!D225/'Tabel 1 H'!C223*100,"-")) -> 5.309881702 | F225: =IF(OR('Tabel 1 H'!E223<5,'Tabel 2 H'!F225<0.5),"-",IFERROR('Tabel 2 H'!F225/'Tabel 1 H'!E223*100,"-")) -> 3.03030303 | G225: =IF(OR('Tabel 1 H'!E223<5,'Tabel 2 H'!G225<0.5),"-",IFERROR('Tabel 2 H'!G225/'Tabel 1 H'!E223*100,"-")) -> 3.029736018 | I225: =IF(OR('Tabel 1 H'!G223<5,'Tabel 2 H'!I225<0.5),"-",IFERROR('Tabel 2 H'!I225/'Tabel 1 H'!G223*100,"-")) -> 5.691056911 | J225: =IF(OR('Tabel 1 H'!G223<5,'Tabel 2 H'!J225<0.5),"-",IFERROR('Tabel 2 H'!J225/'Tabel 1 H'!G223*100,"-")) -> 4.698135299
A226: Diplom ing. | C226: =IF(OR('Tabel 1 H'!C224<5,'Tabel 2 H'!C226<0.5),"-",IFERROR('Tabel 2 H'!C226/'Tabel 1 H'!C224*100,"-")) -> 4.411764706 | D226: =IF(OR('Tabel 1 H'!C224<5,'Tabel 2 H'!D226<0.5),"-",IFERROR('Tabel 2 H'!D226/'Tabel 1 H'!C224*100,"-")) -> 4.275189774 | F226: =IF(OR('Tabel 1 H'!E224<5,'Tabel 2 H'!F226<0.5),"-",IFERROR('Tabel 2 H'!F226/'Tabel 1 H'!E224*100,"-")) -> 7.692307692 | G226: =IF(OR('Tabel 1 H'!E224<5,'Tabel 2 H'!G226<0.5),"-",IFERROR('Tabel 2 H'!G226/'Tabel 1 H'!E224*100,"-")) -> 4.673054134 | I226: =IF(OR('Tabel 1 H'!G224<5,'Tabel 2 H'!I226<0.5),"-",IFERROR('Tabel 2 H'!I226/'Tabel 1 H'!G224*100,"-")) -> 4.938271605 | J226: =IF(OR('Tabel 1 H'!G224<5,'Tabel 2 H'!J226<0.5),"-",IFERROR('Tabel 2 H'!J226/'Tabel 1 H'!G224*100,"-")) -> 4.339044548
A227: Cand. Scient. Tek. | C227: =IF(OR('Tabel 1 H'!C225<5,'Tabel 2 H'!C227<0.5),"-",IFERROR('Tabel 2 H'!C227/'Tabel 1 H'!C225*100,"-")) -> 9.302325581 | D227: =IF(OR('Tabel 1 H'!C225<5,'Tabel 2 H'!D227<0.5),"-",IFERROR('Tabel 2 H'!D227/'Tabel 1 H'!C225*100,"-")) -> 7.042161588 | F227: =IF(OR('Tabel 1 H'!E225<5,'Tabel 2 H'!F227<0.5),"-",IFERROR('Tabel 2 H'!F227/'Tabel 1 H'!E225*100,"-")) -> 6.896551724 | G227: =IF(OR('Tabel 1 H'!E225<5,'Tabel 2 H'!G227<0.5),"-",IFERROR('Tabel 2 H'!G227/'Tabel 1 H'!E225*100,"-")) -> 5.781179765 | I227: =IF(OR('Tabel 1 H'!G225<5,'Tabel 2 H'!I227<0.5),"-",IFERROR('Tabel 2 H'!I227/'Tabel 1 H'!G225*100,"-")) -> 8.333333333 | J227: =IF(OR('Tabel 1 H'!G225<5,'Tabel 2 H'!J227<0.5),"-",IFERROR('Tabel 2 H'!J227/'Tabel 1 H'!G225*100,"-")) -> 6.534266132
A228: MA. Hum. | C228: =IF(OR('Tabel 1 H'!C226<5,'Tabel 2 H'!C228<0.5),"-",IFERROR('Tabel 2 H'!C228/'Tabel 1 H'!C226*100,"-")) -> 13.04347826 | D228: =IF(OR('Tabel 1 H'!C226<5,'Tabel 2 H'!D228<0.5),"-",IFERROR('Tabel 2 H'!D228/'Tabel 1 H'!C226*100,"-")) -> 12.43901844 | F228: =IF(OR('Tabel 1 H'!E226<5,'Tabel 2 H'!F228<0.5),"-",IFERROR('Tabel 2 H'!F228/'Tabel 1 H'!E226*100,"-")) -> 22.22222222 | G228: =IF(OR('Tabel 1 H'!E226<5,'Tabel 2 H'!G228<0.5),"-",IFERROR('Tabel 2 H'!G228/'Tabel 1 H'!E226*100,"-")) -> 19.49154472 | I228: =IF(OR('Tabel 1 H'!G226<5,'Tabel 2 H'!I228<0.5),"-",IFERROR('Tabel 2 H'!I228/'Tabel 1 H'!G226*100,"-")) -> 19.76744186 | J228: =IF(OR('Tabel 1 H'!G226<5,'Tabel 2 H'!J228<0.5),"-",IFERROR('Tabel 2 H'!J228/'Tabel 1 H'!G226*100,"-")) -> 17.60540397
A229: MA. Nat. | C229: =IF(OR('Tabel 1 H'!C227<5,'Tabel 2 H'!C229<0.5),"-",IFERROR('Tabel 2 H'!C229/'Tabel 1 H'!C227*100,"-")) -> 3.333333333 | D229: =IF(OR('Tabel 1 H'!C227<5,'Tabel 2 H'!D229<0.5),"-",IFERROR('Tabel 2 H'!D229/'Tabel 1 H'!C227*100,"-")) -> 3.06243373 | F229: =IF(OR('Tabel 1 H'!E227<5,'Tabel 2 H'!F229<0.5),"-",IFERROR('Tabel 2 H'!F229/'Tabel 1 H'!E227*100,"-")) -> 3.571428571 | G229: =IF(OR('Tabel 1 H'!E227<5,'Tabel 2 H'!G229<0.5),"-",IFERROR('Tabel 2 H'!G229/'Tabel 1 H'!E227*100,"-")) -> - | I229: =IF(OR('Tabel 1 H'!G227<5,'Tabel 2 H'!I229<0.5),"-",IFERROR('Tabel 2 H'!I229/'Tabel 1 H'!G227*100,"-")) -> 3.448275862 | J229: =IF(OR('Tabel 1 H'!G227<5,'Tabel 2 H'!J229<0.5),"-",IFERROR('Tabel 2 H'!J229/'Tabel 1 H'!G227*100,"-")) -> 2.280856079
A230: MA. Ph.d. | C230: =IF(OR('Tabel 1 H'!C228<5,'Tabel 2 H'!C230<0.5),"-",IFERROR('Tabel 2 H'!C230/'Tabel 1 H'!C228*100,"-")) -> - | D230: =IF(OR('Tabel 1 H'!C228<5,'Tabel 2 H'!D230<0.5),"-",IFERROR('Tabel 2 H'!D230/'Tabel 1 H'!C228*100,"-")) -> - | F230: =IF(OR('Tabel 1 H'!E228<5,'Tabel 2 H'!F230<0.5),"-",IFERROR('Tabel 2 H'!F230/'Tabel 1 H'!E228*100,"-")) -> - | G230: =IF(OR('Tabel 1 H'!E228<5,'Tabel 2 H'!G230<0.5),"-",IFERROR('Tabel 2 H'!G230/'Tabel 1 H'!E228*100,"-")) -> - | I230: =IF(OR('Tabel 1 H'!G228<5,'Tabel 2 H'!I230<0.5),"-",IFERROR('Tabel 2 H'!I230/'Tabel 1 H'!G228*100,"-")) -> - | J230: =IF(OR('Tabel 1 H'!G228<5,'Tabel 2 H'!J230<0.5),"-",IFERROR('Tabel 2 H'!J230/'Tabel 1 H'!G228*100,"-")) -> -
A231: MA. Samf. | C231: =IF(OR('Tabel 1 H'!C229<5,'Tabel 2 H'!C231<0.5),"-",IFERROR('Tabel 2 H'!C231/'Tabel 1 H'!C229*100,"-")) -> 10 | D231: =IF(OR('Tabel 1 H'!C229<5,'Tabel 2 H'!D231<0.5),"-",IFERROR('Tabel 2 H'!D231/'Tabel 1 H'!C229*100,"-")) -> 9.998128859 | F231: =IF(OR('Tabel 1 H'!E229<5,'Tabel 2 H'!F231<0.5),"-",IFERROR('Tabel 2 H'!F231/'Tabel 1 H'!E229*100,"-")) -> 20 | G231: =IF(OR('Tabel 1 H'!E229<5,'Tabel 2 H'!G231<0.5),"-",IFERROR('Tabel 2 H'!G231/'Tabel 1 H'!E229*100,"-")) -> 16.72176137 | I231: =IF(OR('Tabel 1 H'!G229<5,'Tabel 2 H'!I231<0.5),"-",IFERROR('Tabel 2 H'!I231/'Tabel 1 H'!G229*100,"-")) -> 15 | J231: =IF(OR('Tabel 1 H'!G229<5,'Tabel 2 H'!J231<0.5),"-",IFERROR('Tabel 2 H'!J231/'Tabel 1 H'!G229*100,"-")) -> 13.35994511
A232: Øvrige Mag. | C232: =IF(OR('Tabel 1 H'!C230<5,'Tabel 2 H'!C232<0.5),"-",IFERROR('Tabel 2 H'!C232/'Tabel 1 H'!C230*100,"-")) -> 14.28571429 | D232: =IF(OR('Tabel 1 H'!C230<5,'Tabel 2 H'!D232<0.5),"-",IFERROR('Tabel 2 H'!D232/'Tabel 1 H'!C230*100,"-")) -> 14.28304123 | F232: =IF(OR('Tabel 1 H'!E230<5,'Tabel 2 H'!F232<0.5),"-",IFERROR('Tabel 2 H'!F232/'Tabel 1 H'!E230*100,"-")) -> 20 | G232: =IF(OR('Tabel 1 H'!E230<5,'Tabel 2 H'!G232<0.5),"-",IFERROR('Tabel 2 H'!G232/'Tabel 1 H'!E230*100,"-")) -> - | I232: =IF(OR('Tabel 1 H'!G230<5,'Tabel 2 H'!I232<0.5),"-",IFERROR('Tabel 2 H'!I232/'Tabel 1 H'!G230*100,"-")) -> 16.66666667 | J232: =IF(OR('Tabel 1 H'!G230<5,'Tabel 2 H'!J232<0.5),"-",IFERROR('Tabel 2 H'!J232/'Tabel 1 H'!G230*100,"-")) -> 12.43269091
A233: Agronom | C233: =IF(OR('Tabel 1 H'!C231<5,'Tabel 2 H'!C233<0.5),"-",IFERROR('Tabel 2 H'!C233/'Tabel 1 H'!C231*100,"-")) -> - | D233: =IF(OR('Tabel 1 H'!C231<5,'Tabel 2 H'!D233<0.5),"-",IFERROR('Tabel 2 H'!D233/'Tabel 1 H'!C231*100,"-")) -> - | F233: =IF(OR('Tabel 1 H'!E231<5,'Tabel 2 H'!F233<0.5),"-",IFERROR('Tabel 2 H'!F233/'Tabel 1 H'!E231*100,"-")) -> - | G233: =IF(OR('Tabel 1 H'!E231<5,'Tabel 2 H'!G233<0.5),"-",IFERROR('Tabel 2 H'!G233/'Tabel 1 H'!E231*100,"-")) -> - | I233: =IF(OR('Tabel 1 H'!G231<5,'Tabel 2 H'!I233<0.5),"-",IFERROR('Tabel 2 H'!I233/'Tabel 1 H'!G231*100,"-")) -> 16.66666667 | J233: =IF(OR('Tabel 1 H'!G231<5,'Tabel 2 H'!J233<0.5),"-",IFERROR('Tabel 2 H'!J233/'Tabel 1 H'!G231*100,"-")) -> 14.37659827
A234: Landsk. Arkt. | C234: =IF(OR('Tabel 1 H'!C232<5,'Tabel 2 H'!C234<0.5),"-",IFERROR('Tabel 2 H'!C234/'Tabel 1 H'!C232*100,"-")) -> - | D234: =IF(OR('Tabel 1 H'!C232<5,'Tabel 2 H'!D234<0.5),"-",IFERROR('Tabel 2 H'!D234/'Tabel 1 H'!C232*100,"-")) -> - | F234: =IF(OR('Tabel 1 H'!E232<5,'Tabel 2 H'!F234<0.5),"-",IFERROR('Tabel 2 H'!F234/'Tabel 1 H'!E232*100,"-")) -> 16.66666667 | G234: =IF(OR('Tabel 1 H'!E232<5,'Tabel 2 H'!G234<0.5),"-",IFERROR('Tabel 2 H'!G234/'Tabel 1 H'!E232*100,"-")) -> 11.27882077 | I234: =IF(OR('Tabel 1 H'!G232<5,'Tabel 2 H'!I234<0.5),"-",IFERROR('Tabel 2 H'!I234/'Tabel 1 H'!G232*100,"-")) -> 16.66666667 | J234: =IF(OR('Tabel 1 H'!G232<5,'Tabel 2 H'!J234<0.5),"-",IFERROR('Tabel 2 H'!J234/'Tabel 1 H'!G232*100,"-")) -> 11.27882077
A235: Hortonom | C235: =IF(OR('Tabel 1 H'!C233<5,'Tabel 2 H'!C235<0.5),"-",IFERROR('Tabel 2 H'!C235/'Tabel 1 H'!C233*100,"-")) -> - | D235: =IF(OR('Tabel 1 H'!C233<5,'Tabel 2 H'!D235<0.5),"-",IFERROR('Tabel 2 H'!D235/'Tabel 1 H'!C233*100,"-")) -> - | F235: =IF(OR('Tabel 1 H'!E233<5,'Tabel 2 H'!F235<0.5),"-",IFERROR('Tabel 2 H'!F235/'Tabel 1 H'!E233*100,"-")) -> - | G235: =IF(OR('Tabel 1 H'!E233<5,'Tabel 2 H'!G235<0.5),"-",IFERROR('Tabel 2 H'!G235/'Tabel 1 H'!E233*100,"-")) -> - | I235: =IF(OR('Tabel 1 H'!G233<5,'Tabel 2 H'!I235<0.5),"-",IFERROR('Tabel 2 H'!I235/'Tabel 1 H'!G233*100,"-")) -> - | J235: =IF(OR('Tabel 1 H'!G233<5,'Tabel 2 H'!J235<0.5),"-",IFERROR('Tabel 2 H'!J235/'Tabel 1 H'!G233*100,"-")) -> -
A236: Forstkand. | C236: =IF(OR('Tabel 1 H'!C234<5,'Tabel 2 H'!C236<0.5),"-",IFERROR('Tabel 2 H'!C236/'Tabel 1 H'!C234*100,"-")) -> - | D236: =IF(OR('Tabel 1 H'!C234<5,'Tabel 2 H'!D236<0.5),"-",IFERROR('Tabel 2 H'!D236/'Tabel 1 H'!C234*100,"-")) -> - | F236: =IF(OR('Tabel 1 H'!E234<5,'Tabel 2 H'!F236<0.5),"-",IFERROR('Tabel 2 H'!F236/'Tabel 1 H'!E234*100,"-")) -> - | G236: =IF(OR('Tabel 1 H'!E234<5,'Tabel 2 H'!G236<0.5),"-",IFERROR('Tabel 2 H'!G236/'Tabel 1 H'!E234*100,"-")) -> - | I236: =IF(OR('Tabel 1 H'!G234<5,'Tabel 2 H'!I236<0.5),"-",IFERROR('Tabel 2 H'!I236/'Tabel 1 H'!G234*100,"-")) -> - | J236: =IF(OR('Tabel 1 H'!G234<5,'Tabel 2 H'!J236<0.5),"-",IFERROR('Tabel 2 H'!J236/'Tabel 1 H'!G234*100,"-")) -> -
A237: Jordbrugsakad. | C237: =IF(OR('Tabel 1 H'!C235<5,'Tabel 2 H'!C237<0.5),"-",IFERROR('Tabel 2 H'!C237/'Tabel 1 H'!C235*100,"-")) -> - | D237: =IF(OR('Tabel 1 H'!C235<5,'Tabel 2 H'!D237<0.5),"-",IFERROR('Tabel 2 H'!D237/'Tabel 1 H'!C235*100,"-")) -> - | F237: =IF(OR('Tabel 1 H'!E235<5,'Tabel 2 H'!F237<0.5),"-",IFERROR('Tabel 2 H'!F237/'Tabel 1 H'!E235*100,"-")) -> 15.38461538 | G237: =IF(OR('Tabel 1 H'!E235<5,'Tabel 2 H'!G237<0.5),"-",IFERROR('Tabel 2 H'!G237/'Tabel 1 H'!E235*100,"-")) -> 11.84096263 | I237: =IF(OR('Tabel 1 H'!G235<5,'Tabel 2 H'!I237<0.5),"-",IFERROR('Tabel 2 H'!I237/'Tabel 1 H'!G235*100,"-")) -> 13.33333333 | J237: =IF(OR('Tabel 1 H'!G235<5,'Tabel 2 H'!J237<0.5),"-",IFERROR('Tabel 2 H'!J237/'Tabel 1 H'!G235*100,"-")) -> 10.26216761
A238: Mejeriing. | C238: =IF(OR('Tabel 1 H'!C236<5,'Tabel 2 H'!C238<0.5),"-",IFERROR('Tabel 2 H'!C238/'Tabel 1 H'!C236*100,"-")) -> - | D238: =IF(OR('Tabel 1 H'!C236<5,'Tabel 2 H'!D238<0.5),"-",IFERROR('Tabel 2 H'!D238/'Tabel 1 H'!C236*100,"-")) -> - | F238: =IF(OR('Tabel 1 H'!E236<5,'Tabel 2 H'!F238<0.5),"-",IFERROR('Tabel 2 H'!F238/'Tabel 1 H'!E236*100,"-")) -> - | G238: =IF(OR('Tabel 1 H'!E236<5,'Tabel 2 H'!G238<0.5),"-",IFERROR('Tabel 2 H'!G238/'Tabel 1 H'!E236*100,"-")) -> - | I238: =IF(OR('Tabel 1 H'!G236<5,'Tabel 2 H'!I238<0.5),"-",IFERROR('Tabel 2 H'!I238/'Tabel 1 H'!G236*100,"-")) -> - | J238: =IF(OR('Tabel 1 H'!G236<5,'Tabel 2 H'!J238<0.5),"-",IFERROR('Tabel 2 H'!J238/'Tabel 1 H'!G236*100,"-")) -> -
A239: Levn.m.kand. | C239: =IF(OR('Tabel 1 H'!C237<5,'Tabel 2 H'!C239<0.5),"-",IFERROR('Tabel 2 H'!C239/'Tabel 1 H'!C237*100,"-")) -> - | D239: =IF(OR('Tabel 1 H'!C237<5,'Tabel 2 H'!D239<0.5),"-",IFERROR('Tabel 2 H'!D239/'Tabel 1 H'!C237*100,"-")) -> - | F239: =IF(OR('Tabel 1 H'!E237<5,'Tabel 2 H'!F239<0.5),"-",IFERROR('Tabel 2 H'!F239/'Tabel 1 H'!E237*100,"-")) -> - | G239: =IF(OR('Tabel 1 H'!E237<5,'Tabel 2 H'!G239<0.5),"-",IFERROR('Tabel 2 H'!G239/'Tabel 1 H'!E237*100,"-")) -> - | I239: =IF(OR('Tabel 1 H'!G237<5,'Tabel 2 H'!I239<0.5),"-",IFERROR('Tabel 2 H'!I239/'Tabel 1 H'!G237*100,"-")) -> - | J239: =IF(OR('Tabel 1 H'!G237<5,'Tabel 2 H'!J239<0.5),"-",IFERROR('Tabel 2 H'!J239/'Tabel 1 H'!G237*100,"-")) -> -
A240: Dyrlæge | C240: =IF(OR('Tabel 1 H'!C238<5,'Tabel 2 H'!C240<0.5),"-",IFERROR('Tabel 2 H'!C240/'Tabel 1 H'!C238*100,"-")) -> - | D240: =IF(OR('Tabel 1 H'!C238<5,'Tabel 2 H'!D240<0.5),"-",IFERROR('Tabel 2 H'!D240/'Tabel 1 H'!C238*100,"-")) -> - | F240: =IF(OR('Tabel 1 H'!E238<5,'Tabel 2 H'!F240<0.5),"-",IFERROR('Tabel 2 H'!F240/'Tabel 1 H'!E238*100,"-")) -> - | G240: =IF(OR('Tabel 1 H'!E238<5,'Tabel 2 H'!G240<0.5),"-",IFERROR('Tabel 2 H'!G240/'Tabel 1 H'!E238*100,"-")) -> - | I240: =IF(OR('Tabel 1 H'!G238<5,'Tabel 2 H'!I240<0.5),"-",IFERROR('Tabel 2 H'!I240/'Tabel 1 H'!G238*100,"-")) -> - | J240: =IF(OR('Tabel 1 H'!G238<5,'Tabel 2 H'!J240<0.5),"-",IFERROR('Tabel 2 H'!J240/'Tabel 1 H'!G238*100,"-")) -> -
... 1106 more rows

Sheet Tabel 4F H
A1: Tabel 4. Antal forsikrede - aldersfordelt
A3: Hovedstaden
C5: Under 30 år | D5: 30 - 39 år | E5: 40 - 49 år | F5: 50 - 59 år | G5: Over 60 år | I5: I alt
A7: Civ. ing. | C7: 2784 | D7: 5880 | E7: 4207 | F7: 3744 | G7: 1315 | I7: 17930
A8: Diplom ing. | C8: 1094 | D8: 2188 | E8: 2940 | F8: 4608 | G8: 1662 | I8: 12492
A9: Cand. Scient. Tek. | C9: 2876 | D9: 5568 | E9: 1732 | F9: 605 | G9: 131 | I9: 10912
A10: MA. Hum. | C10: 2584 | D10: 7264 | E10: 6549 | F10: 2841 | G10: 1015 | I10: 20253
A11: MA. Nat. | C11: 501 | D11: 1565 | E11: 2405 | F11: 1923 | G11: 745 | I11: 7139
A12: MA. Ph.d. | C12: 15 | D12: 351 | E12: 467 | F12: 373 | G12: 92 | I12: 1298
A13: MA. Samf. | C13: 843 | D13: 1718 | E13: 611 | F13: 266 | G13: 52 | I13: 3490
A14: Øvrige Mag. | C14: 225 | D14: 390 | E14: 518 | F14: 414 | G14: 129 | I14: 1676
A15: Agronom | C15: 114 | D15: 167 | E15: 198 | F15: 266 | G15: 97 | I15: 842
A16: Landsk. Arkt. | C16: 50 | D16: 183 | E16: 147 | F16: 81 | G16: 23 | I16: 484
A17: Hortonom | C17: 0 | D17: 13 | E17: 36 | F17: 73 | G17: 26 | I17: 148
A18: Forstkand. | C18: 22 | D18: 43 | E18: 99 | F18: 66 | G18: 30 | I18: 260
A19: Jordbrugsakad. | C19: 186 | D19: 406 | E19: 480 | F19: 486 | G19: 176 | I19: 1734
A20: Mejeriing. | C20: 27 | D20: 50 | E20: 26 | F20: 32 | G20: 15 | I20: 150
A21: Levn.m.kand. | C21: 76 | D21: 163 | E21: 80 | F21: 8 | G21: 3 | I21: 330
A22: Dyrlæge | C22: 157 | D22: 354 | E22: 221 | F22: 156 | G22: 68 | I22: 956
A23: Farmaceut | C23: 582 | D23: 1305 | E23: 1030 | F23: 645 | G23: 227 | I23: 3789
A24: Læge | C24: 758 | D24: 2325 | E24: 1094 | F24: 705 | G24: 481 | I24: 5363
A25: Tandlæge | C25: 124 | D25: 301 | E25: 188 | F25: 141 | G25: 85 | I25: 839
A26: Arkitekt | C26: 239 | D26: 1108 | E26: 1166 | F26: 764 | G26: 356 | I26: 3633
A27: Landinspek. | C27: 16 | D27: 55 | E27: 51 | F27: 46 | G27: 23 | I27: 191
A28: Bibliotekar | C28: 49 | D28: 341 | E28: 585 | F28: 414 | G28: 270 | I28: 1659
A29: Musikudd. | C29: 7 | D29: 38 | E29: 66 | F29: 116 | G29: 79 | I29: 306
A30: Teolog | C30: 16 | D30: 105 | E30: 177 | F30: 179 | G30: 84 | I30: 561
A31: Psykolog | C31: 570 | D31: 1372 | E31: 935 | F31: 532 | G31: 260 | I31: 3669
A32: Jurist | C32: 1662 | D32: 3079 | E32: 2637 | F32: 1922 | G32: 547 | I32: 9847
A33: Økonom | C33: 962 | D33: 1689 | E33: 1365 | F33: 1323 | G33: 327 | I33: 5666
A34: Samf. Adm. | C34: 2574 | D34: 7101 | E34: 4840 | F34: 2291 | G34: 515 | I34: 17321
A35: Cand. Merc. | C35: 4664 | D35: 8263 | E35: 4427 | F35: 2918 | G35: 432 | I35: 20704
A36: HA | C36: 555 | D36: 583 | E36: 442 | F36: 675 | G36: 211 | I36: 2466
A37: HD | C37: 552 | D37: 635 | E37: 316 | F37: 736 | G37: 322 | I37: 2561
A38: Komm. og Sprog | C38: 554 | D38: 1117 | E38: 1125 | F38: 859 | G38: 300 | I38: 3955
A39: Bygningskonst. | C39: 440 | D39: 1015 | E39: 629 | F39: 342 | G39: 78 | I39: 2504
A40: Cand. IT. | C40: 605 | D40: 1336 | E40: 709 | F40: 88 | G40: 9 | I40: 2747
A41: Bac. Samf. | C41: 182 | D41: 233 | E41: 220 | F41: 154 | G41: 22 | I41: 811
A42: Bac. Hum. | C42: 865 | D42: 459 | E42: 376 | F42: 362 | G42: 115 | I42: 2177
A43: Bac. Nat. | C43: 594 | D43: 607 | E43: 237 | F43: 103 | G43: 31 | I43: 1572
A44: Andre | C44: 1594 | D44: 5277 | E44: 3835 | F44: 2178 | G44: 914 | I44: 13798
A46: Total | C46: 29532 | D46: 64241 | E46: 46686 | F46: 32949 | G46: 11091 | I46: 184499
A48: Ingeniører i alt | C48: 3878 | D48: 8068 | E48: 7147 | F48: 8352 | G48: 2977 | I48: 30422
A49: Magistre i alt | C49: 4168 | D49: 11288 | E49: 10550 | F49: 5817 | G49: 2033 | I49: 33856
A50: DJØF'ere i alt | C50: 10417 | D50: 20715 | E50: 13711 | F50: 9129 | G50: 2032 | I50: 56004
A57: København
C59: Under 30 år | D59: 30 - 39 år | E59: 40 - 49 år | F59: 50 - 59 år | G59: Over 60 år | I59: I alt
A61: Civ. ing. | C61: 1542 | D61: 2557 | E61: 1043 | F61: 713 | G61: 208 | I61: 6063
A62: Diplom ing. | C62: 551 | D62: 863 | E62: 720 | F62: 855 | G62: 290 | I62: 3279
A63: Cand. Scient. Tek. | C63: 1980 | D63: 3079 | E63: 643 | F63: 167 | G63: 40 | I63: 5909
A64: MA. Hum. | C64: 1971 | D64: 5054 | E64: 3595 | F64: 1458 | G64: 440 | I64: 12518
A65: MA. Nat. | C65: 345 | D65: 916 | E65: 899 | F65: 626 | G65: 222 | I65: 3008
A66: MA. Ph.d. | C66: 12 | D66: 210 | E66: 254 | F66: 151 | G66: 46 | I66: 673
A67: MA. Samf. | C67: 673 | D67: 1209 | E67: 346 | F67: 132 | G67: 30 | I67: 2390
A68: Øvrige Mag. | C68: 172 | D68: 268 | E68: 283 | F68: 193 | G68: 62 | I68: 978
A69: Agronom | C69: 74 | D69: 85 | E69: 53 | F69: 63 | G69: 28 | I69: 303
A70: Landsk. Arkt. | C70: 35 | D70: 126 | E70: 58 | F70: 30 | G70: 7 | I70: 256
A71: Hortonom | C71: 0 | D71: 10 | E71: 13 | F71: 15 | G71: 9 | I71: 47
A72: Forstkand. | C72: 18 | D72: 26 | E72: 24 | F72: 20 | G72: 3 | I72: 91
A73: Jordbrugsakad. | C73: 127 | D73: 247 | E73: 148 | F73: 128 | G73: 47 | I73: 697
A74: Mejeriing. | C74: 17 | D74: 27 | E74: 8 | F74: 6 | G74: 1 | I74: 59
A75: Levn.m.kand. | C75: 49 | D75: 86 | E75: 29 | F75: 2 | G75: 1 | I75: 167
A76: Dyrlæge | C76: 87 | D76: 123 | E76: 55 | F76: 42 | G76: 17 | I76: 324
A77: Farmaceut | C77: 336 | D77: 539 | E77: 224 | F77: 112 | G77: 36 | I77: 1247
A78: Læge | C78: 518 | D78: 1292 | E78: 392 | F78: 182 | G78: 118 | I78: 2502
A79: Tandlæge | C79: 70 | D79: 127 | E79: 49 | F79: 41 | G79: 18 | I79: 305
A80: Arkitekt | C80: 199 | D80: 819 | E80: 716 | F80: 372 | G80: 166 | I80: 2272
A81: Landinspek. | C81: 10 | D81: 25 | E81: 12 | F81: 4 | G81: 5 | I81: 56
A82: Bibliotekar | C82: 39 | D82: 210 | E82: 256 | F82: 173 | G82: 102 | I82: 780
A83: Musikudd. | C83: 5 | D83: 21 | E83: 41 | F83: 55 | G83: 26 | I83: 148
A84: Teolog | C84: 11 | D84: 62 | E84: 84 | F84: 66 | G84: 33 | I84: 256
A85: Psykolog | C85: 417 | D85: 874 | E85: 440 | F85: 244 | G85: 107 | I85: 2082
A86: Jurist | C86: 1206 | D86: 1612 | E86: 930 | F86: 567 | G86: 166 | I86: 4481
A87: Økonom | C87: 742 | D87: 978 | E87: 466 | F87: 392 | G87: 90 | I87: 2668
A88: Samf. Adm. | C88: 1927 | D88: 4555 | E88: 2346 | F88: 1010 | G88: 201 | I88: 10039
A89: Cand. Merc. | C89: 3300 | D89: 4495 | E89: 1394 | F89: 721 | G89: 96 | I89: 10006
A90: HA | C90: 405 | D90: 339 | E90: 130 | F90: 174 | G90: 45 | I90: 1093
A91: HD | C91: 412 | D91: 391 | E91: 89 | F91: 148 | G91: 50 | I91: 1090
A92: Komm. og Sprog | C92: 413 | D92: 673 | E92: 460 | F92: 239 | G92: 75 | I92: 1860
A93: Bygningskonst. | C93: 276 | D93: 490 | E93: 219 | F93: 99 | G93: 24 | I93: 1108
A94: Cand. IT. | C94: 465 | D94: 855 | E94: 340 | F94: 45 | G94: 5 | I94: 1710
A95: Bac. Samf. | C95: 138 | D95: 137 | E95: 112 | F95: 86 | G95: 9 | I95: 482
A96: Bac. Hum. | C96: 666 | D96: 310 | E96: 206 | F96: 191 | G96: 57 | I96: 1430
A97: Bac. Nat. | C97: 414 | D97: 329 | E97: 88 | F97: 37 | G97: 7 | I97: 875
A98: Andre | C98: 1107 | D98: 3180 | E98: 1822 | F98: 919 | G98: 328 | I98: 7356
A100: Total | C100: 20602 | D100: 36952 | E100: 18839 | F100: 10350 | G100: 3168 | I100: 89911
A102: Ingeniører i alt | C102: 2093 | D102: 3420 | E102: 1763 | F102: 1568 | G102: 498 | I102: 9342
A103: Magistre i alt | C103: 3173 | D103: 7657 | E103: 5377 | F103: 2560 | G103: 800 | I103: 19567
A104: DJØF'ere i alt | C104: 7580 | D104: 11979 | E104: 5266 | F104: 2864 | G104: 598 | I104: 28287
A111: Frederiksberg
C113: Under 30 år | D113: 30 - 39 år | E113: 40 - 49 år | F113: 50 - 59 år | G113: Over 60 år | I113: I alt
A115: Civ. ing. | C115: 215 | D115: 426 | E115: 215 | F115: 192 | G115: 64 | I115: 1112
A116: Diplom ing. | C116: 65 | D116: 119 | E116: 118 | F116: 205 | G116: 66 | I116: 573
A117: Cand. Scient. Tek. | C117: 212 | D117: 446 | E117: 124 | F117: 30 | G117: 4 | I117: 816
A118: MA. Hum. | C118: 228 | D118: 554 | E118: 670 | F118: 274 | G118: 104 | I118: 1830
A119: MA. Nat. | C119: 48 | D119: 92 | E119: 167 | F119: 134 | G119: 51 | I119: 492
A120: MA. Ph.d. | C120: 1 | D120: 36 | E120: 47 | F120: 37 | G120: 8 | I120: 129
A121: MA. Samf. | C121: 71 | D121: 153 | E121: 58 | F121: 32 | G121: 3 | I121: 317
A122: Øvrige Mag. | C122: 15 | D122: 23 | E122: 38 | F122: 33 | G122: 10 | I122: 119
A123: Agronom | C123: 14 | D123: 17 | E123: 17 | F123: 21 | G123: 11 | I123: 80
A124: Landsk. Arkt. | C124: 4 | D124: 13 | E124: 8 | F124: 6 | G124: 2 | I124: 33
A125: Hortonom | C125: 0 | D125: 0 | E125: 3 | F125: 2 | G125: 2 | I125: 7
A126: Forstkand. | C126: 1 | D126: 4 | E126: 6 | F126: 2 | G126: 1 | I126: 14
A127: Jordbrugsakad. | C127: 19 | D127: 34 | E127: 34 | F127: 31 | G127: 16 | I127: 134
A128: Mejeriing. | C128: 3 | D128: 3 | E128: 2 | F128: 1 | G128: 1 | I128: 10
A129: Levn.m.kand. | C129: 9 | D129: 18 | E129: 5 | F129: 0 | G129: 0 | I129: 32
A130: Dyrlæge | C130: 20 | D130: 29 | E130: 9 | F130: 10 | G130: 6 | I130: 74
A131: Farmaceut | C131: 50 | D131: 73 | E131: 44 | F131: 41 | G131: 18 | I131: 226
A132: Læge | C132: 94 | D132: 200 | E132: 90 | F132: 73 | G132: 44 | I132: 501
A133: Tandlæge | C133: 16 | D133: 26 | E133: 7 | F133: 6 | G133: 9 | I133: 64
A134: Arkitekt | C134: 30 | D134: 123 | E134: 138 | F134: 97 | G134: 33 | I134: 421
A135: Landinspek. | C135: 2 | D135: 9 | E135: 4 | F135: 1 | G135: 0 | I135: 16
A136: Bibliotekar | C136: 3 | D136: 23 | E136: 57 | F136: 26 | G136: 22 | I136: 131
A137: Musikudd. | C137: 0 | D137: 2 | E137: 1 | F137: 11 | G137: 6 | I137: 20
A138: Teolog | C138: 2 | D138: 4 | E138: 15 | F138: 12 | G138: 4 | I138: 37
A139: Psykolog | C139: 59 | D139: 122 | E139: 78 | F139: 38 | G139: 33 | I139: 330
A140: Jurist | C140: 204 | D140: 372 | E140: 228 | F140: 204 | G140: 71 | I140: 1079
A141: Økonom | C141: 106 | D141: 211 | E141: 101 | F141: 125 | G141: 40 | I141: 583
A142: Samf. Adm. | C142: 297 | D142: 683 | E142: 459 | F142: 235 | G142: 49 | I142: 1723
A143: Cand. Merc. | C143: 706 | D143: 997 | E143: 374 | F143: 223 | G143: 40 | I143: 2340
A144: HA | C144: 61 | D144: 55 | E144: 25 | F144: 39 | G144: 19 | I144: 199
A145: HD | C145: 59 | D145: 64 | E145: 22 | F145: 45 | G145: 26 | I145: 216
A146: Komm. og Sprog | C146: 74 | D146: 130 | E146: 95 | F146: 65 | G146: 20 | I146: 384
A147: Bygningskonst. | C147: 23 | D147: 56 | E147: 48 | F147: 22 | G147: 2 | I147: 151
A148: Cand. IT. | C148: 48 | D148: 99 | E148: 55 | F148: 12 | G148: 0 | I148: 214
A149: Bac. Samf. | C149: 23 | D149: 22 | E149: 23 | F149: 9 | G149: 3 | I149: 80
A150: Bac. Hum. | C150: 78 | D150: 30 | E150: 33 | F150: 47 | G150: 10 | I150: 198
A151: Bac. Nat. | C151: 47 | D151: 31 | E151: 17 | F151: 5 | G151: 1 | I151: 101
A152: Andre | C152: 169 | D152: 443 | E152: 336 | F152: 194 | G152: 101 | I152: 1243
A154: Total | C154: 3057 | D154: 5708 | E154: 3737 | F154: 2509 | G154: 884 | I154: 15895
A156: Ingeniører i alt | C156: 280 | D156: 545 | E156: 333 | F156: 397 | G156: 130 | I156: 1685
A157: Magistre i alt | C157: 363 | D157: 858 | E157: 980 | F157: 510 | G157: 176 | I157: 2887
A158: DJØF'ere i alt | C158: 1374 | D158: 2318 | E158: 1187 | F158: 826 | G158: 219 | I158: 5924
A165: Ballerup
C167: Under 30 år | D167: 30 - 39 år | E167: 40 - 49 år | F167: 50 - 59 år | G167: Over 60 år | I167: I alt
A169: Civ. ing. | C169: 42 | D169: 154 | E169: 172 | F169: 147 | G169: 32 | I169: 547
A170: Diplom ing. | C170: 27 | D170: 91 | E170: 111 | F170: 205 | G170: 62 | I170: 496
A171: Cand. Scient. Tek. | C171: 36 | D171: 114 | E171: 37 | F171: 19 | G171: 1 | I171: 207
A172: MA. Hum. | C172: 14 | D172: 66 | E172: 88 | F172: 39 | G172: 15 | I172: 222
A173: MA. Nat. | C173: 6 | D173: 27 | E173: 64 | F173: 52 | G173: 18 | I173: 167
A174: MA. Ph.d. | C174: 0 | D174: 3 | E174: 5 | F174: 10 | G174: 1 | I174: 19
A175: MA. Samf. | C175: 4 | D175: 20 | E175: 6 | F175: 4 | G175: 1 | I175: 35
A176: Øvrige Mag. | C176: 2 | D176: 4 | E176: 12 | F176: 9 | G176: 0 | I176: 27
A177: Agronom | C177: 0 | D177: 4 | E177: 2 | F177: 9 | G177: 5 | I177: 20
A178: Landsk. Arkt. | C178: 1 | D178: 3 | E178: 5 | F178: 1 | G178: 0 | I178: 10
A179: Hortonom | C179: 0 | D179: 0 | E179: 1 | F179: 2 | G179: 0 | I179: 3
A180: Forstkand. | C180: 0 | D180: 0 | E180: 3 | F180: 1 | G180: 0 | I180: 4
A181: Jordbrugsakad. | C181: 1 | D181: 7 | E181: 11 | F181: 13 | G181: 5 | I181: 37
A182: Mejeriing. | C182: 1 | D182: 0 | E182: 2 | F182: 1 | G182: 0 | I182: 4
A183: Levn.m.kand. | C183: 1 | D183: 1 | E183: 2 | F183: 0 | G183: 0 | I183: 4
A184: Dyrlæge | C184: 2 | D184: 13 | E184: 8 | F184: 3 | G184: 2 | I184: 28
A185: Farmaceut | C185: 11 | D185: 40 | E185: 52 | F185: 24 | G185: 2 | I185: 129
A186: Læge | C186: 4 | D186: 35 | E186: 22 | F186: 14 | G186: 8 | I186: 83
A187: Tandlæge | C187: 2 | D187: 3 | E187: 3 | F187: 6 | G187: 2 | I187: 16
A188: Arkitekt | C188: 1 | D188: 5 | E188: 7 | F188: 8 | G188: 0 | I188: 21
A189: Landinspek. | C189: 0 | D189: 2 | E189: 3 | F189: 0 | G189: 1 | I189: 6
A190: Bibliotekar | C190: 0 | D190: 6 | E190: 14 | F190: 12 | G190: 9 | I190: 41
A191: Musikudd. | C191: 0 | D191: 1 | E191: 4 | F191: 1 | G191: 2 | I191: 8
A192: Teolog | C192: 0 | D192: 1 | E192: 2 | F192: 5 | G192: 0 | I192: 8
A193: Psykolog | C193: 6 | D193: 17 | E193: 11 | F193: 12 | G193: 1 | I193: 47
A194: Jurist | C194: 14 | D194: 36 | E194: 38 | F194: 21 | G194: 2 | I194: 111
A195: Økonom | C195: 1 | D195: 21 | E195: 32 | F195: 21 | G195: 4 | I195: 79
A196: Samf. Adm. | C196: 23 | D196: 73 | E196: 56 | F196: 40 | G196: 6 | I196: 198
A197: Cand. Merc. | C197: 32 | D197: 102 | E197: 83 | F197: 51 | G197: 8 | I197: 276
A198: HA | C198: 1 | D198: 4 | E198: 11 | F198: 14 | G198: 4 | I198: 34
A199: HD | C199: 0 | D199: 6 | E199: 8 | F199: 12 | G199: 10 | I199: 36
A200: Komm. og Sprog | C200: 1 | D200: 14 | E200: 22 | F200: 21 | G200: 10 | I200: 68
A201: Bygningskonst. | C201: 12 | D201: 21 | E201: 16 | F201: 12 | G201: 1 | I201: 62
A202: Cand. IT. | C202: 2 | D202: 21 | E202: 13 | F202: 1 | G202: 0 | I202: 37
A203: Bac. Samf. | C203: 1 | D203: 1 | E203: 3 | F203: 4 | G203: 0 | I203: 9
A204: Bac. Hum. | C204: 7 | D204: 2 | E204: 5 | F204: 3 | G204: 0 | I204: 17
A205: Bac. Nat. | C205: 10 | D205: 17 | E205: 5 | F205: 3 | G205: 1 | I205: 36
A206: Andre | C206: 17 | D206: 60 | E206: 53 | F206: 43 | G206: 14 | I206: 187
A208: Total | C208: 281 | D208: 988 | E208: 981 | F208: 830 | G208: 222 | I208: 3302
A210: Ingeniører i alt | C210: 69 | D210: 245 | E210: 283 | F210: 352 | G210: 94 | I210: 1043
A211: Magistre i alt | C211: 26 | D211: 120 | E211: 175 | F211: 114 | G211: 35 | I211: 470
A212: DJØF'ere i alt | C212: 71 | D212: 236 | E212: 220 | F212: 147 | G212: 24 | I212: 698
A219: Brøndby
C221: Under 30 år | D221: 30 - 39 år | E221: 40 - 49 år | F221: 50 - 59 år | G221: Over 60 år | I221: I alt
A223: Civ. ing. | C223: 18 | D223: 24 | E223: 29 | F223: 38 | G223: 14 | I223: 123
A224: Diplom ing. | C224: 21 | D224: 28 | E224: 51 | F224: 46 | G224: 16 | I224: 162
A225: Cand. Scient. Tek. | C225: 20 | D225: 37 | E225: 11 | F225: 4 | G225: 0 | I225: 72
A226: MA. Hum. | C226: 12 | D226: 40 | E226: 21 | F226: 11 | G226: 2 | I226: 86
A227: MA. Nat. | C227: 1 | D227: 16 | E227: 20 | F227: 14 | G227: 7 | I227: 58
A228: MA. Ph.d. | C228: 0 | D228: 4 | E228: 2 | F228: 0 | G228: 0 | I228: 6
A229: MA. Samf. | C229: 4 | D229: 12 | E229: 3 | F229: 1 | G229: 0 | I229: 20
A230: Øvrige Mag. | C230: 2 | D230: 5 | E230: 4 | F230: 0 | G230: 1 | I230: 12
A231: Agronom | C231: 2 | D231: 1 | E231: 1 | F231: 1 | G231: 1 | I231: 6
A232: Landsk. Arkt. | C232: 0 | D232: 1 | E232: 4 | F232: 1 | G232: 0 | I232: 6
A233: Hortonom | C233: 0 | D233: 0 | E233: 0 | F233: 1 | G233: 1 | I233: 2
A234: Forstkand. | C234: 0 | D234: 0 | E234: 1 | F234: 0 | G234: 0 | I234: 1
A235: Jordbrugsakad. | C235: 2 | D235: 2 | E235: 6 | F235: 3 | G235: 2 | I235: 15
A236: Mejeriing. | C236: 0 | D236: 0 | E236: 0 | F236: 0 | G236: 0 | I236: 0
A237: Levn.m.kand. | C237: 0 | D237: 1 | E237: 0 | F237: 0 | G237: 0 | I237: 1
A238: Dyrlæge | C238: 1 | D238: 2 | E238: 2 | F238: 0 | G238: 1 | I238: 6
A239: Farmaceut | C239: 10 | D239: 14 | E239: 10 | F239: 3 | G239: 2 | I239: 39
A240: Læge | C240: 6 | D240: 16 | E240: 6 | F240: 9 | G240: 3 | I240: 40
A241: Tandlæge | C241: 4 | D241: 5 | E241: 0 | F241: 0 | G241: 2 | I241: 11
A242: Arkitekt | C242: 0 | D242: 2 | E242: 1 | F242: 0 | G242: 1 | I242: 4
A243: Landinspek. | C243: 0 | D243: 0 | E243: 0 | F243: 0 | G243: 0 | I243: 0
... 1077 more rows

Sheet Tabel 4 H
A1: Tabel 4. Ledighedsberørte - aldersfordelt
A3: Hovedstaden
C5: Under 30 år | D5: 30 - 39 år | E5: 40 - 49 år | F5: 50 - 59 år | G5: Over 60 år | I5: I alt
A7: Civ. ing. | C7: 277 | D7: 161 | E7: 51 | F7: 80 | G7: 44 | I7: 613
A8: Diplom ing. | C8: 89 | D8: 86 | E8: 61 | F8: 104 | G8: 70 | I8: 410
A9: Cand. Scient. Tek | C9: 383 | D9: 330 | E9: 58 | F9: 17 | G9: 8 | I9: 796
A10: MA. Hum. | C10: 644 | D10: 752 | E10: 354 | F10: 171 | G10: 75 | I10: 1996
A11: MA. Nat. | C11: 75 | D11: 90 | E11: 42 | F11: 40 | G11: 26 | I11: 273
A12: MA. Ph.d. | C12: 3 | D12: 14 | E12: 22 | F12: 12 | G12: 6 | I12: 57
A13: MA. Samf. | C13: 164 | D13: 190 | E13: 41 | F13: 15 | G13: 3 | I13: 413
A14: Øvrige Mag. | C14: 56 | D14: 49 | E14: 40 | F14: 20 | G14: 9 | I14: 174
A15: Agronom | C15: 17 | D15: 12 | E15: 3 | F15: 9 | G15: 4 | I15: 45
A16: Landsk. Arkt. | C16: 9 | D16: 12 | E16: 6 | F16: 1 | G16: 1 | I16: 29
A17: Hortonom | C17: 0 | D17: 1 | E17: 1 | F17: 2 | G17: 1 | I17: 5
A18: Forstkand. | C18: 5 | D18: 2 | E18: 3 | F18: 2 | G18: 1 | I18: 13
A19: Jordbrugsakad. | C19: 31 | D19: 27 | E19: 13 | F19: 14 | G19: 7 | I19: 92
A20: Mejeriing. | C20: 6 | D20: 7 | E20: 0 | F20: 0 | G20: 0 | I20: 13
A21: Levn.m.kand. | C21: 13 | D21: 9 | E21: 3 | F21: 1 | G21: 0 | I21: 26
A22: Dyrlæge | C22: 8 | D22: 13 | E22: 4 | F22: 3 | G22: 0 | I22: 28
A23: Farmaceut | C23: 49 | D23: 26 | E23: 14 | F23: 11 | G23: 5 | I23: 105
A24: Læge | C24: 20 | D24: 40 | E24: 9 | F24: 6 | G24: 0 | I24: 75
A25: Tandlæge | C25: 3 | D25: 6 | E25: 4 | F25: 2 | G25: 2 | I25: 17
A26: Arkitekt | C26: 51 | D26: 82 | E26: 44 | F26: 24 | G26: 22 | I26: 223
A27: Landinspek. | C27: 0 | D27: 2 | E27: 2 | F27: 1 | G27: 0 | I27: 5
A28: Bibliotekar | C28: 14 | D28: 29 | E28: 29 | F28: 22 | G28: 9 | I28: 103
A29: Musikudd. | C29: 3 | D29: 6 | E29: 6 | F29: 4 | G29: 7 | I29: 26
A30: Teolog | C30: 4 | D30: 11 | E30: 7 | F30: 6 | G30: 1 | I30: 29
A31: Psykolog | C31: 49 | D31: 49 | E31: 30 | F31: 12 | G31: 10 | I31: 150
A32: Jurist | C32: 48 | D32: 55 | E32: 33 | F32: 21 | G32: 14 | I32: 171
A33: Økonom | C33: 58 | D33: 30 | E33: 17 | F33: 31 | G33: 23 | I33: 159
A34: Samf. Adm. | C34: 317 | D34: 350 | E34: 171 | F34: 77 | G34: 26 | I34: 941
A35: Cand. Merc. | C35: 321 | D35: 306 | E35: 157 | F35: 116 | G35: 34 | I35: 934
A36: HA | C36: 78 | D36: 41 | E36: 15 | F36: 17 | G36: 25 | I36: 176
A37: HD | C37: 75 | D37: 55 | E37: 12 | F37: 22 | G37: 27 | I37: 191
A38: Komm. og Sprog | C38: 85 | D38: 82 | E38: 70 | F38: 46 | G38: 32 | I38: 315
A39: Bygningskonst. | C39: 69 | D39: 32 | E39: 17 | F39: 10 | G39: 4 | I39: 132
A40: Cand. IT. | C40: 51 | D40: 69 | E40: 25 | F40: 5 | G40: 1 | I40: 151
A41: Bac. Samf. | C41: 38 | D41: 13 | E41: 11 | F41: 7 | G41: 2 | I41: 71
A42: Bac. Hum. | C42: 214 | D42: 57 | E42: 25 | F42: 26 | G42: 14 | I42: 336
A43: Bac. Nat. | C43: 132 | D43: 38 | E43: 13 | F43: 7 | G43: 1 | I43: 191
A44: Andre | C44: 197 | D44: 407 | E44: 255 | F44: 197 | G44: 94 | I44: 1150
A46: Total | C46: 3625 | D46: 3514 | E46: 1655 | F46: 1147 | G46: 601 | I46: 10542
A48: Ingeniører i alt | C48: 366 | D48: 247 | E48: 112 | F48: 184 | G48: 114 | I48: 1023
A49: Magistre i alt | C49: 942 | D49: 1095 | E49: 499 | F49: 258 | G49: 119 | I49: 2913
A50: DJØF'ere i alt | C50: 822 | D50: 782 | E50: 393 | F50: 262 | G50: 122 | I50: 2381
A57: København
C59: Under 30 år | D59: 30 - 39 år | E59: 40 - 49 år | F59: 50 - 59 år | G59: Over 60 år | I59: I alt
A61: Civ. ing. | C61: 155 | D61: 83 | E61: 20 | F61: 21 | G61: 7 | I61: 286
A62: Diplom ing. | C62: 44 | D62: 50 | E62: 28 | F62: 29 | G62: 12 | I62: 163
A63: Cand. Scient. Tek | C63: 287 | D63: 214 | E63: 21 | F63: 7 | G63: 3 | I63: 532
A64: MA. Hum. | C64: 502 | D64: 545 | E64: 215 | F64: 99 | G64: 37 | I64: 1398
A65: MA. Nat. | C65: 57 | D65: 62 | E65: 21 | F65: 16 | G65: 10 | I65: 166
A66: MA. Ph.d. | C66: 2 | D66: 10 | E66: 14 | F66: 6 | G66: 3 | I66: 35
A67: MA. Samf. | C67: 131 | D67: 144 | E67: 26 | F67: 11 | G67: 3 | I67: 315
A68: Øvrige Mag. | C68: 43 | D68: 31 | E68: 26 | F68: 11 | G68: 4 | I68: 115
A69: Agronom | C69: 9 | D69: 8 | E69: 2 | F69: 1 | G69: 1 | I69: 21
A70: Landsk. Arkt. | C70: 7 | D70: 7 | E70: 5 | F70: 1 | G70: 0 | I70: 20
A71: Hortonom | C71: 0 | D71: 0 | E71: 0 | F71: 0 | G71: 1 | I71: 1
A72: Forstkand. | C72: 5 | D72: 1 | E72: 1 | F72: 1 | G72: 0 | I72: 8
A73: Jordbrugsakad. | C73: 21 | D73: 16 | E73: 8 | F73: 3 | G73: 2 | I73: 50
A74: Mejeriing. | C74: 4 | D74: 6 | E74: 0 | F74: 0 | G74: 0 | I74: 10
A75: Levn.m.kand. | C75: 10 | D75: 6 | E75: 2 | F75: 0 | G75: 0 | I75: 18
A76: Dyrlæge | C76: 8 | D76: 8 | E76: 2 | F76: 0 | G76: 0 | I76: 18
A77: Farmaceut | C77: 29 | D77: 19 | E77: 6 | F77: 4 | G77: 0 | I77: 58
A78: Læge | C78: 15 | D78: 31 | E78: 3 | F78: 1 | G78: 0 | I78: 50
A79: Tandlæge | C79: 3 | D79: 1 | E79: 3 | F79: 0 | G79: 0 | I79: 7
A80: Arkitekt | C80: 43 | D80: 63 | E80: 30 | F80: 17 | G80: 14 | I80: 167
A81: Landinspek. | C81: 0 | D81: 1 | E81: 1 | F81: 1 | G81: 0 | I81: 3
A82: Bibliotekar | C82: 9 | D82: 17 | E82: 15 | F82: 11 | G82: 4 | I82: 56
A83: Musikudd. | C83: 2 | D83: 5 | E83: 3 | F83: 4 | G83: 1 | I83: 15
A84: Teolog | C84: 1 | D84: 8 | E84: 4 | F84: 5 | G84: 0 | I84: 18
A85: Psykolog | C85: 32 | D85: 33 | E85: 15 | F85: 5 | G85: 3 | I85: 88
A86: Jurist | C86: 36 | D86: 29 | E86: 8 | F86: 4 | G86: 9 | I86: 86
A87: Økonom | C87: 48 | D87: 21 | E87: 9 | F87: 8 | G87: 11 | I87: 97
A88: Samf. Adm. | C88: 241 | D88: 234 | E88: 98 | F88: 40 | G88: 11 | I88: 624
A89: Cand. Merc. | C89: 217 | D89: 186 | E89: 69 | F89: 30 | G89: 11 | I89: 513
A90: HA | C90: 58 | D90: 25 | E90: 6 | F90: 7 | G90: 3 | I90: 99
A91: HD | C91: 57 | D91: 40 | E91: 5 | F91: 6 | G91: 4 | I91: 112
A92: Komm. og Sprog | C92: 62 | D92: 48 | E92: 41 | F92: 15 | G92: 8 | I92: 174
A93: Bygningskonst. | C93: 46 | D93: 22 | E93: 7 | F93: 5 | G93: 0 | I93: 80
A94: Cand. IT. | C94: 41 | D94: 46 | E94: 13 | F94: 3 | G94: 0 | I94: 103
A95: Bac. Samf. | C95: 31 | D95: 8 | E95: 6 | F95: 4 | G95: 0 | I95: 49
A96: Bac. Hum. | C96: 172 | D96: 41 | E96: 17 | F96: 12 | G96: 8 | I96: 250
A97: Bac. Nat. | C97: 94 | D97: 25 | E97: 6 | F97: 3 | G97: 1 | I97: 129
A98: Andre | C98: 149 | D98: 275 | E98: 134 | F98: 90 | G98: 46 | I98: 694
A100: Total | C100: 2650 | D100: 2353 | E100: 882 | F100: 478 | G100: 215 | I100: 6578
A102: Ingeniører i alt | C102: 199 | D102: 133 | E102: 48 | F102: 50 | G102: 19 | I102: 449
A103: Magistre i alt | C103: 735 | D103: 792 | E103: 302 | F103: 143 | G103: 57 | I103: 2029
A104: DJØF'ere i alt | C104: 600 | D104: 495 | E104: 190 | F104: 89 | G104: 45 | I104: 1419
A111: Frederiksberg
C113: Under 30 år | D113: 30 - 39 år | E113: 40 - 49 år | F113: 50 - 59 år | G113: Over 60 år | I113: I alt
A115: Civ. ing. | C115: 7 | D115: 14 | E115: 1 | F115: 5 | G115: 3 | I115: 30
A116: Diplom ing. | C116: 4 | D116: 2 | E116: 5 | F116: 4 | G116: 5 | I116: 20
A117: Cand. Scient. Tek | C117: 17 | D117: 21 | E117: 10 | F117: 1 | G117: 0 | I117: 49
A118: MA. Hum. | C118: 57 | D118: 61 | E118: 49 | F118: 18 | G118: 9 | I118: 194
A119: MA. Nat. | C119: 4 | D119: 6 | E119: 3 | F119: 4 | G119: 3 | I119: 20
A120: MA. Ph.d. | C120: 1 | D120: 4 | E120: 2 | F120: 3 | G120: 0 | I120: 10
A121: MA. Samf. | C121: 12 | D121: 12 | E121: 5 | F121: 2 | G121: 0 | I121: 31
A122: Øvrige Mag. | C122: 4 | D122: 3 | E122: 4 | F122: 4 | G122: 1 | I122: 16
A123: Agronom | C123: 5 | D123: 0 | E123: 1 | F123: 1 | G123: 1 | I123: 8
A124: Landsk. Arkt. | C124: 0 | D124: 1 | E124: 0 | F124: 0 | G124: 0 | I124: 1
A125: Hortonom | C125: 0 | D125: 0 | E125: 0 | F125: 0 | G125: 0 | I125: 0
A126: Forstkand. | C126: 0 | D126: 0 | E126: 1 | F126: 0 | G126: 0 | I126: 1
A127: Jordbrugsakad. | C127: 5 | D127: 1 | E127: 2 | F127: 1 | G127: 1 | I127: 10
A128: Mejeriing. | C128: 0 | D128: 0 | E128: 0 | F128: 0 | G128: 0 | I128: 0
A129: Levn.m.kand. | C129: 2 | D129: 1 | E129: 0 | F129: 0 | G129: 0 | I129: 3
A130: Dyrlæge | C130: 0 | D130: 0 | E130: 0 | F130: 0 | G130: 0 | I130: 0
A131: Farmaceut | C131: 2 | D131: 0 | E131: 0 | F131: 1 | G131: 0 | I131: 3
A132: Læge | C132: 3 | D132: 2 | E132: 2 | F132: 1 | G132: 0 | I132: 8
A133: Tandlæge | C133: 0 | D133: 2 | E133: 0 | F133: 0 | G133: 0 | I133: 2
A134: Arkitekt | C134: 5 | D134: 10 | E134: 5 | F134: 4 | G134: 0 | I134: 24
A135: Landinspek. | C135: 0 | D135: 1 | E135: 1 | F135: 0 | G135: 0 | I135: 2
A136: Bibliotekar | C136: 1 | D136: 2 | E136: 6 | F136: 3 | G136: 0 | I136: 12
A137: Musikudd. | C137: 0 | D137: 0 | E137: 0 | F137: 0 | G137: 1 | I137: 1
A138: Teolog | C138: 1 | D138: 0 | E138: 1 | F138: 1 | G138: 0 | I138: 3
A139: Psykolog | C139: 7 | D139: 6 | E139: 5 | F139: 1 | G139: 2 | I139: 21
A140: Jurist | C140: 3 | D140: 7 | E140: 5 | F140: 2 | G140: 2 | I140: 19
A141: Økonom | C141: 5 | D141: 2 | E141: 1 | F141: 2 | G141: 1 | I141: 11
A142: Samf. Adm. | C142: 33 | D142: 27 | E142: 10 | F142: 9 | G142: 2 | I142: 81
A143: Cand. Merc. | C143: 35 | D143: 37 | E143: 11 | F143: 9 | G143: 1 | I143: 93
A144: HA | C144: 5 | D144: 5 | E144: 2 | F144: 1 | G144: 3 | I144: 16
A145: HD | C145: 6 | D145: 4 | E145: 1 | F145: 3 | G145: 2 | I145: 16
A146: Komm. og Sprog | C146: 12 | D146: 15 | E146: 8 | F146: 4 | G146: 3 | I146: 42
A147: Bygningskonst. | C147: 2 | D147: 0 | E147: 1 | F147: 0 | G147: 0 | I147: 3
A148: Cand. IT. | C148: 4 | D148: 6 | E148: 1 | F148: 1 | G148: 0 | I148: 12
A149: Bac. Samf. | C149: 5 | D149: 2 | E149: 2 | F149: 1 | G149: 0 | I149: 10
A150: Bac. Hum. | C150: 17 | D150: 1 | E150: 2 | F150: 7 | G150: 0 | I150: 27
A151: Bac. Nat. | C151: 11 | D151: 1 | E151: 1 | F151: 1 | G151: 0 | I151: 14
A152: Andre | C152: 15 | D152: 31 | E152: 28 | F152: 17 | G152: 6 | I152: 97
A154: Total | C154: 285 | D154: 286 | E154: 174 | F154: 110 | G154: 45 | I154: 900
A156: Ingeniører i alt | C156: 11 | D156: 16 | E156: 6 | F156: 9 | G156: 8 | I156: 50
A157: Magistre i alt | C157: 78 | D157: 86 | E157: 63 | F157: 31 | G157: 13 | I157: 271
A158: DJØF'ere i alt | C158: 81 | D158: 78 | E158: 29 | F158: 23 | G158: 9 | I158: 220
A165: Ballerup
C167: Under 30 år | D167: 30 - 39 år | E167: 40 - 49 år | F167: 50 - 59 år | G167: Over 60 år | I167: I alt
A169: Civ. ing. | C169: 0 | D169: 3 | E169: 0 | F169: 4 | G169: 1 | I169: 8
A170: Diplom ing. | C170: 2 | D170: 3 | E170: 1 | F170: 6 | G170: 3 | I170: 15
A171: Cand. Scient. Tek | C171: 1 | D171: 7 | E171: 2 | F171: 0 | G171: 0 | I171: 10
A172: MA. Hum. | C172: 3 | D172: 3 | E172: 5 | F172: 2 | G172: 0 | I172: 13
A173: MA. Nat. | C173: 0 | D173: 1 | E173: 2 | F173: 0 | G173: 0 | I173: 3
A174: MA. Ph.d. | C174: 0 | D174: 0 | E174: 0 | F174: 0 | G174: 0 | I174: 0
A175: MA. Samf. | C175: 2 | D175: 2 | E175: 0 | F175: 0 | G175: 0 | I175: 4
A176: Øvrige Mag. | C176: 0 | D176: 0 | E176: 0 | F176: 0 | G176: 0 | I176: 0
A177: Agronom | C177: 0 | D177: 0 | E177: 0 | F177: 0 | G177: 0 | I177: 0
A178: Landsk. Arkt. | C178: 1 | D178: 1 | E178: 0 | F178: 0 | G178: 0 | I178: 2
A179: Hortonom | C179: 0 | D179: 0 | E179: 0 | F179: 0 | G179: 0 | I179: 0
A180: Forstkand. | C180: 0 | D180: 0 | E180: 0 | F180: 0 | G180: 0 | I180: 0
A181: Jordbrugsakad. | C181: 1 | D181: 1 | E181: 0 | F181: 0 | G181: 0 | I181: 2
A182: Mejeriing. | C182: 1 | D182: 0 | E182: 0 | F182: 0 | G182: 0 | I182: 1
A183: Levn.m.kand. | C183: 0 | D183: 0 | E183: 0 | F183: 0 | G183: 0 | I183: 0
A184: Dyrlæge | C184: 0 | D184: 0 | E184: 0 | F184: 0 | G184: 0 | I184: 0
A185: Farmaceut | C185: 1 | D185: 0 | E185: 0 | F185: 2 | G185: 0 | I185: 3
A186: Læge | C186: 0 | D186: 0 | E186: 0 | F186: 1 | G186: 0 | I186: 1
A187: Tandlæge | C187: 0 | D187: 0 | E187: 0 | F187: 0 | G187: 0 | I187: 0
A188: Arkitekt | C188: 1 | D188: 1 | E188: 0 | F188: 0 | G188: 0 | I188: 2
A189: Landinspek. | C189: 0 | D189: 0 | E189: 0 | F189: 0 | G189: 0 | I189: 0
A190: Bibliotekar | C190: 0 | D190: 0 | E190: 2 | F190: 0 | G190: 0 | I190: 2
A191: Musikudd. | C191: 0 | D191: 0 | E191: 1 | F191: 0 | G191: 0 | I191: 1
A192: Teolog | C192: 0 | D192: 0 | E192: 0 | F192: 0 | G192: 0 | I192: 0
A193: Psykolog | C193: 0 | D193: 0 | E193: 1 | F193: 0 | G193: 0 | I193: 1
A194: Jurist | C194: 0 | D194: 1 | E194: 1 | F194: 0 | G194: 0 | I194: 2
A195: Økonom | C195: 0 | D195: 0 | E195: 1 | F195: 0 | G195: 0 | I195: 1
A196: Samf. Adm. | C196: 2 | D196: 1 | E196: 3 | F196: 1 | G196: 0 | I196: 7
A197: Cand. Merc. | C197: 2 | D197: 4 | E197: 2 | F197: 2 | G197: 1 | I197: 11
A198: HA | C198: 0 | D198: 1 | E198: 0 | F198: 0 | G198: 1 | I198: 2
A199: HD | C199: 0 | D199: 0 | E199: 2 | F199: 1 | G199: 2 | I199: 5
A200: Komm. og Sprog | C200: 0 | D200: 1 | E200: 2 | F200: 1 | G200: 0 | I200: 4
A201: Bygningskonst. | C201: 1 | D201: 0 | E201: 0 | F201: 0 | G201: 0 | I201: 1
A202: Cand. IT. | C202: 0 | D202: 1 | E202: 1 | F202: 0 | G202: 0 | I202: 2
A203: Bac. Samf. | C203: 0 | D203: 0 | E203: 0 | F203: 0 | G203: 0 | I203: 0
A204: Bac. Hum. | C204: 0 | D204: 0 | E204: 0 | F204: 0 | G204: 0 | I204: 0
A205: Bac. Nat. | C205: 0 | D205: 2 | E205: 1 | F205: 0 | G205: 0 | I205: 3
A206: Andre | C206: 4 | D206: 1 | E206: 4 | F206: 1 | G206: 0 | I206: 10
A208: Total | C208: 21 | D208: 33 | E208: 31 | F208: 21 | G208: 8 | I208: 114
A210: Ingeniører i alt | C210: 2 | D210: 6 | E210: 1 | F210: 10 | G210: 4 | I210: 23
A211: Magistre i alt | C211: 5 | D211: 6 | E211: 7 | F211: 2 | G211: 0 | I211: 20
A212: DJØF'ere i alt | C212: 4 | D212: 7 | E212: 7 | F212: 3 | G212: 2 | I212: 23
A219: Brøndby
C221: Under 30 år | D221: 30 - 39 år | E221: 40 - 49 år | F221: 50 - 59 år | G221: Over 60 år | I221: I alt
A223: Civ. ing. | C223: 4 | D223: 0 | E223: 1 | F223: 1 | G223: 1 | I223: 7
A224: Diplom ing. | C224: 6 | D224: 0 | E224: 0 | F224: 1 | G224: 1 | I224: 8
A225: Cand. Scient. Tek | C225: 5 | D225: 1 | E225: 0 | F225: 0 | G225: 0 | I225: 6
A226: MA. Hum. | C226: 4 | D226: 11 | E226: 1 | F226: 1 | G226: 0 | I226: 17
A227: MA. Nat. | C227: 1 | D227: 0 | E227: 0 | F227: 0 | G227: 1 | I227: 2
A228: MA. Ph.d. | C228: 0 | D228: 0 | E228: 0 | F228: 0 | G228: 0 | I228: 0
A229: MA. Samf. | C229: 3 | D229: 0 | E229: 0 | F229: 0 | G229: 0 | I229: 3
A230: Øvrige Mag. | C230: 0 | D230: 2 | E230: 0 | F230: 0 | G230: 0 | I230: 2
A231: Agronom | C231: 1 | D231: 0 | E231: 0 | F231: 0 | G231: 0 | I231: 1
A232: Landsk. Arkt. | C232: 0 | D232: 1 | E232: 0 | F232: 0 | G232: 0 | I232: 1
A233: Hortonom | C233: 0 | D233: 0 | E233: 0 | F233: 0 | G233: 0 | I233: 0
A234: Forstkand. | C234: 0 | D234: 0 | E234: 0 | F234: 0 | G234: 0 | I234: 0
A235: Jordbrugsakad. | C235: 1 | D235: 1 | E235: 0 | F235: 0 | G235: 0 | I235: 2
A236: Mejeriing. | C236: 0 | D236: 0 | E236: 0 | F236: 0 | G236: 0 | I236: 0
A237: Levn.m.kand. | C237: 0 | D237: 0 | E237: 0 | F237: 0 | G237: 0 | I237: 0
A238: Dyrlæge | C238: 0 | D238: 0 | E238: 0 | F238: 0 | G238: 0 | I238: 0
A239: Farmaceut | C239: 0 | D239: 1 | E239: 1 | F239: 0 | G239: 0 | I239: 2
A240: Læge | C240: 0 | D240: 0 | E240: 0 | F240: 0 | G240: 0 | I240: 0
A241: Tandlæge | C241: 0 | D241: 0 | E241: 0 | F241: 0 | G241: 0 | I241: 0
A242: Arkitekt | C242: 0 | D242: 0 | E242: 0 | F242: 0 | G242: 0 | I242: 0
A243: Landinspek. | C243: 0 | D243: 0 | E243: 0 | F243: 0 | G243: 0 | I243: 0
... 1077 more rows

Sheet Tabel 4(Br) H
A1: Tabel 4. Ledighedsberørte - aldersfordelt
A3: Hovedstaden
C5: Under 30 år | D5: 30 - 39 år | E5: 40 - 49 år | F5: 50 - 59 år | G5: Over 60 år | I5: I alt
A7: Civ. ing. | C7: 237.8057756 | D7: 137.8793738 | E7: 44.73835215 | F7: 70.25385143 | G7: 39.86028816 | I7: 530.5376411
A8: Diplom ing. | C8: 74.869332 | D8: 74.83128547 | E8: 51.96781638 | F8: 94.22129358 | G8: 63.87700368 | I8: 359.7667311
A9: Cand. Scient. Tek | C9: 331.824986 | D9: 289.9008295 | E9: 54.5387638 | F9: 16.16603256 | G9: 5.779953845 | I9: 698.2105657
A10: MA. Hum. | C10: 540.9118693 | D10: 651.9802907 | E10: 311.0172769 | F10: 141.9765484 | G10: 65.28285411 | I10: 1711.168839
A11: MA. Nat. | C11: 68.98085199 | D11: 79.00455311 | E11: 36.78974615 | F11: 32.92396931 | G11: 23.57824487 | I11: 241.2773654
A12: MA. Ph.d. | C12: 2.491735795 | D12: 11.94037298 | E12: 18.84301129 | F12: 8.823052454 | G12: 5.421942244 | I12: 47.52011476
A13: MA. Samf. | C13: 139.1423938 | D13: 168.9783571 | E13: 37.54755816 | F13: 12.93769101 | G13: 2.581550552 | I13: 361.1875507
A14: Øvrige Mag. | C14: 46.55585355 | D14: 42.16303873 | E14: 34.42025822 | F14: 18.65714464 | G14: 8.501216242 | I14: 150.2975114
A15: Agronom | C15: 15.38140086 | D15: 11.06405539 | E15: 2.768664629 | F15: 8.204952286 | G15: 3.143516497 | I15: 40.56258966
A16: Landsk. Arkt. | C16: 8.873573255 | D16: 10.28254226 | E16: 5.148755691 | F16: 0.9998128859 | G16: 0.2613359945 | I16: 25.56602008
A17: Hortonom | C17: 0 | D17: 0.9998128859 | E17: 0.9998128859 | F17: 1.999625772 | G17: 0.3536456059 | I17: 4.35289715
A18: Forstkand. | C18: 4.059128048 | D18: 1.999625772 | E18: 2.872201085 | F18: 1.999625772 | G18: 0.9998128859 | I18: 11.93039356
A19: Jordbrugsakad. | C19: 28.31410216 | D19: 24.3460363 | E19: 11.78943429 | F19: 13.20401672 | G19: 4.758310984 | I19: 82.41190046
A20: Mejeriing. | C20: 5.352710036 | D20: 6.764797605 | E20: 0 | F20: 0 | G20: 0 | I20: 12.11750764
A21: Levn.m.kand. | C21: 12.5790557 | D21: 7.932389447 | E21: 2.10004366 | F21: 0.9998128859 | G21: 0 | I21: 23.61130169
A22: Dyrlæge | C22: 5.991392752 | D22: 10.75594087 | E22: 3.326888293 | F22: 2.517308052 | G22: 0 | I22: 22.59152997
A23: Farmaceut | C23: 43.46909499 | D23: 24.45269132 | E23: 12.53726689 | F23: 9.383770972 | G23: 3.752884675 | I23: 93.59570885
A24: Læge | C24: 14.6398054 | D24: 31.5468097 | E24: 8.305993888 | F24: 5.405725691 | G24: 0 | I24: 59.89833468
A25: Tandlæge | C25: 1.957836961 | D25: 4.261211252 | E25: 3.515249797 | F25: 1.400860725 | G25: 1.538077715 | I25: 12.67323645
A26: Arkitekt | C26: 44.60799601 | D26: 73.63749766 | E26: 38.35464355 | F26: 22.10690451 | G26: 20.81269881 | I26: 199.5197405
A27: Landinspek. | C27: 0 | D27: 1.815006549 | E27: 1.999625772 | F27: 0.9998128859 | G27: 0 | I27: 4.814445207
A28: Bibliotekar | C28: 12.89527849 | D28: 24.19073162 | E28: 26.07060438 | F28: 18.4076592 | G28: 7.473336244 | I28: 89.03760993
A29: Musikudd. | C29: 2.522921474 | D29: 5.365808021 | E29: 4.722759309 | F29: 3.242686958 | G29: 5.227343604 | I29: 21.08151937
A30: Teolog | C30: 3.880745961 | D30: 9.832221044 | E30: 6.321960956 | F30: 4.571196906 | G30: 0.9998128859 | I30: 25.60593775
A31: Psykolog | C31: 42.06386827 | D31: 42.33268883 | E31: 24.82255348 | F31: 10.03742282 | G31: 9.133038109 | I31: 128.3895715
A32: Jurist | C32: 39.35882243 | D32: 49.29208507 | E32: 28.91848063 | F32: 18.71826857 | G32: 11.94536269 | I32: 148.2330194
A33: Økonom | C33: 49.35009044 | D33: 24.92110023 | E33: 15.5348344 | F33: 27.47208882 | G33: 20.08919104 | I33: 137.3673049
A34: Samf. Adm. | C34: 277.0598141 | D34: 315.8660263 | E34: 155.9340111 | F34: 69.02513566 | G34: 23.13790307 | I34: 841.0228903
A35: Cand. Merc. | C35: 272.6663756 | D35: 269.0326202 | E35: 136.4822553 | F35: 105.9109337 | G35: 29.30331192 | I35: 813.3954968
A36: HA | C36: 63.51275494 | D36: 34.46454188 | E36: 13.85205514 | F36: 16.16665627 | G36: 21.08027194 | I36: 149.0762802
A37: HD | C37: 66.75294705 | D37: 50.93245182 | E37: 11.80440342 | F37: 20.82330194 | G37: 23.18343417 | I37: 173.4965384
A38: Komm. og Sprog | C38: 74.90301254 | D38: 69.99189172 | E38: 65.55666438 | F38: 42.98072725 | G38: 28.11451382 | I38: 281.5468097
A39: Bygningskonst. | C39: 63.52005239 | D39: 26.90532028 | E39: 13.92758685 | F39: 8.861535583 | G39: 3.492297137 | I39: 116.7067922
A40: Cand. IT. | C40: 43.1665939 | D40: 63.17033618 | E40: 20.94056009 | F40: 4.063494044 | G40: 0.9998128859 | I40: 132.3407971
A41: Bac. Samf. | C41: 30.31747022 | D41: 11.02476143 | E41: 9.104970997 | F41: 5.97018649 | G41: 1.999625772 | I41: 58.41701491
A42: Bac. Hum. | C42: 169.6987463 | D42: 48.73136656 | E42: 20.56321337 | F42: 21.52123745 | G42: 10.94742094 | I42: 271.4619847
A43: Bac. Nat. | C43: 114.5044596 | D43: 32.70130356 | E43: 11.63600075 | F43: 6.367492048 | G43: 0.9998128859 | I43: 166.2090688
A44: Andre | C44: 167.4920477 | D44: 359.6026944 | E44: 222.3732302 | F44: 175.0988586 | G44: 81.7850683 | I44: 1006.351899
A46: Total | C46: 3093.160793 | D46: 3080.548431 | E46: 1460.358074 | F46: 1011.216678 | G46: 525.6565833 | I46: 9170.94056
A48: Ingeniører i alt | C48: 312.6751076 | D48: 212.7106593 | E48: 96.70616853 | F48: 164.475145 | G48: 103.7372918 | I48: 890.3043722
A49: Magistre i alt | C49: 798.0827044 | D49: 954.0666126 | E49: 438.6178507 | F49: 215.3184058 | G49: 105.365808 | I49: 2511.451382
A50: DJØF'ere i alt | C50: 701.9478575 | D50: 693.5763737 | E50: 350.7216366 | F50: 237.293083 | G50: 105.5560407 | I50: 2089.094992
A57: København
C59: Under 30 år | D59: 30 - 39 år | E59: 40 - 49 år | F59: 50 - 59 år | G59: Over 60 år | I59: I alt
A61: Civ. ing. | C61: 135.8953409 | D61: 71.97530094 | E61: 17.73654338 | F61: 16.7186428 | G61: 6.998690201 | I61: 249.3245182
A62: Diplom ing. | C62: 37.35919666 | D62: 45.93525853 | E62: 22.28466288 | F62: 26.0487744 | G62: 10.75344602 | I62: 142.3813385
A63: Cand. Scient. Tek | C63: 246.7429676 | D63: 189.1604815 | E63: 18.68209318 | F63: 6.998690201 | G63: 2.587787688 | I63: 464.1720202
A64: MA. Hum. | C64: 424.8662134 | D64: 471.4226907 | E64: 186.8196844 | F64: 83.11108339 | G64: 32.06948169 | I64: 1198.289154
A65: MA. Nat. | C65: 52.21605439 | D65: 54.0429115 | E65: 19.15611551 | F65: 13.71982786 | G65: 8.710160294 | I65: 147.8450695
A66: MA. Ph.d. | C66: 1.491922909 | D66: 8.264205077 | E66: 11.37092247 | F66: 4.097798291 | G66: 2.746834654 | I66: 27.9716834
A67: MA. Samf. | C67: 109.973804 | D67: 127.7097237 | E67: 22.98072725 | F67: 9.177321774 | G67: 2.581550552 | I67: 272.4231273
A68: Øvrige Mag. | C68: 34.99906443 | D68: 27.03174702 | E68: 22.36387451 | F68: 10.59252791 | G68: 3.610054263 | I68: 98.59726813
A69: Agronom | C69: 8.605376411 | D69: 7.064803842 | E69: 1.768851743 | F69: 0.9998128859 | G69: 0.9998128859 | I69: 19.43865777
A70: Landsk. Arkt. | C70: 6.873947483 | D70: 6.068109524 | E70: 4.735233581 | F70: 0.9998128859 | G70: 0 | I70: 18.67710347
A71: Hortonom | C71: 0 | D71: 0 | E71: 0 | F71: 0 | G71: 0.3536456059 | I71: 0.3536456059
A72: Forstkand. | C72: 4.059128048 | D72: 0.9998128859 | E72: 0.9998128859 | F72: 0.9998128859 | G72: 0 | I72: 7.058566706
A73: Jordbrugsakad. | C73: 19.53845194 | D73: 14.13272625 | E73: 7.50389821 | F73: 2.999438658 | G73: 1.353458492 | I73: 45.52797355
A74: Mejeriing. | C74: 3.353084264 | D74: 5.764984719 | E74: 0 | F74: 0 | G74: 0 | I74: 9.118068983
A75: Levn.m.kand. | C75: 9.57961704 | D75: 5.450009356 | E75: 1.118942182 | F75: 0 | G75: 0 | I75: 16.14856858
A76: Dyrlæge | C76: 5.991392752 | D76: 6.844632945 | E76: 1.689016404 | F76: 0 | G76: 0 | I76: 14.5250421
A77: Farmaceut | C77: 25.66706169 | D77: 18.19247801 | E77: 5.860412898 | F77: 3.389259652 | G77: 0 | I77: 53.10921225
A78: Læge | C78: 10.05613422 | D78: 24.79760494 | E78: 2.999438658 | F78: 0.9991891723 | G78: 0 | I78: 38.85236699
A79: Tandlæge | C79: 1.957836961 | D79: 0.2800474022 | E79: 2.561591717 | F79: 0 | G79: 0 | I79: 4.799476081
A80: Arkitekt | C80: 37.62115636 | D80: 57.10472151 | E80: 26.39555916 | F80: 15.62714402 | G80: 12.81419572 | I80: 149.5627768
A81: Landinspek. | C81: 0 | D81: 0.9998128859 | E81: 0.9998128859 | F81: 0.9998128859 | G81: 0 | I81: 2.999438658
A82: Bibliotekar | C82: 8.474396557 | D82: 14.36724256 | E82: 13.77845693 | F82: 8.433855174 | G82: 3.445393875 | I82: 48.4993451
A83: Musikudd. | C83: 1.523108589 | D83: 4.40341795 | E83: 2.17301815 | F83: 3.242686958 | G83: 0.588161916 | I83: 11.93039356
A84: Teolog | C84: 0.9998128859 | D84: 7.674795734 | E84: 3.90132851 | F84: 4.070978607 | G84: 0 | I84: 16.64691574
A85: Psykolog | C85: 26.73735421 | D85: 29.61828728 | E85: 11.75388262 | F85: 4.949167342 | G85: 2.184244995 | I85: 75.24293644
A86: Jurist | C86: 29.86590158 | D86: 27.5768727 | E86: 6.721137654 | F86: 3.473460987 | G86: 7.908064617 | I86: 75.54543754
A87: Økonom | C87: 41.8493108 | D87: 17.78082704 | E87: 8.109524107 | F87: 7.137778332 | G87: 8.628453814 | I87: 83.50589409
A88: Samf. Adm. | C88: 208.7862534 | D88: 207.9960082 | E88: 91.413335 | F88: 34.9242188 | G88: 8.197467723 | I88: 551.3172831
A89: Cand. Merc. | C89: 181.705233 | D89: 163.9811638 | E89: 60.45281607 | F89: 26.6774777 | G89: 9.545936506 | I89: 442.3626271
A90: HA | C90: 45.09449261 | D90: 19.17233207 | E90: 5.552922098 | F90: 6.230898771 | G90: 2.205451257 | I90: 78.2560968
A91: HD | C91: 49.96756689 | D91: 36.86833406 | E91: 4.99906443 | F91: 5.9614545 | G91: 3.906941932 | I91: 101.7033618
A92: Komm. og Sprog | C92: 53.44352273 | D92: 41.48256721 | E92: 36.83465353 | F92: 14.1944739 | G92: 7.97979168 | I92: 153.935009
A93: Bygningskonst. | C93: 42.99550926 | D93: 17.45044596 | E93: 5.984594274 | F93: 4.953845194 | G93: 0 | I93: 71.38439469
A94: Cand. IT. | C94: 33.16846504 | D94: 42.40316847 | E94: 11.81064055 | F94: 2.110023077 | G94: 0 | I94: 89.49229714
A95: Bac. Samf. | C95: 24.07347346 | D95: 6.124243747 | E95: 4.87931142 | F95: 3.155367055 | G95: 0 | I95: 38.23239568
A96: Bac. Hum. | C96: 138.1818749 | D96: 35.81363438 | E96: 13.44227531 | F96: 10.43285723 | G96: 5.483066176 | I96: 203.353708
A97: Bac. Nat. | C97: 81.67778956 | D97: 20.93120439 | E97: 5.329632633 | F97: 2.611488804 | G97: 0.9998128859 | I97: 111.5499283
A98: Andre | C98: 127.1290463 | D98: 242.2765546 | E98: 116.6862097 | F98: 75.59096863 | G98: 39.34073473 | I98: 601.023514
A100: Total | C100: 2252.982411 | D100: 2065.030437 | E100: 774.3460987 | F100: 412.6305121 | G100: 184.6391817 | I100: 5689.628641
A102: Ingeniører i alt | C102: 173.2545375 | D102: 117.9105595 | E102: 40.02120626 | F102: 42.7674172 | G102: 17.75213622 | I102: 391.7058567
A103: Magistre i alt | C103: 623.5470592 | D103: 688.471278 | E103: 262.6913241 | F103: 120.6985592 | G103: 49.71808146 | I103: 1745.126302
A104: DJØF'ere i alt | C104: 507.3011913 | D104: 436.5072039 | E104: 172.2497349 | F104: 78.44383459 | G104: 36.48537392 | I104: 1230.987339
A111: Frederiksberg
C113: Under 30 år | D113: 30 - 39 år | E113: 40 - 49 år | F113: 50 - 59 år | G113: Over 60 år | I113: I alt
A115: Civ. ing. | C115: 6.58329695 | D115: 13.15536706 | E115: 0.9998128859 | F115: 4.952909624 | G115: 2.466787251 | I115: 28.15817377
A116: Diplom ing. | C116: 3.689889603 | D116: 1.628516185 | E116: 4.768290401 | F116: 3.953096738 | G116: 4.639181688 | I116: 18.67897461
A117: Cand. Scient. Tek | C117: 14.24437098 | D117: 18.80122248 | E117: 9.905819248 | F117: 0.9998128859 | G117: 0 | I117: 43.9512256
A118: MA. Hum. | C118: 48.03218362 | D118: 54.64666625 | E118: 44.5662072 | F118: 14.37597455 | G118: 7.973554544 | I118: 169.5945862
A119: MA. Nat. | C119: 3.999251544 | D119: 5.978294767 | E119: 2.999438658 | F119: 3.010665502 | G119: 2.665751887 | I119: 18.65340236
A120: MA. Ph.d. | C120: 0.9998128859 | D120: 3.676167904 | E120: 1.999625772 | F120: 2.233518368 | G120: 0 | I120: 8.90912493
A121: MA. Samf. | C121: 10.60687332 | D121: 9.849061311 | E121: 4.99906443 | F121: 1.90731616 | G121: 0 | I121: 27.36231522
A122: Øvrige Mag. | C122: 3.42543504 | D122: 2.611488804 | E122: 3.459115574 | F122: 3.999251544 | G122: 0.9998128859 | I122: 14.49510385
A123: Agronom | C123: 4.247489553 | D123: 0 | E123: 0.9998128859 | F123: 0.9998128859 | G123: 0.5139399988 | I123: 6.761055323
A124: Landsk. Arkt. | C124: 0 | D124: 0.9998128859 | E124: 0 | F124: 0 | G124: 0 | I124: 0.9998128859
A125: Hortonom | C125: 0 | D125: 0 | E125: 0 | F125: 0 | G125: 0 | I125: 0
A126: Forstkand. | C126: 0 | D126: 0 | E126: 0.8725753134 | F126: 0 | G126: 0 | I126: 0.8725753134
A127: Jordbrugsakad. | C127: 4.247489553 | D127: 0.9998128859 | E127: 1.872388199 | F127: 0.9998128859 | G127: 0.5139399988 | I127: 8.633443523
A128: Mejeriing. | C128: 0 | D128: 0 | E128: 0 | F128: 0 | G128: 0 | I128: 0
A129: Levn.m.kand. | C129: 1.999625772 | D129: 0.9998128859 | E129: 0 | F129: 0 | G129: 0 | I129: 2.999438658
A130: Dyrlæge | C130: 0 | D130: 0 | E130: 0 | F130: 0 | G130: 0 | I130: 0
A131: Farmaceut | C131: 1.999625772 | D131: 0 | E131: 0 | F131: 0.4740223289 | G131: 0 | I131: 2.473648101
A132: Læge | C132: 2.722509823 | D132: 1.90731616 | E132: 1.538077715 | F132: 0.9998128859 | G132: 0 | I132: 7.167716585
A133: Tandlæge | C133: 0 | D133: 1.627892472 | E133: 0 | F133: 0 | G133: 0 | I133: 1.627892472
A134: Arkitekt | C134: 4.218175014 | D134: 8.895403231 | E134: 4.221293582 | F134: 3.722322709 | G134: 0 | I134: 21.05719454
A135: Landinspek. | C135: 0 | D135: 0.8151936631 | E135: 0.9998128859 | F135: 0 | G135: 0 | I135: 1.815006549
A136: Bibliotekar | C136: 0.9998128859 | D136: 1.321025385 | E136: 5.272250982 | F136: 2.269693757 | G136: 0 | I136: 9.86278301
A137: Musikudd. | C137: 0 | D137: 0 | E137: 0 | F137: 0 | G137: 0.7079149255 | I137: 0.7079149255
A138: Teolog | C138: 0.9998128859 | D138: 0 | E138: 0.9075032745 | F138: 0.5002182998 | G138: 0 | I138: 2.40753446
A139: Psykolog | C139: 6.429863407 | D139: 5.465602195 | E139: 4.263706106 | F139: 0.2750576935 | G139: 1.999625772 | I139: 18.43385517
A140: Jurist | C140: 2.807334872 | D140: 5.794922971 | E140: 4.659764236 | F140: 1.812511695 | G140: 1.661573006 | I140: 16.73610678
A141: Økonom | C141: 2.594024824 | D141: 1.159483565 | E141: 0.9998128859 | F141: 1.999625772 | G141: 0.9998128859 | I141: 7.752759933
A142: Samf. Adm. | C142: 28.47377284 | D142: 23.90132851 | E142: 9.998128859 | F142: 8.948418886 | G142: 1.999625772 | I142: 73.32127487
A143: Cand. Merc. | C143: 29.17981663 | D143: 33.4372856 | E143: 9.496039419 | F143: 8.20744714 | G143: 0.9998128859 | I143: 81.32040167
A144: HA | C144: 4.275556664 | D144: 4.936069357 | E144: 1.394623589 | F144: 0.9374415269 | G144: 2.673860163 | I144: 14.2175513
A145: HD | C145: 5.319029502 | D145: 3.999251544 | E145: 0.8126988087 | F145: 2.974490114 | G145: 0.9842200462 | I145: 14.08969001
A146: Komm. og Sprog | C146: 10.82953908 | D146: 13.02688206 | E146: 7.93301316 | F146: 3.260774652 | G146: 1.727062933 | I146: 36.77727188
A147: Bygningskonst. | C147: 2 | D147: 0 | E147: 0.7230711657 | F147: 0 | G147: 0 | I147: 2.723071166
A148: Cand. IT. | C148: 3.999251544 | D148: 5.906567704 | E148: 0.6966880808 | F148: 0.9536580802 | G148: 0 | I148: 11.55616541
A149: Bac. Samf. | C149: 4.99906443 | D149: 1.901079025 | E149: 1.999625772 | F149: 0.9998128859 | G149: 0 | I149: 9.899582112
A150: Bac. Hum. | C150: 12.49048837 | D150: 0.9998128859 | E150: 1.768851743 | F150: 5.557288093 | G150: 0 | I150: 20.81644109
A151: Bac. Nat. | C151: 10.91374041 | D151: 0.9998128859 | E151: 0.9998128859 | F151: 0.9998128859 | G151: 0 | I151: 13.91317907
A152: Andre | C152: 13.18156303 | D152: 26.39680659 | E152: 24.55872263 | F152: 15.97330506 | G152: 5.073910061 | I152: 85.18430737
A154: Total | C154: 246.2612113 | D154: 254.8381463 | E154: 158.8132602 | F154: 97.29807273 | G154: 38.0864467 | I154: 795.2971372
A156: Ingeniører i alt | C156: 10.27318655 | D156: 14.78388324 | E156: 5.768103287 | F156: 8.906006362 | G156: 7.105968939 | I156: 46.83714838
A157: Magistre i alt | C157: 67.06355641 | D157: 76.76167904 | E157: 58.02345163 | F157: 25.52672613 | G157: 11.63911932 | I157: 239.0145325
A158: DJØF'ere i alt | C158: 67.33050583 | D158: 69.22909 | E158: 26.54836899 | F158: 21.90544502 | G158: 8.334684713 | I158: 193.3480946
A165: Ballerup
C167: Under 30 år | D167: 30 - 39 år | E167: 40 - 49 år | F167: 50 - 59 år | G167: Over 60 år | I167: I alt
A169: Civ. ing. | C169: 0 | D169: 1.79255286 | E169: 0 | F169: 3.306929458 | G169: 0.9998128859 | I169: 6.099295204
A170: Diplom ing. | C170: 1.655959583 | D170: 2.122497349 | E170: 0.8463793426 | F170: 4.911744527 | G170: 2.999438658 | I170: 12.53601946
A171: Cand. Scient. Tek | C171: 0.8151936631 | D171: 6.194099669 | E171: 1.999625772 | F171: 0 | G171: 0 | I171: 9.008919104
A172: MA. Hum. | C172: 2.443709848 | D172: 2.116883927 | E172: 4.67598079 | F172: 1.21249922 | G172: 0 | I172: 10.44907379
A173: MA. Nat. | C173: 0 | D173: 0.9998128859 | E173: 1.437659827 | F173: 0 | G173: 0 | I173: 2.437472713
A174: MA. Ph.d. | C174: 0 | D174: 0 | E174: 0 | F174: 0 | G174: 0 | I174: 0
A175: MA. Samf. | C175: 1.999625772 | D175: 1.999625772 | E175: 0 | F175: 0 | G175: 0 | I175: 3.999251544
A176: Øvrige Mag. | C176: 0 | D176: 0 | E176: 0 | F176: 0 | G176: 0 | I176: 0
A177: Agronom | C177: 0 | D177: 0 | E177: 0 | F177: 0 | G177: 0 | I177: 0
A178: Landsk. Arkt. | C178: 0.9998128859 | D178: 0.9998128859 | E178: 0 | F178: 0 | G178: 0 | I178: 1.999625772
A179: Hortonom | C179: 0 | D179: 0 | E179: 0 | F179: 0 | G179: 0 | I179: 0
A180: Forstkand. | C180: 0 | D180: 0 | E180: 0 | F180: 0 | G180: 0 | I180: 0
A181: Jordbrugsakad. | C181: 0.9998128859 | D181: 0.9998128859 | E181: 0 | F181: 0 | G181: 0 | I181: 1.999625772
A182: Mejeriing. | C182: 0.9998128859 | D182: 0 | E182: 0 | F182: 0 | G182: 0 | I182: 0.9998128859
A183: Levn.m.kand. | C183: 0 | D183: 0 | E183: 0 | F183: 0 | G183: 0 | I183: 0
A184: Dyrlæge | C184: 0 | D184: 0 | E184: 0 | F184: 0 | G184: 0 | I184: 0
A185: Farmaceut | C185: 0.9998128859 | D185: 0 | E185: 0 | F185: 1.999625772 | G185: 0 | I185: 2.999438658
A186: Læge | C186: 0 | D186: 0 | E186: 0 | F186: 0.793987401 | G186: 0 | I186: 0.793987401
A187: Tandlæge | C187: 0 | D187: 0 | E187: 0 | F187: 0 | G187: 0 | I187: 0
A188: Arkitekt | C188: 0.9998128859 | D188: 0.9717457743 | E188: 0 | F188: 0 | G188: 0 | I188: 1.97155866
A189: Landinspek. | C189: 0 | D189: 0 | E189: 0 | F189: 0 | G189: 0 | I189: 0
A190: Bibliotekar | C190: 0 | D190: 0 | E190: 1.81001684 | F190: 0 | G190: 0 | I190: 1.81001684
A191: Musikudd. | C191: 0 | D191: 0 | E191: 0.8445082018 | F191: 0 | G191: 0 | I191: 0.8445082018
A192: Teolog | C192: 0 | D192: 0 | E192: 0 | F192: 0 | G192: 0 | I192: 0
A193: Psykolog | C193: 0 | D193: 0 | E193: 0.7690388574 | F193: 0 | G193: 0 | I193: 0.7690388574
A194: Jurist | C194: 0 | D194: 0.7690388574 | E194: 0.9998128859 | F194: 0 | G194: 0 | I194: 1.768851743
A195: Økonom | C195: 0 | D195: 0 | E195: 0.4509449261 | F195: 0 | G195: 0 | I195: 0.4509449261
A196: Samf. Adm. | C196: 1.999625772 | D196: 0.9230961143 | E196: 2.486746086 | F196: 0.9075032745 | G196: 0 | I196: 6.316971247
A197: Cand. Merc. | C197: 1.450757812 | D197: 3.768477515 | E197: 1.676542132 | F197: 1.999625772 | G197: 0.9998128859 | I197: 9.895216117
A198: HA | C198: 0 | D198: 0.9998128859 | E198: 0 | F198: 0 | G198: 0.2968876692 | I198: 1.296700555
A199: HD | C199: 0 | D199: 0 | E199: 1.999625772 | F199: 0.6767292459 | G199: 1.525603443 | I199: 4.201958461
A200: Komm. og Sprog | C200: 0 | D200: 0.6798478139 | E200: 1.999625772 | F200: 0.9998128859 | G200: 0 | I200: 3.679286472
A201: Bygningskonst. | C201: 1 | D201: 0 | E201: 0 | F201: 0 | G201: 0 | I201: 1
A202: Cand. IT. | C202: 0 | D202: 0.9998128859 | E202: 0.9499157987 | F202: 0 | G202: 0 | I202: 1.949728685
A203: Bac. Samf. | C203: 0 | D203: 0 | E203: 0 | F203: 0 | G203: 0 | I203: 0
A204: Bac. Hum. | C204: 0 | D204: 0 | E204: 0 | F204: 0 | G204: 0 | I204: 0
A205: Bac. Nat. | C205: 0 | D205: 1.999625772 | E205: 0.9998128859 | F205: 0 | G205: 0 | I205: 2.999438658
A206: Andre | C206: 3.300692322 | D206: 0.9998128859 | E206: 3.17345475 | F206: 0.9998128859 | G206: 0 | I206: 8.473772844
A208: Total | C208: 18.66481632 | D208: 28.33655585 | E208: 27.11969064 | F208: 17.80827044 | G208: 6.821555542 | I208: 98.75088879
A210: Ingeniører i alt | C210: 1.655959583 | D210: 3.915050209 | E210: 0.8463793426 | F210: 8.218673985 | G210: 3.999251544 | I210: 18.63531466
A211: Magistre i alt | C211: 4.44333562 | D211: 5.116322585 | E211: 6.113640616 | F211: 1.21249922 | G211: 0 | I211: 16.88579804
A212: DJØF'ere i alt | C212: 3.450383584 | D212: 6.460425373 | E212: 5.61404603 | F212: 2.907129046 | G212: 1.296700555 | I212: 19.72868459
A219: Brøndby
C221: Under 30 år | D221: 30 - 39 år | E221: 40 - 49 år | F221: 50 - 59 år | G221: Over 60 år | I221: I alt
A223: Civ. ing. | C223: 3.475332127 | D223: 0 | E223: 0.9998128859 | F223: 0.8682093183 | G223: 0.4353520863 | I223: 5.778706418
A224: Diplom ing. | C224: 5.029626396 | D224: 0 | E224: 0 | F224: 0.9998128859 | G224: 0.9998128859 | I224: 7.029252167
A225: Cand. Scient. Tek | C225: 4.027942369 | D225: 0.6767292459 | E225: 0 | F225: 0 | G225: 0 | I225: 4.704671615
A226: MA. Hum. | C226: 3.306929458 | D226: 9.996257718 | E226: 0.9998128859 | F226: 0.8376473523 | G226: 0 | I226: 15.14064741
A227: MA. Nat. | C227: 0.4041664068 | D227: 0 | E227: 0 | F227: 0 | G227: 0.9187301191 | I227: 1.322896526
A228: MA. Ph.d. | C228: 0 | D228: 0 | E228: 0 | F228: 0 | G228: 0 | I228: 0
A229: MA. Samf. | C229: 2.671989023 | D229: 0 | E229: 0 | F229: 0 | G229: 0 | I229: 2.671989023
A230: Øvrige Mag. | C230: 0 | D230: 1.491922909 | E230: 0 | F230: 0 | G230: 0 | I230: 1.491922909
A231: Agronom | C231: 0.862595896 | D231: 0 | E231: 0 | F231: 0 | G231: 0 | I231: 0.862595896
A232: Landsk. Arkt. | C232: 0 | D232: 0.6767292459 | E232: 0 | F232: 0 | G232: 0 | I232: 0.6767292459
A233: Hortonom | C233: 0 | D233: 0 | E233: 0 | F233: 0 | G233: 0 | I233: 0
A234: Forstkand. | C234: 0 | D234: 0 | E234: 0 | F234: 0 | G234: 0 | I234: 0
A235: Jordbrugsakad. | C235: 0.862595896 | D235: 0.6767292459 | E235: 0 | F235: 0 | G235: 0 | I235: 1.539325142
A236: Mejeriing. | C236: 0 | D236: 0 | E236: 0 | F236: 0 | G236: 0 | I236: 0
A237: Levn.m.kand. | C237: 0 | D237: 0 | E237: 0 | F237: 0 | G237: 0 | I237: 0
A238: Dyrlæge | C238: 0 | D238: 0 | E238: 0 | F238: 0 | G238: 0 | I238: 0
A239: Farmaceut | C239: 0 | D239: 0.9998128859 | E239: 0.9998128859 | F239: 0 | G239: 0 | I239: 1.999625772
A240: Læge | C240: 0 | D240: 0 | E240: 0 | F240: 0 | G240: 0 | I240: 0
A241: Tandlæge | C241: 0 | D241: 0 | E241: 0 | F241: 0 | G241: 0 | I241: 0
A242: Arkitekt | C242: 0 | D242: 0 | E242: 0 | F242: 0 | G242: 0 | I242: 0
A243: Landinspek. | C243: 0 | D243: 0 | E243: 0 | F243: 0 | G243: 0 | I243: 0
... 1077 more rows

Sheet Tabel 4P H
A1: Tabel 4. Ledighedsberørte - aldersfordelt
A3: Hovedstaden
C5: Under 30 år | D5: 30 - 39 år | E5: 40 - 49 år | F5: 50 - 59 år | G5: Over 60 år | I5: I alt
A7: Civ. ing. | C7: =IF(OR('Tabel 4F H'!C7<5,'Tabel 4 H'!C7<0.5),"-",IFERROR('Tabel 4 H'!C7/'Tabel 4F H'!C7*100,"-")) -> 9.949712644 | D7: =IF(OR('Tabel 4F H'!D7<5,'Tabel 4 H'!D7<0.5),"-",IFERROR('Tabel 4 H'!D7/'Tabel 4F H'!D7*100,"-")) -> 2.738095238 | E7: =IF(OR('Tabel 4F H'!E7<5,'Tabel 4 H'!E7<0.5),"-",IFERROR('Tabel 4 H'!E7/'Tabel 4F H'!E7*100,"-")) -> 1.212265272 | F7: =IF(OR('Tabel 4F H'!F7<5,'Tabel 4 H'!F7<0.5),"-",IFERROR('Tabel 4 H'!F7/'Tabel 4F H'!F7*100,"-")) -> 2.136752137 | G7: =IF(OR('Tabel 4F H'!G7<5,'Tabel 4 H'!G7<0.5),"-",IFERROR('Tabel 4 H'!G7/'Tabel 4F H'!G7*100,"-")) -> 3.346007605 | I7: =IF(OR('Tabel 4F H'!I7<5,'Tabel 4 H'!I7<0.5),"-",IFERROR('Tabel 4 H'!I7/'Tabel 4F H'!I7*100,"-")) -> 3.418851088
A8: Diplom ing. | C8: =IF(OR('Tabel 4F H'!C8<5,'Tabel 4 H'!C8<0.5),"-",IFERROR('Tabel 4 H'!C8/'Tabel 4F H'!C8*100,"-")) -> 8.135283364 | D8: =IF(OR('Tabel 4F H'!D8<5,'Tabel 4 H'!D8<0.5),"-",IFERROR('Tabel 4 H'!D8/'Tabel 4F H'!D8*100,"-")) -> 3.930530165 | E8: =IF(OR('Tabel 4F H'!E8<5,'Tabel 4 H'!E8<0.5),"-",IFERROR('Tabel 4 H'!E8/'Tabel 4F H'!E8*100,"-")) -> 2.074829932 | F8: =IF(OR('Tabel 4F H'!F8<5,'Tabel 4 H'!F8<0.5),"-",IFERROR('Tabel 4 H'!F8/'Tabel 4F H'!F8*100,"-")) -> 2.256944444 | G8: =IF(OR('Tabel 4F H'!G8<5,'Tabel 4 H'!G8<0.5),"-",IFERROR('Tabel 4 H'!G8/'Tabel 4F H'!G8*100,"-")) -> 4.21179302 | I8: =IF(OR('Tabel 4F H'!I8<5,'Tabel 4 H'!I8<0.5),"-",IFERROR('Tabel 4 H'!I8/'Tabel 4F H'!I8*100,"-")) -> 3.282100544
A9: Cand. Scient. Tek | C9: =IF(OR('Tabel 4F H'!C9<5,'Tabel 4 H'!C9<0.5),"-",IFERROR('Tabel 4 H'!C9/'Tabel 4F H'!C9*100,"-")) -> 13.31710709 | D9: =IF(OR('Tabel 4F H'!D9<5,'Tabel 4 H'!D9<0.5),"-",IFERROR('Tabel 4 H'!D9/'Tabel 4F H'!D9*100,"-")) -> 5.926724138 | E9: =IF(OR('Tabel 4F H'!E9<5,'Tabel 4 H'!E9<0.5),"-",IFERROR('Tabel 4 H'!E9/'Tabel 4F H'!E9*100,"-")) -> 3.348729792 | F9: =IF(OR('Tabel 4F H'!F9<5,'Tabel 4 H'!F9<0.5),"-",IFERROR('Tabel 4 H'!F9/'Tabel 4F H'!F9*100,"-")) -> 2.809917355 | G9: =IF(OR('Tabel 4F H'!G9<5,'Tabel 4 H'!G9<0.5),"-",IFERROR('Tabel 4 H'!G9/'Tabel 4F H'!G9*100,"-")) -> 6.106870229 | I9: =IF(OR('Tabel 4F H'!I9<5,'Tabel 4 H'!I9<0.5),"-",IFERROR('Tabel 4 H'!I9/'Tabel 4F H'!I9*100,"-")) -> 7.294721408
A10: MA. Hum. | C10: =IF(OR('Tabel 4F H'!C10<5,'Tabel 4 H'!C10<0.5),"-",IFERROR('Tabel 4 H'!C10/'Tabel 4F H'!C10*100,"-")) -> 24.92260062 | D10: =IF(OR('Tabel 4F H'!D10<5,'Tabel 4 H'!D10<0.5),"-",IFERROR('Tabel 4 H'!D10/'Tabel 4F H'!D10*100,"-")) -> 10.35242291 | E10: =IF(OR('Tabel 4F H'!E10<5,'Tabel 4 H'!E10<0.5),"-",IFERROR('Tabel 4 H'!E10/'Tabel 4F H'!E10*100,"-")) -> 5.405405405 | F10: =IF(OR('Tabel 4F H'!F10<5,'Tabel 4 H'!F10<0.5),"-",IFERROR('Tabel 4 H'!F10/'Tabel 4F H'!F10*100,"-")) -> 6.019007392 | G10: =IF(OR('Tabel 4F H'!G10<5,'Tabel 4 H'!G10<0.5),"-",IFERROR('Tabel 4 H'!G10/'Tabel 4F H'!G10*100,"-")) -> 7.389162562 | I10: =IF(OR('Tabel 4F H'!I10<5,'Tabel 4 H'!I10<0.5),"-",IFERROR('Tabel 4 H'!I10/'Tabel 4F H'!I10*100,"-")) -> 9.855330075
A11: MA. Nat. | C11: =IF(OR('Tabel 4F H'!C11<5,'Tabel 4 H'!C11<0.5),"-",IFERROR('Tabel 4 H'!C11/'Tabel 4F H'!C11*100,"-")) -> 14.97005988 | D11: =IF(OR('Tabel 4F H'!D11<5,'Tabel 4 H'!D11<0.5),"-",IFERROR('Tabel 4 H'!D11/'Tabel 4F H'!D11*100,"-")) -> 5.750798722 | E11: =IF(OR('Tabel 4F H'!E11<5,'Tabel 4 H'!E11<0.5),"-",IFERROR('Tabel 4 H'!E11/'Tabel 4F H'!E11*100,"-")) -> 1.746361746 | F11: =IF(OR('Tabel 4F H'!F11<5,'Tabel 4 H'!F11<0.5),"-",IFERROR('Tabel 4 H'!F11/'Tabel 4F H'!F11*100,"-")) -> 2.080083203 | G11: =IF(OR('Tabel 4F H'!G11<5,'Tabel 4 H'!G11<0.5),"-",IFERROR('Tabel 4 H'!G11/'Tabel 4F H'!G11*100,"-")) -> 3.489932886 | I11: =IF(OR('Tabel 4F H'!I11<5,'Tabel 4 H'!I11<0.5),"-",IFERROR('Tabel 4 H'!I11/'Tabel 4F H'!I11*100,"-")) -> 3.824064995
A12: MA. Ph.d. | C12: =IF(OR('Tabel 4F H'!C12<5,'Tabel 4 H'!C12<0.5),"-",IFERROR('Tabel 4 H'!C12/'Tabel 4F H'!C12*100,"-")) -> 20 | D12: =IF(OR('Tabel 4F H'!D12<5,'Tabel 4 H'!D12<0.5),"-",IFERROR('Tabel 4 H'!D12/'Tabel 4F H'!D12*100,"-")) -> 3.988603989 | E12: =IF(OR('Tabel 4F H'!E12<5,'Tabel 4 H'!E12<0.5),"-",IFERROR('Tabel 4 H'!E12/'Tabel 4F H'!E12*100,"-")) -> 4.710920771 | F12: =IF(OR('Tabel 4F H'!F12<5,'Tabel 4 H'!F12<0.5),"-",IFERROR('Tabel 4 H'!F12/'Tabel 4F H'!F12*100,"-")) -> 3.217158177 | G12: =IF(OR('Tabel 4F H'!G12<5,'Tabel 4 H'!G12<0.5),"-",IFERROR('Tabel 4 H'!G12/'Tabel 4F H'!G12*100,"-")) -> 6.52173913 | I12: =IF(OR('Tabel 4F H'!I12<5,'Tabel 4 H'!I12<0.5),"-",IFERROR('Tabel 4 H'!I12/'Tabel 4F H'!I12*100,"-")) -> 4.391371341
A13: MA. Samf. | C13: =IF(OR('Tabel 4F H'!C13<5,'Tabel 4 H'!C13<0.5),"-",IFERROR('Tabel 4 H'!C13/'Tabel 4F H'!C13*100,"-")) -> 19.45432977 | D13: =IF(OR('Tabel 4F H'!D13<5,'Tabel 4 H'!D13<0.5),"-",IFERROR('Tabel 4 H'!D13/'Tabel 4F H'!D13*100,"-")) -> 11.05937136 | E13: =IF(OR('Tabel 4F H'!E13<5,'Tabel 4 H'!E13<0.5),"-",IFERROR('Tabel 4 H'!E13/'Tabel 4F H'!E13*100,"-")) -> 6.710310966 | F13: =IF(OR('Tabel 4F H'!F13<5,'Tabel 4 H'!F13<0.5),"-",IFERROR('Tabel 4 H'!F13/'Tabel 4F H'!F13*100,"-")) -> 5.639097744 | G13: =IF(OR('Tabel 4F H'!G13<5,'Tabel 4 H'!G13<0.5),"-",IFERROR('Tabel 4 H'!G13/'Tabel 4F H'!G13*100,"-")) -> 5.769230769 | I13: =IF(OR('Tabel 4F H'!I13<5,'Tabel 4 H'!I13<0.5),"-",IFERROR('Tabel 4 H'!I13/'Tabel 4F H'!I13*100,"-")) -> 11.83381089
A14: Øvrige Mag. | C14: =IF(OR('Tabel 4F H'!C14<5,'Tabel 4 H'!C14<0.5),"-",IFERROR('Tabel 4 H'!C14/'Tabel 4F H'!C14*100,"-")) -> 24.88888889 | D14: =IF(OR('Tabel 4F H'!D14<5,'Tabel 4 H'!D14<0.5),"-",IFERROR('Tabel 4 H'!D14/'Tabel 4F H'!D14*100,"-")) -> 12.56410256 | E14: =IF(OR('Tabel 4F H'!E14<5,'Tabel 4 H'!E14<0.5),"-",IFERROR('Tabel 4 H'!E14/'Tabel 4F H'!E14*100,"-")) -> 7.722007722 | F14: =IF(OR('Tabel 4F H'!F14<5,'Tabel 4 H'!F14<0.5),"-",IFERROR('Tabel 4 H'!F14/'Tabel 4F H'!F14*100,"-")) -> 4.830917874 | G14: =IF(OR('Tabel 4F H'!G14<5,'Tabel 4 H'!G14<0.5),"-",IFERROR('Tabel 4 H'!G14/'Tabel 4F H'!G14*100,"-")) -> 6.976744186 | I14: =IF(OR('Tabel 4F H'!I14<5,'Tabel 4 H'!I14<0.5),"-",IFERROR('Tabel 4 H'!I14/'Tabel 4F H'!I14*100,"-")) -> 10.38186158
A15: Agronom | C15: =IF(OR('Tabel 4F H'!C15<5,'Tabel 4 H'!C15<0.5),"-",IFERROR('Tabel 4 H'!C15/'Tabel 4F H'!C15*100,"-")) -> 14.9122807 | D15: =IF(OR('Tabel 4F H'!D15<5,'Tabel 4 H'!D15<0.5),"-",IFERROR('Tabel 4 H'!D15/'Tabel 4F H'!D15*100,"-")) -> 7.185628743 | E15: =IF(OR('Tabel 4F H'!E15<5,'Tabel 4 H'!E15<0.5),"-",IFERROR('Tabel 4 H'!E15/'Tabel 4F H'!E15*100,"-")) -> 1.515151515 | F15: =IF(OR('Tabel 4F H'!F15<5,'Tabel 4 H'!F15<0.5),"-",IFERROR('Tabel 4 H'!F15/'Tabel 4F H'!F15*100,"-")) -> 3.383458647 | G15: =IF(OR('Tabel 4F H'!G15<5,'Tabel 4 H'!G15<0.5),"-",IFERROR('Tabel 4 H'!G15/'Tabel 4F H'!G15*100,"-")) -> 4.12371134 | I15: =IF(OR('Tabel 4F H'!I15<5,'Tabel 4 H'!I15<0.5),"-",IFERROR('Tabel 4 H'!I15/'Tabel 4F H'!I15*100,"-")) -> 5.344418052
A16: Landsk. Arkt. | C16: =IF(OR('Tabel 4F H'!C16<5,'Tabel 4 H'!C16<0.5),"-",IFERROR('Tabel 4 H'!C16/'Tabel 4F H'!C16*100,"-")) -> 18 | D16: =IF(OR('Tabel 4F H'!D16<5,'Tabel 4 H'!D16<0.5),"-",IFERROR('Tabel 4 H'!D16/'Tabel 4F H'!D16*100,"-")) -> 6.557377049 | E16: =IF(OR('Tabel 4F H'!E16<5,'Tabel 4 H'!E16<0.5),"-",IFERROR('Tabel 4 H'!E16/'Tabel 4F H'!E16*100,"-")) -> 4.081632653 | F16: =IF(OR('Tabel 4F H'!F16<5,'Tabel 4 H'!F16<0.5),"-",IFERROR('Tabel 4 H'!F16/'Tabel 4F H'!F16*100,"-")) -> 1.234567901 | G16: =IF(OR('Tabel 4F H'!G16<5,'Tabel 4 H'!G16<0.5),"-",IFERROR('Tabel 4 H'!G16/'Tabel 4F H'!G16*100,"-")) -> 4.347826087 | I16: =IF(OR('Tabel 4F H'!I16<5,'Tabel 4 H'!I16<0.5),"-",IFERROR('Tabel 4 H'!I16/'Tabel 4F H'!I16*100,"-")) -> 5.991735537
A17: Hortonom | C17: =IF(OR('Tabel 4F H'!C17<5,'Tabel 4 H'!C17<0.5),"-",IFERROR('Tabel 4 H'!C17/'Tabel 4F H'!C17*100,"-")) -> - | D17: =IF(OR('Tabel 4F H'!D17<5,'Tabel 4 H'!D17<0.5),"-",IFERROR('Tabel 4 H'!D17/'Tabel 4F H'!D17*100,"-")) -> 7.692307692 | E17: =IF(OR('Tabel 4F H'!E17<5,'Tabel 4 H'!E17<0.5),"-",IFERROR('Tabel 4 H'!E17/'Tabel 4F H'!E17*100,"-")) -> 2.777777778 | F17: =IF(OR('Tabel 4F H'!F17<5,'Tabel 4 H'!F17<0.5),"-",IFERROR('Tabel 4 H'!F17/'Tabel 4F H'!F17*100,"-")) -> 2.739726027 | G17: =IF(OR('Tabel 4F H'!G17<5,'Tabel 4 H'!G17<0.5),"-",IFERROR('Tabel 4 H'!G17/'Tabel 4F H'!G17*100,"-")) -> 3.846153846 | I17: =IF(OR('Tabel 4F H'!I17<5,'Tabel 4 H'!I17<0.5),"-",IFERROR('Tabel 4 H'!I17/'Tabel 4F H'!I17*100,"-")) -> 3.378378378
A18: Forstkand. | C18: =IF(OR('Tabel 4F H'!C18<5,'Tabel 4 H'!C18<0.5),"-",IFERROR('Tabel 4 H'!C18/'Tabel 4F H'!C18*100,"-")) -> 22.72727273 | D18: =IF(OR('Tabel 4F H'!D18<5,'Tabel 4 H'!D18<0.5),"-",IFERROR('Tabel 4 H'!D18/'Tabel 4F H'!D18*100,"-")) -> 4.651162791 | E18: =IF(OR('Tabel 4F H'!E18<5,'Tabel 4 H'!E18<0.5),"-",IFERROR('Tabel 4 H'!E18/'Tabel 4F H'!E18*100,"-")) -> 3.03030303 | F18: =IF(OR('Tabel 4F H'!F18<5,'Tabel 4 H'!F18<0.5),"-",IFERROR('Tabel 4 H'!F18/'Tabel 4F H'!F18*100,"-")) -> 3.03030303 | G18: =IF(OR('Tabel 4F H'!G18<5,'Tabel 4 H'!G18<0.5),"-",IFERROR('Tabel 4 H'!G18/'Tabel 4F H'!G18*100,"-")) -> 3.333333333 | I18: =IF(OR('Tabel 4F H'!I18<5,'Tabel 4 H'!I18<0.5),"-",IFERROR('Tabel 4 H'!I18/'Tabel 4F H'!I18*100,"-")) -> 5
A19: Jordbrugsakad. | C19: =IF(OR('Tabel 4F H'!C19<5,'Tabel 4 H'!C19<0.5),"-",IFERROR('Tabel 4 H'!C19/'Tabel 4F H'!C19*100,"-")) -> 16.66666667 | D19: =IF(OR('Tabel 4F H'!D19<5,'Tabel 4 H'!D19<0.5),"-",IFERROR('Tabel 4 H'!D19/'Tabel 4F H'!D19*100,"-")) -> 6.650246305 | E19: =IF(OR('Tabel 4F H'!E19<5,'Tabel 4 H'!E19<0.5),"-",IFERROR('Tabel 4 H'!E19/'Tabel 4F H'!E19*100,"-")) -> 2.708333333 | F19: =IF(OR('Tabel 4F H'!F19<5,'Tabel 4 H'!F19<0.5),"-",IFERROR('Tabel 4 H'!F19/'Tabel 4F H'!F19*100,"-")) -> 2.880658436 | G19: =IF(OR('Tabel 4F H'!G19<5,'Tabel 4 H'!G19<0.5),"-",IFERROR('Tabel 4 H'!G19/'Tabel 4F H'!G19*100,"-")) -> 3.977272727 | I19: =IF(OR('Tabel 4F H'!I19<5,'Tabel 4 H'!I19<0.5),"-",IFERROR('Tabel 4 H'!I19/'Tabel 4F H'!I19*100,"-")) -> 5.305651672
A20: Mejeriing. | C20: =IF(OR('Tabel 4F H'!C20<5,'Tabel 4 H'!C20<0.5),"-",IFERROR('Tabel 4 H'!C20/'Tabel 4F H'!C20*100,"-")) -> 22.22222222 | D20: =IF(OR('Tabel 4F H'!D20<5,'Tabel 4 H'!D20<0.5),"-",IFERROR('Tabel 4 H'!D20/'Tabel 4F H'!D20*100,"-")) -> 14 | E20: =IF(OR('Tabel 4F H'!E20<5,'Tabel 4 H'!E20<0.5),"-",IFERROR('Tabel 4 H'!E20/'Tabel 4F H'!E20*100,"-")) -> - | F20: =IF(OR('Tabel 4F H'!F20<5,'Tabel 4 H'!F20<0.5),"-",IFERROR('Tabel 4 H'!F20/'Tabel 4F H'!F20*100,"-")) -> - | G20: =IF(OR('Tabel 4F H'!G20<5,'Tabel 4 H'!G20<0.5),"-",IFERROR('Tabel 4 H'!G20/'Tabel 4F H'!G20*100,"-")) -> - | I20: =IF(OR('Tabel 4F H'!I20<5,'Tabel 4 H'!I20<0.5),"-",IFERROR('Tabel 4 H'!I20/'Tabel 4F H'!I20*100,"-")) -> 8.666666667
A21: Levn.m.kand. | C21: =IF(OR('Tabel 4F H'!C21<5,'Tabel 4 H'!C21<0.5),"-",IFERROR('Tabel 4 H'!C21/'Tabel 4F H'!C21*100,"-")) -> 17.10526316 | D21: =IF(OR('Tabel 4F H'!D21<5,'Tabel 4 H'!D21<0.5),"-",IFERROR('Tabel 4 H'!D21/'Tabel 4F H'!D21*100,"-")) -> 5.521472393 | E21: =IF(OR('Tabel 4F H'!E21<5,'Tabel 4 H'!E21<0.5),"-",IFERROR('Tabel 4 H'!E21/'Tabel 4F H'!E21*100,"-")) -> 3.75 | F21: =IF(OR('Tabel 4F H'!F21<5,'Tabel 4 H'!F21<0.5),"-",IFERROR('Tabel 4 H'!F21/'Tabel 4F H'!F21*100,"-")) -> 12.5 | G21: =IF(OR('Tabel 4F H'!G21<5,'Tabel 4 H'!G21<0.5),"-",IFERROR('Tabel 4 H'!G21/'Tabel 4F H'!G21*100,"-")) -> - | I21: =IF(OR('Tabel 4F H'!I21<5,'Tabel 4 H'!I21<0.5),"-",IFERROR('Tabel 4 H'!I21/'Tabel 4F H'!I21*100,"-")) -> 7.878787879
A22: Dyrlæge | C22: =IF(OR('Tabel 4F H'!C22<5,'Tabel 4 H'!C22<0.5),"-",IFERROR('Tabel 4 H'!C22/'Tabel 4F H'!C22*100,"-")) -> 5.095541401 | D22: =IF(OR('Tabel 4F H'!D22<5,'Tabel 4 H'!D22<0.5),"-",IFERROR('Tabel 4 H'!D22/'Tabel 4F H'!D22*100,"-")) -> 3.672316384 | E22: =IF(OR('Tabel 4F H'!E22<5,'Tabel 4 H'!E22<0.5),"-",IFERROR('Tabel 4 H'!E22/'Tabel 4F H'!E22*100,"-")) -> 1.809954751 | F22: =IF(OR('Tabel 4F H'!F22<5,'Tabel 4 H'!F22<0.5),"-",IFERROR('Tabel 4 H'!F22/'Tabel 4F H'!F22*100,"-")) -> 1.923076923 | G22: =IF(OR('Tabel 4F H'!G22<5,'Tabel 4 H'!G22<0.5),"-",IFERROR('Tabel 4 H'!G22/'Tabel 4F H'!G22*100,"-")) -> - | I22: =IF(OR('Tabel 4F H'!I22<5,'Tabel 4 H'!I22<0.5),"-",IFERROR('Tabel 4 H'!I22/'Tabel 4F H'!I22*100,"-")) -> 2.928870293
A23: Farmaceut | C23: =IF(OR('Tabel 4F H'!C23<5,'Tabel 4 H'!C23<0.5),"-",IFERROR('Tabel 4 H'!C23/'Tabel 4F H'!C23*100,"-")) -> 8.419243986 | D23: =IF(OR('Tabel 4F H'!D23<5,'Tabel 4 H'!D23<0.5),"-",IFERROR('Tabel 4 H'!D23/'Tabel 4F H'!D23*100,"-")) -> 1.992337165 | E23: =IF(OR('Tabel 4F H'!E23<5,'Tabel 4 H'!E23<0.5),"-",IFERROR('Tabel 4 H'!E23/'Tabel 4F H'!E23*100,"-")) -> 1.359223301 | F23: =IF(OR('Tabel 4F H'!F23<5,'Tabel 4 H'!F23<0.5),"-",IFERROR('Tabel 4 H'!F23/'Tabel 4F H'!F23*100,"-")) -> 1.705426357 | G23: =IF(OR('Tabel 4F H'!G23<5,'Tabel 4 H'!G23<0.5),"-",IFERROR('Tabel 4 H'!G23/'Tabel 4F H'!G23*100,"-")) -> 2.202643172 | I23: =IF(OR('Tabel 4F H'!I23<5,'Tabel 4 H'!I23<0.5),"-",IFERROR('Tabel 4 H'!I23/'Tabel 4F H'!I23*100,"-")) -> 2.771179731
A24: Læge | C24: =IF(OR('Tabel 4F H'!C24<5,'Tabel 4 H'!C24<0.5),"-",IFERROR('Tabel 4 H'!C24/'Tabel 4F H'!C24*100,"-")) -> 2.638522427 | D24: =IF(OR('Tabel 4F H'!D24<5,'Tabel 4 H'!D24<0.5),"-",IFERROR('Tabel 4 H'!D24/'Tabel 4F H'!D24*100,"-")) -> 1.720430108 | E24: =IF(OR('Tabel 4F H'!E24<5,'Tabel 4 H'!E24<0.5),"-",IFERROR('Tabel 4 H'!E24/'Tabel 4F H'!E24*100,"-")) -> 0.8226691042 | F24: =IF(OR('Tabel 4F H'!F24<5,'Tabel 4 H'!F24<0.5),"-",IFERROR('Tabel 4 H'!F24/'Tabel 4F H'!F24*100,"-")) -> 0.8510638298 | G24: =IF(OR('Tabel 4F H'!G24<5,'Tabel 4 H'!G24<0.5),"-",IFERROR('Tabel 4 H'!G24/'Tabel 4F H'!G24*100,"-")) -> - | I24: =IF(OR('Tabel 4F H'!I24<5,'Tabel 4 H'!I24<0.5),"-",IFERROR('Tabel 4 H'!I24/'Tabel 4F H'!I24*100,"-")) -> 1.398471005
A25: Tandlæge | C25: =IF(OR('Tabel 4F H'!C25<5,'Tabel 4 H'!C25<0.5),"-",IFERROR('Tabel 4 H'!C25/'Tabel 4F H'!C25*100,"-")) -> 2.419354839 | D25: =IF(OR('Tabel 4F H'!D25<5,'Tabel 4 H'!D25<0.5),"-",IFERROR('Tabel 4 H'!D25/'Tabel 4F H'!D25*100,"-")) -> 1.993355482 | E25: =IF(OR('Tabel 4F H'!E25<5,'Tabel 4 H'!E25<0.5),"-",IFERROR('Tabel 4 H'!E25/'Tabel 4F H'!E25*100,"-")) -> 2.127659574 | F25: =IF(OR('Tabel 4F H'!F25<5,'Tabel 4 H'!F25<0.5),"-",IFERROR('Tabel 4 H'!F25/'Tabel 4F H'!F25*100,"-")) -> 1.418439716 | G25: =IF(OR('Tabel 4F H'!G25<5,'Tabel 4 H'!G25<0.5),"-",IFERROR('Tabel 4 H'!G25/'Tabel 4F H'!G25*100,"-")) -> 2.352941176 | I25: =IF(OR('Tabel 4F H'!I25<5,'Tabel 4 H'!I25<0.5),"-",IFERROR('Tabel 4 H'!I25/'Tabel 4F H'!I25*100,"-")) -> 2.026221692
A26: Arkitekt | C26: =IF(OR('Tabel 4F H'!C26<5,'Tabel 4 H'!C26<0.5),"-",IFERROR('Tabel 4 H'!C26/'Tabel 4F H'!C26*100,"-")) -> 21.33891213 | D26: =IF(OR('Tabel 4F H'!D26<5,'Tabel 4 H'!D26<0.5),"-",IFERROR('Tabel 4 H'!D26/'Tabel 4F H'!D26*100,"-")) -> 7.400722022 | E26: =IF(OR('Tabel 4F H'!E26<5,'Tabel 4 H'!E26<0.5),"-",IFERROR('Tabel 4 H'!E26/'Tabel 4F H'!E26*100,"-")) -> 3.773584906 | F26: =IF(OR('Tabel 4F H'!F26<5,'Tabel 4 H'!F26<0.5),"-",IFERROR('Tabel 4 H'!F26/'Tabel 4F H'!F26*100,"-")) -> 3.141361257 | G26: =IF(OR('Tabel 4F H'!G26<5,'Tabel 4 H'!G26<0.5),"-",IFERROR('Tabel 4 H'!G26/'Tabel 4F H'!G26*100,"-")) -> 6.179775281 | I26: =IF(OR('Tabel 4F H'!I26<5,'Tabel 4 H'!I26<0.5),"-",IFERROR('Tabel 4 H'!I26/'Tabel 4F H'!I26*100,"-")) -> 6.138177814
A27: Landinspek. | C27: =IF(OR('Tabel 4F H'!C27<5,'Tabel 4 H'!C27<0.5),"-",IFERROR('Tabel 4 H'!C27/'Tabel 4F H'!C27*100,"-")) -> - | D27: =IF(OR('Tabel 4F H'!D27<5,'Tabel 4 H'!D27<0.5),"-",IFERROR('Tabel 4 H'!D27/'Tabel 4F H'!D27*100,"-")) -> 3.636363636 | E27: =IF(OR('Tabel 4F H'!E27<5,'Tabel 4 H'!E27<0.5),"-",IFERROR('Tabel 4 H'!E27/'Tabel 4F H'!E27*100,"-")) -> 3.921568627 | F27: =IF(OR('Tabel 4F H'!F27<5,'Tabel 4 H'!F27<0.5),"-",IFERROR('Tabel 4 H'!F27/'Tabel 4F H'!F27*100,"-")) -> 2.173913043 | G27: =IF(OR('Tabel 4F H'!G27<5,'Tabel 4 H'!G27<0.5),"-",IFERROR('Tabel 4 H'!G27/'Tabel 4F H'!G27*100,"-")) -> - | I27: =IF(OR('Tabel 4F H'!I27<5,'Tabel 4 H'!I27<0.5),"-",IFERROR('Tabel 4 H'!I27/'Tabel 4F H'!I27*100,"-")) -> 2.617801047
A28: Bibliotekar | C28: =IF(OR('Tabel 4F H'!C28<5,'Tabel 4 H'!C28<0.5),"-",IFERROR('Tabel 4 H'!C28/'Tabel 4F H'!C28*100,"-")) -> 28.57142857 | D28: =IF(OR('Tabel 4F H'!D28<5,'Tabel 4 H'!D28<0.5),"-",IFERROR('Tabel 4 H'!D28/'Tabel 4F H'!D28*100,"-")) -> 8.504398827 | E28: =IF(OR('Tabel 4F H'!E28<5,'Tabel 4 H'!E28<0.5),"-",IFERROR('Tabel 4 H'!E28/'Tabel 4F H'!E28*100,"-")) -> 4.957264957 | F28: =IF(OR('Tabel 4F H'!F28<5,'Tabel 4 H'!F28<0.5),"-",IFERROR('Tabel 4 H'!F28/'Tabel 4F H'!F28*100,"-")) -> 5.314009662 | G28: =IF(OR('Tabel 4F H'!G28<5,'Tabel 4 H'!G28<0.5),"-",IFERROR('Tabel 4 H'!G28/'Tabel 4F H'!G28*100,"-")) -> 3.333333333 | I28: =IF(OR('Tabel 4F H'!I28<5,'Tabel 4 H'!I28<0.5),"-",IFERROR('Tabel 4 H'!I28/'Tabel 4F H'!I28*100,"-")) -> 6.208559373
A29: Musikudd. | C29: =IF(OR('Tabel 4F H'!C29<5,'Tabel 4 H'!C29<0.5),"-",IFERROR('Tabel 4 H'!C29/'Tabel 4F H'!C29*100,"-")) -> 42.85714286 | D29: =IF(OR('Tabel 4F H'!D29<5,'Tabel 4 H'!D29<0.5),"-",IFERROR('Tabel 4 H'!D29/'Tabel 4F H'!D29*100,"-")) -> 15.78947368 | E29: =IF(OR('Tabel 4F H'!E29<5,'Tabel 4 H'!E29<0.5),"-",IFERROR('Tabel 4 H'!E29/'Tabel 4F H'!E29*100,"-")) -> 9.090909091 | F29: =IF(OR('Tabel 4F H'!F29<5,'Tabel 4 H'!F29<0.5),"-",IFERROR('Tabel 4 H'!F29/'Tabel 4F H'!F29*100,"-")) -> 3.448275862 | G29: =IF(OR('Tabel 4F H'!G29<5,'Tabel 4 H'!G29<0.5),"-",IFERROR('Tabel 4 H'!G29/'Tabel 4F H'!G29*100,"-")) -> 8.860759494 | I29: =IF(OR('Tabel 4F H'!I29<5,'Tabel 4 H'!I29<0.5),"-",IFERROR('Tabel 4 H'!I29/'Tabel 4F H'!I29*100,"-")) -> 8.496732026
A30: Teolog | C30: =IF(OR('Tabel 4F H'!C30<5,'Tabel 4 H'!C30<0.5),"-",IFERROR('Tabel 4 H'!C30/'Tabel 4F H'!C30*100,"-")) -> 25 | D30: =IF(OR('Tabel 4F H'!D30<5,'Tabel 4 H'!D30<0.5),"-",IFERROR('Tabel 4 H'!D30/'Tabel 4F H'!D30*100,"-")) -> 10.47619048 | E30: =IF(OR('Tabel 4F H'!E30<5,'Tabel 4 H'!E30<0.5),"-",IFERROR('Tabel 4 H'!E30/'Tabel 4F H'!E30*100,"-")) -> 3.95480226 | F30: =IF(OR('Tabel 4F H'!F30<5,'Tabel 4 H'!F30<0.5),"-",IFERROR('Tabel 4 H'!F30/'Tabel 4F H'!F30*100,"-")) -> 3.351955307 | G30: =IF(OR('Tabel 4F H'!G30<5,'Tabel 4 H'!G30<0.5),"-",IFERROR('Tabel 4 H'!G30/'Tabel 4F H'!G30*100,"-")) -> 1.19047619 | I30: =IF(OR('Tabel 4F H'!I30<5,'Tabel 4 H'!I30<0.5),"-",IFERROR('Tabel 4 H'!I30/'Tabel 4F H'!I30*100,"-")) -> 5.169340463
A31: Psykolog | C31: =IF(OR('Tabel 4F H'!C31<5,'Tabel 4 H'!C31<0.5),"-",IFERROR('Tabel 4 H'!C31/'Tabel 4F H'!C31*100,"-")) -> 8.596491228 | D31: =IF(OR('Tabel 4F H'!D31<5,'Tabel 4 H'!D31<0.5),"-",IFERROR('Tabel 4 H'!D31/'Tabel 4F H'!D31*100,"-")) -> 3.571428571 | E31: =IF(OR('Tabel 4F H'!E31<5,'Tabel 4 H'!E31<0.5),"-",IFERROR('Tabel 4 H'!E31/'Tabel 4F H'!E31*100,"-")) -> 3.20855615 | F31: =IF(OR('Tabel 4F H'!F31<5,'Tabel 4 H'!F31<0.5),"-",IFERROR('Tabel 4 H'!F31/'Tabel 4F H'!F31*100,"-")) -> 2.255639098 | G31: =IF(OR('Tabel 4F H'!G31<5,'Tabel 4 H'!G31<0.5),"-",IFERROR('Tabel 4 H'!G31/'Tabel 4F H'!G31*100,"-")) -> 3.846153846 | I31: =IF(OR('Tabel 4F H'!I31<5,'Tabel 4 H'!I31<0.5),"-",IFERROR('Tabel 4 H'!I31/'Tabel 4F H'!I31*100,"-")) -> 4.088307441
A32: Jurist | C32: =IF(OR('Tabel 4F H'!C32<5,'Tabel 4 H'!C32<0.5),"-",IFERROR('Tabel 4 H'!C32/'Tabel 4F H'!C32*100,"-")) -> 2.888086643 | D32: =IF(OR('Tabel 4F H'!D32<5,'Tabel 4 H'!D32<0.5),"-",IFERROR('Tabel 4 H'!D32/'Tabel 4F H'!D32*100,"-")) -> 1.786294251 | E32: =IF(OR('Tabel 4F H'!E32<5,'Tabel 4 H'!E32<0.5),"-",IFERROR('Tabel 4 H'!E32/'Tabel 4F H'!E32*100,"-")) -> 1.251422071 | F32: =IF(OR('Tabel 4F H'!F32<5,'Tabel 4 H'!F32<0.5),"-",IFERROR('Tabel 4 H'!F32/'Tabel 4F H'!F32*100,"-")) -> 1.092611863 | G32: =IF(OR('Tabel 4F H'!G32<5,'Tabel 4 H'!G32<0.5),"-",IFERROR('Tabel 4 H'!G32/'Tabel 4F H'!G32*100,"-")) -> 2.559414991 | I32: =IF(OR('Tabel 4F H'!I32<5,'Tabel 4 H'!I32<0.5),"-",IFERROR('Tabel 4 H'!I32/'Tabel 4F H'!I32*100,"-")) -> 1.736569514
A33: Økonom | C33: =IF(OR('Tabel 4F H'!C33<5,'Tabel 4 H'!C33<0.5),"-",IFERROR('Tabel 4 H'!C33/'Tabel 4F H'!C33*100,"-")) -> 6.029106029 | D33: =IF(OR('Tabel 4F H'!D33<5,'Tabel 4 H'!D33<0.5),"-",IFERROR('Tabel 4 H'!D33/'Tabel 4F H'!D33*100,"-")) -> 1.776198934 | E33: =IF(OR('Tabel 4F H'!E33<5,'Tabel 4 H'!E33<0.5),"-",IFERROR('Tabel 4 H'!E33/'Tabel 4F H'!E33*100,"-")) -> 1.245421245 | F33: =IF(OR('Tabel 4F H'!F33<5,'Tabel 4 H'!F33<0.5),"-",IFERROR('Tabel 4 H'!F33/'Tabel 4F H'!F33*100,"-")) -> 2.343159486 | G33: =IF(OR('Tabel 4F H'!G33<5,'Tabel 4 H'!G33<0.5),"-",IFERROR('Tabel 4 H'!G33/'Tabel 4F H'!G33*100,"-")) -> 7.033639144 | I33: =IF(OR('Tabel 4F H'!I33<5,'Tabel 4 H'!I33<0.5),"-",IFERROR('Tabel 4 H'!I33/'Tabel 4F H'!I33*100,"-")) -> 2.806212496
A34: Samf. Adm. | C34: =IF(OR('Tabel 4F H'!C34<5,'Tabel 4 H'!C34<0.5),"-",IFERROR('Tabel 4 H'!C34/'Tabel 4F H'!C34*100,"-")) -> 12.31546232 | D34: =IF(OR('Tabel 4F H'!D34<5,'Tabel 4 H'!D34<0.5),"-",IFERROR('Tabel 4 H'!D34/'Tabel 4F H'!D34*100,"-")) -> 4.928883256 | E34: =IF(OR('Tabel 4F H'!E34<5,'Tabel 4 H'!E34<0.5),"-",IFERROR('Tabel 4 H'!E34/'Tabel 4F H'!E34*100,"-")) -> 3.533057851 | F34: =IF(OR('Tabel 4F H'!F34<5,'Tabel 4 H'!F34<0.5),"-",IFERROR('Tabel 4 H'!F34/'Tabel 4F H'!F34*100,"-")) -> 3.360977739 | G34: =IF(OR('Tabel 4F H'!G34<5,'Tabel 4 H'!G34<0.5),"-",IFERROR('Tabel 4 H'!G34/'Tabel 4F H'!G34*100,"-")) -> 5.048543689 | I34: =IF(OR('Tabel 4F H'!I34<5,'Tabel 4 H'!I34<0.5),"-",IFERROR('Tabel 4 H'!I34/'Tabel 4F H'!I34*100,"-")) -> 5.432711737
A35: Cand. Merc. | C35: =IF(OR('Tabel 4F H'!C35<5,'Tabel 4 H'!C35<0.5),"-",IFERROR('Tabel 4 H'!C35/'Tabel 4F H'!C35*100,"-")) -> 6.882504288 | D35: =IF(OR('Tabel 4F H'!D35<5,'Tabel 4 H'!D35<0.5),"-",IFERROR('Tabel 4 H'!D35/'Tabel 4F H'!D35*100,"-")) -> 3.703255476 | E35: =IF(OR('Tabel 4F H'!E35<5,'Tabel 4 H'!E35<0.5),"-",IFERROR('Tabel 4 H'!E35/'Tabel 4F H'!E35*100,"-")) -> 3.546419697 | F35: =IF(OR('Tabel 4F H'!F35<5,'Tabel 4 H'!F35<0.5),"-",IFERROR('Tabel 4 H'!F35/'Tabel 4F H'!F35*100,"-")) -> 3.975325565 | G35: =IF(OR('Tabel 4F H'!G35<5,'Tabel 4 H'!G35<0.5),"-",IFERROR('Tabel 4 H'!G35/'Tabel 4F H'!G35*100,"-")) -> 7.87037037 | I35: =IF(OR('Tabel 4F H'!I35<5,'Tabel 4 H'!I35<0.5),"-",IFERROR('Tabel 4 H'!I35/'Tabel 4F H'!I35*100,"-")) -> 4.511205564
A36: HA | C36: =IF(OR('Tabel 4F H'!C36<5,'Tabel 4 H'!C36<0.5),"-",IFERROR('Tabel 4 H'!C36/'Tabel 4F H'!C36*100,"-")) -> 14.05405405 | D36: =IF(OR('Tabel 4F H'!D36<5,'Tabel 4 H'!D36<0.5),"-",IFERROR('Tabel 4 H'!D36/'Tabel 4F H'!D36*100,"-")) -> 7.032590051 | E36: =IF(OR('Tabel 4F H'!E36<5,'Tabel 4 H'!E36<0.5),"-",IFERROR('Tabel 4 H'!E36/'Tabel 4F H'!E36*100,"-")) -> 3.393665158 | F36: =IF(OR('Tabel 4F H'!F36<5,'Tabel 4 H'!F36<0.5),"-",IFERROR('Tabel 4 H'!F36/'Tabel 4F H'!F36*100,"-")) -> 2.518518519 | G36: =IF(OR('Tabel 4F H'!G36<5,'Tabel 4 H'!G36<0.5),"-",IFERROR('Tabel 4 H'!G36/'Tabel 4F H'!G36*100,"-")) -> 11.84834123 | I36: =IF(OR('Tabel 4F H'!I36<5,'Tabel 4 H'!I36<0.5),"-",IFERROR('Tabel 4 H'!I36/'Tabel 4F H'!I36*100,"-")) -> 7.137064071
A37: HD | C37: =IF(OR('Tabel 4F H'!C37<5,'Tabel 4 H'!C37<0.5),"-",IFERROR('Tabel 4 H'!C37/'Tabel 4F H'!C37*100,"-")) -> 13.58695652 | D37: =IF(OR('Tabel 4F H'!D37<5,'Tabel 4 H'!D37<0.5),"-",IFERROR('Tabel 4 H'!D37/'Tabel 4F H'!D37*100,"-")) -> 8.661417323 | E37: =IF(OR('Tabel 4F H'!E37<5,'Tabel 4 H'!E37<0.5),"-",IFERROR('Tabel 4 H'!E37/'Tabel 4F H'!E37*100,"-")) -> 3.797468354 | F37: =IF(OR('Tabel 4F H'!F37<5,'Tabel 4 H'!F37<0.5),"-",IFERROR('Tabel 4 H'!F37/'Tabel 4F H'!F37*100,"-")) -> 2.989130435 | G37: =IF(OR('Tabel 4F H'!G37<5,'Tabel 4 H'!G37<0.5),"-",IFERROR('Tabel 4 H'!G37/'Tabel 4F H'!G37*100,"-")) -> 8.385093168 | I37: =IF(OR('Tabel 4F H'!I37<5,'Tabel 4 H'!I37<0.5),"-",IFERROR('Tabel 4 H'!I37/'Tabel 4F H'!I37*100,"-")) -> 7.458024209
A38: Komm. og Sprog | C38: =IF(OR('Tabel 4F H'!C38<5,'Tabel 4 H'!C38<0.5),"-",IFERROR('Tabel 4 H'!C38/'Tabel 4F H'!C38*100,"-")) -> 15.34296029 | D38: =IF(OR('Tabel 4F H'!D38<5,'Tabel 4 H'!D38<0.5),"-",IFERROR('Tabel 4 H'!D38/'Tabel 4F H'!D38*100,"-")) -> 7.341092211 | E38: =IF(OR('Tabel 4F H'!E38<5,'Tabel 4 H'!E38<0.5),"-",IFERROR('Tabel 4 H'!E38/'Tabel 4F H'!E38*100,"-")) -> 6.222222222 | F38: =IF(OR('Tabel 4F H'!F38<5,'Tabel 4 H'!F38<0.5),"-",IFERROR('Tabel 4 H'!F38/'Tabel 4F H'!F38*100,"-")) -> 5.355064028 | G38: =IF(OR('Tabel 4F H'!G38<5,'Tabel 4 H'!G38<0.5),"-",IFERROR('Tabel 4 H'!G38/'Tabel 4F H'!G38*100,"-")) -> 10.66666667 | I38: =IF(OR('Tabel 4F H'!I38<5,'Tabel 4 H'!I38<0.5),"-",IFERROR('Tabel 4 H'!I38/'Tabel 4F H'!I38*100,"-")) -> 7.96460177
A39: Bygningskonst. | C39: =IF(OR('Tabel 4F H'!C39<5,'Tabel 4 H'!C39<0.5),"-",IFERROR('Tabel 4 H'!C39/'Tabel 4F H'!C39*100,"-")) -> 15.68181818 | D39: =IF(OR('Tabel 4F H'!D39<5,'Tabel 4 H'!D39<0.5),"-",IFERROR('Tabel 4 H'!D39/'Tabel 4F H'!D39*100,"-")) -> 3.15270936 | E39: =IF(OR('Tabel 4F H'!E39<5,'Tabel 4 H'!E39<0.5),"-",IFERROR('Tabel 4 H'!E39/'Tabel 4F H'!E39*100,"-")) -> 2.702702703 | F39: =IF(OR('Tabel 4F H'!F39<5,'Tabel 4 H'!F39<0.5),"-",IFERROR('Tabel 4 H'!F39/'Tabel 4F H'!F39*100,"-")) -> 2.923976608 | G39: =IF(OR('Tabel 4F H'!G39<5,'Tabel 4 H'!G39<0.5),"-",IFERROR('Tabel 4 H'!G39/'Tabel 4F H'!G39*100,"-")) -> 5.128205128 | I39: =IF(OR('Tabel 4F H'!I39<5,'Tabel 4 H'!I39<0.5),"-",IFERROR('Tabel 4 H'!I39/'Tabel 4F H'!I39*100,"-")) -> 5.271565495
A40: Cand. IT. | C40: =IF(OR('Tabel 4F H'!C40<5,'Tabel 4 H'!C40<0.5),"-",IFERROR('Tabel 4 H'!C40/'Tabel 4F H'!C40*100,"-")) -> 8.429752066 | D40: =IF(OR('Tabel 4F H'!D40<5,'Tabel 4 H'!D40<0.5),"-",IFERROR('Tabel 4 H'!D40/'Tabel 4F H'!D40*100,"-")) -> 5.164670659 | E40: =IF(OR('Tabel 4F H'!E40<5,'Tabel 4 H'!E40<0.5),"-",IFERROR('Tabel 4 H'!E40/'Tabel 4F H'!E40*100,"-")) -> 3.526093089 | F40: =IF(OR('Tabel 4F H'!F40<5,'Tabel 4 H'!F40<0.5),"-",IFERROR('Tabel 4 H'!F40/'Tabel 4F H'!F40*100,"-")) -> 5.681818182 | G40: =IF(OR('Tabel 4F H'!G40<5,'Tabel 4 H'!G40<0.5),"-",IFERROR('Tabel 4 H'!G40/'Tabel 4F H'!G40*100,"-")) -> 11.11111111 | I40: =IF(OR('Tabel 4F H'!I40<5,'Tabel 4 H'!I40<0.5),"-",IFERROR('Tabel 4 H'!I40/'Tabel 4F H'!I40*100,"-")) -> 5.496905715
A41: Bac. Samf. | C41: =IF(OR('Tabel 4F H'!C41<5,'Tabel 4 H'!C41<0.5),"-",IFERROR('Tabel 4 H'!C41/'Tabel 4F H'!C41*100,"-")) -> 20.87912088 | D41: =IF(OR('Tabel 4F H'!D41<5,'Tabel 4 H'!D41<0.5),"-",IFERROR('Tabel 4 H'!D41/'Tabel 4F H'!D41*100,"-")) -> 5.579399142 | E41: =IF(OR('Tabel 4F H'!E41<5,'Tabel 4 H'!E41<0.5),"-",IFERROR('Tabel 4 H'!E41/'Tabel 4F H'!E41*100,"-")) -> 5 | F41: =IF(OR('Tabel 4F H'!F41<5,'Tabel 4 H'!F41<0.5),"-",IFERROR('Tabel 4 H'!F41/'Tabel 4F H'!F41*100,"-")) -> 4.545454545 | G41: =IF(OR('Tabel 4F H'!G41<5,'Tabel 4 H'!G41<0.5),"-",IFERROR('Tabel 4 H'!G41/'Tabel 4F H'!G41*100,"-")) -> 9.090909091 | I41: =IF(OR('Tabel 4F H'!I41<5,'Tabel 4 H'!I41<0.5),"-",IFERROR('Tabel 4 H'!I41/'Tabel 4F H'!I41*100,"-")) -> 8.754623921
A42: Bac. Hum. | C42: =IF(OR('Tabel 4F H'!C42<5,'Tabel 4 H'!C42<0.5),"-",IFERROR('Tabel 4 H'!C42/'Tabel 4F H'!C42*100,"-")) -> 24.73988439 | D42: =IF(OR('Tabel 4F H'!D42<5,'Tabel 4 H'!D42<0.5),"-",IFERROR('Tabel 4 H'!D42/'Tabel 4F H'!D42*100,"-")) -> 12.41830065 | E42: =IF(OR('Tabel 4F H'!E42<5,'Tabel 4 H'!E42<0.5),"-",IFERROR('Tabel 4 H'!E42/'Tabel 4F H'!E42*100,"-")) -> 6.64893617 | F42: =IF(OR('Tabel 4F H'!F42<5,'Tabel 4 H'!F42<0.5),"-",IFERROR('Tabel 4 H'!F42/'Tabel 4F H'!F42*100,"-")) -> 7.182320442 | G42: =IF(OR('Tabel 4F H'!G42<5,'Tabel 4 H'!G42<0.5),"-",IFERROR('Tabel 4 H'!G42/'Tabel 4F H'!G42*100,"-")) -> 12.17391304 | I42: =IF(OR('Tabel 4F H'!I42<5,'Tabel 4 H'!I42<0.5),"-",IFERROR('Tabel 4 H'!I42/'Tabel 4F H'!I42*100,"-")) -> 15.4340836
A43: Bac. Nat. | C43: =IF(OR('Tabel 4F H'!C43<5,'Tabel 4 H'!C43<0.5),"-",IFERROR('Tabel 4 H'!C43/'Tabel 4F H'!C43*100,"-")) -> 22.22222222 | D43: =IF(OR('Tabel 4F H'!D43<5,'Tabel 4 H'!D43<0.5),"-",IFERROR('Tabel 4 H'!D43/'Tabel 4F H'!D43*100,"-")) -> 6.26029654 | E43: =IF(OR('Tabel 4F H'!E43<5,'Tabel 4 H'!E43<0.5),"-",IFERROR('Tabel 4 H'!E43/'Tabel 4F H'!E43*100,"-")) -> 5.485232068 | F43: =IF(OR('Tabel 4F H'!F43<5,'Tabel 4 H'!F43<0.5),"-",IFERROR('Tabel 4 H'!F43/'Tabel 4F H'!F43*100,"-")) -> 6.796116505 | G43: =IF(OR('Tabel 4F H'!G43<5,'Tabel 4 H'!G43<0.5),"-",IFERROR('Tabel 4 H'!G43/'Tabel 4F H'!G43*100,"-")) -> 3.225806452 | I43: =IF(OR('Tabel 4F H'!I43<5,'Tabel 4 H'!I43<0.5),"-",IFERROR('Tabel 4 H'!I43/'Tabel 4F H'!I43*100,"-")) -> 12.15012723
A44: Andre | C44: =IF(OR('Tabel 4F H'!C44<5,'Tabel 4 H'!C44<0.5),"-",IFERROR('Tabel 4 H'!C44/'Tabel 4F H'!C44*100,"-")) -> 12.35884567 | D44: =IF(OR('Tabel 4F H'!D44<5,'Tabel 4 H'!D44<0.5),"-",IFERROR('Tabel 4 H'!D44/'Tabel 4F H'!D44*100,"-")) -> 7.712715558 | E44: =IF(OR('Tabel 4F H'!E44<5,'Tabel 4 H'!E44<0.5),"-",IFERROR('Tabel 4 H'!E44/'Tabel 4F H'!E44*100,"-")) -> 6.64928292 | F44: =IF(OR('Tabel 4F H'!F44<5,'Tabel 4 H'!F44<0.5),"-",IFERROR('Tabel 4 H'!F44/'Tabel 4F H'!F44*100,"-")) -> 9.044995409 | G44: =IF(OR('Tabel 4F H'!G44<5,'Tabel 4 H'!G44<0.5),"-",IFERROR('Tabel 4 H'!G44/'Tabel 4F H'!G44*100,"-")) -> 10.28446389 | I44: =IF(OR('Tabel 4F H'!I44<5,'Tabel 4 H'!I44<0.5),"-",IFERROR('Tabel 4 H'!I44/'Tabel 4F H'!I44*100,"-")) -> 8.334541238
A46: Total | C46: =IF(OR('Tabel 4F H'!C46<5,'Tabel 4 H'!C46<0.5),"-",IFERROR('Tabel 4 H'!C46/'Tabel 4F H'!C46*100,"-")) -> 12.27482053 | D46: =IF(OR('Tabel 4F H'!D46<5,'Tabel 4 H'!D46<0.5),"-",IFERROR('Tabel 4 H'!D46/'Tabel 4F H'!D46*100,"-")) -> 5.47002693 | E46: =IF(OR('Tabel 4F H'!E46<5,'Tabel 4 H'!E46<0.5),"-",IFERROR('Tabel 4 H'!E46/'Tabel 4F H'!E46*100,"-")) -> 3.544959945 | F46: =IF(OR('Tabel 4F H'!F46<5,'Tabel 4 H'!F46<0.5),"-",IFERROR('Tabel 4 H'!F46/'Tabel 4F H'!F46*100,"-")) -> 3.481137516 | G46: =IF(OR('Tabel 4F H'!G46<5,'Tabel 4 H'!G46<0.5),"-",IFERROR('Tabel 4 H'!G46/'Tabel 4F H'!G46*100,"-")) -> 5.418808043 | I46: =IF(OR('Tabel 4F H'!I46<5,'Tabel 4 H'!I46<0.5),"-",IFERROR('Tabel 4 H'!I46/'Tabel 4F H'!I46*100,"-")) -> 5.713852108
A48: Ingeniører i alt | C48: =IF(OR('Tabel 4F H'!C48<5,'Tabel 4 H'!C48<0.5),"-",IFERROR('Tabel 4 H'!C48/'Tabel 4F H'!C48*100,"-")) -> 9.437854564 | D48: =IF(OR('Tabel 4F H'!D48<5,'Tabel 4 H'!D48<0.5),"-",IFERROR('Tabel 4 H'!D48/'Tabel 4F H'!D48*100,"-")) -> 3.061477442 | E48: =IF(OR('Tabel 4F H'!E48<5,'Tabel 4 H'!E48<0.5),"-",IFERROR('Tabel 4 H'!E48/'Tabel 4F H'!E48*100,"-")) -> 1.567091087 | F48: =IF(OR('Tabel 4F H'!F48<5,'Tabel 4 H'!F48<0.5),"-",IFERROR('Tabel 4 H'!F48/'Tabel 4F H'!F48*100,"-")) -> 2.203065134 | G48: =IF(OR('Tabel 4F H'!G48<5,'Tabel 4 H'!G48<0.5),"-",IFERROR('Tabel 4 H'!G48/'Tabel 4F H'!G48*100,"-")) -> 3.829358415 | I48: =IF(OR('Tabel 4F H'!I48<5,'Tabel 4 H'!I48<0.5),"-",IFERROR('Tabel 4 H'!I48/'Tabel 4F H'!I48*100,"-")) -> 3.362698047
A49: Magistre i alt | C49: =IF(OR('Tabel 4F H'!C49<5,'Tabel 4 H'!C49<0.5),"-",IFERROR('Tabel 4 H'!C49/'Tabel 4F H'!C49*100,"-")) -> 22.60076775 | D49: =IF(OR('Tabel 4F H'!D49<5,'Tabel 4 H'!D49<0.5),"-",IFERROR('Tabel 4 H'!D49/'Tabel 4F H'!D49*100,"-")) -> 9.700566974 | E49: =IF(OR('Tabel 4F H'!E49<5,'Tabel 4 H'!E49<0.5),"-",IFERROR('Tabel 4 H'!E49/'Tabel 4F H'!E49*100,"-")) -> 4.72985782 | F49: =IF(OR('Tabel 4F H'!F49<5,'Tabel 4 H'!F49<0.5),"-",IFERROR('Tabel 4 H'!F49/'Tabel 4F H'!F49*100,"-")) -> 4.435275915 | G49: =IF(OR('Tabel 4F H'!G49<5,'Tabel 4 H'!G49<0.5),"-",IFERROR('Tabel 4 H'!G49/'Tabel 4F H'!G49*100,"-")) -> 5.853418593 | I49: =IF(OR('Tabel 4F H'!I49<5,'Tabel 4 H'!I49<0.5),"-",IFERROR('Tabel 4 H'!I49/'Tabel 4F H'!I49*100,"-")) -> 8.604087902
A50: DJØF'ere i alt | C50: =IF(OR('Tabel 4F H'!C50<5,'Tabel 4 H'!C50<0.5),"-",IFERROR('Tabel 4 H'!C50/'Tabel 4F H'!C50*100,"-")) -> 7.89094749 | D50: =IF(OR('Tabel 4F H'!D50<5,'Tabel 4 H'!D50<0.5),"-",IFERROR('Tabel 4 H'!D50/'Tabel 4F H'!D50*100,"-")) -> 3.77504224 | E50: =IF(OR('Tabel 4F H'!E50<5,'Tabel 4 H'!E50<0.5),"-",IFERROR('Tabel 4 H'!E50/'Tabel 4F H'!E50*100,"-")) -> 2.866311721 | F50: =IF(OR('Tabel 4F H'!F50<5,'Tabel 4 H'!F50<0.5),"-",IFERROR('Tabel 4 H'!F50/'Tabel 4F H'!F50*100,"-")) -> 2.869974806 | G50: =IF(OR('Tabel 4F H'!G50<5,'Tabel 4 H'!G50<0.5),"-",IFERROR('Tabel 4 H'!G50/'Tabel 4F H'!G50*100,"-")) -> 6.003937008 | I50: =IF(OR('Tabel 4F H'!I50<5,'Tabel 4 H'!I50<0.5),"-",IFERROR('Tabel 4 H'!I50/'Tabel 4F H'!I50*100,"-")) -> 4.251482037
A57: København
C59: Under 30 år | D59: 30 - 39 år | E59: 40 - 49 år | F59: 50 - 59 år | G59: Over 60 år | I59: I alt
A61: Civ. ing. | C61: =IF(OR('Tabel 4F H'!C61<5,'Tabel 4 H'!C61<0.5),"-",IFERROR('Tabel 4 H'!C61/'Tabel 4F H'!C61*100,"-")) -> 10.05188067 | D61: =IF(OR('Tabel 4F H'!D61<5,'Tabel 4 H'!D61<0.5),"-",IFERROR('Tabel 4 H'!D61/'Tabel 4F H'!D61*100,"-")) -> 3.245991396 | E61: =IF(OR('Tabel 4F H'!E61<5,'Tabel 4 H'!E61<0.5),"-",IFERROR('Tabel 4 H'!E61/'Tabel 4F H'!E61*100,"-")) -> 1.917545542 | F61: =IF(OR('Tabel 4F H'!F61<5,'Tabel 4 H'!F61<0.5),"-",IFERROR('Tabel 4 H'!F61/'Tabel 4F H'!F61*100,"-")) -> 2.945301543 | G61: =IF(OR('Tabel 4F H'!G61<5,'Tabel 4 H'!G61<0.5),"-",IFERROR('Tabel 4 H'!G61/'Tabel 4F H'!G61*100,"-")) -> 3.365384615 | I61: =IF(OR('Tabel 4F H'!I61<5,'Tabel 4 H'!I61<0.5),"-",IFERROR('Tabel 4 H'!I61/'Tabel 4F H'!I61*100,"-")) -> 4.717136731
A62: Diplom ing. | C62: =IF(OR('Tabel 4F H'!C62<5,'Tabel 4 H'!C62<0.5),"-",IFERROR('Tabel 4 H'!C62/'Tabel 4F H'!C62*100,"-")) -> 7.985480944 | D62: =IF(OR('Tabel 4F H'!D62<5,'Tabel 4 H'!D62<0.5),"-",IFERROR('Tabel 4 H'!D62/'Tabel 4F H'!D62*100,"-")) -> 5.793742758 | E62: =IF(OR('Tabel 4F H'!E62<5,'Tabel 4 H'!E62<0.5),"-",IFERROR('Tabel 4 H'!E62/'Tabel 4F H'!E62*100,"-")) -> 3.888888889 | F62: =IF(OR('Tabel 4F H'!F62<5,'Tabel 4 H'!F62<0.5),"-",IFERROR('Tabel 4 H'!F62/'Tabel 4F H'!F62*100,"-")) -> 3.391812865 | G62: =IF(OR('Tabel 4F H'!G62<5,'Tabel 4 H'!G62<0.5),"-",IFERROR('Tabel 4 H'!G62/'Tabel 4F H'!G62*100,"-")) -> 4.137931034 | I62: =IF(OR('Tabel 4F H'!I62<5,'Tabel 4 H'!I62<0.5),"-",IFERROR('Tabel 4 H'!I62/'Tabel 4F H'!I62*100,"-")) -> 4.971027752
A63: Cand. Scient. Tek | C63: =IF(OR('Tabel 4F H'!C63<5,'Tabel 4 H'!C63<0.5),"-",IFERROR('Tabel 4 H'!C63/'Tabel 4F H'!C63*100,"-")) -> 14.49494949 | D63: =IF(OR('Tabel 4F H'!D63<5,'Tabel 4 H'!D63<0.5),"-",IFERROR('Tabel 4 H'!D63/'Tabel 4F H'!D63*100,"-")) -> 6.950308542 | E63: =IF(OR('Tabel 4F H'!E63<5,'Tabel 4 H'!E63<0.5),"-",IFERROR('Tabel 4 H'!E63/'Tabel 4F H'!E63*100,"-")) -> 3.265940902 | F63: =IF(OR('Tabel 4F H'!F63<5,'Tabel 4 H'!F63<0.5),"-",IFERROR('Tabel 4 H'!F63/'Tabel 4F H'!F63*100,"-")) -> 4.191616766 | G63: =IF(OR('Tabel 4F H'!G63<5,'Tabel 4 H'!G63<0.5),"-",IFERROR('Tabel 4 H'!G63/'Tabel 4F H'!G63*100,"-")) -> 7.5 | I63: =IF(OR('Tabel 4F H'!I63<5,'Tabel 4 H'!I63<0.5),"-",IFERROR('Tabel 4 H'!I63/'Tabel 4F H'!I63*100,"-")) -> 9.003215434
A64: MA. Hum. | C64: =IF(OR('Tabel 4F H'!C64<5,'Tabel 4 H'!C64<0.5),"-",IFERROR('Tabel 4 H'!C64/'Tabel 4F H'!C64*100,"-")) -> 25.46930492 | D64: =IF(OR('Tabel 4F H'!D64<5,'Tabel 4 H'!D64<0.5),"-",IFERROR('Tabel 4 H'!D64/'Tabel 4F H'!D64*100,"-")) -> 10.78353779 | E64: =IF(OR('Tabel 4F H'!E64<5,'Tabel 4 H'!E64<0.5),"-",IFERROR('Tabel 4 H'!E64/'Tabel 4F H'!E64*100,"-")) -> 5.980528512 | F64: =IF(OR('Tabel 4F H'!F64<5,'Tabel 4 H'!F64<0.5),"-",IFERROR('Tabel 4 H'!F64/'Tabel 4F H'!F64*100,"-")) -> 6.790123457 | G64: =IF(OR('Tabel 4F H'!G64<5,'Tabel 4 H'!G64<0.5),"-",IFERROR('Tabel 4 H'!G64/'Tabel 4F H'!G64*100,"-")) -> 8.409090909 | I64: =IF(OR('Tabel 4F H'!I64<5,'Tabel 4 H'!I64<0.5),"-",IFERROR('Tabel 4 H'!I64/'Tabel 4F H'!I64*100,"-")) -> 11.1679182
A65: MA. Nat. | C65: =IF(OR('Tabel 4F H'!C65<5,'Tabel 4 H'!C65<0.5),"-",IFERROR('Tabel 4 H'!C65/'Tabel 4F H'!C65*100,"-")) -> 16.52173913 | D65: =IF(OR('Tabel 4F H'!D65<5,'Tabel 4 H'!D65<0.5),"-",IFERROR('Tabel 4 H'!D65/'Tabel 4F H'!D65*100,"-")) -> 6.768558952 | E65: =IF(OR('Tabel 4F H'!E65<5,'Tabel 4 H'!E65<0.5),"-",IFERROR('Tabel 4 H'!E65/'Tabel 4F H'!E65*100,"-")) -> 2.33592881 | F65: =IF(OR('Tabel 4F H'!F65<5,'Tabel 4 H'!F65<0.5),"-",IFERROR('Tabel 4 H'!F65/'Tabel 4F H'!F65*100,"-")) -> 2.555910543 | G65: =IF(OR('Tabel 4F H'!G65<5,'Tabel 4 H'!G65<0.5),"-",IFERROR('Tabel 4 H'!G65/'Tabel 4F H'!G65*100,"-")) -> 4.504504505 | I65: =IF(OR('Tabel 4F H'!I65<5,'Tabel 4 H'!I65<0.5),"-",IFERROR('Tabel 4 H'!I65/'Tabel 4F H'!I65*100,"-")) -> 5.518617021
A66: MA. Ph.d. | C66: =IF(OR('Tabel 4F H'!C66<5,'Tabel 4 H'!C66<0.5),"-",IFERROR('Tabel 4 H'!C66/'Tabel 4F H'!C66*100,"-")) -> 16.66666667 | D66: =IF(OR('Tabel 4F H'!D66<5,'Tabel 4 H'!D66<0.5),"-",IFERROR('Tabel 4 H'!D66/'Tabel 4F H'!D66*100,"-")) -> 4.761904762 | E66: =IF(OR('Tabel 4F H'!E66<5,'Tabel 4 H'!E66<0.5),"-",IFERROR('Tabel 4 H'!E66/'Tabel 4F H'!E66*100,"-")) -> 5.511811024 | F66: =IF(OR('Tabel 4F H'!F66<5,'Tabel 4 H'!F66<0.5),"-",IFERROR('Tabel 4 H'!F66/'Tabel 4F H'!F66*100,"-")) -> 3.973509934 | G66: =IF(OR('Tabel 4F H'!G66<5,'Tabel 4 H'!G66<0.5),"-",IFERROR('Tabel 4 H'!G66/'Tabel 4F H'!G66*100,"-")) -> 6.52173913 | I66: =IF(OR('Tabel 4F H'!I66<5,'Tabel 4 H'!I66<0.5),"-",IFERROR('Tabel 4 H'!I66/'Tabel 4F H'!I66*100,"-")) -> 5.200594354
A67: MA. Samf. | C67: =IF(OR('Tabel 4F H'!C67<5,'Tabel 4 H'!C67<0.5),"-",IFERROR('Tabel 4 H'!C67/'Tabel 4F H'!C67*100,"-")) -> 19.46508172 | D67: =IF(OR('Tabel 4F H'!D67<5,'Tabel 4 H'!D67<0.5),"-",IFERROR('Tabel 4 H'!D67/'Tabel 4F H'!D67*100,"-")) -> 11.91066998 | E67: =IF(OR('Tabel 4F H'!E67<5,'Tabel 4 H'!E67<0.5),"-",IFERROR('Tabel 4 H'!E67/'Tabel 4F H'!E67*100,"-")) -> 7.514450867 | F67: =IF(OR('Tabel 4F H'!F67<5,'Tabel 4 H'!F67<0.5),"-",IFERROR('Tabel 4 H'!F67/'Tabel 4F H'!F67*100,"-")) -> 8.333333333 | G67: =IF(OR('Tabel 4F H'!G67<5,'Tabel 4 H'!G67<0.5),"-",IFERROR('Tabel 4 H'!G67/'Tabel 4F H'!G67*100,"-")) -> 10 | I67: =IF(OR('Tabel 4F H'!I67<5,'Tabel 4 H'!I67<0.5),"-",IFERROR('Tabel 4 H'!I67/'Tabel 4F H'!I67*100,"-")) -> 13.17991632
A68: Øvrige Mag. | C68: =IF(OR('Tabel 4F H'!C68<5,'Tabel 4 H'!C68<0.5),"-",IFERROR('Tabel 4 H'!C68/'Tabel 4F H'!C68*100,"-")) -> 25 | D68: =IF(OR('Tabel 4F H'!D68<5,'Tabel 4 H'!D68<0.5),"-",IFERROR('Tabel 4 H'!D68/'Tabel 4F H'!D68*100,"-")) -> 11.56716418 | E68: =IF(OR('Tabel 4F H'!E68<5,'Tabel 4 H'!E68<0.5),"-",IFERROR('Tabel 4 H'!E68/'Tabel 4F H'!E68*100,"-")) -> 9.187279152 | F68: =IF(OR('Tabel 4F H'!F68<5,'Tabel 4 H'!F68<0.5),"-",IFERROR('Tabel 4 H'!F68/'Tabel 4F H'!F68*100,"-")) -> 5.699481865 | G68: =IF(OR('Tabel 4F H'!G68<5,'Tabel 4 H'!G68<0.5),"-",IFERROR('Tabel 4 H'!G68/'Tabel 4F H'!G68*100,"-")) -> 6.451612903 | I68: =IF(OR('Tabel 4F H'!I68<5,'Tabel 4 H'!I68<0.5),"-",IFERROR('Tabel 4 H'!I68/'Tabel 4F H'!I68*100,"-")) -> 11.75869121
A69: Agronom | C69: =IF(OR('Tabel 4F H'!C69<5,'Tabel 4 H'!C69<0.5),"-",IFERROR('Tabel 4 H'!C69/'Tabel 4F H'!C69*100,"-")) -> 12.16216216 | D69: =IF(OR('Tabel 4F H'!D69<5,'Tabel 4 H'!D69<0.5),"-",IFERROR('Tabel 4 H'!D69/'Tabel 4F H'!D69*100,"-")) -> 9.411764706 | E69: =IF(OR('Tabel 4F H'!E69<5,'Tabel 4 H'!E69<0.5),"-",IFERROR('Tabel 4 H'!E69/'Tabel 4F H'!E69*100,"-")) -> 3.773584906 | F69: =IF(OR('Tabel 4F H'!F69<5,'Tabel 4 H'!F69<0.5),"-",IFERROR('Tabel 4 H'!F69/'Tabel 4F H'!F69*100,"-")) -> 1.587301587 | G69: =IF(OR('Tabel 4F H'!G69<5,'Tabel 4 H'!G69<0.5),"-",IFERROR('Tabel 4 H'!G69/'Tabel 4F H'!G69*100,"-")) -> 3.571428571 | I69: =IF(OR('Tabel 4F H'!I69<5,'Tabel 4 H'!I69<0.5),"-",IFERROR('Tabel 4 H'!I69/'Tabel 4F H'!I69*100,"-")) -> 6.930693069
A70: Landsk. Arkt. | C70: =IF(OR('Tabel 4F H'!C70<5,'Tabel 4 H'!C70<0.5),"-",IFERROR('Tabel 4 H'!C70/'Tabel 4F H'!C70*100,"-")) -> 20 | D70: =IF(OR('Tabel 4F H'!D70<5,'Tabel 4 H'!D70<0.5),"-",IFERROR('Tabel 4 H'!D70/'Tabel 4F H'!D70*100,"-")) -> 5.555555556 | E70: =IF(OR('Tabel 4F H'!E70<5,'Tabel 4 H'!E70<0.5),"-",IFERROR('Tabel 4 H'!E70/'Tabel 4F H'!E70*100,"-")) -> 8.620689655 | F70: =IF(OR('Tabel 4F H'!F70<5,'Tabel 4 H'!F70<0.5),"-",IFERROR('Tabel 4 H'!F70/'Tabel 4F H'!F70*100,"-")) -> 3.333333333 | G70: =IF(OR('Tabel 4F H'!G70<5,'Tabel 4 H'!G70<0.5),"-",IFERROR('Tabel 4 H'!G70/'Tabel 4F H'!G70*100,"-")) -> - | I70: =IF(OR('Tabel 4F H'!I70<5,'Tabel 4 H'!I70<0.5),"-",IFERROR('Tabel 4 H'!I70/'Tabel 4F H'!I70*100,"-")) -> 7.8125
A71: Hortonom | C71: =IF(OR('Tabel 4F H'!C71<5,'Tabel 4 H'!C71<0.5),"-",IFERROR('Tabel 4 H'!C71/'Tabel 4F H'!C71*100,"-")) -> - | D71: =IF(OR('Tabel 4F H'!D71<5,'Tabel 4 H'!D71<0.5),"-",IFERROR('Tabel 4 H'!D71/'Tabel 4F H'!D71*100,"-")) -> - | E71: =IF(OR('Tabel 4F H'!E71<5,'Tabel 4 H'!E71<0.5),"-",IFERROR('Tabel 4 H'!E71/'Tabel 4F H'!E71*100,"-")) -> - | F71: =IF(OR('Tabel 4F H'!F71<5,'Tabel 4 H'!F71<0.5),"-",IFERROR('Tabel 4 H'!F71/'Tabel 4F H'!F71*100,"-")) -> - | G71: =IF(OR('Tabel 4F H'!G71<5,'Tabel 4 H'!G71<0.5),"-",IFERROR('Tabel 4 H'!G71/'Tabel 4F H'!G71*100,"-")) -> 11.11111111 | I71: =IF(OR('Tabel 4F H'!I71<5,'Tabel 4 H'!I71<0.5),"-",IFERROR('Tabel 4 H'!I71/'Tabel 4F H'!I71*100,"-")) -> 2.127659574
A72: Forstkand. | C72: =IF(OR('Tabel 4F H'!C72<5,'Tabel 4 H'!C72<0.5),"-",IFERROR('Tabel 4 H'!C72/'Tabel 4F H'!C72*100,"-")) -> 27.77777778 | D72: =IF(OR('Tabel 4F H'!D72<5,'Tabel 4 H'!D72<0.5),"-",IFERROR('Tabel 4 H'!D72/'Tabel 4F H'!D72*100,"-")) -> 3.846153846 | E72: =IF(OR('Tabel 4F H'!E72<5,'Tabel 4 H'!E72<0.5),"-",IFERROR('Tabel 4 H'!E72/'Tabel 4F H'!E72*100,"-")) -> 4.166666667 | F72: =IF(OR('Tabel 4F H'!F72<5,'Tabel 4 H'!F72<0.5),"-",IFERROR('Tabel 4 H'!F72/'Tabel 4F H'!F72*100,"-")) -> 5 | G72: =IF(OR('Tabel 4F H'!G72<5,'Tabel 4 H'!G72<0.5),"-",IFERROR('Tabel 4 H'!G72/'Tabel 4F H'!G72*100,"-")) -> - | I72: =IF(OR('Tabel 4F H'!I72<5,'Tabel 4 H'!I72<0.5),"-",IFERROR('Tabel 4 H'!I72/'Tabel 4F H'!I72*100,"-")) -> 8.791208791
A73: Jordbrugsakad. | C73: =IF(OR('Tabel 4F H'!C73<5,'Tabel 4 H'!C73<0.5),"-",IFERROR('Tabel 4 H'!C73/'Tabel 4F H'!C73*100,"-")) -> 16.53543307 | D73: =IF(OR('Tabel 4F H'!D73<5,'Tabel 4 H'!D73<0.5),"-",IFERROR('Tabel 4 H'!D73/'Tabel 4F H'!D73*100,"-")) -> 6.477732794 | E73: =IF(OR('Tabel 4F H'!E73<5,'Tabel 4 H'!E73<0.5),"-",IFERROR('Tabel 4 H'!E73/'Tabel 4F H'!E73*100,"-")) -> 5.405405405 | F73: =IF(OR('Tabel 4F H'!F73<5,'Tabel 4 H'!F73<0.5),"-",IFERROR('Tabel 4 H'!F73/'Tabel 4F H'!F73*100,"-")) -> 2.34375 | G73: =IF(OR('Tabel 4F H'!G73<5,'Tabel 4 H'!G73<0.5),"-",IFERROR('Tabel 4 H'!G73/'Tabel 4F H'!G73*100,"-")) -> 4.255319149 | I73: =IF(OR('Tabel 4F H'!I73<5,'Tabel 4 H'!I73<0.5),"-",IFERROR('Tabel 4 H'!I73/'Tabel 4F H'!I73*100,"-")) -> 7.173601148
A74: Mejeriing. | C74: =IF(OR('Tabel 4F H'!C74<5,'Tabel 4 H'!C74<0.5),"-",IFERROR('Tabel 4 H'!C74/'Tabel 4F H'!C74*100,"-")) -> 23.52941176 | D74: =IF(OR('Tabel 4F H'!D74<5,'Tabel 4 H'!D74<0.5),"-",IFERROR('Tabel 4 H'!D74/'Tabel 4F H'!D74*100,"-")) -> 22.22222222 | E74: =IF(OR('Tabel 4F H'!E74<5,'Tabel 4 H'!E74<0.5),"-",IFERROR('Tabel 4 H'!E74/'Tabel 4F H'!E74*100,"-")) -> - | F74: =IF(OR('Tabel 4F H'!F74<5,'Tabel 4 H'!F74<0.5),"-",IFERROR('Tabel 4 H'!F74/'Tabel 4F H'!F74*100,"-")) -> - | G74: =IF(OR('Tabel 4F H'!G74<5,'Tabel 4 H'!G74<0.5),"-",IFERROR('Tabel 4 H'!G74/'Tabel 4F H'!G74*100,"-")) -> - | I74: =IF(OR('Tabel 4F H'!I74<5,'Tabel 4 H'!I74<0.5),"-",IFERROR('Tabel 4 H'!I74/'Tabel 4F H'!I74*100,"-")) -> 16.94915254
A75: Levn.m.kand. | C75: =IF(OR('Tabel 4F H'!C75<5,'Tabel 4 H'!C75<0.5),"-",IFERROR('Tabel 4 H'!C75/'Tabel 4F H'!C75*100,"-")) -> 20.40816327 | D75: =IF(OR('Tabel 4F H'!D75<5,'Tabel 4 H'!D75<0.5),"-",IFERROR('Tabel 4 H'!D75/'Tabel 4F H'!D75*100,"-")) -> 6.976744186 | E75: =IF(OR('Tabel 4F H'!E75<5,'Tabel 4 H'!E75<0.5),"-",IFERROR('Tabel 4 H'!E75/'Tabel 4F H'!E75*100,"-")) -> 6.896551724 | F75: =IF(OR('Tabel 4F H'!F75<5,'Tabel 4 H'!F75<0.5),"-",IFERROR('Tabel 4 H'!F75/'Tabel 4F H'!F75*100,"-")) -> - | G75: =IF(OR('Tabel 4F H'!G75<5,'Tabel 4 H'!G75<0.5),"-",IFERROR('Tabel 4 H'!G75/'Tabel 4F H'!G75*100,"-")) -> - | I75: =IF(OR('Tabel 4F H'!I75<5,'Tabel 4 H'!I75<0.5),"-",IFERROR('Tabel 4 H'!I75/'Tabel 4F H'!I75*100,"-")) -> 10.77844311
A76: Dyrlæge | C76: =IF(OR('Tabel 4F H'!C76<5,'Tabel 4 H'!C76<0.5),"-",IFERROR('Tabel 4 H'!C76/'Tabel 4F H'!C76*100,"-")) -> 9.195402299 | D76: =IF(OR('Tabel 4F H'!D76<5,'Tabel 4 H'!D76<0.5),"-",IFERROR('Tabel 4 H'!D76/'Tabel 4F H'!D76*100,"-")) -> 6.504065041 | E76: =IF(OR('Tabel 4F H'!E76<5,'Tabel 4 H'!E76<0.5),"-",IFERROR('Tabel 4 H'!E76/'Tabel 4F H'!E76*100,"-")) -> 3.636363636 | F76: =IF(OR('Tabel 4F H'!F76<5,'Tabel 4 H'!F76<0.5),"-",IFERROR('Tabel 4 H'!F76/'Tabel 4F H'!F76*100,"-")) -> - | G76: =IF(OR('Tabel 4F H'!G76<5,'Tabel 4 H'!G76<0.5),"-",IFERROR('Tabel 4 H'!G76/'Tabel 4F H'!G76*100,"-")) -> - | I76: =IF(OR('Tabel 4F H'!I76<5,'Tabel 4 H'!I76<0.5),"-",IFERROR('Tabel 4 H'!I76/'Tabel 4F H'!I76*100,"-")) -> 5.555555556
A77: Farmaceut | C77: =IF(OR('Tabel 4F H'!C77<5,'Tabel 4 H'!C77<0.5),"-",IFERROR('Tabel 4 H'!C77/'Tabel 4F H'!C77*100,"-")) -> 8.630952381 | D77: =IF(OR('Tabel 4F H'!D77<5,'Tabel 4 H'!D77<0.5),"-",IFERROR('Tabel 4 H'!D77/'Tabel 4F H'!D77*100,"-")) -> 3.525046382 | E77: =IF(OR('Tabel 4F H'!E77<5,'Tabel 4 H'!E77<0.5),"-",IFERROR('Tabel 4 H'!E77/'Tabel 4F H'!E77*100,"-")) -> 2.678571429 | F77: =IF(OR('Tabel 4F H'!F77<5,'Tabel 4 H'!F77<0.5),"-",IFERROR('Tabel 4 H'!F77/'Tabel 4F H'!F77*100,"-")) -> 3.571428571 | G77: =IF(OR('Tabel 4F H'!G77<5,'Tabel 4 H'!G77<0.5),"-",IFERROR('Tabel 4 H'!G77/'Tabel 4F H'!G77*100,"-")) -> - | I77: =IF(OR('Tabel 4F H'!I77<5,'Tabel 4 H'!I77<0.5),"-",IFERROR('Tabel 4 H'!I77/'Tabel 4F H'!I77*100,"-")) -> 4.651162791
A78: Læge | C78: =IF(OR('Tabel 4F H'!C78<5,'Tabel 4 H'!C78<0.5),"-",IFERROR('Tabel 4 H'!C78/'Tabel 4F H'!C78*100,"-")) -> 2.895752896 | D78: =IF(OR('Tabel 4F H'!D78<5,'Tabel 4 H'!D78<0.5),"-",IFERROR('Tabel 4 H'!D78/'Tabel 4F H'!D78*100,"-")) -> 2.399380805 | E78: =IF(OR('Tabel 4F H'!E78<5,'Tabel 4 H'!E78<0.5),"-",IFERROR('Tabel 4 H'!E78/'Tabel 4F H'!E78*100,"-")) -> 0.7653061224 | F78: =IF(OR('Tabel 4F H'!F78<5,'Tabel 4 H'!F78<0.5),"-",IFERROR('Tabel 4 H'!F78/'Tabel 4F H'!F78*100,"-")) -> 0.5494505495 | G78: =IF(OR('Tabel 4F H'!G78<5,'Tabel 4 H'!G78<0.5),"-",IFERROR('Tabel 4 H'!G78/'Tabel 4F H'!G78*100,"-")) -> - | I78: =IF(OR('Tabel 4F H'!I78<5,'Tabel 4 H'!I78<0.5),"-",IFERROR('Tabel 4 H'!I78/'Tabel 4F H'!I78*100,"-")) -> 1.998401279
A79: Tandlæge | C79: =IF(OR('Tabel 4F H'!C79<5,'Tabel 4 H'!C79<0.5),"-",IFERROR('Tabel 4 H'!C79/'Tabel 4F H'!C79*100,"-")) -> 4.285714286 | D79: =IF(OR('Tabel 4F H'!D79<5,'Tabel 4 H'!D79<0.5),"-",IFERROR('Tabel 4 H'!D79/'Tabel 4F H'!D79*100,"-")) -> 0.7874015748 | E79: =IF(OR('Tabel 4F H'!E79<5,'Tabel 4 H'!E79<0.5),"-",IFERROR('Tabel 4 H'!E79/'Tabel 4F H'!E79*100,"-")) -> 6.12244898 | F79: =IF(OR('Tabel 4F H'!F79<5,'Tabel 4 H'!F79<0.5),"-",IFERROR('Tabel 4 H'!F79/'Tabel 4F H'!F79*100,"-")) -> - | G79: =IF(OR('Tabel 4F H'!G79<5,'Tabel 4 H'!G79<0.5),"-",IFERROR('Tabel 4 H'!G79/'Tabel 4F H'!G79*100,"-")) -> - | I79: =IF(OR('Tabel 4F H'!I79<5,'Tabel 4 H'!I79<0.5),"-",IFERROR('Tabel 4 H'!I79/'Tabel 4F H'!I79*100,"-")) -> 2.295081967
A80: Arkitekt | C80: =IF(OR('Tabel 4F H'!C80<5,'Tabel 4 H'!C80<0.5),"-",IFERROR('Tabel 4 H'!C80/'Tabel 4F H'!C80*100,"-")) -> 21.6080402 | D80: =IF(OR('Tabel 4F H'!D80<5,'Tabel 4 H'!D80<0.5),"-",IFERROR('Tabel 4 H'!D80/'Tabel 4F H'!D80*100,"-")) -> 7.692307692 | E80: =IF(OR('Tabel 4F H'!E80<5,'Tabel 4 H'!E80<0.5),"-",IFERROR('Tabel 4 H'!E80/'Tabel 4F H'!E80*100,"-")) -> 4.189944134 | F80: =IF(OR('Tabel 4F H'!F80<5,'Tabel 4 H'!F80<0.5),"-",IFERROR('Tabel 4 H'!F80/'Tabel 4F H'!F80*100,"-")) -> 4.569892473 | G80: =IF(OR('Tabel 4F H'!G80<5,'Tabel 4 H'!G80<0.5),"-",IFERROR('Tabel 4 H'!G80/'Tabel 4F H'!G80*100,"-")) -> 8.43373494 | I80: =IF(OR('Tabel 4F H'!I80<5,'Tabel 4 H'!I80<0.5),"-",IFERROR('Tabel 4 H'!I80/'Tabel 4F H'!I80*100,"-")) -> 7.350352113
A81: Landinspek. | C81: =IF(OR('Tabel 4F H'!C81<5,'Tabel 4 H'!C81<0.5),"-",IFERROR('Tabel 4 H'!C81/'Tabel 4F H'!C81*100,"-")) -> - | D81: =IF(OR('Tabel 4F H'!D81<5,'Tabel 4 H'!D81<0.5),"-",IFERROR('Tabel 4 H'!D81/'Tabel 4F H'!D81*100,"-")) -> 4 | E81: =IF(OR('Tabel 4F H'!E81<5,'Tabel 4 H'!E81<0.5),"-",IFERROR('Tabel 4 H'!E81/'Tabel 4F H'!E81*100,"-")) -> 8.333333333 | F81: =IF(OR('Tabel 4F H'!F81<5,'Tabel 4 H'!F81<0.5),"-",IFERROR('Tabel 4 H'!F81/'Tabel 4F H'!F81*100,"-")) -> - | G81: =IF(OR('Tabel 4F H'!G81<5,'Tabel 4 H'!G81<0.5),"-",IFERROR('Tabel 4 H'!G81/'Tabel 4F H'!G81*100,"-")) -> - | I81: =IF(OR('Tabel 4F H'!I81<5,'Tabel 4 H'!I81<0.5),"-",IFERROR('Tabel 4 H'!I81/'Tabel 4F H'!I81*100,"-")) -> 5.357142857
A82: Bibliotekar | C82: =IF(OR('Tabel 4F H'!C82<5,'Tabel 4 H'!C82<0.5),"-",IFERROR('Tabel 4 H'!C82/'Tabel 4F H'!C82*100,"-")) -> 23.07692308 | D82: =IF(OR('Tabel 4F H'!D82<5,'Tabel 4 H'!D82<0.5),"-",IFERROR('Tabel 4 H'!D82/'Tabel 4F H'!D82*100,"-")) -> 8.095238095 | E82: =IF(OR('Tabel 4F H'!E82<5,'Tabel 4 H'!E82<0.5),"-",IFERROR('Tabel 4 H'!E82/'Tabel 4F H'!E82*100,"-")) -> 5.859375 | F82: =IF(OR('Tabel 4F H'!F82<5,'Tabel 4 H'!F82<0.5),"-",IFERROR('Tabel 4 H'!F82/'Tabel 4F H'!F82*100,"-")) -> 6.358381503 | G82: =IF(OR('Tabel 4F H'!G82<5,'Tabel 4 H'!G82<0.5),"-",IFERROR('Tabel 4 H'!G82/'Tabel 4F H'!G82*100,"-")) -> 3.921568627 | I82: =IF(OR('Tabel 4F H'!I82<5,'Tabel 4 H'!I82<0.5),"-",IFERROR('Tabel 4 H'!I82/'Tabel 4F H'!I82*100,"-")) -> 7.179487179
A83: Musikudd. | C83: =IF(OR('Tabel 4F H'!C83<5,'Tabel 4 H'!C83<0.5),"-",IFERROR('Tabel 4 H'!C83/'Tabel 4F H'!C83*100,"-")) -> 40 | D83: =IF(OR('Tabel 4F H'!D83<5,'Tabel 4 H'!D83<0.5),"-",IFERROR('Tabel 4 H'!D83/'Tabel 4F H'!D83*100,"-")) -> 23.80952381 | E83: =IF(OR('Tabel 4F H'!E83<5,'Tabel 4 H'!E83<0.5),"-",IFERROR('Tabel 4 H'!E83/'Tabel 4F H'!E83*100,"-")) -> 7.317073171 | F83: =IF(OR('Tabel 4F H'!F83<5,'Tabel 4 H'!F83<0.5),"-",IFERROR('Tabel 4 H'!F83/'Tabel 4F H'!F83*100,"-")) -> 7.272727273 | G83: =IF(OR('Tabel 4F H'!G83<5,'Tabel 4 H'!G83<0.5),"-",IFERROR('Tabel 4 H'!G83/'Tabel 4F H'!G83*100,"-")) -> 3.846153846 | I83: =IF(OR('Tabel 4F H'!I83<5,'Tabel 4 H'!I83<0.5),"-",IFERROR('Tabel 4 H'!I83/'Tabel 4F H'!I83*100,"-")) -> 10.13513514
A84: Teolog | C84: =IF(OR('Tabel 4F H'!C84<5,'Tabel 4 H'!C84<0.5),"-",IFERROR('Tabel 4 H'!C84/'Tabel 4F H'!C84*100,"-")) -> 9.090909091 | D84: =IF(OR('Tabel 4F H'!D84<5,'Tabel 4 H'!D84<0.5),"-",IFERROR('Tabel 4 H'!D84/'Tabel 4F H'!D84*100,"-")) -> 12.90322581 | E84: =IF(OR('Tabel 4F H'!E84<5,'Tabel 4 H'!E84<0.5),"-",IFERROR('Tabel 4 H'!E84/'Tabel 4F H'!E84*100,"-")) -> 4.761904762 | F84: =IF(OR('Tabel 4F H'!F84<5,'Tabel 4 H'!F84<0.5),"-",IFERROR('Tabel 4 H'!F84/'Tabel 4F H'!F84*100,"-")) -> 7.575757576 | G84: =IF(OR('Tabel 4F H'!G84<5,'Tabel 4 H'!G84<0.5),"-",IFERROR('Tabel 4 H'!G84/'Tabel 4F H'!G84*100,"-")) -> - | I84: =IF(OR('Tabel 4F H'!I84<5,'Tabel 4 H'!I84<0.5),"-",IFERROR('Tabel 4 H'!I84/'Tabel 4F H'!I84*100,"-")) -> 7.03125
A85: Psykolog | C85: =IF(OR('Tabel 4F H'!C85<5,'Tabel 4 H'!C85<0.5),"-",IFERROR('Tabel 4 H'!C85/'Tabel 4F H'!C85*100,"-")) -> 7.673860911 | D85: =IF(OR('Tabel 4F H'!D85<5,'Tabel 4 H'!D85<0.5),"-",IFERROR('Tabel 4 H'!D85/'Tabel 4F H'!D85*100,"-")) -> 3.775743707 | E85: =IF(OR('Tabel 4F H'!E85<5,'Tabel 4 H'!E85<0.5),"-",IFERROR('Tabel 4 H'!E85/'Tabel 4F H'!E85*100,"-")) -> 3.409090909 | F85: =IF(OR('Tabel 4F H'!F85<5,'Tabel 4 H'!F85<0.5),"-",IFERROR('Tabel 4 H'!F85/'Tabel 4F H'!F85*100,"-")) -> 2.049180328 | G85: =IF(OR('Tabel 4F H'!G85<5,'Tabel 4 H'!G85<0.5),"-",IFERROR('Tabel 4 H'!G85/'Tabel 4F H'!G85*100,"-")) -> 2.803738318 | I85: =IF(OR('Tabel 4F H'!I85<5,'Tabel 4 H'!I85<0.5),"-",IFERROR('Tabel 4 H'!I85/'Tabel 4F H'!I85*100,"-")) -> 4.226705091
A86: Jurist | C86: =IF(OR('Tabel 4F H'!C86<5,'Tabel 4 H'!C86<0.5),"-",IFERROR('Tabel 4 H'!C86/'Tabel 4F H'!C86*100,"-")) -> 2.985074627 | D86: =IF(OR('Tabel 4F H'!D86<5,'Tabel 4 H'!D86<0.5),"-",IFERROR('Tabel 4 H'!D86/'Tabel 4F H'!D86*100,"-")) -> 1.799007444 | E86: =IF(OR('Tabel 4F H'!E86<5,'Tabel 4 H'!E86<0.5),"-",IFERROR('Tabel 4 H'!E86/'Tabel 4F H'!E86*100,"-")) -> 0.8602150538 | F86: =IF(OR('Tabel 4F H'!F86<5,'Tabel 4 H'!F86<0.5),"-",IFERROR('Tabel 4 H'!F86/'Tabel 4F H'!F86*100,"-")) -> 0.7054673721 | G86: =IF(OR('Tabel 4F H'!G86<5,'Tabel 4 H'!G86<0.5),"-",IFERROR('Tabel 4 H'!G86/'Tabel 4F H'!G86*100,"-")) -> 5.421686747 | I86: =IF(OR('Tabel 4F H'!I86<5,'Tabel 4 H'!I86<0.5),"-",IFERROR('Tabel 4 H'!I86/'Tabel 4F H'!I86*100,"-")) -> 1.919214461
A87: Økonom | C87: =IF(OR('Tabel 4F H'!C87<5,'Tabel 4 H'!C87<0.5),"-",IFERROR('Tabel 4 H'!C87/'Tabel 4F H'!C87*100,"-")) -> 6.469002695 | D87: =IF(OR('Tabel 4F H'!D87<5,'Tabel 4 H'!D87<0.5),"-",IFERROR('Tabel 4 H'!D87/'Tabel 4F H'!D87*100,"-")) -> 2.147239264 | E87: =IF(OR('Tabel 4F H'!E87<5,'Tabel 4 H'!E87<0.5),"-",IFERROR('Tabel 4 H'!E87/'Tabel 4F H'!E87*100,"-")) -> 1.931330472 | F87: =IF(OR('Tabel 4F H'!F87<5,'Tabel 4 H'!F87<0.5),"-",IFERROR('Tabel 4 H'!F87/'Tabel 4F H'!F87*100,"-")) -> 2.040816327 | G87: =IF(OR('Tabel 4F H'!G87<5,'Tabel 4 H'!G87<0.5),"-",IFERROR('Tabel 4 H'!G87/'Tabel 4F H'!G87*100,"-")) -> 12.22222222 | I87: =IF(OR('Tabel 4F H'!I87<5,'Tabel 4 H'!I87<0.5),"-",IFERROR('Tabel 4 H'!I87/'Tabel 4F H'!I87*100,"-")) -> 3.635682159
A88: Samf. Adm. | C88: =IF(OR('Tabel 4F H'!C88<5,'Tabel 4 H'!C88<0.5),"-",IFERROR('Tabel 4 H'!C88/'Tabel 4F H'!C88*100,"-")) -> 12.50648677 | D88: =IF(OR('Tabel 4F H'!D88<5,'Tabel 4 H'!D88<0.5),"-",IFERROR('Tabel 4 H'!D88/'Tabel 4F H'!D88*100,"-")) -> 5.137211855 | E88: =IF(OR('Tabel 4F H'!E88<5,'Tabel 4 H'!E88<0.5),"-",IFERROR('Tabel 4 H'!E88/'Tabel 4F H'!E88*100,"-")) -> 4.177323103 | F88: =IF(OR('Tabel 4F H'!F88<5,'Tabel 4 H'!F88<0.5),"-",IFERROR('Tabel 4 H'!F88/'Tabel 4F H'!F88*100,"-")) -> 3.96039604 | G88: =IF(OR('Tabel 4F H'!G88<5,'Tabel 4 H'!G88<0.5),"-",IFERROR('Tabel 4 H'!G88/'Tabel 4F H'!G88*100,"-")) -> 5.472636816 | I88: =IF(OR('Tabel 4F H'!I88<5,'Tabel 4 H'!I88<0.5),"-",IFERROR('Tabel 4 H'!I88/'Tabel 4F H'!I88*100,"-")) -> 6.215758542
A89: Cand. Merc. | C89: =IF(OR('Tabel 4F H'!C89<5,'Tabel 4 H'!C89<0.5),"-",IFERROR('Tabel 4 H'!C89/'Tabel 4F H'!C89*100,"-")) -> 6.575757576 | D89: =IF(OR('Tabel 4F H'!D89<5,'Tabel 4 H'!D89<0.5),"-",IFERROR('Tabel 4 H'!D89/'Tabel 4F H'!D89*100,"-")) -> 4.137931034 | E89: =IF(OR('Tabel 4F H'!E89<5,'Tabel 4 H'!E89<0.5),"-",IFERROR('Tabel 4 H'!E89/'Tabel 4F H'!E89*100,"-")) -> 4.949784792 | F89: =IF(OR('Tabel 4F H'!F89<5,'Tabel 4 H'!F89<0.5),"-",IFERROR('Tabel 4 H'!F89/'Tabel 4F H'!F89*100,"-")) -> 4.160887656 | G89: =IF(OR('Tabel 4F H'!G89<5,'Tabel 4 H'!G89<0.5),"-",IFERROR('Tabel 4 H'!G89/'Tabel 4F H'!G89*100,"-")) -> 11.45833333 | I89: =IF(OR('Tabel 4F H'!I89<5,'Tabel 4 H'!I89<0.5),"-",IFERROR('Tabel 4 H'!I89/'Tabel 4F H'!I89*100,"-")) -> 5.126923846
A90: HA | C90: =IF(OR('Tabel 4F H'!C90<5,'Tabel 4 H'!C90<0.5),"-",IFERROR('Tabel 4 H'!C90/'Tabel 4F H'!C90*100,"-")) -> 14.32098765 | D90: =IF(OR('Tabel 4F H'!D90<5,'Tabel 4 H'!D90<0.5),"-",IFERROR('Tabel 4 H'!D90/'Tabel 4F H'!D90*100,"-")) -> 7.374631268 | E90: =IF(OR('Tabel 4F H'!E90<5,'Tabel 4 H'!E90<0.5),"-",IFERROR('Tabel 4 H'!E90/'Tabel 4F H'!E90*100,"-")) -> 4.615384615 | F90: =IF(OR('Tabel 4F H'!F90<5,'Tabel 4 H'!F90<0.5),"-",IFERROR('Tabel 4 H'!F90/'Tabel 4F H'!F90*100,"-")) -> 4.022988506 | G90: =IF(OR('Tabel 4F H'!G90<5,'Tabel 4 H'!G90<0.5),"-",IFERROR('Tabel 4 H'!G90/'Tabel 4F H'!G90*100,"-")) -> 6.666666667 | I90: =IF(OR('Tabel 4F H'!I90<5,'Tabel 4 H'!I90<0.5),"-",IFERROR('Tabel 4 H'!I90/'Tabel 4F H'!I90*100,"-")) -> 9.057639524
A91: HD | C91: =IF(OR('Tabel 4F H'!C91<5,'Tabel 4 H'!C91<0.5),"-",IFERROR('Tabel 4 H'!C91/'Tabel 4F H'!C91*100,"-")) -> 13.83495146 | D91: =IF(OR('Tabel 4F H'!D91<5,'Tabel 4 H'!D91<0.5),"-",IFERROR('Tabel 4 H'!D91/'Tabel 4F H'!D91*100,"-")) -> 10.23017903 | E91: =IF(OR('Tabel 4F H'!E91<5,'Tabel 4 H'!E91<0.5),"-",IFERROR('Tabel 4 H'!E91/'Tabel 4F H'!E91*100,"-")) -> 5.617977528 | F91: =IF(OR('Tabel 4F H'!F91<5,'Tabel 4 H'!F91<0.5),"-",IFERROR('Tabel 4 H'!F91/'Tabel 4F H'!F91*100,"-")) -> 4.054054054 | G91: =IF(OR('Tabel 4F H'!G91<5,'Tabel 4 H'!G91<0.5),"-",IFERROR('Tabel 4 H'!G91/'Tabel 4F H'!G91*100,"-")) -> 8 | I91: =IF(OR('Tabel 4F H'!I91<5,'Tabel 4 H'!I91<0.5),"-",IFERROR('Tabel 4 H'!I91/'Tabel 4F H'!I91*100,"-")) -> 10.27522936
A92: Komm. og Sprog | C92: =IF(OR('Tabel 4F H'!C92<5,'Tabel 4 H'!C92<0.5),"-",IFERROR('Tabel 4 H'!C92/'Tabel 4F H'!C92*100,"-")) -> 15.01210654 | D92: =IF(OR('Tabel 4F H'!D92<5,'Tabel 4 H'!D92<0.5),"-",IFERROR('Tabel 4 H'!D92/'Tabel 4F H'!D92*100,"-")) -> 7.132243685 | E92: =IF(OR('Tabel 4F H'!E92<5,'Tabel 4 H'!E92<0.5),"-",IFERROR('Tabel 4 H'!E92/'Tabel 4F H'!E92*100,"-")) -> 8.913043478 | F92: =IF(OR('Tabel 4F H'!F92<5,'Tabel 4 H'!F92<0.5),"-",IFERROR('Tabel 4 H'!F92/'Tabel 4F H'!F92*100,"-")) -> 6.276150628 | G92: =IF(OR('Tabel 4F H'!G92<5,'Tabel 4 H'!G92<0.5),"-",IFERROR('Tabel 4 H'!G92/'Tabel 4F H'!G92*100,"-")) -> 10.66666667 | I92: =IF(OR('Tabel 4F H'!I92<5,'Tabel 4 H'!I92<0.5),"-",IFERROR('Tabel 4 H'!I92/'Tabel 4F H'!I92*100,"-")) -> 9.35483871
A93: Bygningskonst. | C93: =IF(OR('Tabel 4F H'!C93<5,'Tabel 4 H'!C93<0.5),"-",IFERROR('Tabel 4 H'!C93/'Tabel 4F H'!C93*100,"-")) -> 16.66666667 | D93: =IF(OR('Tabel 4F H'!D93<5,'Tabel 4 H'!D93<0.5),"-",IFERROR('Tabel 4 H'!D93/'Tabel 4F H'!D93*100,"-")) -> 4.489795918 | E93: =IF(OR('Tabel 4F H'!E93<5,'Tabel 4 H'!E93<0.5),"-",IFERROR('Tabel 4 H'!E93/'Tabel 4F H'!E93*100,"-")) -> 3.196347032 | F93: =IF(OR('Tabel 4F H'!F93<5,'Tabel 4 H'!F93<0.5),"-",IFERROR('Tabel 4 H'!F93/'Tabel 4F H'!F93*100,"-")) -> 5.050505051 | G93: =IF(OR('Tabel 4F H'!G93<5,'Tabel 4 H'!G93<0.5),"-",IFERROR('Tabel 4 H'!G93/'Tabel 4F H'!G93*100,"-")) -> - | I93: =IF(OR('Tabel 4F H'!I93<5,'Tabel 4 H'!I93<0.5),"-",IFERROR('Tabel 4 H'!I93/'Tabel 4F H'!I93*100,"-")) -> 7.220216606
A94: Cand. IT. | C94: =IF(OR('Tabel 4F H'!C94<5,'Tabel 4 H'!C94<0.5),"-",IFERROR('Tabel 4 H'!C94/'Tabel 4F H'!C94*100,"-")) -> 8.817204301 | D94: =IF(OR('Tabel 4F H'!D94<5,'Tabel 4 H'!D94<0.5),"-",IFERROR('Tabel 4 H'!D94/'Tabel 4F H'!D94*100,"-")) -> 5.380116959 | E94: =IF(OR('Tabel 4F H'!E94<5,'Tabel 4 H'!E94<0.5),"-",IFERROR('Tabel 4 H'!E94/'Tabel 4F H'!E94*100,"-")) -> 3.823529412 | F94: =IF(OR('Tabel 4F H'!F94<5,'Tabel 4 H'!F94<0.5),"-",IFERROR('Tabel 4 H'!F94/'Tabel 4F H'!F94*100,"-")) -> 6.666666667 | G94: =IF(OR('Tabel 4F H'!G94<5,'Tabel 4 H'!G94<0.5),"-",IFERROR('Tabel 4 H'!G94/'Tabel 4F H'!G94*100,"-")) -> - | I94: =IF(OR('Tabel 4F H'!I94<5,'Tabel 4 H'!I94<0.5),"-",IFERROR('Tabel 4 H'!I94/'Tabel 4F H'!I94*100,"-")) -> 6.023391813
A95: Bac. Samf. | C95: =IF(OR('Tabel 4F H'!C95<5,'Tabel 4 H'!C95<0.5),"-",IFERROR('Tabel 4 H'!C95/'Tabel 4F H'!C95*100,"-")) -> 22.46376812 | D95: =IF(OR('Tabel 4F H'!D95<5,'Tabel 4 H'!D95<0.5),"-",IFERROR('Tabel 4 H'!D95/'Tabel 4F H'!D95*100,"-")) -> 5.839416058 | E95: =IF(OR('Tabel 4F H'!E95<5,'Tabel 4 H'!E95<0.5),"-",IFERROR('Tabel 4 H'!E95/'Tabel 4F H'!E95*100,"-")) -> 5.357142857 | F95: =IF(OR('Tabel 4F H'!F95<5,'Tabel 4 H'!F95<0.5),"-",IFERROR('Tabel 4 H'!F95/'Tabel 4F H'!F95*100,"-")) -> 4.651162791 | G95: =IF(OR('Tabel 4F H'!G95<5,'Tabel 4 H'!G95<0.5),"-",IFERROR('Tabel 4 H'!G95/'Tabel 4F H'!G95*100,"-")) -> - | I95: =IF(OR('Tabel 4F H'!I95<5,'Tabel 4 H'!I95<0.5),"-",IFERROR('Tabel 4 H'!I95/'Tabel 4F H'!I95*100,"-")) -> 10.1659751
A96: Bac. Hum. | C96: =IF(OR('Tabel 4F H'!C96<5,'Tabel 4 H'!C96<0.5),"-",IFERROR('Tabel 4 H'!C96/'Tabel 4F H'!C96*100,"-")) -> 25.82582583 | D96: =IF(OR('Tabel 4F H'!D96<5,'Tabel 4 H'!D96<0.5),"-",IFERROR('Tabel 4 H'!D96/'Tabel 4F H'!D96*100,"-")) -> 13.22580645 | E96: =IF(OR('Tabel 4F H'!E96<5,'Tabel 4 H'!E96<0.5),"-",IFERROR('Tabel 4 H'!E96/'Tabel 4F H'!E96*100,"-")) -> 8.252427184 | F96: =IF(OR('Tabel 4F H'!F96<5,'Tabel 4 H'!F96<0.5),"-",IFERROR('Tabel 4 H'!F96/'Tabel 4F H'!F96*100,"-")) -> 6.282722513 | G96: =IF(OR('Tabel 4F H'!G96<5,'Tabel 4 H'!G96<0.5),"-",IFERROR('Tabel 4 H'!G96/'Tabel 4F H'!G96*100,"-")) -> 14.03508772 | I96: =IF(OR('Tabel 4F H'!I96<5,'Tabel 4 H'!I96<0.5),"-",IFERROR('Tabel 4 H'!I96/'Tabel 4F H'!I96*100,"-")) -> 17.48251748
A97: Bac. Nat. | C97: =IF(OR('Tabel 4F H'!C97<5,'Tabel 4 H'!C97<0.5),"-",IFERROR('Tabel 4 H'!C97/'Tabel 4F H'!C97*100,"-")) -> 22.70531401 | D97: =IF(OR('Tabel 4F H'!D97<5,'Tabel 4 H'!D97<0.5),"-",IFERROR('Tabel 4 H'!D97/'Tabel 4F H'!D97*100,"-")) -> 7.598784195 | E97: =IF(OR('Tabel 4F H'!E97<5,'Tabel 4 H'!E97<0.5),"-",IFERROR('Tabel 4 H'!E97/'Tabel 4F H'!E97*100,"-")) -> 6.818181818 | F97: =IF(OR('Tabel 4F H'!F97<5,'Tabel 4 H'!F97<0.5),"-",IFERROR('Tabel 4 H'!F97/'Tabel 4F H'!F97*100,"-")) -> 8.108108108 | G97: =IF(OR('Tabel 4F H'!G97<5,'Tabel 4 H'!G97<0.5),"-",IFERROR('Tabel 4 H'!G97/'Tabel 4F H'!G97*100,"-")) -> 14.28571429 | I97: =IF(OR('Tabel 4F H'!I97<5,'Tabel 4 H'!I97<0.5),"-",IFERROR('Tabel 4 H'!I97/'Tabel 4F H'!I97*100,"-")) -> 14.74285714
A98: Andre | C98: =IF(OR('Tabel 4F H'!C98<5,'Tabel 4 H'!C98<0.5),"-",IFERROR('Tabel 4 H'!C98/'Tabel 4F H'!C98*100,"-")) -> 13.45980126 | D98: =IF(OR('Tabel 4F H'!D98<5,'Tabel 4 H'!D98<0.5),"-",IFERROR('Tabel 4 H'!D98/'Tabel 4F H'!D98*100,"-")) -> 8.647798742 | E98: =IF(OR('Tabel 4F H'!E98<5,'Tabel 4 H'!E98<0.5),"-",IFERROR('Tabel 4 H'!E98/'Tabel 4F H'!E98*100,"-")) -> 7.354555434 | F98: =IF(OR('Tabel 4F H'!F98<5,'Tabel 4 H'!F98<0.5),"-",IFERROR('Tabel 4 H'!F98/'Tabel 4F H'!F98*100,"-")) -> 9.793253536 | G98: =IF(OR('Tabel 4F H'!G98<5,'Tabel 4 H'!G98<0.5),"-",IFERROR('Tabel 4 H'!G98/'Tabel 4F H'!G98*100,"-")) -> 14.02439024 | I98: =IF(OR('Tabel 4F H'!I98<5,'Tabel 4 H'!I98<0.5),"-",IFERROR('Tabel 4 H'!I98/'Tabel 4F H'!I98*100,"-")) -> 9.434475258
A100: Total | C100: =IF(OR('Tabel 4F H'!C100<5,'Tabel 4 H'!C100<0.5),"-",IFERROR('Tabel 4 H'!C100/'Tabel 4F H'!C100*100,"-")) -> 12.86282885 | D100: =IF(OR('Tabel 4F H'!D100<5,'Tabel 4 H'!D100<0.5),"-",IFERROR('Tabel 4 H'!D100/'Tabel 4F H'!D100*100,"-")) -> 6.367720286 | E100: =IF(OR('Tabel 4F H'!E100<5,'Tabel 4 H'!E100<0.5),"-",IFERROR('Tabel 4 H'!E100/'Tabel 4F H'!E100*100,"-")) -> 4.681777164 | F100: =IF(OR('Tabel 4F H'!F100<5,'Tabel 4 H'!F100<0.5),"-",IFERROR('Tabel 4 H'!F100/'Tabel 4F H'!F100*100,"-")) -> 4.618357488 | G100: =IF(OR('Tabel 4F H'!G100<5,'Tabel 4 H'!G100<0.5),"-",IFERROR('Tabel 4 H'!G100/'Tabel 4F H'!G100*100,"-")) -> 6.786616162 | I100: =IF(OR('Tabel 4F H'!I100<5,'Tabel 4 H'!I100<0.5),"-",IFERROR('Tabel 4 H'!I100/'Tabel 4F H'!I100*100,"-")) -> 7.316123722
A102: Ingeniører i alt | C102: =IF(OR('Tabel 4F H'!C102<5,'Tabel 4 H'!C102<0.5),"-",IFERROR('Tabel 4 H'!C102/'Tabel 4F H'!C102*100,"-")) -> 9.507883421 | D102: =IF(OR('Tabel 4F H'!D102<5,'Tabel 4 H'!D102<0.5),"-",IFERROR('Tabel 4 H'!D102/'Tabel 4F H'!D102*100,"-")) -> 3.888888889 | E102: =IF(OR('Tabel 4F H'!E102<5,'Tabel 4 H'!E102<0.5),"-",IFERROR('Tabel 4 H'!E102/'Tabel 4F H'!E102*100,"-")) -> 2.722631877 | F102: =IF(OR('Tabel 4F H'!F102<5,'Tabel 4 H'!F102<0.5),"-",IFERROR('Tabel 4 H'!F102/'Tabel 4F H'!F102*100,"-")) -> 3.18877551 | G102: =IF(OR('Tabel 4F H'!G102<5,'Tabel 4 H'!G102<0.5),"-",IFERROR('Tabel 4 H'!G102/'Tabel 4F H'!G102*100,"-")) -> 3.815261044 | I102: =IF(OR('Tabel 4F H'!I102<5,'Tabel 4 H'!I102<0.5),"-",IFERROR('Tabel 4 H'!I102/'Tabel 4F H'!I102*100,"-")) -> 4.806251338
A103: Magistre i alt | C103: =IF(OR('Tabel 4F H'!C103<5,'Tabel 4 H'!C103<0.5),"-",IFERROR('Tabel 4 H'!C103/'Tabel 4F H'!C103*100,"-")) -> 23.16419792 | D103: =IF(OR('Tabel 4F H'!D103<5,'Tabel 4 H'!D103<0.5),"-",IFERROR('Tabel 4 H'!D103/'Tabel 4F H'!D103*100,"-")) -> 10.34347656 | E103: =IF(OR('Tabel 4F H'!E103<5,'Tabel 4 H'!E103<0.5),"-",IFERROR('Tabel 4 H'!E103/'Tabel 4F H'!E103*100,"-")) -> 5.616514785 | F103: =IF(OR('Tabel 4F H'!F103<5,'Tabel 4 H'!F103<0.5),"-",IFERROR('Tabel 4 H'!F103/'Tabel 4F H'!F103*100,"-")) -> 5.5859375 | G103: =IF(OR('Tabel 4F H'!G103<5,'Tabel 4 H'!G103<0.5),"-",IFERROR('Tabel 4 H'!G103/'Tabel 4F H'!G103*100,"-")) -> 7.125 | I103: =IF(OR('Tabel 4F H'!I103<5,'Tabel 4 H'!I103<0.5),"-",IFERROR('Tabel 4 H'!I103/'Tabel 4F H'!I103*100,"-")) -> 10.36949967
A104: DJØF'ere i alt | C104: =IF(OR('Tabel 4F H'!C104<5,'Tabel 4 H'!C104<0.5),"-",IFERROR('Tabel 4 H'!C104/'Tabel 4F H'!C104*100,"-")) -> 7.915567282 | D104: =IF(OR('Tabel 4F H'!D104<5,'Tabel 4 H'!D104<0.5),"-",IFERROR('Tabel 4 H'!D104/'Tabel 4F H'!D104*100,"-")) -> 4.132231405 | E104: =IF(OR('Tabel 4F H'!E104<5,'Tabel 4 H'!E104<0.5),"-",IFERROR('Tabel 4 H'!E104/'Tabel 4F H'!E104*100,"-")) -> 3.608051652 | F104: =IF(OR('Tabel 4F H'!F104<5,'Tabel 4 H'!F104<0.5),"-",IFERROR('Tabel 4 H'!F104/'Tabel 4F H'!F104*100,"-")) -> 3.107541899 | G104: =IF(OR('Tabel 4F H'!G104<5,'Tabel 4 H'!G104<0.5),"-",IFERROR('Tabel 4 H'!G104/'Tabel 4F H'!G104*100,"-")) -> 7.525083612 | I104: =IF(OR('Tabel 4F H'!I104<5,'Tabel 4 H'!I104<0.5),"-",IFERROR('Tabel 4 H'!I104/'Tabel 4F H'!I104*100,"-")) -> 5.016438647
A111: Frederiksberg
C113: Under 30 år | D113: 30 - 39 år | E113: 40 - 49 år | F113: 50 - 59 år | G113: Over 60 år | I113: I alt
A115: Civ. ing. | C115: =IF(OR('Tabel 4F H'!C115<5,'Tabel 4 H'!C115<0.5),"-",IFERROR('Tabel 4 H'!C115/'Tabel 4F H'!C115*100,"-")) -> 3.255813953 | D115: =IF(OR('Tabel 4F H'!D115<5,'Tabel 4 H'!D115<0.5),"-",IFERROR('Tabel 4 H'!D115/'Tabel 4F H'!D115*100,"-")) -> 3.286384977 | E115: =IF(OR('Tabel 4F H'!E115<5,'Tabel 4 H'!E115<0.5),"-",IFERROR('Tabel 4 H'!E115/'Tabel 4F H'!E115*100,"-")) -> 0.4651162791 | F115: =IF(OR('Tabel 4F H'!F115<5,'Tabel 4 H'!F115<0.5),"-",IFERROR('Tabel 4 H'!F115/'Tabel 4F H'!F115*100,"-")) -> 2.604166667 | G115: =IF(OR('Tabel 4F H'!G115<5,'Tabel 4 H'!G115<0.5),"-",IFERROR('Tabel 4 H'!G115/'Tabel 4F H'!G115*100,"-")) -> 4.6875 | I115: =IF(OR('Tabel 4F H'!I115<5,'Tabel 4 H'!I115<0.5),"-",IFERROR('Tabel 4 H'!I115/'Tabel 4F H'!I115*100,"-")) -> 2.697841727
A116: Diplom ing. | C116: =IF(OR('Tabel 4F H'!C116<5,'Tabel 4 H'!C116<0.5),"-",IFERROR('Tabel 4 H'!C116/'Tabel 4F H'!C116*100,"-")) -> 6.153846154 | D116: =IF(OR('Tabel 4F H'!D116<5,'Tabel 4 H'!D116<0.5),"-",IFERROR('Tabel 4 H'!D116/'Tabel 4F H'!D116*100,"-")) -> 1.680672269 | E116: =IF(OR('Tabel 4F H'!E116<5,'Tabel 4 H'!E116<0.5),"-",IFERROR('Tabel 4 H'!E116/'Tabel 4F H'!E116*100,"-")) -> 4.237288136 | F116: =IF(OR('Tabel 4F H'!F116<5,'Tabel 4 H'!F116<0.5),"-",IFERROR('Tabel 4 H'!F116/'Tabel 4F H'!F116*100,"-")) -> 1.951219512 | G116: =IF(OR('Tabel 4F H'!G116<5,'Tabel 4 H'!G116<0.5),"-",IFERROR('Tabel 4 H'!G116/'Tabel 4F H'!G116*100,"-")) -> 7.575757576 | I116: =IF(OR('Tabel 4F H'!I116<5,'Tabel 4 H'!I116<0.5),"-",IFERROR('Tabel 4 H'!I116/'Tabel 4F H'!I116*100,"-")) -> 3.490401396
A117: Cand. Scient. Tek | C117: =IF(OR('Tabel 4F H'!C117<5,'Tabel 4 H'!C117<0.5),"-",IFERROR('Tabel 4 H'!C117/'Tabel 4F H'!C117*100,"-")) -> 8.018867925 | D117: =IF(OR('Tabel 4F H'!D117<5,'Tabel 4 H'!D117<0.5),"-",IFERROR('Tabel 4 H'!D117/'Tabel 4F H'!D117*100,"-")) -> 4.708520179 | E117: =IF(OR('Tabel 4F H'!E117<5,'Tabel 4 H'!E117<0.5),"-",IFERROR('Tabel 4 H'!E117/'Tabel 4F H'!E117*100,"-")) -> 8.064516129 | F117: =IF(OR('Tabel 4F H'!F117<5,'Tabel 4 H'!F117<0.5),"-",IFERROR('Tabel 4 H'!F117/'Tabel 4F H'!F117*100,"-")) -> 3.333333333 | G117: =IF(OR('Tabel 4F H'!G117<5,'Tabel 4 H'!G117<0.5),"-",IFERROR('Tabel 4 H'!G117/'Tabel 4F H'!G117*100,"-")) -> - | I117: =IF(OR('Tabel 4F H'!I117<5,'Tabel 4 H'!I117<0.5),"-",IFERROR('Tabel 4 H'!I117/'Tabel 4F H'!I117*100,"-")) -> 6.004901961
A118: MA. Hum. | C118: =IF(OR('Tabel 4F H'!C118<5,'Tabel 4 H'!C118<0.5),"-",IFERROR('Tabel 4 H'!C118/'Tabel 4F H'!C118*100,"-")) -> 25 | D118: =IF(OR('Tabel 4F H'!D118<5,'Tabel 4 H'!D118<0.5),"-",IFERROR('Tabel 4 H'!D118/'Tabel 4F H'!D118*100,"-")) -> 11.01083032 | E118: =IF(OR('Tabel 4F H'!E118<5,'Tabel 4 H'!E118<0.5),"-",IFERROR('Tabel 4 H'!E118/'Tabel 4F H'!E118*100,"-")) -> 7.313432836 | F118: =IF(OR('Tabel 4F H'!F118<5,'Tabel 4 H'!F118<0.5),"-",IFERROR('Tabel 4 H'!F118/'Tabel 4F H'!F118*100,"-")) -> 6.569343066 | G118: =IF(OR('Tabel 4F H'!G118<5,'Tabel 4 H'!G118<0.5),"-",IFERROR('Tabel 4 H'!G118/'Tabel 4F H'!G118*100,"-")) -> 8.653846154 | I118: =IF(OR('Tabel 4F H'!I118<5,'Tabel 4 H'!I118<0.5),"-",IFERROR('Tabel 4 H'!I118/'Tabel 4F H'!I118*100,"-")) -> 10.6010929
A119: MA. Nat. | C119: =IF(OR('Tabel 4F H'!C119<5,'Tabel 4 H'!C119<0.5),"-",IFERROR('Tabel 4 H'!C119/'Tabel 4F H'!C119*100,"-")) -> 8.333333333 | D119: =IF(OR('Tabel 4F H'!D119<5,'Tabel 4 H'!D119<0.5),"-",IFERROR('Tabel 4 H'!D119/'Tabel 4F H'!D119*100,"-")) -> 6.52173913 | E119: =IF(OR('Tabel 4F H'!E119<5,'Tabel 4 H'!E119<0.5),"-",IFERROR('Tabel 4 H'!E119/'Tabel 4F H'!E119*100,"-")) -> 1.796407186 | F119: =IF(OR('Tabel 4F H'!F119<5,'Tabel 4 H'!F119<0.5),"-",IFERROR('Tabel 4 H'!F119/'Tabel 4F H'!F119*100,"-")) -> 2.985074627 | G119: =IF(OR('Tabel 4F H'!G119<5,'Tabel 4 H'!G119<0.5),"-",IFERROR('Tabel 4 H'!G119/'Tabel 4F H'!G119*100,"-")) -> 5.882352941 | I119: =IF(OR('Tabel 4F H'!I119<5,'Tabel 4 H'!I119<0.5),"-",IFERROR('Tabel 4 H'!I119/'Tabel 4F H'!I119*100,"-")) -> 4.06504065
A120: MA. Ph.d. | C120: =IF(OR('Tabel 4F H'!C120<5,'Tabel 4 H'!C120<0.5),"-",IFERROR('Tabel 4 H'!C120/'Tabel 4F H'!C120*100,"-")) -> - | D120: =IF(OR('Tabel 4F H'!D120<5,'Tabel 4 H'!D120<0.5),"-",IFERROR('Tabel 4 H'!D120/'Tabel 4F H'!D120*100,"-")) -> 11.11111111 | E120: =IF(OR('Tabel 4F H'!E120<5,'Tabel 4 H'!E120<0.5),"-",IFERROR('Tabel 4 H'!E120/'Tabel 4F H'!E120*100,"-")) -> 4.255319149 | F120: =IF(OR('Tabel 4F H'!F120<5,'Tabel 4 H'!F120<0.5),"-",IFERROR('Tabel 4 H'!F120/'Tabel 4F H'!F120*100,"-")) -> 8.108108108 | G120: =IF(OR('Tabel 4F H'!G120<5,'Tabel 4 H'!G120<0.5),"-",IFERROR('Tabel 4 H'!G120/'Tabel 4F H'!G120*100,"-")) -> - | I120: =IF(OR('Tabel 4F H'!I120<5,'Tabel 4 H'!I120<0.5),"-",IFERROR('Tabel 4 H'!I120/'Tabel 4F H'!I120*100,"-")) -> 7.751937984
A121: MA. Samf. | C121: =IF(OR('Tabel 4F H'!C121<5,'Tabel 4 H'!C121<0.5),"-",IFERROR('Tabel 4 H'!C121/'Tabel 4F H'!C121*100,"-")) -> 16.90140845 | D121: =IF(OR('Tabel 4F H'!D121<5,'Tabel 4 H'!D121<0.5),"-",IFERROR('Tabel 4 H'!D121/'Tabel 4F H'!D121*100,"-")) -> 7.843137255 | E121: =IF(OR('Tabel 4F H'!E121<5,'Tabel 4 H'!E121<0.5),"-",IFERROR('Tabel 4 H'!E121/'Tabel 4F H'!E121*100,"-")) -> 8.620689655 | F121: =IF(OR('Tabel 4F H'!F121<5,'Tabel 4 H'!F121<0.5),"-",IFERROR('Tabel 4 H'!F121/'Tabel 4F H'!F121*100,"-")) -> 6.25 | G121: =IF(OR('Tabel 4F H'!G121<5,'Tabel 4 H'!G121<0.5),"-",IFERROR('Tabel 4 H'!G121/'Tabel 4F H'!G121*100,"-")) -> - | I121: =IF(OR('Tabel 4F H'!I121<5,'Tabel 4 H'!I121<0.5),"-",IFERROR('Tabel 4 H'!I121/'Tabel 4F H'!I121*100,"-")) -> 9.779179811
A122: Øvrige Mag. | C122: =IF(OR('Tabel 4F H'!C122<5,'Tabel 4 H'!C122<0.5),"-",IFERROR('Tabel 4 H'!C122/'Tabel 4F H'!C122*100,"-")) -> 26.66666667 | D122: =IF(OR('Tabel 4F H'!D122<5,'Tabel 4 H'!D122<0.5),"-",IFERROR('Tabel 4 H'!D122/'Tabel 4F H'!D122*100,"-")) -> 13.04347826 | E122: =IF(OR('Tabel 4F H'!E122<5,'Tabel 4 H'!E122<0.5),"-",IFERROR('Tabel 4 H'!E122/'Tabel 4F H'!E122*100,"-")) -> 10.52631579 | F122: =IF(OR('Tabel 4F H'!F122<5,'Tabel 4 H'!F122<0.5),"-",IFERROR('Tabel 4 H'!F122/'Tabel 4F H'!F122*100,"-")) -> 12.12121212 | G122: =IF(OR('Tabel 4F H'!G122<5,'Tabel 4 H'!G122<0.5),"-",IFERROR('Tabel 4 H'!G122/'Tabel 4F H'!G122*100,"-")) -> 10 | I122: =IF(OR('Tabel 4F H'!I122<5,'Tabel 4 H'!I122<0.5),"-",IFERROR('Tabel 4 H'!I122/'Tabel 4F H'!I122*100,"-")) -> 13.44537815
A123: Agronom | C123: =IF(OR('Tabel 4F H'!C123<5,'Tabel 4 H'!C123<0.5),"-",IFERROR('Tabel 4 H'!C123/'Tabel 4F H'!C123*100,"-")) -> 35.71428571 | D123: =IF(OR('Tabel 4F H'!D123<5,'Tabel 4 H'!D123<0.5),"-",IFERROR('Tabel 4 H'!D123/'Tabel 4F H'!D123*100,"-")) -> - | E123: =IF(OR('Tabel 4F H'!E123<5,'Tabel 4 H'!E123<0.5),"-",IFERROR('Tabel 4 H'!E123/'Tabel 4F H'!E123*100,"-")) -> 5.882352941 | F123: =IF(OR('Tabel 4F H'!F123<5,'Tabel 4 H'!F123<0.5),"-",IFERROR('Tabel 4 H'!F123/'Tabel 4F H'!F123*100,"-")) -> 4.761904762 | G123: =IF(OR('Tabel 4F H'!G123<5,'Tabel 4 H'!G123<0.5),"-",IFERROR('Tabel 4 H'!G123/'Tabel 4F H'!G123*100,"-")) -> 9.090909091 | I123: =IF(OR('Tabel 4F H'!I123<5,'Tabel 4 H'!I123<0.5),"-",IFERROR('Tabel 4 H'!I123/'Tabel 4F H'!I123*100,"-")) -> 10
A124: Landsk. Arkt. | C124: =IF(OR('Tabel 4F H'!C124<5,'Tabel 4 H'!C124<0.5),"-",IFERROR('Tabel 4 H'!C124/'Tabel 4F H'!C124*100,"-")) -> - | D124: =IF(OR('Tabel 4F H'!D124<5,'Tabel 4 H'!D124<0.5),"-",IFERROR('Tabel 4 H'!D124/'Tabel 4F H'!D124*100,"-")) -> 7.692307692 | E124: =IF(OR('Tabel 4F H'!E124<5,'Tabel 4 H'!E124<0.5),"-",IFERROR('Tabel 4 H'!E124/'Tabel 4F H'!E124*100,"-")) -> - | F124: =IF(OR('Tabel 4F H'!F124<5,'Tabel 4 H'!F124<0.5),"-",IFERROR('Tabel 4 H'!F124/'Tabel 4F H'!F124*100,"-")) -> - | G124: =IF(OR('Tabel 4F H'!G124<5,'Tabel 4 H'!G124<0.5),"-",IFERROR('Tabel 4 H'!G124/'Tabel 4F H'!G124*100,"-")) -> - | I124: =IF(OR('Tabel 4F H'!I124<5,'Tabel 4 H'!I124<0.5),"-",IFERROR('Tabel 4 H'!I124/'Tabel 4F H'!I124*100,"-")) -> 3.03030303
A125: Hortonom | C125: =IF(OR('Tabel 4F H'!C125<5,'Tabel 4 H'!C125<0.5),"-",IFERROR('Tabel 4 H'!C125/'Tabel 4F H'!C125*100,"-")) -> - | D125: =IF(OR('Tabel 4F H'!D125<5,'Tabel 4 H'!D125<0.5),"-",IFERROR('Tabel 4 H'!D125/'Tabel 4F H'!D125*100,"-")) -> - | E125: =IF(OR('Tabel 4F H'!E125<5,'Tabel 4 H'!E125<0.5),"-",IFERROR('Tabel 4 H'!E125/'Tabel 4F H'!E125*100,"-")) -> - | F125: =IF(OR('Tabel 4F H'!F125<5,'Tabel 4 H'!F125<0.5),"-",IFERROR('Tabel 4 H'!F125/'Tabel 4F H'!F125*100,"-")) -> - | G125: =IF(OR('Tabel 4F H'!G125<5,'Tabel 4 H'!G125<0.5),"-",IFERROR('Tabel 4 H'!G125/'Tabel 4F H'!G125*100,"-")) -> - | I125: =IF(OR('Tabel 4F H'!I125<5,'Tabel 4 H'!I125<0.5),"-",IFERROR('Tabel 4 H'!I125/'Tabel 4F H'!I125*100,"-")) -> -
A126: Forstkand. | C126: =IF(OR('Tabel 4F H'!C126<5,'Tabel 4 H'!C126<0.5),"-",IFERROR('Tabel 4 H'!C126/'Tabel 4F H'!C126*100,"-")) -> - | D126: =IF(OR('Tabel 4F H'!D126<5,'Tabel 4 H'!D126<0.5),"-",IFERROR('Tabel 4 H'!D126/'Tabel 4F H'!D126*100,"-")) -> - | E126: =IF(OR('Tabel 4F H'!E126<5,'Tabel 4 H'!E126<0.5),"-",IFERROR('Tabel 4 H'!E126/'Tabel 4F H'!E126*100,"-")) -> 16.66666667 | F126: =IF(OR('Tabel 4F H'!F126<5,'Tabel 4 H'!F126<0.5),"-",IFERROR('Tabel 4 H'!F126/'Tabel 4F H'!F126*100,"-")) -> - | G126: =IF(OR('Tabel 4F H'!G126<5,'Tabel 4 H'!G126<0.5),"-",IFERROR('Tabel 4 H'!G126/'Tabel 4F H'!G126*100,"-")) -> - | I126: =IF(OR('Tabel 4F H'!I126<5,'Tabel 4 H'!I126<0.5),"-",IFERROR('Tabel 4 H'!I126/'Tabel 4F H'!I126*100,"-")) -> 7.142857143
A127: Jordbrugsakad. | C127: =IF(OR('Tabel 4F H'!C127<5,'Tabel 4 H'!C127<0.5),"-",IFERROR('Tabel 4 H'!C127/'Tabel 4F H'!C127*100,"-")) -> 26.31578947 | D127: =IF(OR('Tabel 4F H'!D127<5,'Tabel 4 H'!D127<0.5),"-",IFERROR('Tabel 4 H'!D127/'Tabel 4F H'!D127*100,"-")) -> 2.941176471 | E127: =IF(OR('Tabel 4F H'!E127<5,'Tabel 4 H'!E127<0.5),"-",IFERROR('Tabel 4 H'!E127/'Tabel 4F H'!E127*100,"-")) -> 5.882352941 | F127: =IF(OR('Tabel 4F H'!F127<5,'Tabel 4 H'!F127<0.5),"-",IFERROR('Tabel 4 H'!F127/'Tabel 4F H'!F127*100,"-")) -> 3.225806452 | G127: =IF(OR('Tabel 4F H'!G127<5,'Tabel 4 H'!G127<0.5),"-",IFERROR('Tabel 4 H'!G127/'Tabel 4F H'!G127*100,"-")) -> 6.25 | I127: =IF(OR('Tabel 4F H'!I127<5,'Tabel 4 H'!I127<0.5),"-",IFERROR('Tabel 4 H'!I127/'Tabel 4F H'!I127*100,"-")) -> 7.462686567
A128: Mejeriing. | C128: =IF(OR('Tabel 4F H'!C128<5,'Tabel 4 H'!C128<0.5),"-",IFERROR('Tabel 4 H'!C128/'Tabel 4F H'!C128*100,"-")) -> - | D128: =IF(OR('Tabel 4F H'!D128<5,'Tabel 4 H'!D128<0.5),"-",IFERROR('Tabel 4 H'!D128/'Tabel 4F H'!D128*100,"-")) -> - | E128: =IF(OR('Tabel 4F H'!E128<5,'Tabel 4 H'!E128<0.5),"-",IFERROR('Tabel 4 H'!E128/'Tabel 4F H'!E128*100,"-")) -> - | F128: =IF(OR('Tabel 4F H'!F128<5,'Tabel 4 H'!F128<0.5),"-",IFERROR('Tabel 4 H'!F128/'Tabel 4F H'!F128*100,"-")) -> - | G128: =IF(OR('Tabel 4F H'!G128<5,'Tabel 4 H'!G128<0.5),"-",IFERROR('Tabel 4 H'!G128/'Tabel 4F H'!G128*100,"-")) -> - | I128: =IF(OR('Tabel 4F H'!I128<5,'Tabel 4 H'!I128<0.5),"-",IFERROR('Tabel 4 H'!I128/'Tabel 4F H'!I128*100,"-")) -> -
A129: Levn.m.kand. | C129: =IF(OR('Tabel 4F H'!C129<5,'Tabel 4 H'!C129<0.5),"-",IFERROR('Tabel 4 H'!C129/'Tabel 4F H'!C129*100,"-")) -> 22.22222222 | D129: =IF(OR('Tabel 4F H'!D129<5,'Tabel 4 H'!D129<0.5),"-",IFERROR('Tabel 4 H'!D129/'Tabel 4F H'!D129*100,"-")) -> 5.555555556 | E129: =IF(OR('Tabel 4F H'!E129<5,'Tabel 4 H'!E129<0.5),"-",IFERROR('Tabel 4 H'!E129/'Tabel 4F H'!E129*100,"-")) -> - | F129: =IF(OR('Tabel 4F H'!F129<5,'Tabel 4 H'!F129<0.5),"-",IFERROR('Tabel 4 H'!F129/'Tabel 4F H'!F129*100,"-")) -> - | G129: =IF(OR('Tabel 4F H'!G129<5,'Tabel 4 H'!G129<0.5),"-",IFERROR('Tabel 4 H'!G129/'Tabel 4F H'!G129*100,"-")) -> - | I129: =IF(OR('Tabel 4F H'!I129<5,'Tabel 4 H'!I129<0.5),"-",IFERROR('Tabel 4 H'!I129/'Tabel 4F H'!I129*100,"-")) -> 9.375
A130: Dyrlæge | C130: =IF(OR('Tabel 4F H'!C130<5,'Tabel 4 H'!C130<0.5),"-",IFERROR('Tabel 4 H'!C130/'Tabel 4F H'!C130*100,"-")) -> - | D130: =IF(OR('Tabel 4F H'!D130<5,'Tabel 4 H'!D130<0.5),"-",IFERROR('Tabel 4 H'!D130/'Tabel 4F H'!D130*100,"-")) -> - | E130: =IF(OR('Tabel 4F H'!E130<5,'Tabel 4 H'!E130<0.5),"-",IFERROR('Tabel 4 H'!E130/'Tabel 4F H'!E130*100,"-")) -> - | F130: =IF(OR('Tabel 4F H'!F130<5,'Tabel 4 H'!F130<0.5),"-",IFERROR('Tabel 4 H'!F130/'Tabel 4F H'!F130*100,"-")) -> - | G130: =IF(OR('Tabel 4F H'!G130<5,'Tabel 4 H'!G130<0.5),"-",IFERROR('Tabel 4 H'!G130/'Tabel 4F H'!G130*100,"-")) -> - | I130: =IF(OR('Tabel 4F H'!I130<5,'Tabel 4 H'!I130<0.5),"-",IFERROR('Tabel 4 H'!I130/'Tabel 4F H'!I130*100,"-")) -> -
A131: Farmaceut | C131: =IF(OR('Tabel 4F H'!C131<5,'Tabel 4 H'!C131<0.5),"-",IFERROR('Tabel 4 H'!C131/'Tabel 4F H'!C131*100,"-")) -> 4 | D131: =IF(OR('Tabel 4F H'!D131<5,'Tabel 4 H'!D131<0.5),"-",IFERROR('Tabel 4 H'!D131/'Tabel 4F H'!D131*100,"-")) -> - | E131: =IF(OR('Tabel 4F H'!E131<5,'Tabel 4 H'!E131<0.5),"-",IFERROR('Tabel 4 H'!E131/'Tabel 4F H'!E131*100,"-")) -> - | F131: =IF(OR('Tabel 4F H'!F131<5,'Tabel 4 H'!F131<0.5),"-",IFERROR('Tabel 4 H'!F131/'Tabel 4F H'!F131*100,"-")) -> 2.43902439 | G131: =IF(OR('Tabel 4F H'!G131<5,'Tabel 4 H'!G131<0.5),"-",IFERROR('Tabel 4 H'!G131/'Tabel 4F H'!G131*100,"-")) -> - | I131: =IF(OR('Tabel 4F H'!I131<5,'Tabel 4 H'!I131<0.5),"-",IFERROR('Tabel 4 H'!I131/'Tabel 4F H'!I131*100,"-")) -> 1.327433628
